{"text_format":"3","workbook":"xlsx","n_sheets":5,"sheets":["Instructions","List of HIV Medicines","Data Abstraction Tool - LONG","Create Indicators","ValueSets"],"not_rendered":{"images":2,"defined_names":7},"read":"whole","date_system":"1900"}

{"sheet":"Instructions","index":0,"n_rows":24,"n_cols":3,"rows_kept":24,"merged":[[1,2,4,2],[6,0,9,0],[10,0,12,0],[16,0,18,0],[19,0,21,0]]}
[]
[null,null,"Public Burden Statement:  An agency may not conduct or sponsor, and a person is not required to respond to, a collection of information unless it displays a currently valid OMB control number.  The OMB control number for this project is 0915-xxxx.  Public reporting burden for this collection of information is estimated to average xx hours per response, including the time for reviewing instructions, searching existing data sources, and completing and reviewing the collection of information. Send comments regarding this burden estimate or any other aspect of this collection of information, including suggestions for reducing this burden, to HRSA Reports Clearance Officer, 5600 Fishers Lane, Room 14N136B, Rockville, Maryland, 20857."]
[]
[]
[]
["DATA TYPE SUMMARY","DATA TYPE","INSTRUCTIONS"]
["Abstractor and  Site Information","Name","The name of the person doing chart abstraction/data collection"]
[null,"Date","The date of data collection/medical chart abstraction"]
[null,"Type 1 Site ID","The Type 1 provider side ID"]
[null,"Type 2 Site ID","The Type 2 provider side ID"]
["Demographic information","Client Identifier","Client's  eUCI or encrypted client identifier*"]
[null,"Age","Client's current age*"]
[null,"Gender","Client's  current gender*"]
["Initial HIV diagnosis","Month and year of initial HIV diagnosis","Indicate month and year, if known, of initial HIV diagnosis"]
["Outpatient medical visit","Dates of all medical visits.","Record dates of all outpatient medical visits for client in 2018. Medical visits are defined as the provision of professional diagnostic and therapeutic services rendered by a licensed physician, physician's assistant, clinical nurse specialist, or nurse practitioner in an outpatient setting (not a hospital, hospital emergency room, or any other type of inpatient treatment center), consistent with HHS guidelines and including access to antiretroviral and other drug therapies, including prophylaxis and treatment of opportunistic infections and combination antiretroviral therapies. Allowable services include: Diagnostic testing • Early intervention and risk assessment, • Preventive care and screening • Practitioner examination, medical history taking, diagnosis and treatment of common physical and mental conditions • Prescribing and managing of medication therapy • Education and counseling on health issues • Well-baby care • Continuing care and management of chronic conditions • Referral to and provision of HIV-related specialty care (includes all medical subspecialties even ophthalmic and optometric services)"]
[null,"Medical visit data source","Indicate whether the information found in the medical record regarding the client's medical visits is a primary or secondary source"]
["Prescription of ART","Dates of ART prescriptions","Enter dates of all ART prescriptions in 2018."]
[null,"Type of ART prescriptions","Select brand or generic name of all ART medications prescribed. See list of HIV medicines approved by FDA."]
[null,"ART prescription data source","Indicate whether the information found in the medical record regarding the client's ART prescription is a primary or secondary source"]
["Viral load suppression","Dates of viral load lab tests","Enter dates of all viral load lab tests ordered in 2018."]
[null,"Results of viral load lab tests","Indicate results (in copies/ml) of all lab tests."]
[null,"Viral load data source","Indicate whether the information found in the client's medical record regarding the viral load test is a primary or secondary source"]
[]
["* This value will be pre-populated from the 2017 RSR."]

{"sheet":"List of HIV Medicines","index":1,"n_rows":102,"n_cols":4,"rows_kept":102,"merged":[[0,0,1,0],[0,2,1,2],[0,3,1,3],[2,0,2,3],[3,0,13,0],[3,2,4,2],[3,3,4,3],[5,2,6,2],[5,3,6,3],[7,2,8,2],[7,3,8,3],[9,2,11,2],[9,3,11,3],[12,2,13,2],[12,3,13,3],[14,0,14,3],[15,0,24,0],[15,2,16,2],[15,3,16,3],[17,2,18,2],[17,3,18,3],[19,2,20,2],[19,3,20,3],[23,2,24,2],[23,3,24,3],[25,0,25,3],[26,0,38,0],[26,2,27,2],[26,3,27,3],[28,2,29,2],[28,3,29,3],[30,2,31,2],[30,3,31,3],[32,2,34,2],[32,3,34,3],[35,2,36,2],[35,3,36,3],[37,2,38,2],[37,3,38,3],[39,0,39,3],[40,0,41,0],[40,2,41,2],[40,3,41,3],[42,0,42,3],[43,0,44,0],[43,2,44,2],[43,3,44,3],[45,0,45,3],[46,0,49,0],[46,2,47,2],[46,3,47,3],[50,0,50,3],[51,0,53,0],[51,2,53,2],[51,3,53,3],[54,0,54,3],[55,0,56,0],[55,2,56,2],[55,3,56,3],[57,0,57,3],[58,0,99,0],[58,2,59,2],[58,3,59,3],[60,2,61,2],[60,3,61,3],[62,2,63,2],[62,3,63,3],[64,2,65,2],[64,3,65,3],[66,2,67,2],[66,3,67,3],[68,2,69,2],[68,3,69,3],[70,2,71,2],[70,3,71,3],[72,2,73,2],[72,3,73,3],[74,2,75,2],[74,3,75,3],[76,2,77,2],[76,3,77,3],[78,2,79,2],[78,3,79,3],[80,2,81,2],[80,3,81,3],[82,2,83,2],[82,3,83,3],[84,2,85,2],[84,3,85,3],[86,2,87,2],[86,3,87,3],[88,2,89,2],[88,3,89,3],[90,2,91,2],[90,3,91,3],[92,2,93,2],[92,3,93,3],[94,2,95,2],[94,3,95,3],[96,2,97,2],[96,3,97,3],[98,2,99,2],[98,3,99,3]]}
["Drug Class","Generic Name","Brand Name","FDA Approval Date"]
[null,"(Other names and acronyms)"]
["Nucleoside Reverse Transcriptase Inhibitors (NRTIs) (N = 5)"]
["NRTIs block reverse transcriptase, an enzyme HIV needs to make copies of itself.","abacavir ","Ziagen","1998-12-17"]
[null,"(abacavir sulfate, ABC)"]
[null,"emtricitabine","Emtriva","2003-07-02"]
[null,"(FTC)"]
[null,"lamivudine ","Epivir","1995-11-17"]
[null,"(3TC)"]
[null,"tenofovir disoproxil ","Viread","2001-10-26"]
[null,"fumarate"]
[null,"(tenofovir DF, TDF)"]
[null,"zidovudine","Retrovir","1987-03-19"]
[null,"(azidothymidine, AZT, ZDV)"]
["Non-Nucleoside Reverse Transcriptase Inhibitors (NNRTIs) (N = 5)"]
["NNRTIs bind to and later alter reverse transcriptase, an enzyme HIV needs to make copies of itself.","doravirine ","Pifeltro","2018-08-30"]
[null,"(DOR)"]
[null,"efavirenz ","Sustiva","1998-09-17"]
[null,"(EFV)"]
[null,"etravirine ","Intelence","2008-01-18"]
[null,"(ETR)"]
[null,"nevirapine ","Viramune","1996-06-21"]
[null,"(extended-release nevirapine, NVP)","Viramune XR (extended release)","2011-03-25"]
[null,"rilpivirine","Edurant","2011-05-20"]
[null,"(rilpivirine hydrochloride, RPV)"]
["Protease Inhibitors (PIs) (N = 6)"]
["PIs block HIV protease, an enzyme HIV needs to make copies of itself.","atazanavir","Reyataz","2003-06-20"]
[null,"(atazanavir sulfate, ATV)"]
[null,"darunavir","Prezista ","2006-06-23"]
[null,"(darunavir ethanolate, DRV)"]
[null,"fosamprenavir","Lexiva","2003-10-20"]
[null,"(fosamprenavir calcium, FOS-APV, FPV)"]
[null,"ritonavir","Norvir","1996-03-01"]
[null,"(RTV)"]
[null,"*Although ritonavir is a PI, it is generally used as a pharmacokinetic enhancer as recommended in the Guidelines for the Use of Antiretroviral Agents in Adults and Adolescents Living with HIV and the Guidelines for the Use of Antiretroviral Agents in Pediatric HIV Infection."]
[null,"saquinavir","Invirase","1995-12-06"]
[null,"(saquinavir mesylate, SQV)"]
[null,"tipranavir","Aptivus","2005-06-22"]
[null,"(TPV)"]
["Fusion Inhibitors (N 1)"]
["Fusion inhibitors block HIV from entering the CD4 cells of the immune system.","enfuvirtide","Fuzeon","2003-03-13"]
[null,"(T-20)"]
["CCR5 Antagonists (N=1)"]
["CCR5 antagonists block CCR5 coreceptors on the surface of certain immune cells that HIV needs to enter the cells.","maraviroc","Selzentry","2007-08-06"]
[null,"(MVC)"]
["Integrase Inhibitors (N= 2)"]
["Integrase inhibitors block HIV integrase, an enzyme HIV needs to make copies of itself.","dolutegravir","Tivicay ","August 13, 2013 "]
[null,"(DTG, dolutegravir sodium) "]
[null,"raltegravir","Isentress","2007-10-12"]
[null,"(raltegravir potassium, RAL)","Isentress HD ","May 26, 2017 "]
["Post-Attachment Inhibitors (N = 1)"]
["Post-attachment inhibitors block CD4 receptors on the surface of certain immune cells that HIV needs to enter the cells.","ibalizumab","Trogarzo","2018-03-06"]
[null,"(Hu5A8, IBA, Ibalizumab-uiyk, TMB-355, TNX-355)"]
[]
["Pharmacokinetic Enhancers (N = 1)"]
["Pharmacokinetic enhancers are used in HIV treatment to increase the effectiveness of an HIV medicine included in an HIV regimen.","cobicistat ","Tybost","2014-09-24"]
[null,"(COBI)"]
["Combination HIV Medicines (N = 21)"]
["Combination HIV medicines contain two or more HIV medicines from one or more drug classes.","abacavir and lamivudine ","Epzicom","2004-08-02"]
[null,"(abacavir sulfate / lamivudine, ABC / 3TC)"]
[null,"abacavir, dolutegravir, and lamivudine","Triumeq ","2014-08-22"]
[null,"(abacavir sulfate / dolutegravir sodium / lamivudine, ABC / DTG / 3TC) "]
[null,"abacavir, lamivudine, and zidovudine","Trizivir","2000-11-14"]
[null,"(abacavir sulfate / lamivudine / zidovudine, ABC / 3TC / ZDV)"]
[null,"atazanavir and cobicistat","Evotaz","2015-01-29"]
[null,"(atazanavir sulfate / cobicistat, ATV / COBI)"]
[null,"bictegravir, emtricitabine, and tenofovir alafenamide ","Biktarvy","2018-02-07"]
[null,"(bictegravir sodium / emtricitabine / tenofovir alafenamide fumarate, BIC / FTC / TAF)"]
[null,"darunavir and cobicistat","Prezcobix","2015-01-29"]
[null,"(darunavir ethanolate / cobicistat, DRV / COBI)"]
[null,"darunavir, cobicistat, emtricitabine, and tenofovir alafenamide","Symtuza ","July 17, 2018 "]
[null,"(darunavir ethanolate / cobicistat / emtricitabine / tenofovir AF, darunavir ethanolate / cobicistat / emtricitabine / tenofovir alafenamide, darunavir / cobicistat / emtricitabine / tenofovir AF, darunavir / cobicistat / emtricitabine / tenofovir alafenamide fumarate,  DRV / COBI / FTC / TAF) "]
[null,"dolutegravir and rilpivirine","Juluca","2017-11-21"]
[null,"(dolutegravir sodium / rilpivirine hydrochloride, DTG / RPV)"]
[null,"doravirine, lamivudine, and tenofovir disoproxil fumarate","Delstrigo","2018-08-30"]
[null,"(doravirine / lamivudine / TDF, doravirine / lamivudine / tenofovir DF, DOR / 3TC / TDF)"]
[null,"efavirenz, emtricitabine, and tenofovir disoproxil fumarate","Atripla","2006-07-12"]
[null,"(efavirenz / emtricitabine / tenofovir DF, EFV / FTC / TDF)"]
[null,"efavirenz, lamivudine, and tenofovir disoproxil fumarate","Symfi","2018-03-22"]
[null,"(EFV / 3TC / TDF)"]
[null,"efavirenz, lamivudine, and tenofovir disoproxil fumarate","Symfi Lo","2018-02-05"]
[null,"(EFV / 3TC / TDF)"]
[null,"elvitegravir, cobicistat, emtricitabine, and tenofovir alafenamide","Genvoya","2015-11-05"]
[null,"(elvitegravir / cobicistat / emtricitabine / tenofovir alafenamide fumarate, EVG / COBI / FTC / TAF)"]
[null,"elvitegravir, cobicistat, emtricitabine, and tenofovir disoproxil fumarate","Stribild","2012-08-27"]
[null,"(QUAD, EVG / COBI / FTC / TDF)"]
[null,"emtricitabine, rilpivirine, and tenofovir alafenamide","Odefsey","2016-03-01"]
[null,"(emtricitabine / rilpivirine / tenofovir AF, emtricitabine / rilpivirine / tenofovir alafenamide fumarate, emtricitabine / rilpivirine hydrochloride / tenofovir AF, emtricitabine / rilpivirine hydrochloride / tenofovir alafenamide, emtricitabine / rilpivirine hydrochloride / tenofovir alafenamide fumarate, FTC / RPV / TAF)"]
[null,"emtricitabine, rilpivirine, and tenofovir disoproxil fumarate","Complera","2011-08-10"]
[null,"(emtricitabine / rilpivirine hydrochloride / tenofovir disoproxil fumarate, emtricitabine / rilpivirine / tenofovir, FTC / RPV / TDF)"]
[null,"emtricitabine and tenofovir alafenamide","Descovy ","2016-04-04"]
[null,"(emtricitabine / tenofovir AF, emtricitabine / tenofovir alafenamide fumarate, FTC / TAF)"]
[null,"emtricitabine and tenofovir disoproxil fumarate","Truvada","2004-08-02"]
[null,"(emtricitabine / tenofovir DF, FTC / TDF)"]
[null,"lamivudine and tenofovir disoproxil fumarate","Cimduo","2018-02-28"]
[null,"(Temixys, 3TC / TDF)"]
[null,"lamivudine and zidovudine","Combivir","1997-09-27"]
[null,"(3TC / ZDV)"]
[null,"lopinavir and ritonavir","Kaletra","2000-09-15"]
[null,"(ritonavir-boosted lopinavir, LPV/r, LPV / RTV)"]
[]
["https://aidsinfo.nih.gov/understanding-hiv-aids/fact-sheets/21/58/fda-approved-hiv-medicines/"]

{"sheet":"Data Abstraction Tool - LONG","index":2,"n_rows":6,"n_cols":17,"rows_kept":6,"merged":[[1,2,3,9],[1,10,2,11],[4,0,4,3],[4,4,4,6],[4,8,4,9],[4,10,4,12],[4,13,4,15]]}
[]
[null,null,"Public Burden Statement:  An agency may not conduct or sponsor, and a person is not required to respond to, a collection of information unless it displays a currently valid OMB control number.  The OMB control number for this project is 0915-xxxx.  Public reporting burden for this collection of information is estimated to average xx hours per response, including the time for reviewing instructions, searching existing data sources, and completing and reviewing the collection of information. Send comments regarding this burden estimate or any other aspect of this collection of information, including suggestions for reducing this burden, to HRSA Reports Clearance Officer, 5600 Fishers Lane, Room 14N136B, Rockville, Maryland, 20857.",{"$nulls":7},"OMB NUMBER: 0915-XXXX\nEXPIRATION DATE: XX/XX/20XX"]
[]
[]
["Abstractor and provider information",{"$nulls":3},"Demograhic information\n(for validation of record)",null,null,"Initial HIV diagnosis","HIV medical visits",null,"Prescription of ART",null,null,"Viral load tests and results",null,null,"Notes"]
["Abstractor name","Abstraction date","Type 1 provider \nencrypted ID ","Type 2 provider \nencrypted ID","Client \nencrypted ID \n(eUCI)","Client age","Client gender (current)","Month and year of initial HIV diagnosis","Dates of outpatient\n medical visits (see definition)","Medical visit\ndata source","Dates of ART prescriptions","Types of ART prescribed","ART prescription data source","Dates of viral load lab tests","Results of viral load lab tests","Viral load data source","Additional Information from the Abstractor"]

{"sheet":"Create Indicators","index":3,"n_rows":203,"n_cols":13,"rows_kept":203,"hidden":true}
[]
[]
[" SITEID","PATID","Encntr_Code ","Encntr_Dt","Ref_NPI","Ref_dt","Ref_type","Conslt","Conslt_dt"," Ethnicity","Payer","Race","Sex"]
[{"$f":"'Data Abstraction Tool - LONG'!#REF!","v":{"$error":"#REF!"}},{"$f":"'Data Abstraction Tool - LONG'!#REF!","v":{"$error":"#REF!"}},{"$f":"'Data Abstraction Tool - LONG'!I7","v":0},{"$f":"'Data Abstraction Tool - LONG'!#REF!","v":{"$error":"#REF!"}},{"$f":"'Data Abstraction Tool - LONG'!#REF!","v":{"$error":"#REF!"}},{"$f":"'Data Abstraction Tool - LONG'!#REF!","v":{"$error":"#REF!"}},{"$f":"'Data Abstraction Tool - LONG'!#REF!","v":{"$error":"#REF!"}},{"$f":"'Data Abstraction Tool - LONG'!#REF!","v":{"$error":"#REF!"}},{"$f":"'Data Abstraction Tool - LONG'!#REF!","v":{"$error":"#REF!"}},{"$f":"'Data Abstraction Tool - LONG'!E7","v":0},{"$f":"'Data Abstraction Tool - LONG'!#REF!","v":{"$error":"#REF!"}},{"$f":"'Data Abstraction Tool - LONG'!#REF!","v":{"$error":"#REF!"}},{"$f":"'Data Abstraction Tool - LONG'!#REF!","v":{"$error":"#REF!"}}]
[{"$f":"'Data Abstraction Tool - LONG'!#REF!","v":{"$error":"#REF!"}},{"$f":"'Data Abstraction Tool - LONG'!#REF!","v":{"$error":"#REF!"}},{"$f":"'Data Abstraction Tool - LONG'!I8","v":0},{"$f":"'Data Abstraction Tool - LONG'!#REF!","v":{"$error":"#REF!"}},{"$f":"'Data Abstraction Tool - LONG'!#REF!","v":{"$error":"#REF!"}},{"$f":"'Data Abstraction Tool - LONG'!#REF!","v":{"$error":"#REF!"}},{"$f":"'Data Abstraction Tool - LONG'!#REF!","v":{"$error":"#REF!"}},{"$f":"'Data Abstraction Tool - LONG'!#REF!","v":{"$error":"#REF!"}},{"$f":"'Data Abstraction Tool - LONG'!#REF!","v":{"$error":"#REF!"}},{"$f":"'Data Abstraction Tool - LONG'!E8","v":0},{"$f":"'Data Abstraction Tool - LONG'!#REF!","v":{"$error":"#REF!"}},{"$f":"'Data Abstraction Tool - LONG'!#REF!","v":{"$error":"#REF!"}},{"$f":"'Data Abstraction Tool - LONG'!#REF!","v":{"$error":"#REF!"}}]
[{"$f":"'Data Abstraction Tool - LONG'!#REF!","v":{"$error":"#REF!"}},{"$f":"'Data Abstraction Tool - LONG'!#REF!","v":{"$error":"#REF!"}},{"$f":"'Data Abstraction Tool - LONG'!I9","v":0},{"$f":"'Data Abstraction Tool - LONG'!#REF!","v":{"$error":"#REF!"}},{"$f":"'Data Abstraction Tool - LONG'!#REF!","v":{"$error":"#REF!"}},{"$f":"'Data Abstraction Tool - LONG'!#REF!","v":{"$error":"#REF!"}},{"$f":"'Data Abstraction Tool - LONG'!#REF!","v":{"$error":"#REF!"}},{"$f":"'Data Abstraction Tool - LONG'!#REF!","v":{"$error":"#REF!"}},{"$f":"'Data Abstraction Tool - LONG'!#REF!","v":{"$error":"#REF!"}},{"$f":"'Data Abstraction Tool - LONG'!E9","v":0},{"$f":"'Data Abstraction Tool - LONG'!#REF!","v":{"$error":"#REF!"}},{"$f":"'Data Abstraction Tool - LONG'!#REF!","v":{"$error":"#REF!"}},{"$f":"'Data Abstraction Tool - LONG'!#REF!","v":{"$error":"#REF!"}}]
[{"$f":"'Data Abstraction Tool - LONG'!#REF!","v":{"$error":"#REF!"}},{"$f":"'Data Abstraction Tool - LONG'!#REF!","v":{"$error":"#REF!"}},{"$f":"'Data Abstraction Tool - LONG'!I10","v":0},{"$f":"'Data Abstraction Tool - LONG'!#REF!","v":{"$error":"#REF!"}},{"$f":"'Data Abstraction Tool - LONG'!#REF!","v":{"$error":"#REF!"}},{"$f":"'Data Abstraction Tool - LONG'!#REF!","v":{"$error":"#REF!"}},{"$f":"'Data Abstraction Tool - LONG'!#REF!","v":{"$error":"#REF!"}},{"$f":"'Data Abstraction Tool - LONG'!#REF!","v":{"$error":"#REF!"}},{"$f":"'Data Abstraction Tool - LONG'!#REF!","v":{"$error":"#REF!"}},{"$f":"'Data Abstraction Tool - LONG'!E10","v":0},{"$f":"'Data Abstraction Tool - LONG'!#REF!","v":{"$error":"#REF!"}},{"$f":"'Data Abstraction Tool - LONG'!#REF!","v":{"$error":"#REF!"}},{"$f":"'Data Abstraction Tool - LONG'!#REF!","v":{"$error":"#REF!"}}]
[{"$f":"'Data Abstraction Tool - LONG'!#REF!","v":{"$error":"#REF!"}},{"$f":"'Data Abstraction Tool - LONG'!#REF!","v":{"$error":"#REF!"}},{"$f":"'Data Abstraction Tool - LONG'!I11","v":0},{"$f":"'Data Abstraction Tool - LONG'!#REF!","v":{"$error":"#REF!"}},{"$f":"'Data Abstraction Tool - LONG'!#REF!","v":{"$error":"#REF!"}},{"$f":"'Data Abstraction Tool - LONG'!#REF!","v":{"$error":"#REF!"}},{"$f":"'Data Abstraction Tool - LONG'!#REF!","v":{"$error":"#REF!"}},{"$f":"'Data Abstraction Tool - LONG'!#REF!","v":{"$error":"#REF!"}},{"$f":"'Data Abstraction Tool - LONG'!#REF!","v":{"$error":"#REF!"}},{"$f":"'Data Abstraction Tool - LONG'!E11","v":0},{"$f":"'Data Abstraction Tool - LONG'!#REF!","v":{"$error":"#REF!"}},{"$f":"'Data Abstraction Tool - LONG'!#REF!","v":{"$error":"#REF!"}},{"$f":"'Data Abstraction Tool - LONG'!#REF!","v":{"$error":"#REF!"}}]
[{"$f":"'Data Abstraction Tool - LONG'!#REF!","v":{"$error":"#REF!"}},{"$f":"'Data Abstraction Tool - LONG'!#REF!","v":{"$error":"#REF!"}},{"$f":"'Data Abstraction Tool - LONG'!I12","v":0},{"$f":"'Data Abstraction Tool - LONG'!#REF!","v":{"$error":"#REF!"}},{"$f":"'Data Abstraction Tool - LONG'!#REF!","v":{"$error":"#REF!"}},{"$f":"'Data Abstraction Tool - LONG'!#REF!","v":{"$error":"#REF!"}},{"$f":"'Data Abstraction Tool - LONG'!#REF!","v":{"$error":"#REF!"}},{"$f":"'Data Abstraction Tool - LONG'!#REF!","v":{"$error":"#REF!"}},{"$f":"'Data Abstraction Tool - LONG'!#REF!","v":{"$error":"#REF!"}},{"$f":"'Data Abstraction Tool - LONG'!E12","v":0},{"$f":"'Data Abstraction Tool - LONG'!#REF!","v":{"$error":"#REF!"}},{"$f":"'Data Abstraction Tool - LONG'!#REF!","v":{"$error":"#REF!"}},{"$f":"'Data Abstraction Tool - LONG'!#REF!","v":{"$error":"#REF!"}}]
[{"$f":"'Data Abstraction Tool - LONG'!#REF!","v":{"$error":"#REF!"}},{"$f":"'Data Abstraction Tool - LONG'!#REF!","v":{"$error":"#REF!"}},{"$f":"'Data Abstraction Tool - LONG'!I13","v":0},{"$f":"'Data Abstraction Tool - LONG'!#REF!","v":{"$error":"#REF!"}},{"$f":"'Data Abstraction Tool - LONG'!#REF!","v":{"$error":"#REF!"}},{"$f":"'Data Abstraction Tool - LONG'!#REF!","v":{"$error":"#REF!"}},{"$f":"'Data Abstraction Tool - LONG'!#REF!","v":{"$error":"#REF!"}},{"$f":"'Data Abstraction Tool - LONG'!#REF!","v":{"$error":"#REF!"}},{"$f":"'Data Abstraction Tool - LONG'!#REF!","v":{"$error":"#REF!"}},{"$f":"'Data Abstraction Tool - LONG'!E13","v":0},{"$f":"'Data Abstraction Tool - LONG'!#REF!","v":{"$error":"#REF!"}},{"$f":"'Data Abstraction Tool - LONG'!#REF!","v":{"$error":"#REF!"}},{"$f":"'Data Abstraction Tool - LONG'!#REF!","v":{"$error":"#REF!"}}]
[{"$f":"'Data Abstraction Tool - LONG'!#REF!","v":{"$error":"#REF!"}},{"$f":"'Data Abstraction Tool - LONG'!#REF!","v":{"$error":"#REF!"}},{"$f":"'Data Abstraction Tool - LONG'!I14","v":0},{"$f":"'Data Abstraction Tool - LONG'!#REF!","v":{"$error":"#REF!"}},{"$f":"'Data Abstraction Tool - LONG'!#REF!","v":{"$error":"#REF!"}},{"$f":"'Data Abstraction Tool - LONG'!#REF!","v":{"$error":"#REF!"}},{"$f":"'Data Abstraction Tool - LONG'!#REF!","v":{"$error":"#REF!"}},{"$f":"'Data Abstraction Tool - LONG'!#REF!","v":{"$error":"#REF!"}},{"$f":"'Data Abstraction Tool - LONG'!#REF!","v":{"$error":"#REF!"}},{"$f":"'Data Abstraction Tool - LONG'!E14","v":0},{"$f":"'Data Abstraction Tool - LONG'!#REF!","v":{"$error":"#REF!"}},{"$f":"'Data Abstraction Tool - LONG'!#REF!","v":{"$error":"#REF!"}},{"$f":"'Data Abstraction Tool - LONG'!#REF!","v":{"$error":"#REF!"}}]
[{"$f":"'Data Abstraction Tool - LONG'!#REF!","v":{"$error":"#REF!"}},{"$f":"'Data Abstraction Tool - LONG'!#REF!","v":{"$error":"#REF!"}},{"$f":"'Data Abstraction Tool - LONG'!I15","v":0},{"$f":"'Data Abstraction Tool - LONG'!#REF!","v":{"$error":"#REF!"}},{"$f":"'Data Abstraction Tool - LONG'!#REF!","v":{"$error":"#REF!"}},{"$f":"'Data Abstraction Tool - LONG'!#REF!","v":{"$error":"#REF!"}},{"$f":"'Data Abstraction Tool - LONG'!#REF!","v":{"$error":"#REF!"}},{"$f":"'Data Abstraction Tool - LONG'!#REF!","v":{"$error":"#REF!"}},{"$f":"'Data Abstraction Tool - LONG'!#REF!","v":{"$error":"#REF!"}},{"$f":"'Data Abstraction Tool - LONG'!E15","v":0},{"$f":"'Data Abstraction Tool - LONG'!#REF!","v":{"$error":"#REF!"}},{"$f":"'Data Abstraction Tool - LONG'!#REF!","v":{"$error":"#REF!"}},{"$f":"'Data Abstraction Tool - LONG'!#REF!","v":{"$error":"#REF!"}}]
[{"$f":"'Data Abstraction Tool - LONG'!#REF!","v":{"$error":"#REF!"}},{"$f":"'Data Abstraction Tool - LONG'!#REF!","v":{"$error":"#REF!"}},{"$f":"'Data Abstraction Tool - LONG'!I16","v":0},{"$f":"'Data Abstraction Tool - LONG'!#REF!","v":{"$error":"#REF!"}},{"$f":"'Data Abstraction Tool - LONG'!#REF!","v":{"$error":"#REF!"}},{"$f":"'Data Abstraction Tool - LONG'!#REF!","v":{"$error":"#REF!"}},{"$f":"'Data Abstraction Tool - LONG'!#REF!","v":{"$error":"#REF!"}},{"$f":"'Data Abstraction Tool - LONG'!#REF!","v":{"$error":"#REF!"}},{"$f":"'Data Abstraction Tool - LONG'!#REF!","v":{"$error":"#REF!"}},{"$f":"'Data Abstraction Tool - LONG'!E16","v":0},{"$f":"'Data Abstraction Tool - LONG'!#REF!","v":{"$error":"#REF!"}},{"$f":"'Data Abstraction Tool - LONG'!#REF!","v":{"$error":"#REF!"}},{"$f":"'Data Abstraction Tool - LONG'!#REF!","v":{"$error":"#REF!"}}]
[{"$f":"'Data Abstraction Tool - LONG'!#REF!","v":{"$error":"#REF!"}},{"$f":"'Data Abstraction Tool - LONG'!#REF!","v":{"$error":"#REF!"}},{"$f":"'Data Abstraction Tool - LONG'!I17","v":0},{"$f":"'Data Abstraction Tool - LONG'!#REF!","v":{"$error":"#REF!"}},{"$f":"'Data Abstraction Tool - LONG'!#REF!","v":{"$error":"#REF!"}},{"$f":"'Data Abstraction Tool - LONG'!#REF!","v":{"$error":"#REF!"}},{"$f":"'Data Abstraction Tool - LONG'!#REF!","v":{"$error":"#REF!"}},{"$f":"'Data Abstraction Tool - LONG'!#REF!","v":{"$error":"#REF!"}},{"$f":"'Data Abstraction Tool - LONG'!#REF!","v":{"$error":"#REF!"}},{"$f":"'Data Abstraction Tool - LONG'!E17","v":0},{"$f":"'Data Abstraction Tool - LONG'!#REF!","v":{"$error":"#REF!"}},{"$f":"'Data Abstraction Tool - LONG'!#REF!","v":{"$error":"#REF!"}},{"$f":"'Data Abstraction Tool - LONG'!#REF!","v":{"$error":"#REF!"}}]
[{"$f":"'Data Abstraction Tool - LONG'!#REF!","v":{"$error":"#REF!"}},{"$f":"'Data Abstraction Tool - LONG'!#REF!","v":{"$error":"#REF!"}},{"$f":"'Data Abstraction Tool - LONG'!I18","v":0},{"$f":"'Data Abstraction Tool - LONG'!#REF!","v":{"$error":"#REF!"}},{"$f":"'Data Abstraction Tool - LONG'!#REF!","v":{"$error":"#REF!"}},{"$f":"'Data Abstraction Tool - LONG'!#REF!","v":{"$error":"#REF!"}},{"$f":"'Data Abstraction Tool - LONG'!#REF!","v":{"$error":"#REF!"}},{"$f":"'Data Abstraction Tool - LONG'!#REF!","v":{"$error":"#REF!"}},{"$f":"'Data Abstraction Tool - LONG'!#REF!","v":{"$error":"#REF!"}},{"$f":"'Data Abstraction Tool - LONG'!E18","v":0},{"$f":"'Data Abstraction Tool - LONG'!#REF!","v":{"$error":"#REF!"}},{"$f":"'Data Abstraction Tool - LONG'!#REF!","v":{"$error":"#REF!"}},{"$f":"'Data Abstraction Tool - LONG'!#REF!","v":{"$error":"#REF!"}}]
[{"$f":"'Data Abstraction Tool - LONG'!#REF!","v":{"$error":"#REF!"}},{"$f":"'Data Abstraction Tool - LONG'!#REF!","v":{"$error":"#REF!"}},{"$f":"'Data Abstraction Tool - LONG'!I19","v":0},{"$f":"'Data Abstraction Tool - LONG'!#REF!","v":{"$error":"#REF!"}},{"$f":"'Data Abstraction Tool - LONG'!#REF!","v":{"$error":"#REF!"}},{"$f":"'Data Abstraction Tool - LONG'!#REF!","v":{"$error":"#REF!"}},{"$f":"'Data Abstraction Tool - LONG'!#REF!","v":{"$error":"#REF!"}},{"$f":"'Data Abstraction Tool - LONG'!#REF!","v":{"$error":"#REF!"}},{"$f":"'Data Abstraction Tool - LONG'!#REF!","v":{"$error":"#REF!"}},{"$f":"'Data Abstraction Tool - LONG'!E19","v":0},{"$f":"'Data Abstraction Tool - LONG'!#REF!","v":{"$error":"#REF!"}},{"$f":"'Data Abstraction Tool - LONG'!#REF!","v":{"$error":"#REF!"}},{"$f":"'Data Abstraction Tool - LONG'!#REF!","v":{"$error":"#REF!"}}]
[{"$f":"'Data Abstraction Tool - LONG'!#REF!","v":{"$error":"#REF!"}},{"$f":"'Data Abstraction Tool - LONG'!#REF!","v":{"$error":"#REF!"}},{"$f":"'Data Abstraction Tool - LONG'!I20","v":0},{"$f":"'Data Abstraction Tool - LONG'!#REF!","v":{"$error":"#REF!"}},{"$f":"'Data Abstraction Tool - LONG'!#REF!","v":{"$error":"#REF!"}},{"$f":"'Data Abstraction Tool - LONG'!#REF!","v":{"$error":"#REF!"}},{"$f":"'Data Abstraction Tool - LONG'!#REF!","v":{"$error":"#REF!"}},{"$f":"'Data Abstraction Tool - LONG'!#REF!","v":{"$error":"#REF!"}},{"$f":"'Data Abstraction Tool - LONG'!#REF!","v":{"$error":"#REF!"}},{"$f":"'Data Abstraction Tool - LONG'!E20","v":0},{"$f":"'Data Abstraction Tool - LONG'!#REF!","v":{"$error":"#REF!"}},{"$f":"'Data Abstraction Tool - LONG'!#REF!","v":{"$error":"#REF!"}},{"$f":"'Data Abstraction Tool - LONG'!#REF!","v":{"$error":"#REF!"}}]
[{"$f":"'Data Abstraction Tool - LONG'!#REF!","v":{"$error":"#REF!"}},{"$f":"'Data Abstraction Tool - LONG'!#REF!","v":{"$error":"#REF!"}},{"$f":"'Data Abstraction Tool - LONG'!I21","v":0},{"$f":"'Data Abstraction Tool - LONG'!#REF!","v":{"$error":"#REF!"}},{"$f":"'Data Abstraction Tool - LONG'!#REF!","v":{"$error":"#REF!"}},{"$f":"'Data Abstraction Tool - LONG'!#REF!","v":{"$error":"#REF!"}},{"$f":"'Data Abstraction Tool - LONG'!#REF!","v":{"$error":"#REF!"}},{"$f":"'Data Abstraction Tool - LONG'!#REF!","v":{"$error":"#REF!"}},{"$f":"'Data Abstraction Tool - LONG'!#REF!","v":{"$error":"#REF!"}},{"$f":"'Data Abstraction Tool - LONG'!E21","v":0},{"$f":"'Data Abstraction Tool - LONG'!#REF!","v":{"$error":"#REF!"}},{"$f":"'Data Abstraction Tool - LONG'!#REF!","v":{"$error":"#REF!"}},{"$f":"'Data Abstraction Tool - LONG'!#REF!","v":{"$error":"#REF!"}}]
[{"$f":"'Data Abstraction Tool - LONG'!#REF!","v":{"$error":"#REF!"}},{"$f":"'Data Abstraction Tool - LONG'!#REF!","v":{"$error":"#REF!"}},{"$f":"'Data Abstraction Tool - LONG'!I22","v":0},{"$f":"'Data Abstraction Tool - LONG'!#REF!","v":{"$error":"#REF!"}},{"$f":"'Data Abstraction Tool - LONG'!#REF!","v":{"$error":"#REF!"}},{"$f":"'Data Abstraction Tool - LONG'!#REF!","v":{"$error":"#REF!"}},{"$f":"'Data Abstraction Tool - LONG'!#REF!","v":{"$error":"#REF!"}},{"$f":"'Data Abstraction Tool - LONG'!#REF!","v":{"$error":"#REF!"}},{"$f":"'Data Abstraction Tool - LONG'!#REF!","v":{"$error":"#REF!"}},{"$f":"'Data Abstraction Tool - LONG'!E22","v":0},{"$f":"'Data Abstraction Tool - LONG'!#REF!","v":{"$error":"#REF!"}},{"$f":"'Data Abstraction Tool - LONG'!#REF!","v":{"$error":"#REF!"}},{"$f":"'Data Abstraction Tool - LONG'!#REF!","v":{"$error":"#REF!"}}]
[{"$f":"'Data Abstraction Tool - LONG'!#REF!","v":{"$error":"#REF!"}},{"$f":"'Data Abstraction Tool - LONG'!#REF!","v":{"$error":"#REF!"}},{"$f":"'Data Abstraction Tool - LONG'!I23","v":0},{"$f":"'Data Abstraction Tool - LONG'!#REF!","v":{"$error":"#REF!"}},{"$f":"'Data Abstraction Tool - LONG'!#REF!","v":{"$error":"#REF!"}},{"$f":"'Data Abstraction Tool - LONG'!#REF!","v":{"$error":"#REF!"}},{"$f":"'Data Abstraction Tool - LONG'!#REF!","v":{"$error":"#REF!"}},{"$f":"'Data Abstraction Tool - LONG'!#REF!","v":{"$error":"#REF!"}},{"$f":"'Data Abstraction Tool - LONG'!#REF!","v":{"$error":"#REF!"}},{"$f":"'Data Abstraction Tool - LONG'!E23","v":0},{"$f":"'Data Abstraction Tool - LONG'!#REF!","v":{"$error":"#REF!"}},{"$f":"'Data Abstraction Tool - LONG'!#REF!","v":{"$error":"#REF!"}},{"$f":"'Data Abstraction Tool - LONG'!#REF!","v":{"$error":"#REF!"}}]
[{"$f":"'Data Abstraction Tool - LONG'!#REF!","v":{"$error":"#REF!"}},{"$f":"'Data Abstraction Tool - LONG'!#REF!","v":{"$error":"#REF!"}},{"$f":"'Data Abstraction Tool - LONG'!I24","v":0},{"$f":"'Data Abstraction Tool - LONG'!#REF!","v":{"$error":"#REF!"}},{"$f":"'Data Abstraction Tool - LONG'!#REF!","v":{"$error":"#REF!"}},{"$f":"'Data Abstraction Tool - LONG'!#REF!","v":{"$error":"#REF!"}},{"$f":"'Data Abstraction Tool - LONG'!#REF!","v":{"$error":"#REF!"}},{"$f":"'Data Abstraction Tool - LONG'!#REF!","v":{"$error":"#REF!"}},{"$f":"'Data Abstraction Tool - LONG'!#REF!","v":{"$error":"#REF!"}},{"$f":"'Data Abstraction Tool - LONG'!E24","v":0},{"$f":"'Data Abstraction Tool - LONG'!#REF!","v":{"$error":"#REF!"}},{"$f":"'Data Abstraction Tool - LONG'!#REF!","v":{"$error":"#REF!"}},{"$f":"'Data Abstraction Tool - LONG'!#REF!","v":{"$error":"#REF!"}}]
[{"$f":"'Data Abstraction Tool - LONG'!#REF!","v":{"$error":"#REF!"}},{"$f":"'Data Abstraction Tool - LONG'!#REF!","v":{"$error":"#REF!"}},{"$f":"'Data Abstraction Tool - LONG'!I25","v":0},{"$f":"'Data Abstraction Tool - LONG'!#REF!","v":{"$error":"#REF!"}},{"$f":"'Data Abstraction Tool - LONG'!#REF!","v":{"$error":"#REF!"}},{"$f":"'Data Abstraction Tool - LONG'!#REF!","v":{"$error":"#REF!"}},{"$f":"'Data Abstraction Tool - LONG'!#REF!","v":{"$error":"#REF!"}},{"$f":"'Data Abstraction Tool - LONG'!#REF!","v":{"$error":"#REF!"}},{"$f":"'Data Abstraction Tool - LONG'!#REF!","v":{"$error":"#REF!"}},{"$f":"'Data Abstraction Tool - LONG'!E25","v":0},{"$f":"'Data Abstraction Tool - LONG'!#REF!","v":{"$error":"#REF!"}},{"$f":"'Data Abstraction Tool - LONG'!#REF!","v":{"$error":"#REF!"}},{"$f":"'Data Abstraction Tool - LONG'!#REF!","v":{"$error":"#REF!"}}]
[{"$f":"'Data Abstraction Tool - LONG'!#REF!","v":{"$error":"#REF!"}},{"$f":"'Data Abstraction Tool - LONG'!#REF!","v":{"$error":"#REF!"}},{"$f":"'Data Abstraction Tool - LONG'!I26","v":0},{"$f":"'Data Abstraction Tool - LONG'!#REF!","v":{"$error":"#REF!"}},{"$f":"'Data Abstraction Tool - LONG'!#REF!","v":{"$error":"#REF!"}},{"$f":"'Data Abstraction Tool - LONG'!#REF!","v":{"$error":"#REF!"}},{"$f":"'Data Abstraction Tool - LONG'!#REF!","v":{"$error":"#REF!"}},{"$f":"'Data Abstraction Tool - LONG'!#REF!","v":{"$error":"#REF!"}},{"$f":"'Data Abstraction Tool - LONG'!#REF!","v":{"$error":"#REF!"}},{"$f":"'Data Abstraction Tool - LONG'!E26","v":0},{"$f":"'Data Abstraction Tool - LONG'!#REF!","v":{"$error":"#REF!"}},{"$f":"'Data Abstraction Tool - LONG'!#REF!","v":{"$error":"#REF!"}},{"$f":"'Data Abstraction Tool - LONG'!#REF!","v":{"$error":"#REF!"}}]
[{"$f":"'Data Abstraction Tool - LONG'!#REF!","v":{"$error":"#REF!"}},{"$f":"'Data Abstraction Tool - LONG'!#REF!","v":{"$error":"#REF!"}},{"$f":"'Data Abstraction Tool - LONG'!I27","v":0},{"$f":"'Data Abstraction Tool - LONG'!#REF!","v":{"$error":"#REF!"}},{"$f":"'Data Abstraction Tool - LONG'!#REF!","v":{"$error":"#REF!"}},{"$f":"'Data Abstraction Tool - LONG'!#REF!","v":{"$error":"#REF!"}},{"$f":"'Data Abstraction Tool - LONG'!#REF!","v":{"$error":"#REF!"}},{"$f":"'Data Abstraction Tool - LONG'!#REF!","v":{"$error":"#REF!"}},{"$f":"'Data Abstraction Tool - LONG'!#REF!","v":{"$error":"#REF!"}},{"$f":"'Data Abstraction Tool - LONG'!E27","v":0},{"$f":"'Data Abstraction Tool - LONG'!#REF!","v":{"$error":"#REF!"}},{"$f":"'Data Abstraction Tool - LONG'!#REF!","v":{"$error":"#REF!"}},{"$f":"'Data Abstraction Tool - LONG'!#REF!","v":{"$error":"#REF!"}}]
[{"$f":"'Data Abstraction Tool - LONG'!#REF!","v":{"$error":"#REF!"}},{"$f":"'Data Abstraction Tool - LONG'!#REF!","v":{"$error":"#REF!"}},{"$f":"'Data Abstraction Tool - LONG'!I28","v":0},{"$f":"'Data Abstraction Tool - LONG'!#REF!","v":{"$error":"#REF!"}},{"$f":"'Data Abstraction Tool - LONG'!#REF!","v":{"$error":"#REF!"}},{"$f":"'Data Abstraction Tool - LONG'!#REF!","v":{"$error":"#REF!"}},{"$f":"'Data Abstraction Tool - LONG'!#REF!","v":{"$error":"#REF!"}},{"$f":"'Data Abstraction Tool - LONG'!#REF!","v":{"$error":"#REF!"}},{"$f":"'Data Abstraction Tool - LONG'!#REF!","v":{"$error":"#REF!"}},{"$f":"'Data Abstraction Tool - LONG'!E28","v":0},{"$f":"'Data Abstraction Tool - LONG'!#REF!","v":{"$error":"#REF!"}},{"$f":"'Data Abstraction Tool - LONG'!#REF!","v":{"$error":"#REF!"}},{"$f":"'Data Abstraction Tool - LONG'!#REF!","v":{"$error":"#REF!"}}]
[{"$f":"'Data Abstraction Tool - LONG'!#REF!","v":{"$error":"#REF!"}},{"$f":"'Data Abstraction Tool - LONG'!#REF!","v":{"$error":"#REF!"}},{"$f":"'Data Abstraction Tool - LONG'!I29","v":0},{"$f":"'Data Abstraction Tool - LONG'!#REF!","v":{"$error":"#REF!"}},{"$f":"'Data Abstraction Tool - LONG'!#REF!","v":{"$error":"#REF!"}},{"$f":"'Data Abstraction Tool - LONG'!#REF!","v":{"$error":"#REF!"}},{"$f":"'Data Abstraction Tool - LONG'!#REF!","v":{"$error":"#REF!"}},{"$f":"'Data Abstraction Tool - LONG'!#REF!","v":{"$error":"#REF!"}},{"$f":"'Data Abstraction Tool - LONG'!#REF!","v":{"$error":"#REF!"}},{"$f":"'Data Abstraction Tool - LONG'!E29","v":0},{"$f":"'Data Abstraction Tool - LONG'!#REF!","v":{"$error":"#REF!"}},{"$f":"'Data Abstraction Tool - LONG'!#REF!","v":{"$error":"#REF!"}},{"$f":"'Data Abstraction Tool - LONG'!#REF!","v":{"$error":"#REF!"}}]
[{"$f":"'Data Abstraction Tool - LONG'!#REF!","v":{"$error":"#REF!"}},{"$f":"'Data Abstraction Tool - LONG'!#REF!","v":{"$error":"#REF!"}},{"$f":"'Data Abstraction Tool - LONG'!I30","v":0},{"$f":"'Data Abstraction Tool - LONG'!#REF!","v":{"$error":"#REF!"}},{"$f":"'Data Abstraction Tool - LONG'!#REF!","v":{"$error":"#REF!"}},{"$f":"'Data Abstraction Tool - LONG'!#REF!","v":{"$error":"#REF!"}},{"$f":"'Data Abstraction Tool - LONG'!#REF!","v":{"$error":"#REF!"}},{"$f":"'Data Abstraction Tool - LONG'!#REF!","v":{"$error":"#REF!"}},{"$f":"'Data Abstraction Tool - LONG'!#REF!","v":{"$error":"#REF!"}},{"$f":"'Data Abstraction Tool - LONG'!E30","v":0},{"$f":"'Data Abstraction Tool - LONG'!#REF!","v":{"$error":"#REF!"}},{"$f":"'Data Abstraction Tool - LONG'!#REF!","v":{"$error":"#REF!"}},{"$f":"'Data Abstraction Tool - LONG'!#REF!","v":{"$error":"#REF!"}}]
[{"$f":"'Data Abstraction Tool - LONG'!#REF!","v":{"$error":"#REF!"}},{"$f":"'Data Abstraction Tool - LONG'!#REF!","v":{"$error":"#REF!"}},{"$f":"'Data Abstraction Tool - LONG'!I31","v":0},{"$f":"'Data Abstraction Tool - LONG'!#REF!","v":{"$error":"#REF!"}},{"$f":"'Data Abstraction Tool - LONG'!#REF!","v":{"$error":"#REF!"}},{"$f":"'Data Abstraction Tool - LONG'!#REF!","v":{"$error":"#REF!"}},{"$f":"'Data Abstraction Tool - LONG'!#REF!","v":{"$error":"#REF!"}},{"$f":"'Data Abstraction Tool - LONG'!#REF!","v":{"$error":"#REF!"}},{"$f":"'Data Abstraction Tool - LONG'!#REF!","v":{"$error":"#REF!"}},{"$f":"'Data Abstraction Tool - LONG'!E31","v":0},{"$f":"'Data Abstraction Tool - LONG'!#REF!","v":{"$error":"#REF!"}},{"$f":"'Data Abstraction Tool - LONG'!#REF!","v":{"$error":"#REF!"}},{"$f":"'Data Abstraction Tool - LONG'!#REF!","v":{"$error":"#REF!"}}]
[{"$f":"'Data Abstraction Tool - LONG'!#REF!","v":{"$error":"#REF!"}},{"$f":"'Data Abstraction Tool - LONG'!#REF!","v":{"$error":"#REF!"}},{"$f":"'Data Abstraction Tool - LONG'!I32","v":0},{"$f":"'Data Abstraction Tool - LONG'!#REF!","v":{"$error":"#REF!"}},{"$f":"'Data Abstraction Tool - LONG'!#REF!","v":{"$error":"#REF!"}},{"$f":"'Data Abstraction Tool - LONG'!#REF!","v":{"$error":"#REF!"}},{"$f":"'Data Abstraction Tool - LONG'!#REF!","v":{"$error":"#REF!"}},{"$f":"'Data Abstraction Tool - LONG'!#REF!","v":{"$error":"#REF!"}},{"$f":"'Data Abstraction Tool - LONG'!#REF!","v":{"$error":"#REF!"}},{"$f":"'Data Abstraction Tool - LONG'!E32","v":0},{"$f":"'Data Abstraction Tool - LONG'!#REF!","v":{"$error":"#REF!"}},{"$f":"'Data Abstraction Tool - LONG'!#REF!","v":{"$error":"#REF!"}},{"$f":"'Data Abstraction Tool - LONG'!#REF!","v":{"$error":"#REF!"}}]
[{"$f":"'Data Abstraction Tool - LONG'!#REF!","v":{"$error":"#REF!"}},{"$f":"'Data Abstraction Tool - LONG'!#REF!","v":{"$error":"#REF!"}},{"$f":"'Data Abstraction Tool - LONG'!I33","v":0},{"$f":"'Data Abstraction Tool - LONG'!#REF!","v":{"$error":"#REF!"}},{"$f":"'Data Abstraction Tool - LONG'!#REF!","v":{"$error":"#REF!"}},{"$f":"'Data Abstraction Tool - LONG'!#REF!","v":{"$error":"#REF!"}},{"$f":"'Data Abstraction Tool - LONG'!#REF!","v":{"$error":"#REF!"}},{"$f":"'Data Abstraction Tool - LONG'!#REF!","v":{"$error":"#REF!"}},{"$f":"'Data Abstraction Tool - LONG'!#REF!","v":{"$error":"#REF!"}},{"$f":"'Data Abstraction Tool - LONG'!E33","v":0},{"$f":"'Data Abstraction Tool - LONG'!#REF!","v":{"$error":"#REF!"}},{"$f":"'Data Abstraction Tool - LONG'!#REF!","v":{"$error":"#REF!"}},{"$f":"'Data Abstraction Tool - LONG'!#REF!","v":{"$error":"#REF!"}}]
[{"$f":"'Data Abstraction Tool - LONG'!#REF!","v":{"$error":"#REF!"}},{"$f":"'Data Abstraction Tool - LONG'!#REF!","v":{"$error":"#REF!"}},{"$f":"'Data Abstraction Tool - LONG'!I34","v":0},{"$f":"'Data Abstraction Tool - LONG'!#REF!","v":{"$error":"#REF!"}},{"$f":"'Data Abstraction Tool - LONG'!#REF!","v":{"$error":"#REF!"}},{"$f":"'Data Abstraction Tool - LONG'!#REF!","v":{"$error":"#REF!"}},{"$f":"'Data Abstraction Tool - LONG'!#REF!","v":{"$error":"#REF!"}},{"$f":"'Data Abstraction Tool - LONG'!#REF!","v":{"$error":"#REF!"}},{"$f":"'Data Abstraction Tool - LONG'!#REF!","v":{"$error":"#REF!"}},{"$f":"'Data Abstraction Tool - LONG'!E34","v":0},{"$f":"'Data Abstraction Tool - LONG'!#REF!","v":{"$error":"#REF!"}},{"$f":"'Data Abstraction Tool - LONG'!#REF!","v":{"$error":"#REF!"}},{"$f":"'Data Abstraction Tool - LONG'!#REF!","v":{"$error":"#REF!"}}]
[{"$f":"'Data Abstraction Tool - LONG'!#REF!","v":{"$error":"#REF!"}},{"$f":"'Data Abstraction Tool - LONG'!#REF!","v":{"$error":"#REF!"}},{"$f":"'Data Abstraction Tool - LONG'!I35","v":0},{"$f":"'Data Abstraction Tool - LONG'!#REF!","v":{"$error":"#REF!"}},{"$f":"'Data Abstraction Tool - LONG'!#REF!","v":{"$error":"#REF!"}},{"$f":"'Data Abstraction Tool - LONG'!#REF!","v":{"$error":"#REF!"}},{"$f":"'Data Abstraction Tool - LONG'!#REF!","v":{"$error":"#REF!"}},{"$f":"'Data Abstraction Tool - LONG'!#REF!","v":{"$error":"#REF!"}},{"$f":"'Data Abstraction Tool - LONG'!#REF!","v":{"$error":"#REF!"}},{"$f":"'Data Abstraction Tool - LONG'!E35","v":0},{"$f":"'Data Abstraction Tool - LONG'!#REF!","v":{"$error":"#REF!"}},{"$f":"'Data Abstraction Tool - LONG'!#REF!","v":{"$error":"#REF!"}},{"$f":"'Data Abstraction Tool - LONG'!#REF!","v":{"$error":"#REF!"}}]
[{"$f":"'Data Abstraction Tool - LONG'!#REF!","v":{"$error":"#REF!"}},{"$f":"'Data Abstraction Tool - LONG'!#REF!","v":{"$error":"#REF!"}},{"$f":"'Data Abstraction Tool - LONG'!I36","v":0},{"$f":"'Data Abstraction Tool - LONG'!#REF!","v":{"$error":"#REF!"}},{"$f":"'Data Abstraction Tool - LONG'!#REF!","v":{"$error":"#REF!"}},{"$f":"'Data Abstraction Tool - LONG'!#REF!","v":{"$error":"#REF!"}},{"$f":"'Data Abstraction Tool - LONG'!#REF!","v":{"$error":"#REF!"}},{"$f":"'Data Abstraction Tool - LONG'!#REF!","v":{"$error":"#REF!"}},{"$f":"'Data Abstraction Tool - LONG'!#REF!","v":{"$error":"#REF!"}},{"$f":"'Data Abstraction Tool - LONG'!E36","v":0},{"$f":"'Data Abstraction Tool - LONG'!#REF!","v":{"$error":"#REF!"}},{"$f":"'Data Abstraction Tool - LONG'!#REF!","v":{"$error":"#REF!"}},{"$f":"'Data Abstraction Tool - LONG'!#REF!","v":{"$error":"#REF!"}}]
[{"$f":"'Data Abstraction Tool - LONG'!#REF!","v":{"$error":"#REF!"}},{"$f":"'Data Abstraction Tool - LONG'!#REF!","v":{"$error":"#REF!"}},{"$f":"'Data Abstraction Tool - LONG'!I37","v":0},{"$f":"'Data Abstraction Tool - LONG'!#REF!","v":{"$error":"#REF!"}},{"$f":"'Data Abstraction Tool - LONG'!#REF!","v":{"$error":"#REF!"}},{"$f":"'Data Abstraction Tool - LONG'!#REF!","v":{"$error":"#REF!"}},{"$f":"'Data Abstraction Tool - LONG'!#REF!","v":{"$error":"#REF!"}},{"$f":"'Data Abstraction Tool - LONG'!#REF!","v":{"$error":"#REF!"}},{"$f":"'Data Abstraction Tool - LONG'!#REF!","v":{"$error":"#REF!"}},{"$f":"'Data Abstraction Tool - LONG'!E37","v":0},{"$f":"'Data Abstraction Tool - LONG'!#REF!","v":{"$error":"#REF!"}},{"$f":"'Data Abstraction Tool - LONG'!#REF!","v":{"$error":"#REF!"}},{"$f":"'Data Abstraction Tool - LONG'!#REF!","v":{"$error":"#REF!"}}]
[{"$f":"'Data Abstraction Tool - LONG'!#REF!","v":{"$error":"#REF!"}},{"$f":"'Data Abstraction Tool - LONG'!#REF!","v":{"$error":"#REF!"}},{"$f":"'Data Abstraction Tool - LONG'!I38","v":0},{"$f":"'Data Abstraction Tool - LONG'!#REF!","v":{"$error":"#REF!"}},{"$f":"'Data Abstraction Tool - LONG'!#REF!","v":{"$error":"#REF!"}},{"$f":"'Data Abstraction Tool - LONG'!#REF!","v":{"$error":"#REF!"}},{"$f":"'Data Abstraction Tool - LONG'!#REF!","v":{"$error":"#REF!"}},{"$f":"'Data Abstraction Tool - LONG'!#REF!","v":{"$error":"#REF!"}},{"$f":"'Data Abstraction Tool - LONG'!#REF!","v":{"$error":"#REF!"}},{"$f":"'Data Abstraction Tool - LONG'!E38","v":0},{"$f":"'Data Abstraction Tool - LONG'!#REF!","v":{"$error":"#REF!"}},{"$f":"'Data Abstraction Tool - LONG'!#REF!","v":{"$error":"#REF!"}},{"$f":"'Data Abstraction Tool - LONG'!#REF!","v":{"$error":"#REF!"}}]
[{"$f":"'Data Abstraction Tool - LONG'!#REF!","v":{"$error":"#REF!"}},{"$f":"'Data Abstraction Tool - LONG'!#REF!","v":{"$error":"#REF!"}},{"$f":"'Data Abstraction Tool - LONG'!I39","v":0},{"$f":"'Data Abstraction Tool - LONG'!#REF!","v":{"$error":"#REF!"}},{"$f":"'Data Abstraction Tool - LONG'!#REF!","v":{"$error":"#REF!"}},{"$f":"'Data Abstraction Tool - LONG'!#REF!","v":{"$error":"#REF!"}},{"$f":"'Data Abstraction Tool - LONG'!#REF!","v":{"$error":"#REF!"}},{"$f":"'Data Abstraction Tool - LONG'!#REF!","v":{"$error":"#REF!"}},{"$f":"'Data Abstraction Tool - LONG'!#REF!","v":{"$error":"#REF!"}},{"$f":"'Data Abstraction Tool - LONG'!E39","v":0},{"$f":"'Data Abstraction Tool - LONG'!#REF!","v":{"$error":"#REF!"}},{"$f":"'Data Abstraction Tool - LONG'!#REF!","v":{"$error":"#REF!"}},{"$f":"'Data Abstraction Tool - LONG'!#REF!","v":{"$error":"#REF!"}}]
[{"$f":"'Data Abstraction Tool - LONG'!#REF!","v":{"$error":"#REF!"}},{"$f":"'Data Abstraction Tool - LONG'!#REF!","v":{"$error":"#REF!"}},{"$f":"'Data Abstraction Tool - LONG'!I40","v":0},{"$f":"'Data Abstraction Tool - LONG'!#REF!","v":{"$error":"#REF!"}},{"$f":"'Data Abstraction Tool - LONG'!#REF!","v":{"$error":"#REF!"}},{"$f":"'Data Abstraction Tool - LONG'!#REF!","v":{"$error":"#REF!"}},{"$f":"'Data Abstraction Tool - LONG'!#REF!","v":{"$error":"#REF!"}},{"$f":"'Data Abstraction Tool - LONG'!#REF!","v":{"$error":"#REF!"}},{"$f":"'Data Abstraction Tool - LONG'!#REF!","v":{"$error":"#REF!"}},{"$f":"'Data Abstraction Tool - LONG'!E40","v":0},{"$f":"'Data Abstraction Tool - LONG'!#REF!","v":{"$error":"#REF!"}},{"$f":"'Data Abstraction Tool - LONG'!#REF!","v":{"$error":"#REF!"}},{"$f":"'Data Abstraction Tool - LONG'!#REF!","v":{"$error":"#REF!"}}]
[{"$f":"'Data Abstraction Tool - LONG'!#REF!","v":{"$error":"#REF!"}},{"$f":"'Data Abstraction Tool - LONG'!#REF!","v":{"$error":"#REF!"}},{"$f":"'Data Abstraction Tool - LONG'!I41","v":0},{"$f":"'Data Abstraction Tool - LONG'!#REF!","v":{"$error":"#REF!"}},{"$f":"'Data Abstraction Tool - LONG'!#REF!","v":{"$error":"#REF!"}},{"$f":"'Data Abstraction Tool - LONG'!#REF!","v":{"$error":"#REF!"}},{"$f":"'Data Abstraction Tool - LONG'!#REF!","v":{"$error":"#REF!"}},{"$f":"'Data Abstraction Tool - LONG'!#REF!","v":{"$error":"#REF!"}},{"$f":"'Data Abstraction Tool - LONG'!#REF!","v":{"$error":"#REF!"}},{"$f":"'Data Abstraction Tool - LONG'!E41","v":0},{"$f":"'Data Abstraction Tool - LONG'!#REF!","v":{"$error":"#REF!"}},{"$f":"'Data Abstraction Tool - LONG'!#REF!","v":{"$error":"#REF!"}},{"$f":"'Data Abstraction Tool - LONG'!#REF!","v":{"$error":"#REF!"}}]
[{"$f":"'Data Abstraction Tool - LONG'!#REF!","v":{"$error":"#REF!"}},{"$f":"'Data Abstraction Tool - LONG'!#REF!","v":{"$error":"#REF!"}},{"$f":"'Data Abstraction Tool - LONG'!I42","v":0},{"$f":"'Data Abstraction Tool - LONG'!#REF!","v":{"$error":"#REF!"}},{"$f":"'Data Abstraction Tool - LONG'!#REF!","v":{"$error":"#REF!"}},{"$f":"'Data Abstraction Tool - LONG'!#REF!","v":{"$error":"#REF!"}},{"$f":"'Data Abstraction Tool - LONG'!#REF!","v":{"$error":"#REF!"}},{"$f":"'Data Abstraction Tool - LONG'!#REF!","v":{"$error":"#REF!"}},{"$f":"'Data Abstraction Tool - LONG'!#REF!","v":{"$error":"#REF!"}},{"$f":"'Data Abstraction Tool - LONG'!E42","v":0},{"$f":"'Data Abstraction Tool - LONG'!#REF!","v":{"$error":"#REF!"}},{"$f":"'Data Abstraction Tool - LONG'!#REF!","v":{"$error":"#REF!"}},{"$f":"'Data Abstraction Tool - LONG'!#REF!","v":{"$error":"#REF!"}}]
[{"$f":"'Data Abstraction Tool - LONG'!#REF!","v":{"$error":"#REF!"}},{"$f":"'Data Abstraction Tool - LONG'!#REF!","v":{"$error":"#REF!"}},{"$f":"'Data Abstraction Tool - LONG'!I43","v":0},{"$f":"'Data Abstraction Tool - LONG'!#REF!","v":{"$error":"#REF!"}},{"$f":"'Data Abstraction Tool - LONG'!#REF!","v":{"$error":"#REF!"}},{"$f":"'Data Abstraction Tool - LONG'!#REF!","v":{"$error":"#REF!"}},{"$f":"'Data Abstraction Tool - LONG'!#REF!","v":{"$error":"#REF!"}},{"$f":"'Data Abstraction Tool - LONG'!#REF!","v":{"$error":"#REF!"}},{"$f":"'Data Abstraction Tool - LONG'!#REF!","v":{"$error":"#REF!"}},{"$f":"'Data Abstraction Tool - LONG'!E43","v":0},{"$f":"'Data Abstraction Tool - LONG'!#REF!","v":{"$error":"#REF!"}},{"$f":"'Data Abstraction Tool - LONG'!#REF!","v":{"$error":"#REF!"}},{"$f":"'Data Abstraction Tool - LONG'!#REF!","v":{"$error":"#REF!"}}]
[{"$f":"'Data Abstraction Tool - LONG'!#REF!","v":{"$error":"#REF!"}},{"$f":"'Data Abstraction Tool - LONG'!#REF!","v":{"$error":"#REF!"}},{"$f":"'Data Abstraction Tool - LONG'!I44","v":0},{"$f":"'Data Abstraction Tool - LONG'!#REF!","v":{"$error":"#REF!"}},{"$f":"'Data Abstraction Tool - LONG'!#REF!","v":{"$error":"#REF!"}},{"$f":"'Data Abstraction Tool - LONG'!#REF!","v":{"$error":"#REF!"}},{"$f":"'Data Abstraction Tool - LONG'!#REF!","v":{"$error":"#REF!"}},{"$f":"'Data Abstraction Tool - LONG'!#REF!","v":{"$error":"#REF!"}},{"$f":"'Data Abstraction Tool - LONG'!#REF!","v":{"$error":"#REF!"}},{"$f":"'Data Abstraction Tool - LONG'!E44","v":0},{"$f":"'Data Abstraction Tool - LONG'!#REF!","v":{"$error":"#REF!"}},{"$f":"'Data Abstraction Tool - LONG'!#REF!","v":{"$error":"#REF!"}},{"$f":"'Data Abstraction Tool - LONG'!#REF!","v":{"$error":"#REF!"}}]
[{"$f":"'Data Abstraction Tool - LONG'!#REF!","v":{"$error":"#REF!"}},{"$f":"'Data Abstraction Tool - LONG'!#REF!","v":{"$error":"#REF!"}},{"$f":"'Data Abstraction Tool - LONG'!I45","v":0},{"$f":"'Data Abstraction Tool - LONG'!#REF!","v":{"$error":"#REF!"}},{"$f":"'Data Abstraction Tool - LONG'!#REF!","v":{"$error":"#REF!"}},{"$f":"'Data Abstraction Tool - LONG'!#REF!","v":{"$error":"#REF!"}},{"$f":"'Data Abstraction Tool - LONG'!#REF!","v":{"$error":"#REF!"}},{"$f":"'Data Abstraction Tool - LONG'!#REF!","v":{"$error":"#REF!"}},{"$f":"'Data Abstraction Tool - LONG'!#REF!","v":{"$error":"#REF!"}},{"$f":"'Data Abstraction Tool - LONG'!E45","v":0},{"$f":"'Data Abstraction Tool - LONG'!#REF!","v":{"$error":"#REF!"}},{"$f":"'Data Abstraction Tool - LONG'!#REF!","v":{"$error":"#REF!"}},{"$f":"'Data Abstraction Tool - LONG'!#REF!","v":{"$error":"#REF!"}}]
[{"$f":"'Data Abstraction Tool - LONG'!#REF!","v":{"$error":"#REF!"}},{"$f":"'Data Abstraction Tool - LONG'!#REF!","v":{"$error":"#REF!"}},{"$f":"'Data Abstraction Tool - LONG'!I46","v":0},{"$f":"'Data Abstraction Tool - LONG'!#REF!","v":{"$error":"#REF!"}},{"$f":"'Data Abstraction Tool - LONG'!#REF!","v":{"$error":"#REF!"}},{"$f":"'Data Abstraction Tool - LONG'!#REF!","v":{"$error":"#REF!"}},{"$f":"'Data Abstraction Tool - LONG'!#REF!","v":{"$error":"#REF!"}},{"$f":"'Data Abstraction Tool - LONG'!#REF!","v":{"$error":"#REF!"}},{"$f":"'Data Abstraction Tool - LONG'!#REF!","v":{"$error":"#REF!"}},{"$f":"'Data Abstraction Tool - LONG'!E46","v":0},{"$f":"'Data Abstraction Tool - LONG'!#REF!","v":{"$error":"#REF!"}},{"$f":"'Data Abstraction Tool - LONG'!#REF!","v":{"$error":"#REF!"}},{"$f":"'Data Abstraction Tool - LONG'!#REF!","v":{"$error":"#REF!"}}]
[{"$f":"'Data Abstraction Tool - LONG'!#REF!","v":{"$error":"#REF!"}},{"$f":"'Data Abstraction Tool - LONG'!#REF!","v":{"$error":"#REF!"}},{"$f":"'Data Abstraction Tool - LONG'!I47","v":0},{"$f":"'Data Abstraction Tool - LONG'!#REF!","v":{"$error":"#REF!"}},{"$f":"'Data Abstraction Tool - LONG'!#REF!","v":{"$error":"#REF!"}},{"$f":"'Data Abstraction Tool - LONG'!#REF!","v":{"$error":"#REF!"}},{"$f":"'Data Abstraction Tool - LONG'!#REF!","v":{"$error":"#REF!"}},{"$f":"'Data Abstraction Tool - LONG'!#REF!","v":{"$error":"#REF!"}},{"$f":"'Data Abstraction Tool - LONG'!#REF!","v":{"$error":"#REF!"}},{"$f":"'Data Abstraction Tool - LONG'!E47","v":0},{"$f":"'Data Abstraction Tool - LONG'!#REF!","v":{"$error":"#REF!"}},{"$f":"'Data Abstraction Tool - LONG'!#REF!","v":{"$error":"#REF!"}},{"$f":"'Data Abstraction Tool - LONG'!#REF!","v":{"$error":"#REF!"}}]
[{"$f":"'Data Abstraction Tool - LONG'!#REF!","v":{"$error":"#REF!"}},{"$f":"'Data Abstraction Tool - LONG'!#REF!","v":{"$error":"#REF!"}},{"$f":"'Data Abstraction Tool - LONG'!I48","v":0},{"$f":"'Data Abstraction Tool - LONG'!#REF!","v":{"$error":"#REF!"}},{"$f":"'Data Abstraction Tool - LONG'!#REF!","v":{"$error":"#REF!"}},{"$f":"'Data Abstraction Tool - LONG'!#REF!","v":{"$error":"#REF!"}},{"$f":"'Data Abstraction Tool - LONG'!#REF!","v":{"$error":"#REF!"}},{"$f":"'Data Abstraction Tool - LONG'!#REF!","v":{"$error":"#REF!"}},{"$f":"'Data Abstraction Tool - LONG'!#REF!","v":{"$error":"#REF!"}},{"$f":"'Data Abstraction Tool - LONG'!E48","v":0},{"$f":"'Data Abstraction Tool - LONG'!#REF!","v":{"$error":"#REF!"}},{"$f":"'Data Abstraction Tool - LONG'!#REF!","v":{"$error":"#REF!"}},{"$f":"'Data Abstraction Tool - LONG'!#REF!","v":{"$error":"#REF!"}}]
[{"$f":"'Data Abstraction Tool - LONG'!#REF!","v":{"$error":"#REF!"}},{"$f":"'Data Abstraction Tool - LONG'!#REF!","v":{"$error":"#REF!"}},{"$f":"'Data Abstraction Tool - LONG'!I49","v":0},{"$f":"'Data Abstraction Tool - LONG'!#REF!","v":{"$error":"#REF!"}},{"$f":"'Data Abstraction Tool - LONG'!#REF!","v":{"$error":"#REF!"}},{"$f":"'Data Abstraction Tool - LONG'!#REF!","v":{"$error":"#REF!"}},{"$f":"'Data Abstraction Tool - LONG'!#REF!","v":{"$error":"#REF!"}},{"$f":"'Data Abstraction Tool - LONG'!#REF!","v":{"$error":"#REF!"}},{"$f":"'Data Abstraction Tool - LONG'!#REF!","v":{"$error":"#REF!"}},{"$f":"'Data Abstraction Tool - LONG'!E49","v":0},{"$f":"'Data Abstraction Tool - LONG'!#REF!","v":{"$error":"#REF!"}},{"$f":"'Data Abstraction Tool - LONG'!#REF!","v":{"$error":"#REF!"}},{"$f":"'Data Abstraction Tool - LONG'!#REF!","v":{"$error":"#REF!"}}]
[{"$f":"'Data Abstraction Tool - LONG'!#REF!","v":{"$error":"#REF!"}},{"$f":"'Data Abstraction Tool - LONG'!#REF!","v":{"$error":"#REF!"}},{"$f":"'Data Abstraction Tool - LONG'!I50","v":0},{"$f":"'Data Abstraction Tool - LONG'!#REF!","v":{"$error":"#REF!"}},{"$f":"'Data Abstraction Tool - LONG'!#REF!","v":{"$error":"#REF!"}},{"$f":"'Data Abstraction Tool - LONG'!#REF!","v":{"$error":"#REF!"}},{"$f":"'Data Abstraction Tool - LONG'!#REF!","v":{"$error":"#REF!"}},{"$f":"'Data Abstraction Tool - LONG'!#REF!","v":{"$error":"#REF!"}},{"$f":"'Data Abstraction Tool - LONG'!#REF!","v":{"$error":"#REF!"}},{"$f":"'Data Abstraction Tool - LONG'!E50","v":0},{"$f":"'Data Abstraction Tool - LONG'!#REF!","v":{"$error":"#REF!"}},{"$f":"'Data Abstraction Tool - LONG'!#REF!","v":{"$error":"#REF!"}},{"$f":"'Data Abstraction Tool - LONG'!#REF!","v":{"$error":"#REF!"}}]
[{"$f":"'Data Abstraction Tool - LONG'!#REF!","v":{"$error":"#REF!"}},{"$f":"'Data Abstraction Tool - LONG'!#REF!","v":{"$error":"#REF!"}},{"$f":"'Data Abstraction Tool - LONG'!I51","v":0},{"$f":"'Data Abstraction Tool - LONG'!#REF!","v":{"$error":"#REF!"}},{"$f":"'Data Abstraction Tool - LONG'!#REF!","v":{"$error":"#REF!"}},{"$f":"'Data Abstraction Tool - LONG'!#REF!","v":{"$error":"#REF!"}},{"$f":"'Data Abstraction Tool - LONG'!#REF!","v":{"$error":"#REF!"}},{"$f":"'Data Abstraction Tool - LONG'!#REF!","v":{"$error":"#REF!"}},{"$f":"'Data Abstraction Tool - LONG'!#REF!","v":{"$error":"#REF!"}},{"$f":"'Data Abstraction Tool - LONG'!E51","v":0},{"$f":"'Data Abstraction Tool - LONG'!#REF!","v":{"$error":"#REF!"}},{"$f":"'Data Abstraction Tool - LONG'!#REF!","v":{"$error":"#REF!"}},{"$f":"'Data Abstraction Tool - LONG'!#REF!","v":{"$error":"#REF!"}}]
[{"$f":"'Data Abstraction Tool - LONG'!#REF!","v":{"$error":"#REF!"}},{"$f":"'Data Abstraction Tool - LONG'!#REF!","v":{"$error":"#REF!"}},{"$f":"'Data Abstraction Tool - LONG'!I52","v":0},{"$f":"'Data Abstraction Tool - LONG'!#REF!","v":{"$error":"#REF!"}},{"$f":"'Data Abstraction Tool - LONG'!#REF!","v":{"$error":"#REF!"}},{"$f":"'Data Abstraction Tool - LONG'!#REF!","v":{"$error":"#REF!"}},{"$f":"'Data Abstraction Tool - LONG'!#REF!","v":{"$error":"#REF!"}},{"$f":"'Data Abstraction Tool - LONG'!#REF!","v":{"$error":"#REF!"}},{"$f":"'Data Abstraction Tool - LONG'!#REF!","v":{"$error":"#REF!"}},{"$f":"'Data Abstraction Tool - LONG'!E52","v":0},{"$f":"'Data Abstraction Tool - LONG'!#REF!","v":{"$error":"#REF!"}},{"$f":"'Data Abstraction Tool - LONG'!#REF!","v":{"$error":"#REF!"}},{"$f":"'Data Abstraction Tool - LONG'!#REF!","v":{"$error":"#REF!"}}]
[{"$f":"'Data Abstraction Tool - LONG'!#REF!","v":{"$error":"#REF!"}},{"$f":"'Data Abstraction Tool - LONG'!#REF!","v":{"$error":"#REF!"}},{"$f":"'Data Abstraction Tool - LONG'!I53","v":0},{"$f":"'Data Abstraction Tool - LONG'!#REF!","v":{"$error":"#REF!"}},{"$f":"'Data Abstraction Tool - LONG'!#REF!","v":{"$error":"#REF!"}},{"$f":"'Data Abstraction Tool - LONG'!#REF!","v":{"$error":"#REF!"}},{"$f":"'Data Abstraction Tool - LONG'!#REF!","v":{"$error":"#REF!"}},{"$f":"'Data Abstraction Tool - LONG'!#REF!","v":{"$error":"#REF!"}},{"$f":"'Data Abstraction Tool - LONG'!#REF!","v":{"$error":"#REF!"}},{"$f":"'Data Abstraction Tool - LONG'!E53","v":0},{"$f":"'Data Abstraction Tool - LONG'!#REF!","v":{"$error":"#REF!"}},{"$f":"'Data Abstraction Tool - LONG'!#REF!","v":{"$error":"#REF!"}},{"$f":"'Data Abstraction Tool - LONG'!#REF!","v":{"$error":"#REF!"}}]
[{"$f":"'Data Abstraction Tool - LONG'!#REF!","v":{"$error":"#REF!"}},{"$f":"'Data Abstraction Tool - LONG'!#REF!","v":{"$error":"#REF!"}},{"$f":"'Data Abstraction Tool - LONG'!I54","v":0},{"$f":"'Data Abstraction Tool - LONG'!#REF!","v":{"$error":"#REF!"}},{"$f":"'Data Abstraction Tool - LONG'!#REF!","v":{"$error":"#REF!"}},{"$f":"'Data Abstraction Tool - LONG'!#REF!","v":{"$error":"#REF!"}},{"$f":"'Data Abstraction Tool - LONG'!#REF!","v":{"$error":"#REF!"}},{"$f":"'Data Abstraction Tool - LONG'!#REF!","v":{"$error":"#REF!"}},{"$f":"'Data Abstraction Tool - LONG'!#REF!","v":{"$error":"#REF!"}},{"$f":"'Data Abstraction Tool - LONG'!E54","v":0},{"$f":"'Data Abstraction Tool - LONG'!#REF!","v":{"$error":"#REF!"}},{"$f":"'Data Abstraction Tool - LONG'!#REF!","v":{"$error":"#REF!"}},{"$f":"'Data Abstraction Tool - LONG'!#REF!","v":{"$error":"#REF!"}}]
[{"$f":"'Data Abstraction Tool - LONG'!#REF!","v":{"$error":"#REF!"}},{"$f":"'Data Abstraction Tool - LONG'!#REF!","v":{"$error":"#REF!"}},{"$f":"'Data Abstraction Tool - LONG'!I55","v":0},{"$f":"'Data Abstraction Tool - LONG'!#REF!","v":{"$error":"#REF!"}},{"$f":"'Data Abstraction Tool - LONG'!#REF!","v":{"$error":"#REF!"}},{"$f":"'Data Abstraction Tool - LONG'!#REF!","v":{"$error":"#REF!"}},{"$f":"'Data Abstraction Tool - LONG'!#REF!","v":{"$error":"#REF!"}},{"$f":"'Data Abstraction Tool - LONG'!#REF!","v":{"$error":"#REF!"}},{"$f":"'Data Abstraction Tool - LONG'!#REF!","v":{"$error":"#REF!"}},{"$f":"'Data Abstraction Tool - LONG'!E55","v":0},{"$f":"'Data Abstraction Tool - LONG'!#REF!","v":{"$error":"#REF!"}},{"$f":"'Data Abstraction Tool - LONG'!#REF!","v":{"$error":"#REF!"}},{"$f":"'Data Abstraction Tool - LONG'!#REF!","v":{"$error":"#REF!"}}]
[{"$f":"'Data Abstraction Tool - LONG'!#REF!","v":{"$error":"#REF!"}},{"$f":"'Data Abstraction Tool - LONG'!#REF!","v":{"$error":"#REF!"}},{"$f":"'Data Abstraction Tool - LONG'!I56","v":0},{"$f":"'Data Abstraction Tool - LONG'!#REF!","v":{"$error":"#REF!"}},{"$f":"'Data Abstraction Tool - LONG'!#REF!","v":{"$error":"#REF!"}},{"$f":"'Data Abstraction Tool - LONG'!#REF!","v":{"$error":"#REF!"}},{"$f":"'Data Abstraction Tool - LONG'!#REF!","v":{"$error":"#REF!"}},{"$f":"'Data Abstraction Tool - LONG'!#REF!","v":{"$error":"#REF!"}},{"$f":"'Data Abstraction Tool - LONG'!#REF!","v":{"$error":"#REF!"}},{"$f":"'Data Abstraction Tool - LONG'!E56","v":0},{"$f":"'Data Abstraction Tool - LONG'!#REF!","v":{"$error":"#REF!"}},{"$f":"'Data Abstraction Tool - LONG'!#REF!","v":{"$error":"#REF!"}},{"$f":"'Data Abstraction Tool - LONG'!#REF!","v":{"$error":"#REF!"}}]
[{"$f":"'Data Abstraction Tool - LONG'!#REF!","v":{"$error":"#REF!"}},{"$f":"'Data Abstraction Tool - LONG'!#REF!","v":{"$error":"#REF!"}},{"$f":"'Data Abstraction Tool - LONG'!I57","v":0},{"$f":"'Data Abstraction Tool - LONG'!#REF!","v":{"$error":"#REF!"}},{"$f":"'Data Abstraction Tool - LONG'!#REF!","v":{"$error":"#REF!"}},{"$f":"'Data Abstraction Tool - LONG'!#REF!","v":{"$error":"#REF!"}},{"$f":"'Data Abstraction Tool - LONG'!#REF!","v":{"$error":"#REF!"}},{"$f":"'Data Abstraction Tool - LONG'!#REF!","v":{"$error":"#REF!"}},{"$f":"'Data Abstraction Tool - LONG'!#REF!","v":{"$error":"#REF!"}},{"$f":"'Data Abstraction Tool - LONG'!E57","v":0},{"$f":"'Data Abstraction Tool - LONG'!#REF!","v":{"$error":"#REF!"}},{"$f":"'Data Abstraction Tool - LONG'!#REF!","v":{"$error":"#REF!"}},{"$f":"'Data Abstraction Tool - LONG'!#REF!","v":{"$error":"#REF!"}}]
[{"$f":"'Data Abstraction Tool - LONG'!#REF!","v":{"$error":"#REF!"}},{"$f":"'Data Abstraction Tool - LONG'!#REF!","v":{"$error":"#REF!"}},{"$f":"'Data Abstraction Tool - LONG'!I58","v":0},{"$f":"'Data Abstraction Tool - LONG'!#REF!","v":{"$error":"#REF!"}},{"$f":"'Data Abstraction Tool - LONG'!#REF!","v":{"$error":"#REF!"}},{"$f":"'Data Abstraction Tool - LONG'!#REF!","v":{"$error":"#REF!"}},{"$f":"'Data Abstraction Tool - LONG'!#REF!","v":{"$error":"#REF!"}},{"$f":"'Data Abstraction Tool - LONG'!#REF!","v":{"$error":"#REF!"}},{"$f":"'Data Abstraction Tool - LONG'!#REF!","v":{"$error":"#REF!"}},{"$f":"'Data Abstraction Tool - LONG'!E58","v":0},{"$f":"'Data Abstraction Tool - LONG'!#REF!","v":{"$error":"#REF!"}},{"$f":"'Data Abstraction Tool - LONG'!#REF!","v":{"$error":"#REF!"}},{"$f":"'Data Abstraction Tool - LONG'!#REF!","v":{"$error":"#REF!"}}]
[{"$f":"'Data Abstraction Tool - LONG'!#REF!","v":{"$error":"#REF!"}},{"$f":"'Data Abstraction Tool - LONG'!#REF!","v":{"$error":"#REF!"}},{"$f":"'Data Abstraction Tool - LONG'!I59","v":0},{"$f":"'Data Abstraction Tool - LONG'!#REF!","v":{"$error":"#REF!"}},{"$f":"'Data Abstraction Tool - LONG'!#REF!","v":{"$error":"#REF!"}},{"$f":"'Data Abstraction Tool - LONG'!#REF!","v":{"$error":"#REF!"}},{"$f":"'Data Abstraction Tool - LONG'!#REF!","v":{"$error":"#REF!"}},{"$f":"'Data Abstraction Tool - LONG'!#REF!","v":{"$error":"#REF!"}},{"$f":"'Data Abstraction Tool - LONG'!#REF!","v":{"$error":"#REF!"}},{"$f":"'Data Abstraction Tool - LONG'!E59","v":0},{"$f":"'Data Abstraction Tool - LONG'!#REF!","v":{"$error":"#REF!"}},{"$f":"'Data Abstraction Tool - LONG'!#REF!","v":{"$error":"#REF!"}},{"$f":"'Data Abstraction Tool - LONG'!#REF!","v":{"$error":"#REF!"}}]
[{"$f":"'Data Abstraction Tool - LONG'!#REF!","v":{"$error":"#REF!"}},{"$f":"'Data Abstraction Tool - LONG'!#REF!","v":{"$error":"#REF!"}},{"$f":"'Data Abstraction Tool - LONG'!I60","v":0},{"$f":"'Data Abstraction Tool - LONG'!#REF!","v":{"$error":"#REF!"}},{"$f":"'Data Abstraction Tool - LONG'!#REF!","v":{"$error":"#REF!"}},{"$f":"'Data Abstraction Tool - LONG'!#REF!","v":{"$error":"#REF!"}},{"$f":"'Data Abstraction Tool - LONG'!#REF!","v":{"$error":"#REF!"}},{"$f":"'Data Abstraction Tool - LONG'!#REF!","v":{"$error":"#REF!"}},{"$f":"'Data Abstraction Tool - LONG'!#REF!","v":{"$error":"#REF!"}},{"$f":"'Data Abstraction Tool - LONG'!E60","v":0},{"$f":"'Data Abstraction Tool - LONG'!#REF!","v":{"$error":"#REF!"}},{"$f":"'Data Abstraction Tool - LONG'!#REF!","v":{"$error":"#REF!"}},{"$f":"'Data Abstraction Tool - LONG'!#REF!","v":{"$error":"#REF!"}}]
[{"$f":"'Data Abstraction Tool - LONG'!#REF!","v":{"$error":"#REF!"}},{"$f":"'Data Abstraction Tool - LONG'!#REF!","v":{"$error":"#REF!"}},{"$f":"'Data Abstraction Tool - LONG'!I61","v":0},{"$f":"'Data Abstraction Tool - LONG'!#REF!","v":{"$error":"#REF!"}},{"$f":"'Data Abstraction Tool - LONG'!#REF!","v":{"$error":"#REF!"}},{"$f":"'Data Abstraction Tool - LONG'!#REF!","v":{"$error":"#REF!"}},{"$f":"'Data Abstraction Tool - LONG'!#REF!","v":{"$error":"#REF!"}},{"$f":"'Data Abstraction Tool - LONG'!#REF!","v":{"$error":"#REF!"}},{"$f":"'Data Abstraction Tool - LONG'!#REF!","v":{"$error":"#REF!"}},{"$f":"'Data Abstraction Tool - LONG'!E61","v":0},{"$f":"'Data Abstraction Tool - LONG'!#REF!","v":{"$error":"#REF!"}},{"$f":"'Data Abstraction Tool - LONG'!#REF!","v":{"$error":"#REF!"}},{"$f":"'Data Abstraction Tool - LONG'!#REF!","v":{"$error":"#REF!"}}]
[{"$f":"'Data Abstraction Tool - LONG'!#REF!","v":{"$error":"#REF!"}},{"$f":"'Data Abstraction Tool - LONG'!#REF!","v":{"$error":"#REF!"}},{"$f":"'Data Abstraction Tool - LONG'!I62","v":0},{"$f":"'Data Abstraction Tool - LONG'!#REF!","v":{"$error":"#REF!"}},{"$f":"'Data Abstraction Tool - LONG'!#REF!","v":{"$error":"#REF!"}},{"$f":"'Data Abstraction Tool - LONG'!#REF!","v":{"$error":"#REF!"}},{"$f":"'Data Abstraction Tool - LONG'!#REF!","v":{"$error":"#REF!"}},{"$f":"'Data Abstraction Tool - LONG'!#REF!","v":{"$error":"#REF!"}},{"$f":"'Data Abstraction Tool - LONG'!#REF!","v":{"$error":"#REF!"}},{"$f":"'Data Abstraction Tool - LONG'!E62","v":0},{"$f":"'Data Abstraction Tool - LONG'!#REF!","v":{"$error":"#REF!"}},{"$f":"'Data Abstraction Tool - LONG'!#REF!","v":{"$error":"#REF!"}},{"$f":"'Data Abstraction Tool - LONG'!#REF!","v":{"$error":"#REF!"}}]
[{"$f":"'Data Abstraction Tool - LONG'!#REF!","v":{"$error":"#REF!"}},{"$f":"'Data Abstraction Tool - LONG'!#REF!","v":{"$error":"#REF!"}},{"$f":"'Data Abstraction Tool - LONG'!I63","v":0},{"$f":"'Data Abstraction Tool - LONG'!#REF!","v":{"$error":"#REF!"}},{"$f":"'Data Abstraction Tool - LONG'!#REF!","v":{"$error":"#REF!"}},{"$f":"'Data Abstraction Tool - LONG'!#REF!","v":{"$error":"#REF!"}},{"$f":"'Data Abstraction Tool - LONG'!#REF!","v":{"$error":"#REF!"}},{"$f":"'Data Abstraction Tool - LONG'!#REF!","v":{"$error":"#REF!"}},{"$f":"'Data Abstraction Tool - LONG'!#REF!","v":{"$error":"#REF!"}},{"$f":"'Data Abstraction Tool - LONG'!E63","v":0},{"$f":"'Data Abstraction Tool - LONG'!#REF!","v":{"$error":"#REF!"}},{"$f":"'Data Abstraction Tool - LONG'!#REF!","v":{"$error":"#REF!"}},{"$f":"'Data Abstraction Tool - LONG'!#REF!","v":{"$error":"#REF!"}}]
[{"$f":"'Data Abstraction Tool - LONG'!#REF!","v":{"$error":"#REF!"}},{"$f":"'Data Abstraction Tool - LONG'!#REF!","v":{"$error":"#REF!"}},{"$f":"'Data Abstraction Tool - LONG'!I64","v":0},{"$f":"'Data Abstraction Tool - LONG'!#REF!","v":{"$error":"#REF!"}},{"$f":"'Data Abstraction Tool - LONG'!#REF!","v":{"$error":"#REF!"}},{"$f":"'Data Abstraction Tool - LONG'!#REF!","v":{"$error":"#REF!"}},{"$f":"'Data Abstraction Tool - LONG'!#REF!","v":{"$error":"#REF!"}},{"$f":"'Data Abstraction Tool - LONG'!#REF!","v":{"$error":"#REF!"}},{"$f":"'Data Abstraction Tool - LONG'!#REF!","v":{"$error":"#REF!"}},{"$f":"'Data Abstraction Tool - LONG'!E64","v":0},{"$f":"'Data Abstraction Tool - LONG'!#REF!","v":{"$error":"#REF!"}},{"$f":"'Data Abstraction Tool - LONG'!#REF!","v":{"$error":"#REF!"}},{"$f":"'Data Abstraction Tool - LONG'!#REF!","v":{"$error":"#REF!"}}]
[{"$f":"'Data Abstraction Tool - LONG'!#REF!","v":{"$error":"#REF!"}},{"$f":"'Data Abstraction Tool - LONG'!#REF!","v":{"$error":"#REF!"}},{"$f":"'Data Abstraction Tool - LONG'!I65","v":0},{"$f":"'Data Abstraction Tool - LONG'!#REF!","v":{"$error":"#REF!"}},{"$f":"'Data Abstraction Tool - LONG'!#REF!","v":{"$error":"#REF!"}},{"$f":"'Data Abstraction Tool - LONG'!#REF!","v":{"$error":"#REF!"}},{"$f":"'Data Abstraction Tool - LONG'!#REF!","v":{"$error":"#REF!"}},{"$f":"'Data Abstraction Tool - LONG'!#REF!","v":{"$error":"#REF!"}},{"$f":"'Data Abstraction Tool - LONG'!#REF!","v":{"$error":"#REF!"}},{"$f":"'Data Abstraction Tool - LONG'!E65","v":0},{"$f":"'Data Abstraction Tool - LONG'!#REF!","v":{"$error":"#REF!"}},{"$f":"'Data Abstraction Tool - LONG'!#REF!","v":{"$error":"#REF!"}},{"$f":"'Data Abstraction Tool - LONG'!#REF!","v":{"$error":"#REF!"}}]
[{"$f":"'Data Abstraction Tool - LONG'!#REF!","v":{"$error":"#REF!"}},{"$f":"'Data Abstraction Tool - LONG'!#REF!","v":{"$error":"#REF!"}},{"$f":"'Data Abstraction Tool - LONG'!I66","v":0},{"$f":"'Data Abstraction Tool - LONG'!#REF!","v":{"$error":"#REF!"}},{"$f":"'Data Abstraction Tool - LONG'!#REF!","v":{"$error":"#REF!"}},{"$f":"'Data Abstraction Tool - LONG'!#REF!","v":{"$error":"#REF!"}},{"$f":"'Data Abstraction Tool - LONG'!#REF!","v":{"$error":"#REF!"}},{"$f":"'Data Abstraction Tool - LONG'!#REF!","v":{"$error":"#REF!"}},{"$f":"'Data Abstraction Tool - LONG'!#REF!","v":{"$error":"#REF!"}},{"$f":"'Data Abstraction Tool - LONG'!E66","v":0},{"$f":"'Data Abstraction Tool - LONG'!#REF!","v":{"$error":"#REF!"}},{"$f":"'Data Abstraction Tool - LONG'!#REF!","v":{"$error":"#REF!"}},{"$f":"'Data Abstraction Tool - LONG'!#REF!","v":{"$error":"#REF!"}}]
[{"$f":"'Data Abstraction Tool - LONG'!#REF!","v":{"$error":"#REF!"}},{"$f":"'Data Abstraction Tool - LONG'!#REF!","v":{"$error":"#REF!"}},{"$f":"'Data Abstraction Tool - LONG'!I67","v":0},{"$f":"'Data Abstraction Tool - LONG'!#REF!","v":{"$error":"#REF!"}},{"$f":"'Data Abstraction Tool - LONG'!#REF!","v":{"$error":"#REF!"}},{"$f":"'Data Abstraction Tool - LONG'!#REF!","v":{"$error":"#REF!"}},{"$f":"'Data Abstraction Tool - LONG'!#REF!","v":{"$error":"#REF!"}},{"$f":"'Data Abstraction Tool - LONG'!#REF!","v":{"$error":"#REF!"}},{"$f":"'Data Abstraction Tool - LONG'!#REF!","v":{"$error":"#REF!"}},{"$f":"'Data Abstraction Tool - LONG'!E67","v":0},{"$f":"'Data Abstraction Tool - LONG'!#REF!","v":{"$error":"#REF!"}},{"$f":"'Data Abstraction Tool - LONG'!#REF!","v":{"$error":"#REF!"}},{"$f":"'Data Abstraction Tool - LONG'!#REF!","v":{"$error":"#REF!"}}]
[{"$f":"'Data Abstraction Tool - LONG'!#REF!","v":{"$error":"#REF!"}},{"$f":"'Data Abstraction Tool - LONG'!#REF!","v":{"$error":"#REF!"}},{"$f":"'Data Abstraction Tool - LONG'!I68","v":0},{"$f":"'Data Abstraction Tool - LONG'!#REF!","v":{"$error":"#REF!"}},{"$f":"'Data Abstraction Tool - LONG'!#REF!","v":{"$error":"#REF!"}},{"$f":"'Data Abstraction Tool - LONG'!#REF!","v":{"$error":"#REF!"}},{"$f":"'Data Abstraction Tool - LONG'!#REF!","v":{"$error":"#REF!"}},{"$f":"'Data Abstraction Tool - LONG'!#REF!","v":{"$error":"#REF!"}},{"$f":"'Data Abstraction Tool - LONG'!#REF!","v":{"$error":"#REF!"}},{"$f":"'Data Abstraction Tool - LONG'!E68","v":0},{"$f":"'Data Abstraction Tool - LONG'!#REF!","v":{"$error":"#REF!"}},{"$f":"'Data Abstraction Tool - LONG'!#REF!","v":{"$error":"#REF!"}},{"$f":"'Data Abstraction Tool - LONG'!#REF!","v":{"$error":"#REF!"}}]
[{"$f":"'Data Abstraction Tool - LONG'!#REF!","v":{"$error":"#REF!"}},{"$f":"'Data Abstraction Tool - LONG'!#REF!","v":{"$error":"#REF!"}},{"$f":"'Data Abstraction Tool - LONG'!I69","v":0},{"$f":"'Data Abstraction Tool - LONG'!#REF!","v":{"$error":"#REF!"}},{"$f":"'Data Abstraction Tool - LONG'!#REF!","v":{"$error":"#REF!"}},{"$f":"'Data Abstraction Tool - LONG'!#REF!","v":{"$error":"#REF!"}},{"$f":"'Data Abstraction Tool - LONG'!#REF!","v":{"$error":"#REF!"}},{"$f":"'Data Abstraction Tool - LONG'!#REF!","v":{"$error":"#REF!"}},{"$f":"'Data Abstraction Tool - LONG'!#REF!","v":{"$error":"#REF!"}},{"$f":"'Data Abstraction Tool - LONG'!E69","v":0},{"$f":"'Data Abstraction Tool - LONG'!#REF!","v":{"$error":"#REF!"}},{"$f":"'Data Abstraction Tool - LONG'!#REF!","v":{"$error":"#REF!"}},{"$f":"'Data Abstraction Tool - LONG'!#REF!","v":{"$error":"#REF!"}}]
[{"$f":"'Data Abstraction Tool - LONG'!#REF!","v":{"$error":"#REF!"}},{"$f":"'Data Abstraction Tool - LONG'!#REF!","v":{"$error":"#REF!"}},{"$f":"'Data Abstraction Tool - LONG'!I70","v":0},{"$f":"'Data Abstraction Tool - LONG'!#REF!","v":{"$error":"#REF!"}},{"$f":"'Data Abstraction Tool - LONG'!#REF!","v":{"$error":"#REF!"}},{"$f":"'Data Abstraction Tool - LONG'!#REF!","v":{"$error":"#REF!"}},{"$f":"'Data Abstraction Tool - LONG'!#REF!","v":{"$error":"#REF!"}},{"$f":"'Data Abstraction Tool - LONG'!#REF!","v":{"$error":"#REF!"}},{"$f":"'Data Abstraction Tool - LONG'!#REF!","v":{"$error":"#REF!"}},{"$f":"'Data Abstraction Tool - LONG'!E70","v":0},{"$f":"'Data Abstraction Tool - LONG'!#REF!","v":{"$error":"#REF!"}},{"$f":"'Data Abstraction Tool - LONG'!#REF!","v":{"$error":"#REF!"}},{"$f":"'Data Abstraction Tool - LONG'!#REF!","v":{"$error":"#REF!"}}]
[{"$f":"'Data Abstraction Tool - LONG'!#REF!","v":{"$error":"#REF!"}},{"$f":"'Data Abstraction Tool - LONG'!#REF!","v":{"$error":"#REF!"}},{"$f":"'Data Abstraction Tool - LONG'!I71","v":0},{"$f":"'Data Abstraction Tool - LONG'!#REF!","v":{"$error":"#REF!"}},{"$f":"'Data Abstraction Tool - LONG'!#REF!","v":{"$error":"#REF!"}},{"$f":"'Data Abstraction Tool - LONG'!#REF!","v":{"$error":"#REF!"}},{"$f":"'Data Abstraction Tool - LONG'!#REF!","v":{"$error":"#REF!"}},{"$f":"'Data Abstraction Tool - LONG'!#REF!","v":{"$error":"#REF!"}},{"$f":"'Data Abstraction Tool - LONG'!#REF!","v":{"$error":"#REF!"}},{"$f":"'Data Abstraction Tool - LONG'!E71","v":0},{"$f":"'Data Abstraction Tool - LONG'!#REF!","v":{"$error":"#REF!"}},{"$f":"'Data Abstraction Tool - LONG'!#REF!","v":{"$error":"#REF!"}},{"$f":"'Data Abstraction Tool - LONG'!#REF!","v":{"$error":"#REF!"}}]
[{"$f":"'Data Abstraction Tool - LONG'!#REF!","v":{"$error":"#REF!"}},{"$f":"'Data Abstraction Tool - LONG'!#REF!","v":{"$error":"#REF!"}},{"$f":"'Data Abstraction Tool - LONG'!I72","v":0},{"$f":"'Data Abstraction Tool - LONG'!#REF!","v":{"$error":"#REF!"}},{"$f":"'Data Abstraction Tool - LONG'!#REF!","v":{"$error":"#REF!"}},{"$f":"'Data Abstraction Tool - LONG'!#REF!","v":{"$error":"#REF!"}},{"$f":"'Data Abstraction Tool - LONG'!#REF!","v":{"$error":"#REF!"}},{"$f":"'Data Abstraction Tool - LONG'!#REF!","v":{"$error":"#REF!"}},{"$f":"'Data Abstraction Tool - LONG'!#REF!","v":{"$error":"#REF!"}},{"$f":"'Data Abstraction Tool - LONG'!E72","v":0},{"$f":"'Data Abstraction Tool - LONG'!#REF!","v":{"$error":"#REF!"}},{"$f":"'Data Abstraction Tool - LONG'!#REF!","v":{"$error":"#REF!"}},{"$f":"'Data Abstraction Tool - LONG'!#REF!","v":{"$error":"#REF!"}}]
[{"$f":"'Data Abstraction Tool - LONG'!#REF!","v":{"$error":"#REF!"}},{"$f":"'Data Abstraction Tool - LONG'!#REF!","v":{"$error":"#REF!"}},{"$f":"'Data Abstraction Tool - LONG'!I73","v":0},{"$f":"'Data Abstraction Tool - LONG'!#REF!","v":{"$error":"#REF!"}},{"$f":"'Data Abstraction Tool - LONG'!#REF!","v":{"$error":"#REF!"}},{"$f":"'Data Abstraction Tool - LONG'!#REF!","v":{"$error":"#REF!"}},{"$f":"'Data Abstraction Tool - LONG'!#REF!","v":{"$error":"#REF!"}},{"$f":"'Data Abstraction Tool - LONG'!#REF!","v":{"$error":"#REF!"}},{"$f":"'Data Abstraction Tool - LONG'!#REF!","v":{"$error":"#REF!"}},{"$f":"'Data Abstraction Tool - LONG'!E73","v":0},{"$f":"'Data Abstraction Tool - LONG'!#REF!","v":{"$error":"#REF!"}},{"$f":"'Data Abstraction Tool - LONG'!#REF!","v":{"$error":"#REF!"}},{"$f":"'Data Abstraction Tool - LONG'!#REF!","v":{"$error":"#REF!"}}]
[{"$f":"'Data Abstraction Tool - LONG'!#REF!","v":{"$error":"#REF!"}},{"$f":"'Data Abstraction Tool - LONG'!#REF!","v":{"$error":"#REF!"}},{"$f":"'Data Abstraction Tool - LONG'!I74","v":0},{"$f":"'Data Abstraction Tool - LONG'!#REF!","v":{"$error":"#REF!"}},{"$f":"'Data Abstraction Tool - LONG'!#REF!","v":{"$error":"#REF!"}},{"$f":"'Data Abstraction Tool - LONG'!#REF!","v":{"$error":"#REF!"}},{"$f":"'Data Abstraction Tool - LONG'!#REF!","v":{"$error":"#REF!"}},{"$f":"'Data Abstraction Tool - LONG'!#REF!","v":{"$error":"#REF!"}},{"$f":"'Data Abstraction Tool - LONG'!#REF!","v":{"$error":"#REF!"}},{"$f":"'Data Abstraction Tool - LONG'!E74","v":0},{"$f":"'Data Abstraction Tool - LONG'!#REF!","v":{"$error":"#REF!"}},{"$f":"'Data Abstraction Tool - LONG'!#REF!","v":{"$error":"#REF!"}},{"$f":"'Data Abstraction Tool - LONG'!#REF!","v":{"$error":"#REF!"}}]
[{"$f":"'Data Abstraction Tool - LONG'!#REF!","v":{"$error":"#REF!"}},{"$f":"'Data Abstraction Tool - LONG'!#REF!","v":{"$error":"#REF!"}},{"$f":"'Data Abstraction Tool - LONG'!I75","v":0},{"$f":"'Data Abstraction Tool - LONG'!#REF!","v":{"$error":"#REF!"}},{"$f":"'Data Abstraction Tool - LONG'!#REF!","v":{"$error":"#REF!"}},{"$f":"'Data Abstraction Tool - LONG'!#REF!","v":{"$error":"#REF!"}},{"$f":"'Data Abstraction Tool - LONG'!#REF!","v":{"$error":"#REF!"}},{"$f":"'Data Abstraction Tool - LONG'!#REF!","v":{"$error":"#REF!"}},{"$f":"'Data Abstraction Tool - LONG'!#REF!","v":{"$error":"#REF!"}},{"$f":"'Data Abstraction Tool - LONG'!E75","v":0},{"$f":"'Data Abstraction Tool - LONG'!#REF!","v":{"$error":"#REF!"}},{"$f":"'Data Abstraction Tool - LONG'!#REF!","v":{"$error":"#REF!"}},{"$f":"'Data Abstraction Tool - LONG'!#REF!","v":{"$error":"#REF!"}}]
[{"$f":"'Data Abstraction Tool - LONG'!#REF!","v":{"$error":"#REF!"}},{"$f":"'Data Abstraction Tool - LONG'!#REF!","v":{"$error":"#REF!"}},{"$f":"'Data Abstraction Tool - LONG'!I76","v":0},{"$f":"'Data Abstraction Tool - LONG'!#REF!","v":{"$error":"#REF!"}},{"$f":"'Data Abstraction Tool - LONG'!#REF!","v":{"$error":"#REF!"}},{"$f":"'Data Abstraction Tool - LONG'!#REF!","v":{"$error":"#REF!"}},{"$f":"'Data Abstraction Tool - LONG'!#REF!","v":{"$error":"#REF!"}},{"$f":"'Data Abstraction Tool - LONG'!#REF!","v":{"$error":"#REF!"}},{"$f":"'Data Abstraction Tool - LONG'!#REF!","v":{"$error":"#REF!"}},{"$f":"'Data Abstraction Tool - LONG'!E76","v":0},{"$f":"'Data Abstraction Tool - LONG'!#REF!","v":{"$error":"#REF!"}},{"$f":"'Data Abstraction Tool - LONG'!#REF!","v":{"$error":"#REF!"}},{"$f":"'Data Abstraction Tool - LONG'!#REF!","v":{"$error":"#REF!"}}]
[{"$f":"'Data Abstraction Tool - LONG'!#REF!","v":{"$error":"#REF!"}},{"$f":"'Data Abstraction Tool - LONG'!#REF!","v":{"$error":"#REF!"}},{"$f":"'Data Abstraction Tool - LONG'!I77","v":0},{"$f":"'Data Abstraction Tool - LONG'!#REF!","v":{"$error":"#REF!"}},{"$f":"'Data Abstraction Tool - LONG'!#REF!","v":{"$error":"#REF!"}},{"$f":"'Data Abstraction Tool - LONG'!#REF!","v":{"$error":"#REF!"}},{"$f":"'Data Abstraction Tool - LONG'!#REF!","v":{"$error":"#REF!"}},{"$f":"'Data Abstraction Tool - LONG'!#REF!","v":{"$error":"#REF!"}},{"$f":"'Data Abstraction Tool - LONG'!#REF!","v":{"$error":"#REF!"}},{"$f":"'Data Abstraction Tool - LONG'!E77","v":0},{"$f":"'Data Abstraction Tool - LONG'!#REF!","v":{"$error":"#REF!"}},{"$f":"'Data Abstraction Tool - LONG'!#REF!","v":{"$error":"#REF!"}},{"$f":"'Data Abstraction Tool - LONG'!#REF!","v":{"$error":"#REF!"}}]
[{"$f":"'Data Abstraction Tool - LONG'!#REF!","v":{"$error":"#REF!"}},{"$f":"'Data Abstraction Tool - LONG'!#REF!","v":{"$error":"#REF!"}},{"$f":"'Data Abstraction Tool - LONG'!I78","v":0},{"$f":"'Data Abstraction Tool - LONG'!#REF!","v":{"$error":"#REF!"}},{"$f":"'Data Abstraction Tool - LONG'!#REF!","v":{"$error":"#REF!"}},{"$f":"'Data Abstraction Tool - LONG'!#REF!","v":{"$error":"#REF!"}},{"$f":"'Data Abstraction Tool - LONG'!#REF!","v":{"$error":"#REF!"}},{"$f":"'Data Abstraction Tool - LONG'!#REF!","v":{"$error":"#REF!"}},{"$f":"'Data Abstraction Tool - LONG'!#REF!","v":{"$error":"#REF!"}},{"$f":"'Data Abstraction Tool - LONG'!E78","v":0},{"$f":"'Data Abstraction Tool - LONG'!#REF!","v":{"$error":"#REF!"}},{"$f":"'Data Abstraction Tool - LONG'!#REF!","v":{"$error":"#REF!"}},{"$f":"'Data Abstraction Tool - LONG'!#REF!","v":{"$error":"#REF!"}}]
[{"$f":"'Data Abstraction Tool - LONG'!#REF!","v":{"$error":"#REF!"}},{"$f":"'Data Abstraction Tool - LONG'!#REF!","v":{"$error":"#REF!"}},{"$f":"'Data Abstraction Tool - LONG'!I79","v":0},{"$f":"'Data Abstraction Tool - LONG'!#REF!","v":{"$error":"#REF!"}},{"$f":"'Data Abstraction Tool - LONG'!#REF!","v":{"$error":"#REF!"}},{"$f":"'Data Abstraction Tool - LONG'!#REF!","v":{"$error":"#REF!"}},{"$f":"'Data Abstraction Tool - LONG'!#REF!","v":{"$error":"#REF!"}},{"$f":"'Data Abstraction Tool - LONG'!#REF!","v":{"$error":"#REF!"}},{"$f":"'Data Abstraction Tool - LONG'!#REF!","v":{"$error":"#REF!"}},{"$f":"'Data Abstraction Tool - LONG'!E79","v":0},{"$f":"'Data Abstraction Tool - LONG'!#REF!","v":{"$error":"#REF!"}},{"$f":"'Data Abstraction Tool - LONG'!#REF!","v":{"$error":"#REF!"}},{"$f":"'Data Abstraction Tool - LONG'!#REF!","v":{"$error":"#REF!"}}]
[{"$f":"'Data Abstraction Tool - LONG'!#REF!","v":{"$error":"#REF!"}},{"$f":"'Data Abstraction Tool - LONG'!#REF!","v":{"$error":"#REF!"}},{"$f":"'Data Abstraction Tool - LONG'!I80","v":0},{"$f":"'Data Abstraction Tool - LONG'!#REF!","v":{"$error":"#REF!"}},{"$f":"'Data Abstraction Tool - LONG'!#REF!","v":{"$error":"#REF!"}},{"$f":"'Data Abstraction Tool - LONG'!#REF!","v":{"$error":"#REF!"}},{"$f":"'Data Abstraction Tool - LONG'!#REF!","v":{"$error":"#REF!"}},{"$f":"'Data Abstraction Tool - LONG'!#REF!","v":{"$error":"#REF!"}},{"$f":"'Data Abstraction Tool - LONG'!#REF!","v":{"$error":"#REF!"}},{"$f":"'Data Abstraction Tool - LONG'!E80","v":0},{"$f":"'Data Abstraction Tool - LONG'!#REF!","v":{"$error":"#REF!"}},{"$f":"'Data Abstraction Tool - LONG'!#REF!","v":{"$error":"#REF!"}},{"$f":"'Data Abstraction Tool - LONG'!#REF!","v":{"$error":"#REF!"}}]
[{"$f":"'Data Abstraction Tool - LONG'!#REF!","v":{"$error":"#REF!"}},{"$f":"'Data Abstraction Tool - LONG'!#REF!","v":{"$error":"#REF!"}},{"$f":"'Data Abstraction Tool - LONG'!I81","v":0},{"$f":"'Data Abstraction Tool - LONG'!#REF!","v":{"$error":"#REF!"}},{"$f":"'Data Abstraction Tool - LONG'!#REF!","v":{"$error":"#REF!"}},{"$f":"'Data Abstraction Tool - LONG'!#REF!","v":{"$error":"#REF!"}},{"$f":"'Data Abstraction Tool - LONG'!#REF!","v":{"$error":"#REF!"}},{"$f":"'Data Abstraction Tool - LONG'!#REF!","v":{"$error":"#REF!"}},{"$f":"'Data Abstraction Tool - LONG'!#REF!","v":{"$error":"#REF!"}},{"$f":"'Data Abstraction Tool - LONG'!E81","v":0},{"$f":"'Data Abstraction Tool - LONG'!#REF!","v":{"$error":"#REF!"}},{"$f":"'Data Abstraction Tool - LONG'!#REF!","v":{"$error":"#REF!"}},{"$f":"'Data Abstraction Tool - LONG'!#REF!","v":{"$error":"#REF!"}}]
[{"$f":"'Data Abstraction Tool - LONG'!#REF!","v":{"$error":"#REF!"}},{"$f":"'Data Abstraction Tool - LONG'!#REF!","v":{"$error":"#REF!"}},{"$f":"'Data Abstraction Tool - LONG'!I82","v":0},{"$f":"'Data Abstraction Tool - LONG'!#REF!","v":{"$error":"#REF!"}},{"$f":"'Data Abstraction Tool - LONG'!#REF!","v":{"$error":"#REF!"}},{"$f":"'Data Abstraction Tool - LONG'!#REF!","v":{"$error":"#REF!"}},{"$f":"'Data Abstraction Tool - LONG'!#REF!","v":{"$error":"#REF!"}},{"$f":"'Data Abstraction Tool - LONG'!#REF!","v":{"$error":"#REF!"}},{"$f":"'Data Abstraction Tool - LONG'!#REF!","v":{"$error":"#REF!"}},{"$f":"'Data Abstraction Tool - LONG'!E82","v":0},{"$f":"'Data Abstraction Tool - LONG'!#REF!","v":{"$error":"#REF!"}},{"$f":"'Data Abstraction Tool - LONG'!#REF!","v":{"$error":"#REF!"}},{"$f":"'Data Abstraction Tool - LONG'!#REF!","v":{"$error":"#REF!"}}]
[{"$f":"'Data Abstraction Tool - LONG'!#REF!","v":{"$error":"#REF!"}},{"$f":"'Data Abstraction Tool - LONG'!#REF!","v":{"$error":"#REF!"}},{"$f":"'Data Abstraction Tool - LONG'!I83","v":0},{"$f":"'Data Abstraction Tool - LONG'!#REF!","v":{"$error":"#REF!"}},{"$f":"'Data Abstraction Tool - LONG'!#REF!","v":{"$error":"#REF!"}},{"$f":"'Data Abstraction Tool - LONG'!#REF!","v":{"$error":"#REF!"}},{"$f":"'Data Abstraction Tool - LONG'!#REF!","v":{"$error":"#REF!"}},{"$f":"'Data Abstraction Tool - LONG'!#REF!","v":{"$error":"#REF!"}},{"$f":"'Data Abstraction Tool - LONG'!#REF!","v":{"$error":"#REF!"}},{"$f":"'Data Abstraction Tool - LONG'!E83","v":0},{"$f":"'Data Abstraction Tool - LONG'!#REF!","v":{"$error":"#REF!"}},{"$f":"'Data Abstraction Tool - LONG'!#REF!","v":{"$error":"#REF!"}},{"$f":"'Data Abstraction Tool - LONG'!#REF!","v":{"$error":"#REF!"}}]
[{"$f":"'Data Abstraction Tool - LONG'!#REF!","v":{"$error":"#REF!"}},{"$f":"'Data Abstraction Tool - LONG'!#REF!","v":{"$error":"#REF!"}},{"$f":"'Data Abstraction Tool - LONG'!I84","v":0},{"$f":"'Data Abstraction Tool - LONG'!#REF!","v":{"$error":"#REF!"}},{"$f":"'Data Abstraction Tool - LONG'!#REF!","v":{"$error":"#REF!"}},{"$f":"'Data Abstraction Tool - LONG'!#REF!","v":{"$error":"#REF!"}},{"$f":"'Data Abstraction Tool - LONG'!#REF!","v":{"$error":"#REF!"}},{"$f":"'Data Abstraction Tool - LONG'!#REF!","v":{"$error":"#REF!"}},{"$f":"'Data Abstraction Tool - LONG'!#REF!","v":{"$error":"#REF!"}},{"$f":"'Data Abstraction Tool - LONG'!E84","v":0},{"$f":"'Data Abstraction Tool - LONG'!#REF!","v":{"$error":"#REF!"}},{"$f":"'Data Abstraction Tool - LONG'!#REF!","v":{"$error":"#REF!"}},{"$f":"'Data Abstraction Tool - LONG'!#REF!","v":{"$error":"#REF!"}}]
[{"$f":"'Data Abstraction Tool - LONG'!#REF!","v":{"$error":"#REF!"}},{"$f":"'Data Abstraction Tool - LONG'!#REF!","v":{"$error":"#REF!"}},{"$f":"'Data Abstraction Tool - LONG'!I85","v":0},{"$f":"'Data Abstraction Tool - LONG'!#REF!","v":{"$error":"#REF!"}},{"$f":"'Data Abstraction Tool - LONG'!#REF!","v":{"$error":"#REF!"}},{"$f":"'Data Abstraction Tool - LONG'!#REF!","v":{"$error":"#REF!"}},{"$f":"'Data Abstraction Tool - LONG'!#REF!","v":{"$error":"#REF!"}},{"$f":"'Data Abstraction Tool - LONG'!#REF!","v":{"$error":"#REF!"}},{"$f":"'Data Abstraction Tool - LONG'!#REF!","v":{"$error":"#REF!"}},{"$f":"'Data Abstraction Tool - LONG'!E85","v":0},{"$f":"'Data Abstraction Tool - LONG'!#REF!","v":{"$error":"#REF!"}},{"$f":"'Data Abstraction Tool - LONG'!#REF!","v":{"$error":"#REF!"}},{"$f":"'Data Abstraction Tool - LONG'!#REF!","v":{"$error":"#REF!"}}]
[{"$f":"'Data Abstraction Tool - LONG'!#REF!","v":{"$error":"#REF!"}},{"$f":"'Data Abstraction Tool - LONG'!#REF!","v":{"$error":"#REF!"}},{"$f":"'Data Abstraction Tool - LONG'!I86","v":0},{"$f":"'Data Abstraction Tool - LONG'!#REF!","v":{"$error":"#REF!"}},{"$f":"'Data Abstraction Tool - LONG'!#REF!","v":{"$error":"#REF!"}},{"$f":"'Data Abstraction Tool - LONG'!#REF!","v":{"$error":"#REF!"}},{"$f":"'Data Abstraction Tool - LONG'!#REF!","v":{"$error":"#REF!"}},{"$f":"'Data Abstraction Tool - LONG'!#REF!","v":{"$error":"#REF!"}},{"$f":"'Data Abstraction Tool - LONG'!#REF!","v":{"$error":"#REF!"}},{"$f":"'Data Abstraction Tool - LONG'!E86","v":0},{"$f":"'Data Abstraction Tool - LONG'!#REF!","v":{"$error":"#REF!"}},{"$f":"'Data Abstraction Tool - LONG'!#REF!","v":{"$error":"#REF!"}},{"$f":"'Data Abstraction Tool - LONG'!#REF!","v":{"$error":"#REF!"}}]
[{"$f":"'Data Abstraction Tool - LONG'!#REF!","v":{"$error":"#REF!"}},{"$f":"'Data Abstraction Tool - LONG'!#REF!","v":{"$error":"#REF!"}},{"$f":"'Data Abstraction Tool - LONG'!I87","v":0},{"$f":"'Data Abstraction Tool - LONG'!#REF!","v":{"$error":"#REF!"}},{"$f":"'Data Abstraction Tool - LONG'!#REF!","v":{"$error":"#REF!"}},{"$f":"'Data Abstraction Tool - LONG'!#REF!","v":{"$error":"#REF!"}},{"$f":"'Data Abstraction Tool - LONG'!#REF!","v":{"$error":"#REF!"}},{"$f":"'Data Abstraction Tool - LONG'!#REF!","v":{"$error":"#REF!"}},{"$f":"'Data Abstraction Tool - LONG'!#REF!","v":{"$error":"#REF!"}},{"$f":"'Data Abstraction Tool - LONG'!E87","v":0},{"$f":"'Data Abstraction Tool - LONG'!#REF!","v":{"$error":"#REF!"}},{"$f":"'Data Abstraction Tool - LONG'!#REF!","v":{"$error":"#REF!"}},{"$f":"'Data Abstraction Tool - LONG'!#REF!","v":{"$error":"#REF!"}}]
[{"$f":"'Data Abstraction Tool - LONG'!#REF!","v":{"$error":"#REF!"}},{"$f":"'Data Abstraction Tool - LONG'!#REF!","v":{"$error":"#REF!"}},{"$f":"'Data Abstraction Tool - LONG'!I88","v":0},{"$f":"'Data Abstraction Tool - LONG'!#REF!","v":{"$error":"#REF!"}},{"$f":"'Data Abstraction Tool - LONG'!#REF!","v":{"$error":"#REF!"}},{"$f":"'Data Abstraction Tool - LONG'!#REF!","v":{"$error":"#REF!"}},{"$f":"'Data Abstraction Tool - LONG'!#REF!","v":{"$error":"#REF!"}},{"$f":"'Data Abstraction Tool - LONG'!#REF!","v":{"$error":"#REF!"}},{"$f":"'Data Abstraction Tool - LONG'!#REF!","v":{"$error":"#REF!"}},{"$f":"'Data Abstraction Tool - LONG'!E88","v":0},{"$f":"'Data Abstraction Tool - LONG'!#REF!","v":{"$error":"#REF!"}},{"$f":"'Data Abstraction Tool - LONG'!#REF!","v":{"$error":"#REF!"}},{"$f":"'Data Abstraction Tool - LONG'!#REF!","v":{"$error":"#REF!"}}]
[{"$f":"'Data Abstraction Tool - LONG'!#REF!","v":{"$error":"#REF!"}},{"$f":"'Data Abstraction Tool - LONG'!#REF!","v":{"$error":"#REF!"}},{"$f":"'Data Abstraction Tool - LONG'!I89","v":0},{"$f":"'Data Abstraction Tool - LONG'!#REF!","v":{"$error":"#REF!"}},{"$f":"'Data Abstraction Tool - LONG'!#REF!","v":{"$error":"#REF!"}},{"$f":"'Data Abstraction Tool - LONG'!#REF!","v":{"$error":"#REF!"}},{"$f":"'Data Abstraction Tool - LONG'!#REF!","v":{"$error":"#REF!"}},{"$f":"'Data Abstraction Tool - LONG'!#REF!","v":{"$error":"#REF!"}},{"$f":"'Data Abstraction Tool - LONG'!#REF!","v":{"$error":"#REF!"}},{"$f":"'Data Abstraction Tool - LONG'!E89","v":0},{"$f":"'Data Abstraction Tool - LONG'!#REF!","v":{"$error":"#REF!"}},{"$f":"'Data Abstraction Tool - LONG'!#REF!","v":{"$error":"#REF!"}},{"$f":"'Data Abstraction Tool - LONG'!#REF!","v":{"$error":"#REF!"}}]
[{"$f":"'Data Abstraction Tool - LONG'!#REF!","v":{"$error":"#REF!"}},{"$f":"'Data Abstraction Tool - LONG'!#REF!","v":{"$error":"#REF!"}},{"$f":"'Data Abstraction Tool - LONG'!I90","v":0},{"$f":"'Data Abstraction Tool - LONG'!#REF!","v":{"$error":"#REF!"}},{"$f":"'Data Abstraction Tool - LONG'!#REF!","v":{"$error":"#REF!"}},{"$f":"'Data Abstraction Tool - LONG'!#REF!","v":{"$error":"#REF!"}},{"$f":"'Data Abstraction Tool - LONG'!#REF!","v":{"$error":"#REF!"}},{"$f":"'Data Abstraction Tool - LONG'!#REF!","v":{"$error":"#REF!"}},{"$f":"'Data Abstraction Tool - LONG'!#REF!","v":{"$error":"#REF!"}},{"$f":"'Data Abstraction Tool - LONG'!E90","v":0},{"$f":"'Data Abstraction Tool - LONG'!#REF!","v":{"$error":"#REF!"}},{"$f":"'Data Abstraction Tool - LONG'!#REF!","v":{"$error":"#REF!"}},{"$f":"'Data Abstraction Tool - LONG'!#REF!","v":{"$error":"#REF!"}}]
[{"$f":"'Data Abstraction Tool - LONG'!#REF!","v":{"$error":"#REF!"}},{"$f":"'Data Abstraction Tool - LONG'!#REF!","v":{"$error":"#REF!"}},{"$f":"'Data Abstraction Tool - LONG'!I91","v":0},{"$f":"'Data Abstraction Tool - LONG'!#REF!","v":{"$error":"#REF!"}},{"$f":"'Data Abstraction Tool - LONG'!#REF!","v":{"$error":"#REF!"}},{"$f":"'Data Abstraction Tool - LONG'!#REF!","v":{"$error":"#REF!"}},{"$f":"'Data Abstraction Tool - LONG'!#REF!","v":{"$error":"#REF!"}},{"$f":"'Data Abstraction Tool - LONG'!#REF!","v":{"$error":"#REF!"}},{"$f":"'Data Abstraction Tool - LONG'!#REF!","v":{"$error":"#REF!"}},{"$f":"'Data Abstraction Tool - LONG'!E91","v":0},{"$f":"'Data Abstraction Tool - LONG'!#REF!","v":{"$error":"#REF!"}},{"$f":"'Data Abstraction Tool - LONG'!#REF!","v":{"$error":"#REF!"}},{"$f":"'Data Abstraction Tool - LONG'!#REF!","v":{"$error":"#REF!"}}]
[{"$f":"'Data Abstraction Tool - LONG'!#REF!","v":{"$error":"#REF!"}},{"$f":"'Data Abstraction Tool - LONG'!#REF!","v":{"$error":"#REF!"}},{"$f":"'Data Abstraction Tool - LONG'!I92","v":0},{"$f":"'Data Abstraction Tool - LONG'!#REF!","v":{"$error":"#REF!"}},{"$f":"'Data Abstraction Tool - LONG'!#REF!","v":{"$error":"#REF!"}},{"$f":"'Data Abstraction Tool - LONG'!#REF!","v":{"$error":"#REF!"}},{"$f":"'Data Abstraction Tool - LONG'!#REF!","v":{"$error":"#REF!"}},{"$f":"'Data Abstraction Tool - LONG'!#REF!","v":{"$error":"#REF!"}},{"$f":"'Data Abstraction Tool - LONG'!#REF!","v":{"$error":"#REF!"}},{"$f":"'Data Abstraction Tool - LONG'!E92","v":0},{"$f":"'Data Abstraction Tool - LONG'!#REF!","v":{"$error":"#REF!"}},{"$f":"'Data Abstraction Tool - LONG'!#REF!","v":{"$error":"#REF!"}},{"$f":"'Data Abstraction Tool - LONG'!#REF!","v":{"$error":"#REF!"}}]
[{"$f":"'Data Abstraction Tool - LONG'!#REF!","v":{"$error":"#REF!"}},{"$f":"'Data Abstraction Tool - LONG'!#REF!","v":{"$error":"#REF!"}},{"$f":"'Data Abstraction Tool - LONG'!I93","v":0},{"$f":"'Data Abstraction Tool - LONG'!#REF!","v":{"$error":"#REF!"}},{"$f":"'Data Abstraction Tool - LONG'!#REF!","v":{"$error":"#REF!"}},{"$f":"'Data Abstraction Tool - LONG'!#REF!","v":{"$error":"#REF!"}},{"$f":"'Data Abstraction Tool - LONG'!#REF!","v":{"$error":"#REF!"}},{"$f":"'Data Abstraction Tool - LONG'!#REF!","v":{"$error":"#REF!"}},{"$f":"'Data Abstraction Tool - LONG'!#REF!","v":{"$error":"#REF!"}},{"$f":"'Data Abstraction Tool - LONG'!E93","v":0},{"$f":"'Data Abstraction Tool - LONG'!#REF!","v":{"$error":"#REF!"}},{"$f":"'Data Abstraction Tool - LONG'!#REF!","v":{"$error":"#REF!"}},{"$f":"'Data Abstraction Tool - LONG'!#REF!","v":{"$error":"#REF!"}}]
[{"$f":"'Data Abstraction Tool - LONG'!#REF!","v":{"$error":"#REF!"}},{"$f":"'Data Abstraction Tool - LONG'!#REF!","v":{"$error":"#REF!"}},{"$f":"'Data Abstraction Tool - LONG'!I94","v":0},{"$f":"'Data Abstraction Tool - LONG'!#REF!","v":{"$error":"#REF!"}},{"$f":"'Data Abstraction Tool - LONG'!#REF!","v":{"$error":"#REF!"}},{"$f":"'Data Abstraction Tool - LONG'!#REF!","v":{"$error":"#REF!"}},{"$f":"'Data Abstraction Tool - LONG'!#REF!","v":{"$error":"#REF!"}},{"$f":"'Data Abstraction Tool - LONG'!#REF!","v":{"$error":"#REF!"}},{"$f":"'Data Abstraction Tool - LONG'!#REF!","v":{"$error":"#REF!"}},{"$f":"'Data Abstraction Tool - LONG'!E94","v":0},{"$f":"'Data Abstraction Tool - LONG'!#REF!","v":{"$error":"#REF!"}},{"$f":"'Data Abstraction Tool - LONG'!#REF!","v":{"$error":"#REF!"}},{"$f":"'Data Abstraction Tool - LONG'!#REF!","v":{"$error":"#REF!"}}]
[{"$f":"'Data Abstraction Tool - LONG'!#REF!","v":{"$error":"#REF!"}},{"$f":"'Data Abstraction Tool - LONG'!#REF!","v":{"$error":"#REF!"}},{"$f":"'Data Abstraction Tool - LONG'!I95","v":0},{"$f":"'Data Abstraction Tool - LONG'!#REF!","v":{"$error":"#REF!"}},{"$f":"'Data Abstraction Tool - LONG'!#REF!","v":{"$error":"#REF!"}},{"$f":"'Data Abstraction Tool - LONG'!#REF!","v":{"$error":"#REF!"}},{"$f":"'Data Abstraction Tool - LONG'!#REF!","v":{"$error":"#REF!"}},{"$f":"'Data Abstraction Tool - LONG'!#REF!","v":{"$error":"#REF!"}},{"$f":"'Data Abstraction Tool - LONG'!#REF!","v":{"$error":"#REF!"}},{"$f":"'Data Abstraction Tool - LONG'!E95","v":0},{"$f":"'Data Abstraction Tool - LONG'!#REF!","v":{"$error":"#REF!"}},{"$f":"'Data Abstraction Tool - LONG'!#REF!","v":{"$error":"#REF!"}},{"$f":"'Data Abstraction Tool - LONG'!#REF!","v":{"$error":"#REF!"}}]
[{"$f":"'Data Abstraction Tool - LONG'!#REF!","v":{"$error":"#REF!"}},{"$f":"'Data Abstraction Tool - LONG'!#REF!","v":{"$error":"#REF!"}},{"$f":"'Data Abstraction Tool - LONG'!I96","v":0},{"$f":"'Data Abstraction Tool - LONG'!#REF!","v":{"$error":"#REF!"}},{"$f":"'Data Abstraction Tool - LONG'!#REF!","v":{"$error":"#REF!"}},{"$f":"'Data Abstraction Tool - LONG'!#REF!","v":{"$error":"#REF!"}},{"$f":"'Data Abstraction Tool - LONG'!#REF!","v":{"$error":"#REF!"}},{"$f":"'Data Abstraction Tool - LONG'!#REF!","v":{"$error":"#REF!"}},{"$f":"'Data Abstraction Tool - LONG'!#REF!","v":{"$error":"#REF!"}},{"$f":"'Data Abstraction Tool - LONG'!E96","v":0},{"$f":"'Data Abstraction Tool - LONG'!#REF!","v":{"$error":"#REF!"}},{"$f":"'Data Abstraction Tool - LONG'!#REF!","v":{"$error":"#REF!"}},{"$f":"'Data Abstraction Tool - LONG'!#REF!","v":{"$error":"#REF!"}}]
[{"$f":"'Data Abstraction Tool - LONG'!#REF!","v":{"$error":"#REF!"}},{"$f":"'Data Abstraction Tool - LONG'!#REF!","v":{"$error":"#REF!"}},{"$f":"'Data Abstraction Tool - LONG'!I97","v":0},{"$f":"'Data Abstraction Tool - LONG'!#REF!","v":{"$error":"#REF!"}},{"$f":"'Data Abstraction Tool - LONG'!#REF!","v":{"$error":"#REF!"}},{"$f":"'Data Abstraction Tool - LONG'!#REF!","v":{"$error":"#REF!"}},{"$f":"'Data Abstraction Tool - LONG'!#REF!","v":{"$error":"#REF!"}},{"$f":"'Data Abstraction Tool - LONG'!#REF!","v":{"$error":"#REF!"}},{"$f":"'Data Abstraction Tool - LONG'!#REF!","v":{"$error":"#REF!"}},{"$f":"'Data Abstraction Tool - LONG'!E97","v":0},{"$f":"'Data Abstraction Tool - LONG'!#REF!","v":{"$error":"#REF!"}},{"$f":"'Data Abstraction Tool - LONG'!#REF!","v":{"$error":"#REF!"}},{"$f":"'Data Abstraction Tool - LONG'!#REF!","v":{"$error":"#REF!"}}]
[{"$f":"'Data Abstraction Tool - LONG'!#REF!","v":{"$error":"#REF!"}},{"$f":"'Data Abstraction Tool - LONG'!#REF!","v":{"$error":"#REF!"}},{"$f":"'Data Abstraction Tool - LONG'!I98","v":0},{"$f":"'Data Abstraction Tool - LONG'!#REF!","v":{"$error":"#REF!"}},{"$f":"'Data Abstraction Tool - LONG'!#REF!","v":{"$error":"#REF!"}},{"$f":"'Data Abstraction Tool - LONG'!#REF!","v":{"$error":"#REF!"}},{"$f":"'Data Abstraction Tool - LONG'!#REF!","v":{"$error":"#REF!"}},{"$f":"'Data Abstraction Tool - LONG'!#REF!","v":{"$error":"#REF!"}},{"$f":"'Data Abstraction Tool - LONG'!#REF!","v":{"$error":"#REF!"}},{"$f":"'Data Abstraction Tool - LONG'!E98","v":0},{"$f":"'Data Abstraction Tool - LONG'!#REF!","v":{"$error":"#REF!"}},{"$f":"'Data Abstraction Tool - LONG'!#REF!","v":{"$error":"#REF!"}},{"$f":"'Data Abstraction Tool - LONG'!#REF!","v":{"$error":"#REF!"}}]
[{"$f":"'Data Abstraction Tool - LONG'!#REF!","v":{"$error":"#REF!"}},{"$f":"'Data Abstraction Tool - LONG'!#REF!","v":{"$error":"#REF!"}},{"$f":"'Data Abstraction Tool - LONG'!I99","v":0},{"$f":"'Data Abstraction Tool - LONG'!#REF!","v":{"$error":"#REF!"}},{"$f":"'Data Abstraction Tool - LONG'!#REF!","v":{"$error":"#REF!"}},{"$f":"'Data Abstraction Tool - LONG'!#REF!","v":{"$error":"#REF!"}},{"$f":"'Data Abstraction Tool - LONG'!#REF!","v":{"$error":"#REF!"}},{"$f":"'Data Abstraction Tool - LONG'!#REF!","v":{"$error":"#REF!"}},{"$f":"'Data Abstraction Tool - LONG'!#REF!","v":{"$error":"#REF!"}},{"$f":"'Data Abstraction Tool - LONG'!E99","v":0},{"$f":"'Data Abstraction Tool - LONG'!#REF!","v":{"$error":"#REF!"}},{"$f":"'Data Abstraction Tool - LONG'!#REF!","v":{"$error":"#REF!"}},{"$f":"'Data Abstraction Tool - LONG'!#REF!","v":{"$error":"#REF!"}}]
[{"$f":"'Data Abstraction Tool - LONG'!#REF!","v":{"$error":"#REF!"}},{"$f":"'Data Abstraction Tool - LONG'!#REF!","v":{"$error":"#REF!"}},{"$f":"'Data Abstraction Tool - LONG'!I100","v":0},{"$f":"'Data Abstraction Tool - LONG'!#REF!","v":{"$error":"#REF!"}},{"$f":"'Data Abstraction Tool - LONG'!#REF!","v":{"$error":"#REF!"}},{"$f":"'Data Abstraction Tool - LONG'!#REF!","v":{"$error":"#REF!"}},{"$f":"'Data Abstraction Tool - LONG'!#REF!","v":{"$error":"#REF!"}},{"$f":"'Data Abstraction Tool - LONG'!#REF!","v":{"$error":"#REF!"}},{"$f":"'Data Abstraction Tool - LONG'!#REF!","v":{"$error":"#REF!"}},{"$f":"'Data Abstraction Tool - LONG'!E100","v":0},{"$f":"'Data Abstraction Tool - LONG'!#REF!","v":{"$error":"#REF!"}},{"$f":"'Data Abstraction Tool - LONG'!#REF!","v":{"$error":"#REF!"}},{"$f":"'Data Abstraction Tool - LONG'!#REF!","v":{"$error":"#REF!"}}]
[{"$f":"'Data Abstraction Tool - LONG'!#REF!","v":{"$error":"#REF!"}},{"$f":"'Data Abstraction Tool - LONG'!#REF!","v":{"$error":"#REF!"}},{"$f":"'Data Abstraction Tool - LONG'!I101","v":0},{"$f":"'Data Abstraction Tool - LONG'!#REF!","v":{"$error":"#REF!"}},{"$f":"'Data Abstraction Tool - LONG'!#REF!","v":{"$error":"#REF!"}},{"$f":"'Data Abstraction Tool - LONG'!#REF!","v":{"$error":"#REF!"}},{"$f":"'Data Abstraction Tool - LONG'!#REF!","v":{"$error":"#REF!"}},{"$f":"'Data Abstraction Tool - LONG'!#REF!","v":{"$error":"#REF!"}},{"$f":"'Data Abstraction Tool - LONG'!#REF!","v":{"$error":"#REF!"}},{"$f":"'Data Abstraction Tool - LONG'!E101","v":0},{"$f":"'Data Abstraction Tool - LONG'!#REF!","v":{"$error":"#REF!"}},{"$f":"'Data Abstraction Tool - LONG'!#REF!","v":{"$error":"#REF!"}},{"$f":"'Data Abstraction Tool - LONG'!#REF!","v":{"$error":"#REF!"}}]
[{"$f":"'Data Abstraction Tool - LONG'!#REF!","v":{"$error":"#REF!"}},{"$f":"'Data Abstraction Tool - LONG'!#REF!","v":{"$error":"#REF!"}},{"$f":"'Data Abstraction Tool - LONG'!I102","v":0},{"$f":"'Data Abstraction Tool - LONG'!#REF!","v":{"$error":"#REF!"}},{"$f":"'Data Abstraction Tool - LONG'!#REF!","v":{"$error":"#REF!"}},{"$f":"'Data Abstraction Tool - LONG'!#REF!","v":{"$error":"#REF!"}},{"$f":"'Data Abstraction Tool - LONG'!#REF!","v":{"$error":"#REF!"}},{"$f":"'Data Abstraction Tool - LONG'!#REF!","v":{"$error":"#REF!"}},{"$f":"'Data Abstraction Tool - LONG'!#REF!","v":{"$error":"#REF!"}},{"$f":"'Data Abstraction Tool - LONG'!E102","v":0},{"$f":"'Data Abstraction Tool - LONG'!#REF!","v":{"$error":"#REF!"}},{"$f":"'Data Abstraction Tool - LONG'!#REF!","v":{"$error":"#REF!"}},{"$f":"'Data Abstraction Tool - LONG'!#REF!","v":{"$error":"#REF!"}}]
[{"$f":"'Data Abstraction Tool - LONG'!#REF!","v":{"$error":"#REF!"}},{"$f":"'Data Abstraction Tool - LONG'!#REF!","v":{"$error":"#REF!"}},{"$f":"'Data Abstraction Tool - LONG'!I103","v":0},{"$f":"'Data Abstraction Tool - LONG'!#REF!","v":{"$error":"#REF!"}},{"$f":"'Data Abstraction Tool - LONG'!#REF!","v":{"$error":"#REF!"}},{"$f":"'Data Abstraction Tool - LONG'!#REF!","v":{"$error":"#REF!"}},{"$f":"'Data Abstraction Tool - LONG'!#REF!","v":{"$error":"#REF!"}},{"$f":"'Data Abstraction Tool - LONG'!#REF!","v":{"$error":"#REF!"}},{"$f":"'Data Abstraction Tool - LONG'!#REF!","v":{"$error":"#REF!"}},{"$f":"'Data Abstraction Tool - LONG'!E103","v":0},{"$f":"'Data Abstraction Tool - LONG'!#REF!","v":{"$error":"#REF!"}},{"$f":"'Data Abstraction Tool - LONG'!#REF!","v":{"$error":"#REF!"}},{"$f":"'Data Abstraction Tool - LONG'!#REF!","v":{"$error":"#REF!"}}]
[{"$f":"'Data Abstraction Tool - LONG'!#REF!","v":{"$error":"#REF!"}},{"$f":"'Data Abstraction Tool - LONG'!#REF!","v":{"$error":"#REF!"}},{"$f":"'Data Abstraction Tool - LONG'!I104","v":0},{"$f":"'Data Abstraction Tool - LONG'!#REF!","v":{"$error":"#REF!"}},{"$f":"'Data Abstraction Tool - LONG'!#REF!","v":{"$error":"#REF!"}},{"$f":"'Data Abstraction Tool - LONG'!#REF!","v":{"$error":"#REF!"}},{"$f":"'Data Abstraction Tool - LONG'!#REF!","v":{"$error":"#REF!"}},{"$f":"'Data Abstraction Tool - LONG'!#REF!","v":{"$error":"#REF!"}},{"$f":"'Data Abstraction Tool - LONG'!#REF!","v":{"$error":"#REF!"}},{"$f":"'Data Abstraction Tool - LONG'!E104","v":0},{"$f":"'Data Abstraction Tool - LONG'!#REF!","v":{"$error":"#REF!"}},{"$f":"'Data Abstraction Tool - LONG'!#REF!","v":{"$error":"#REF!"}},{"$f":"'Data Abstraction Tool - LONG'!#REF!","v":{"$error":"#REF!"}}]
[{"$f":"'Data Abstraction Tool - LONG'!#REF!","v":{"$error":"#REF!"}},{"$f":"'Data Abstraction Tool - LONG'!#REF!","v":{"$error":"#REF!"}},{"$f":"'Data Abstraction Tool - LONG'!I105","v":0},{"$f":"'Data Abstraction Tool - LONG'!#REF!","v":{"$error":"#REF!"}},{"$f":"'Data Abstraction Tool - LONG'!#REF!","v":{"$error":"#REF!"}},{"$f":"'Data Abstraction Tool - LONG'!#REF!","v":{"$error":"#REF!"}},{"$f":"'Data Abstraction Tool - LONG'!#REF!","v":{"$error":"#REF!"}},{"$f":"'Data Abstraction Tool - LONG'!#REF!","v":{"$error":"#REF!"}},{"$f":"'Data Abstraction Tool - LONG'!#REF!","v":{"$error":"#REF!"}},{"$f":"'Data Abstraction Tool - LONG'!E105","v":0},{"$f":"'Data Abstraction Tool - LONG'!#REF!","v":{"$error":"#REF!"}},{"$f":"'Data Abstraction Tool - LONG'!#REF!","v":{"$error":"#REF!"}},{"$f":"'Data Abstraction Tool - LONG'!#REF!","v":{"$error":"#REF!"}}]
[{"$f":"'Data Abstraction Tool - LONG'!#REF!","v":{"$error":"#REF!"}},{"$f":"'Data Abstraction Tool - LONG'!#REF!","v":{"$error":"#REF!"}},{"$f":"'Data Abstraction Tool - LONG'!I106","v":0},{"$f":"'Data Abstraction Tool - LONG'!#REF!","v":{"$error":"#REF!"}},{"$f":"'Data Abstraction Tool - LONG'!#REF!","v":{"$error":"#REF!"}},{"$f":"'Data Abstraction Tool - LONG'!#REF!","v":{"$error":"#REF!"}},{"$f":"'Data Abstraction Tool - LONG'!#REF!","v":{"$error":"#REF!"}},{"$f":"'Data Abstraction Tool - LONG'!#REF!","v":{"$error":"#REF!"}},{"$f":"'Data Abstraction Tool - LONG'!#REF!","v":{"$error":"#REF!"}},{"$f":"'Data Abstraction Tool - LONG'!E106","v":0},{"$f":"'Data Abstraction Tool - LONG'!#REF!","v":{"$error":"#REF!"}},{"$f":"'Data Abstraction Tool - LONG'!#REF!","v":{"$error":"#REF!"}},{"$f":"'Data Abstraction Tool - LONG'!#REF!","v":{"$error":"#REF!"}}]
[{"$f":"'Data Abstraction Tool - LONG'!#REF!","v":{"$error":"#REF!"}},{"$f":"'Data Abstraction Tool - LONG'!#REF!","v":{"$error":"#REF!"}},{"$f":"'Data Abstraction Tool - LONG'!I107","v":0},{"$f":"'Data Abstraction Tool - LONG'!#REF!","v":{"$error":"#REF!"}},{"$f":"'Data Abstraction Tool - LONG'!#REF!","v":{"$error":"#REF!"}},{"$f":"'Data Abstraction Tool - LONG'!#REF!","v":{"$error":"#REF!"}},{"$f":"'Data Abstraction Tool - LONG'!#REF!","v":{"$error":"#REF!"}},{"$f":"'Data Abstraction Tool - LONG'!#REF!","v":{"$error":"#REF!"}},{"$f":"'Data Abstraction Tool - LONG'!#REF!","v":{"$error":"#REF!"}},{"$f":"'Data Abstraction Tool - LONG'!E107","v":0},{"$f":"'Data Abstraction Tool - LONG'!#REF!","v":{"$error":"#REF!"}},{"$f":"'Data Abstraction Tool - LONG'!#REF!","v":{"$error":"#REF!"}},{"$f":"'Data Abstraction Tool - LONG'!#REF!","v":{"$error":"#REF!"}}]
[{"$f":"'Data Abstraction Tool - LONG'!#REF!","v":{"$error":"#REF!"}},{"$f":"'Data Abstraction Tool - LONG'!#REF!","v":{"$error":"#REF!"}},{"$f":"'Data Abstraction Tool - LONG'!I108","v":0},{"$f":"'Data Abstraction Tool - LONG'!#REF!","v":{"$error":"#REF!"}},{"$f":"'Data Abstraction Tool - LONG'!#REF!","v":{"$error":"#REF!"}},{"$f":"'Data Abstraction Tool - LONG'!#REF!","v":{"$error":"#REF!"}},{"$f":"'Data Abstraction Tool - LONG'!#REF!","v":{"$error":"#REF!"}},{"$f":"'Data Abstraction Tool - LONG'!#REF!","v":{"$error":"#REF!"}},{"$f":"'Data Abstraction Tool - LONG'!#REF!","v":{"$error":"#REF!"}},{"$f":"'Data Abstraction Tool - LONG'!E108","v":0},{"$f":"'Data Abstraction Tool - LONG'!#REF!","v":{"$error":"#REF!"}},{"$f":"'Data Abstraction Tool - LONG'!#REF!","v":{"$error":"#REF!"}},{"$f":"'Data Abstraction Tool - LONG'!#REF!","v":{"$error":"#REF!"}}]
[{"$f":"'Data Abstraction Tool - LONG'!#REF!","v":{"$error":"#REF!"}},{"$f":"'Data Abstraction Tool - LONG'!#REF!","v":{"$error":"#REF!"}},{"$f":"'Data Abstraction Tool - LONG'!I109","v":0},{"$f":"'Data Abstraction Tool - LONG'!#REF!","v":{"$error":"#REF!"}},{"$f":"'Data Abstraction Tool - LONG'!#REF!","v":{"$error":"#REF!"}},{"$f":"'Data Abstraction Tool - LONG'!#REF!","v":{"$error":"#REF!"}},{"$f":"'Data Abstraction Tool - LONG'!#REF!","v":{"$error":"#REF!"}},{"$f":"'Data Abstraction Tool - LONG'!#REF!","v":{"$error":"#REF!"}},{"$f":"'Data Abstraction Tool - LONG'!#REF!","v":{"$error":"#REF!"}},{"$f":"'Data Abstraction Tool - LONG'!E109","v":0},{"$f":"'Data Abstraction Tool - LONG'!#REF!","v":{"$error":"#REF!"}},{"$f":"'Data Abstraction Tool - LONG'!#REF!","v":{"$error":"#REF!"}},{"$f":"'Data Abstraction Tool - LONG'!#REF!","v":{"$error":"#REF!"}}]
[{"$f":"'Data Abstraction Tool - LONG'!#REF!","v":{"$error":"#REF!"}},{"$f":"'Data Abstraction Tool - LONG'!#REF!","v":{"$error":"#REF!"}},{"$f":"'Data Abstraction Tool - LONG'!I110","v":0},{"$f":"'Data Abstraction Tool - LONG'!#REF!","v":{"$error":"#REF!"}},{"$f":"'Data Abstraction Tool - LONG'!#REF!","v":{"$error":"#REF!"}},{"$f":"'Data Abstraction Tool - LONG'!#REF!","v":{"$error":"#REF!"}},{"$f":"'Data Abstraction Tool - LONG'!#REF!","v":{"$error":"#REF!"}},{"$f":"'Data Abstraction Tool - LONG'!#REF!","v":{"$error":"#REF!"}},{"$f":"'Data Abstraction Tool - LONG'!#REF!","v":{"$error":"#REF!"}},{"$f":"'Data Abstraction Tool - LONG'!E110","v":0},{"$f":"'Data Abstraction Tool - LONG'!#REF!","v":{"$error":"#REF!"}},{"$f":"'Data Abstraction Tool - LONG'!#REF!","v":{"$error":"#REF!"}},{"$f":"'Data Abstraction Tool - LONG'!#REF!","v":{"$error":"#REF!"}}]
[{"$f":"'Data Abstraction Tool - LONG'!#REF!","v":{"$error":"#REF!"}},{"$f":"'Data Abstraction Tool - LONG'!#REF!","v":{"$error":"#REF!"}},{"$f":"'Data Abstraction Tool - LONG'!I111","v":0},{"$f":"'Data Abstraction Tool - LONG'!#REF!","v":{"$error":"#REF!"}},{"$f":"'Data Abstraction Tool - LONG'!#REF!","v":{"$error":"#REF!"}},{"$f":"'Data Abstraction Tool - LONG'!#REF!","v":{"$error":"#REF!"}},{"$f":"'Data Abstraction Tool - LONG'!#REF!","v":{"$error":"#REF!"}},{"$f":"'Data Abstraction Tool - LONG'!#REF!","v":{"$error":"#REF!"}},{"$f":"'Data Abstraction Tool - LONG'!#REF!","v":{"$error":"#REF!"}},{"$f":"'Data Abstraction Tool - LONG'!E111","v":0},{"$f":"'Data Abstraction Tool - LONG'!#REF!","v":{"$error":"#REF!"}},{"$f":"'Data Abstraction Tool - LONG'!#REF!","v":{"$error":"#REF!"}},{"$f":"'Data Abstraction Tool - LONG'!#REF!","v":{"$error":"#REF!"}}]
[{"$f":"'Data Abstraction Tool - LONG'!#REF!","v":{"$error":"#REF!"}},{"$f":"'Data Abstraction Tool - LONG'!#REF!","v":{"$error":"#REF!"}},{"$f":"'Data Abstraction Tool - LONG'!I112","v":0},{"$f":"'Data Abstraction Tool - LONG'!#REF!","v":{"$error":"#REF!"}},{"$f":"'Data Abstraction Tool - LONG'!#REF!","v":{"$error":"#REF!"}},{"$f":"'Data Abstraction Tool - LONG'!#REF!","v":{"$error":"#REF!"}},{"$f":"'Data Abstraction Tool - LONG'!#REF!","v":{"$error":"#REF!"}},{"$f":"'Data Abstraction Tool - LONG'!#REF!","v":{"$error":"#REF!"}},{"$f":"'Data Abstraction Tool - LONG'!#REF!","v":{"$error":"#REF!"}},{"$f":"'Data Abstraction Tool - LONG'!E112","v":0},{"$f":"'Data Abstraction Tool - LONG'!#REF!","v":{"$error":"#REF!"}},{"$f":"'Data Abstraction Tool - LONG'!#REF!","v":{"$error":"#REF!"}},{"$f":"'Data Abstraction Tool - LONG'!#REF!","v":{"$error":"#REF!"}}]
[{"$f":"'Data Abstraction Tool - LONG'!#REF!","v":{"$error":"#REF!"}},{"$f":"'Data Abstraction Tool - LONG'!#REF!","v":{"$error":"#REF!"}},{"$f":"'Data Abstraction Tool - LONG'!I113","v":0},{"$f":"'Data Abstraction Tool - LONG'!#REF!","v":{"$error":"#REF!"}},{"$f":"'Data Abstraction Tool - LONG'!#REF!","v":{"$error":"#REF!"}},{"$f":"'Data Abstraction Tool - LONG'!#REF!","v":{"$error":"#REF!"}},{"$f":"'Data Abstraction Tool - LONG'!#REF!","v":{"$error":"#REF!"}},{"$f":"'Data Abstraction Tool - LONG'!#REF!","v":{"$error":"#REF!"}},{"$f":"'Data Abstraction Tool - LONG'!#REF!","v":{"$error":"#REF!"}},{"$f":"'Data Abstraction Tool - LONG'!E113","v":0},{"$f":"'Data Abstraction Tool - LONG'!#REF!","v":{"$error":"#REF!"}},{"$f":"'Data Abstraction Tool - LONG'!#REF!","v":{"$error":"#REF!"}},{"$f":"'Data Abstraction Tool - LONG'!#REF!","v":{"$error":"#REF!"}}]
[{"$f":"'Data Abstraction Tool - LONG'!#REF!","v":{"$error":"#REF!"}},{"$f":"'Data Abstraction Tool - LONG'!#REF!","v":{"$error":"#REF!"}},{"$f":"'Data Abstraction Tool - LONG'!I114","v":0},{"$f":"'Data Abstraction Tool - LONG'!#REF!","v":{"$error":"#REF!"}},{"$f":"'Data Abstraction Tool - LONG'!#REF!","v":{"$error":"#REF!"}},{"$f":"'Data Abstraction Tool - LONG'!#REF!","v":{"$error":"#REF!"}},{"$f":"'Data Abstraction Tool - LONG'!#REF!","v":{"$error":"#REF!"}},{"$f":"'Data Abstraction Tool - LONG'!#REF!","v":{"$error":"#REF!"}},{"$f":"'Data Abstraction Tool - LONG'!#REF!","v":{"$error":"#REF!"}},{"$f":"'Data Abstraction Tool - LONG'!E114","v":0},{"$f":"'Data Abstraction Tool - LONG'!#REF!","v":{"$error":"#REF!"}},{"$f":"'Data Abstraction Tool - LONG'!#REF!","v":{"$error":"#REF!"}},{"$f":"'Data Abstraction Tool - LONG'!#REF!","v":{"$error":"#REF!"}}]
[{"$f":"'Data Abstraction Tool - LONG'!#REF!","v":{"$error":"#REF!"}},{"$f":"'Data Abstraction Tool - LONG'!#REF!","v":{"$error":"#REF!"}},{"$f":"'Data Abstraction Tool - LONG'!I115","v":0},{"$f":"'Data Abstraction Tool - LONG'!#REF!","v":{"$error":"#REF!"}},{"$f":"'Data Abstraction Tool - LONG'!#REF!","v":{"$error":"#REF!"}},{"$f":"'Data Abstraction Tool - LONG'!#REF!","v":{"$error":"#REF!"}},{"$f":"'Data Abstraction Tool - LONG'!#REF!","v":{"$error":"#REF!"}},{"$f":"'Data Abstraction Tool - LONG'!#REF!","v":{"$error":"#REF!"}},{"$f":"'Data Abstraction Tool - LONG'!#REF!","v":{"$error":"#REF!"}},{"$f":"'Data Abstraction Tool - LONG'!E115","v":0},{"$f":"'Data Abstraction Tool - LONG'!#REF!","v":{"$error":"#REF!"}},{"$f":"'Data Abstraction Tool - LONG'!#REF!","v":{"$error":"#REF!"}},{"$f":"'Data Abstraction Tool - LONG'!#REF!","v":{"$error":"#REF!"}}]
[{"$f":"'Data Abstraction Tool - LONG'!#REF!","v":{"$error":"#REF!"}},{"$f":"'Data Abstraction Tool - LONG'!#REF!","v":{"$error":"#REF!"}},{"$f":"'Data Abstraction Tool - LONG'!I116","v":0},{"$f":"'Data Abstraction Tool - LONG'!#REF!","v":{"$error":"#REF!"}},{"$f":"'Data Abstraction Tool - LONG'!#REF!","v":{"$error":"#REF!"}},{"$f":"'Data Abstraction Tool - LONG'!#REF!","v":{"$error":"#REF!"}},{"$f":"'Data Abstraction Tool - LONG'!#REF!","v":{"$error":"#REF!"}},{"$f":"'Data Abstraction Tool - LONG'!#REF!","v":{"$error":"#REF!"}},{"$f":"'Data Abstraction Tool - LONG'!#REF!","v":{"$error":"#REF!"}},{"$f":"'Data Abstraction Tool - LONG'!E116","v":0},{"$f":"'Data Abstraction Tool - LONG'!#REF!","v":{"$error":"#REF!"}},{"$f":"'Data Abstraction Tool - LONG'!#REF!","v":{"$error":"#REF!"}},{"$f":"'Data Abstraction Tool - LONG'!#REF!","v":{"$error":"#REF!"}}]
[{"$f":"'Data Abstraction Tool - LONG'!#REF!","v":{"$error":"#REF!"}},{"$f":"'Data Abstraction Tool - LONG'!#REF!","v":{"$error":"#REF!"}},{"$f":"'Data Abstraction Tool - LONG'!I117","v":0},{"$f":"'Data Abstraction Tool - LONG'!#REF!","v":{"$error":"#REF!"}},{"$f":"'Data Abstraction Tool - LONG'!#REF!","v":{"$error":"#REF!"}},{"$f":"'Data Abstraction Tool - LONG'!#REF!","v":{"$error":"#REF!"}},{"$f":"'Data Abstraction Tool - LONG'!#REF!","v":{"$error":"#REF!"}},{"$f":"'Data Abstraction Tool - LONG'!#REF!","v":{"$error":"#REF!"}},{"$f":"'Data Abstraction Tool - LONG'!#REF!","v":{"$error":"#REF!"}},{"$f":"'Data Abstraction Tool - LONG'!E117","v":0},{"$f":"'Data Abstraction Tool - LONG'!#REF!","v":{"$error":"#REF!"}},{"$f":"'Data Abstraction Tool - LONG'!#REF!","v":{"$error":"#REF!"}},{"$f":"'Data Abstraction Tool - LONG'!#REF!","v":{"$error":"#REF!"}}]
[{"$f":"'Data Abstraction Tool - LONG'!#REF!","v":{"$error":"#REF!"}},{"$f":"'Data Abstraction Tool - LONG'!#REF!","v":{"$error":"#REF!"}},{"$f":"'Data Abstraction Tool - LONG'!I118","v":0},{"$f":"'Data Abstraction Tool - LONG'!#REF!","v":{"$error":"#REF!"}},{"$f":"'Data Abstraction Tool - LONG'!#REF!","v":{"$error":"#REF!"}},{"$f":"'Data Abstraction Tool - LONG'!#REF!","v":{"$error":"#REF!"}},{"$f":"'Data Abstraction Tool - LONG'!#REF!","v":{"$error":"#REF!"}},{"$f":"'Data Abstraction Tool - LONG'!#REF!","v":{"$error":"#REF!"}},{"$f":"'Data Abstraction Tool - LONG'!#REF!","v":{"$error":"#REF!"}},{"$f":"'Data Abstraction Tool - LONG'!E118","v":0},{"$f":"'Data Abstraction Tool - LONG'!#REF!","v":{"$error":"#REF!"}},{"$f":"'Data Abstraction Tool - LONG'!#REF!","v":{"$error":"#REF!"}},{"$f":"'Data Abstraction Tool - LONG'!#REF!","v":{"$error":"#REF!"}}]
[{"$f":"'Data Abstraction Tool - LONG'!#REF!","v":{"$error":"#REF!"}},{"$f":"'Data Abstraction Tool - LONG'!#REF!","v":{"$error":"#REF!"}},{"$f":"'Data Abstraction Tool - LONG'!I119","v":0},{"$f":"'Data Abstraction Tool - LONG'!#REF!","v":{"$error":"#REF!"}},{"$f":"'Data Abstraction Tool - LONG'!#REF!","v":{"$error":"#REF!"}},{"$f":"'Data Abstraction Tool - LONG'!#REF!","v":{"$error":"#REF!"}},{"$f":"'Data Abstraction Tool - LONG'!#REF!","v":{"$error":"#REF!"}},{"$f":"'Data Abstraction Tool - LONG'!#REF!","v":{"$error":"#REF!"}},{"$f":"'Data Abstraction Tool - LONG'!#REF!","v":{"$error":"#REF!"}},{"$f":"'Data Abstraction Tool - LONG'!E119","v":0},{"$f":"'Data Abstraction Tool - LONG'!#REF!","v":{"$error":"#REF!"}},{"$f":"'Data Abstraction Tool - LONG'!#REF!","v":{"$error":"#REF!"}},{"$f":"'Data Abstraction Tool - LONG'!#REF!","v":{"$error":"#REF!"}}]
[{"$f":"'Data Abstraction Tool - LONG'!#REF!","v":{"$error":"#REF!"}},{"$f":"'Data Abstraction Tool - LONG'!#REF!","v":{"$error":"#REF!"}},{"$f":"'Data Abstraction Tool - LONG'!I120","v":0},{"$f":"'Data Abstraction Tool - LONG'!#REF!","v":{"$error":"#REF!"}},{"$f":"'Data Abstraction Tool - LONG'!#REF!","v":{"$error":"#REF!"}},{"$f":"'Data Abstraction Tool - LONG'!#REF!","v":{"$error":"#REF!"}},{"$f":"'Data Abstraction Tool - LONG'!#REF!","v":{"$error":"#REF!"}},{"$f":"'Data Abstraction Tool - LONG'!#REF!","v":{"$error":"#REF!"}},{"$f":"'Data Abstraction Tool - LONG'!#REF!","v":{"$error":"#REF!"}},{"$f":"'Data Abstraction Tool - LONG'!E120","v":0},{"$f":"'Data Abstraction Tool - LONG'!#REF!","v":{"$error":"#REF!"}},{"$f":"'Data Abstraction Tool - LONG'!#REF!","v":{"$error":"#REF!"}},{"$f":"'Data Abstraction Tool - LONG'!#REF!","v":{"$error":"#REF!"}}]
[{"$f":"'Data Abstraction Tool - LONG'!#REF!","v":{"$error":"#REF!"}},{"$f":"'Data Abstraction Tool - LONG'!#REF!","v":{"$error":"#REF!"}},{"$f":"'Data Abstraction Tool - LONG'!I121","v":0},{"$f":"'Data Abstraction Tool - LONG'!#REF!","v":{"$error":"#REF!"}},{"$f":"'Data Abstraction Tool - LONG'!#REF!","v":{"$error":"#REF!"}},{"$f":"'Data Abstraction Tool - LONG'!#REF!","v":{"$error":"#REF!"}},{"$f":"'Data Abstraction Tool - LONG'!#REF!","v":{"$error":"#REF!"}},{"$f":"'Data Abstraction Tool - LONG'!#REF!","v":{"$error":"#REF!"}},{"$f":"'Data Abstraction Tool - LONG'!#REF!","v":{"$error":"#REF!"}},{"$f":"'Data Abstraction Tool - LONG'!E121","v":0},{"$f":"'Data Abstraction Tool - LONG'!#REF!","v":{"$error":"#REF!"}},{"$f":"'Data Abstraction Tool - LONG'!#REF!","v":{"$error":"#REF!"}},{"$f":"'Data Abstraction Tool - LONG'!#REF!","v":{"$error":"#REF!"}}]
[{"$f":"'Data Abstraction Tool - LONG'!#REF!","v":{"$error":"#REF!"}},{"$f":"'Data Abstraction Tool - LONG'!#REF!","v":{"$error":"#REF!"}},{"$f":"'Data Abstraction Tool - LONG'!I122","v":0},{"$f":"'Data Abstraction Tool - LONG'!#REF!","v":{"$error":"#REF!"}},{"$f":"'Data Abstraction Tool - LONG'!#REF!","v":{"$error":"#REF!"}},{"$f":"'Data Abstraction Tool - LONG'!#REF!","v":{"$error":"#REF!"}},{"$f":"'Data Abstraction Tool - LONG'!#REF!","v":{"$error":"#REF!"}},{"$f":"'Data Abstraction Tool - LONG'!#REF!","v":{"$error":"#REF!"}},{"$f":"'Data Abstraction Tool - LONG'!#REF!","v":{"$error":"#REF!"}},{"$f":"'Data Abstraction Tool - LONG'!E122","v":0},{"$f":"'Data Abstraction Tool - LONG'!#REF!","v":{"$error":"#REF!"}},{"$f":"'Data Abstraction Tool - LONG'!#REF!","v":{"$error":"#REF!"}},{"$f":"'Data Abstraction Tool - LONG'!#REF!","v":{"$error":"#REF!"}}]
[{"$f":"'Data Abstraction Tool - LONG'!#REF!","v":{"$error":"#REF!"}},{"$f":"'Data Abstraction Tool - LONG'!#REF!","v":{"$error":"#REF!"}},{"$f":"'Data Abstraction Tool - LONG'!I123","v":0},{"$f":"'Data Abstraction Tool - LONG'!#REF!","v":{"$error":"#REF!"}},{"$f":"'Data Abstraction Tool - LONG'!#REF!","v":{"$error":"#REF!"}},{"$f":"'Data Abstraction Tool - LONG'!#REF!","v":{"$error":"#REF!"}},{"$f":"'Data Abstraction Tool - LONG'!#REF!","v":{"$error":"#REF!"}},{"$f":"'Data Abstraction Tool - LONG'!#REF!","v":{"$error":"#REF!"}},{"$f":"'Data Abstraction Tool - LONG'!#REF!","v":{"$error":"#REF!"}},{"$f":"'Data Abstraction Tool - LONG'!E123","v":0},{"$f":"'Data Abstraction Tool - LONG'!#REF!","v":{"$error":"#REF!"}},{"$f":"'Data Abstraction Tool - LONG'!#REF!","v":{"$error":"#REF!"}},{"$f":"'Data Abstraction Tool - LONG'!#REF!","v":{"$error":"#REF!"}}]
[{"$f":"'Data Abstraction Tool - LONG'!#REF!","v":{"$error":"#REF!"}},{"$f":"'Data Abstraction Tool - LONG'!#REF!","v":{"$error":"#REF!"}},{"$f":"'Data Abstraction Tool - LONG'!I124","v":0},{"$f":"'Data Abstraction Tool - LONG'!#REF!","v":{"$error":"#REF!"}},{"$f":"'Data Abstraction Tool - LONG'!#REF!","v":{"$error":"#REF!"}},{"$f":"'Data Abstraction Tool - LONG'!#REF!","v":{"$error":"#REF!"}},{"$f":"'Data Abstraction Tool - LONG'!#REF!","v":{"$error":"#REF!"}},{"$f":"'Data Abstraction Tool - LONG'!#REF!","v":{"$error":"#REF!"}},{"$f":"'Data Abstraction Tool - LONG'!#REF!","v":{"$error":"#REF!"}},{"$f":"'Data Abstraction Tool - LONG'!E124","v":0},{"$f":"'Data Abstraction Tool - LONG'!#REF!","v":{"$error":"#REF!"}},{"$f":"'Data Abstraction Tool - LONG'!#REF!","v":{"$error":"#REF!"}},{"$f":"'Data Abstraction Tool - LONG'!#REF!","v":{"$error":"#REF!"}}]
[{"$f":"'Data Abstraction Tool - LONG'!#REF!","v":{"$error":"#REF!"}},{"$f":"'Data Abstraction Tool - LONG'!#REF!","v":{"$error":"#REF!"}},{"$f":"'Data Abstraction Tool - LONG'!I125","v":0},{"$f":"'Data Abstraction Tool - LONG'!#REF!","v":{"$error":"#REF!"}},{"$f":"'Data Abstraction Tool - LONG'!#REF!","v":{"$error":"#REF!"}},{"$f":"'Data Abstraction Tool - LONG'!#REF!","v":{"$error":"#REF!"}},{"$f":"'Data Abstraction Tool - LONG'!#REF!","v":{"$error":"#REF!"}},{"$f":"'Data Abstraction Tool - LONG'!#REF!","v":{"$error":"#REF!"}},{"$f":"'Data Abstraction Tool - LONG'!#REF!","v":{"$error":"#REF!"}},{"$f":"'Data Abstraction Tool - LONG'!E125","v":0},{"$f":"'Data Abstraction Tool - LONG'!#REF!","v":{"$error":"#REF!"}},{"$f":"'Data Abstraction Tool - LONG'!#REF!","v":{"$error":"#REF!"}},{"$f":"'Data Abstraction Tool - LONG'!#REF!","v":{"$error":"#REF!"}}]
[{"$f":"'Data Abstraction Tool - LONG'!#REF!","v":{"$error":"#REF!"}},{"$f":"'Data Abstraction Tool - LONG'!#REF!","v":{"$error":"#REF!"}},{"$f":"'Data Abstraction Tool - LONG'!I126","v":0},{"$f":"'Data Abstraction Tool - LONG'!#REF!","v":{"$error":"#REF!"}},{"$f":"'Data Abstraction Tool - LONG'!#REF!","v":{"$error":"#REF!"}},{"$f":"'Data Abstraction Tool - LONG'!#REF!","v":{"$error":"#REF!"}},{"$f":"'Data Abstraction Tool - LONG'!#REF!","v":{"$error":"#REF!"}},{"$f":"'Data Abstraction Tool - LONG'!#REF!","v":{"$error":"#REF!"}},{"$f":"'Data Abstraction Tool - LONG'!#REF!","v":{"$error":"#REF!"}},{"$f":"'Data Abstraction Tool - LONG'!E126","v":0},{"$f":"'Data Abstraction Tool - LONG'!#REF!","v":{"$error":"#REF!"}},{"$f":"'Data Abstraction Tool - LONG'!#REF!","v":{"$error":"#REF!"}},{"$f":"'Data Abstraction Tool - LONG'!#REF!","v":{"$error":"#REF!"}}]
[{"$f":"'Data Abstraction Tool - LONG'!#REF!","v":{"$error":"#REF!"}},{"$f":"'Data Abstraction Tool - LONG'!#REF!","v":{"$error":"#REF!"}},{"$f":"'Data Abstraction Tool - LONG'!I127","v":0},{"$f":"'Data Abstraction Tool - LONG'!#REF!","v":{"$error":"#REF!"}},{"$f":"'Data Abstraction Tool - LONG'!#REF!","v":{"$error":"#REF!"}},{"$f":"'Data Abstraction Tool - LONG'!#REF!","v":{"$error":"#REF!"}},{"$f":"'Data Abstraction Tool - LONG'!#REF!","v":{"$error":"#REF!"}},{"$f":"'Data Abstraction Tool - LONG'!#REF!","v":{"$error":"#REF!"}},{"$f":"'Data Abstraction Tool - LONG'!#REF!","v":{"$error":"#REF!"}},{"$f":"'Data Abstraction Tool - LONG'!E127","v":0},{"$f":"'Data Abstraction Tool - LONG'!#REF!","v":{"$error":"#REF!"}},{"$f":"'Data Abstraction Tool - LONG'!#REF!","v":{"$error":"#REF!"}},{"$f":"'Data Abstraction Tool - LONG'!#REF!","v":{"$error":"#REF!"}}]
[{"$f":"'Data Abstraction Tool - LONG'!#REF!","v":{"$error":"#REF!"}},{"$f":"'Data Abstraction Tool - LONG'!#REF!","v":{"$error":"#REF!"}},{"$f":"'Data Abstraction Tool - LONG'!I128","v":0},{"$f":"'Data Abstraction Tool - LONG'!#REF!","v":{"$error":"#REF!"}},{"$f":"'Data Abstraction Tool - LONG'!#REF!","v":{"$error":"#REF!"}},{"$f":"'Data Abstraction Tool - LONG'!#REF!","v":{"$error":"#REF!"}},{"$f":"'Data Abstraction Tool - LONG'!#REF!","v":{"$error":"#REF!"}},{"$f":"'Data Abstraction Tool - LONG'!#REF!","v":{"$error":"#REF!"}},{"$f":"'Data Abstraction Tool - LONG'!#REF!","v":{"$error":"#REF!"}},{"$f":"'Data Abstraction Tool - LONG'!E128","v":0},{"$f":"'Data Abstraction Tool - LONG'!#REF!","v":{"$error":"#REF!"}},{"$f":"'Data Abstraction Tool - LONG'!#REF!","v":{"$error":"#REF!"}},{"$f":"'Data Abstraction Tool - LONG'!#REF!","v":{"$error":"#REF!"}}]
[{"$f":"'Data Abstraction Tool - LONG'!#REF!","v":{"$error":"#REF!"}},{"$f":"'Data Abstraction Tool - LONG'!#REF!","v":{"$error":"#REF!"}},{"$f":"'Data Abstraction Tool - LONG'!I129","v":0},{"$f":"'Data Abstraction Tool - LONG'!#REF!","v":{"$error":"#REF!"}},{"$f":"'Data Abstraction Tool - LONG'!#REF!","v":{"$error":"#REF!"}},{"$f":"'Data Abstraction Tool - LONG'!#REF!","v":{"$error":"#REF!"}},{"$f":"'Data Abstraction Tool - LONG'!#REF!","v":{"$error":"#REF!"}},{"$f":"'Data Abstraction Tool - LONG'!#REF!","v":{"$error":"#REF!"}},{"$f":"'Data Abstraction Tool - LONG'!#REF!","v":{"$error":"#REF!"}},{"$f":"'Data Abstraction Tool - LONG'!E129","v":0},{"$f":"'Data Abstraction Tool - LONG'!#REF!","v":{"$error":"#REF!"}},{"$f":"'Data Abstraction Tool - LONG'!#REF!","v":{"$error":"#REF!"}},{"$f":"'Data Abstraction Tool - LONG'!#REF!","v":{"$error":"#REF!"}}]
[{"$f":"'Data Abstraction Tool - LONG'!#REF!","v":{"$error":"#REF!"}},{"$f":"'Data Abstraction Tool - LONG'!#REF!","v":{"$error":"#REF!"}},{"$f":"'Data Abstraction Tool - LONG'!I130","v":0},{"$f":"'Data Abstraction Tool - LONG'!#REF!","v":{"$error":"#REF!"}},{"$f":"'Data Abstraction Tool - LONG'!#REF!","v":{"$error":"#REF!"}},{"$f":"'Data Abstraction Tool - LONG'!#REF!","v":{"$error":"#REF!"}},{"$f":"'Data Abstraction Tool - LONG'!#REF!","v":{"$error":"#REF!"}},{"$f":"'Data Abstraction Tool - LONG'!#REF!","v":{"$error":"#REF!"}},{"$f":"'Data Abstraction Tool - LONG'!#REF!","v":{"$error":"#REF!"}},{"$f":"'Data Abstraction Tool - LONG'!E130","v":0},{"$f":"'Data Abstraction Tool - LONG'!#REF!","v":{"$error":"#REF!"}},{"$f":"'Data Abstraction Tool - LONG'!#REF!","v":{"$error":"#REF!"}},{"$f":"'Data Abstraction Tool - LONG'!#REF!","v":{"$error":"#REF!"}}]
[{"$f":"'Data Abstraction Tool - LONG'!#REF!","v":{"$error":"#REF!"}},{"$f":"'Data Abstraction Tool - LONG'!#REF!","v":{"$error":"#REF!"}},{"$f":"'Data Abstraction Tool - LONG'!I131","v":0},{"$f":"'Data Abstraction Tool - LONG'!#REF!","v":{"$error":"#REF!"}},{"$f":"'Data Abstraction Tool - LONG'!#REF!","v":{"$error":"#REF!"}},{"$f":"'Data Abstraction Tool - LONG'!#REF!","v":{"$error":"#REF!"}},{"$f":"'Data Abstraction Tool - LONG'!#REF!","v":{"$error":"#REF!"}},{"$f":"'Data Abstraction Tool - LONG'!#REF!","v":{"$error":"#REF!"}},{"$f":"'Data Abstraction Tool - LONG'!#REF!","v":{"$error":"#REF!"}},{"$f":"'Data Abstraction Tool - LONG'!E131","v":0},{"$f":"'Data Abstraction Tool - LONG'!#REF!","v":{"$error":"#REF!"}},{"$f":"'Data Abstraction Tool - LONG'!#REF!","v":{"$error":"#REF!"}},{"$f":"'Data Abstraction Tool - LONG'!#REF!","v":{"$error":"#REF!"}}]
[{"$f":"'Data Abstraction Tool - LONG'!#REF!","v":{"$error":"#REF!"}},{"$f":"'Data Abstraction Tool - LONG'!#REF!","v":{"$error":"#REF!"}},{"$f":"'Data Abstraction Tool - LONG'!I132","v":0},{"$f":"'Data Abstraction Tool - LONG'!#REF!","v":{"$error":"#REF!"}},{"$f":"'Data Abstraction Tool - LONG'!#REF!","v":{"$error":"#REF!"}},{"$f":"'Data Abstraction Tool - LONG'!#REF!","v":{"$error":"#REF!"}},{"$f":"'Data Abstraction Tool - LONG'!#REF!","v":{"$error":"#REF!"}},{"$f":"'Data Abstraction Tool - LONG'!#REF!","v":{"$error":"#REF!"}},{"$f":"'Data Abstraction Tool - LONG'!#REF!","v":{"$error":"#REF!"}},{"$f":"'Data Abstraction Tool - LONG'!E132","v":0},{"$f":"'Data Abstraction Tool - LONG'!#REF!","v":{"$error":"#REF!"}},{"$f":"'Data Abstraction Tool - LONG'!#REF!","v":{"$error":"#REF!"}},{"$f":"'Data Abstraction Tool - LONG'!#REF!","v":{"$error":"#REF!"}}]
[{"$f":"'Data Abstraction Tool - LONG'!#REF!","v":{"$error":"#REF!"}},{"$f":"'Data Abstraction Tool - LONG'!#REF!","v":{"$error":"#REF!"}},{"$f":"'Data Abstraction Tool - LONG'!I133","v":0},{"$f":"'Data Abstraction Tool - LONG'!#REF!","v":{"$error":"#REF!"}},{"$f":"'Data Abstraction Tool - LONG'!#REF!","v":{"$error":"#REF!"}},{"$f":"'Data Abstraction Tool - LONG'!#REF!","v":{"$error":"#REF!"}},{"$f":"'Data Abstraction Tool - LONG'!#REF!","v":{"$error":"#REF!"}},{"$f":"'Data Abstraction Tool - LONG'!#REF!","v":{"$error":"#REF!"}},{"$f":"'Data Abstraction Tool - LONG'!#REF!","v":{"$error":"#REF!"}},{"$f":"'Data Abstraction Tool - LONG'!E133","v":0},{"$f":"'Data Abstraction Tool - LONG'!#REF!","v":{"$error":"#REF!"}},{"$f":"'Data Abstraction Tool - LONG'!#REF!","v":{"$error":"#REF!"}},{"$f":"'Data Abstraction Tool - LONG'!#REF!","v":{"$error":"#REF!"}}]
[{"$f":"'Data Abstraction Tool - LONG'!#REF!","v":{"$error":"#REF!"}},{"$f":"'Data Abstraction Tool - LONG'!#REF!","v":{"$error":"#REF!"}},{"$f":"'Data Abstraction Tool - LONG'!I134","v":0},{"$f":"'Data Abstraction Tool - LONG'!#REF!","v":{"$error":"#REF!"}},{"$f":"'Data Abstraction Tool - LONG'!#REF!","v":{"$error":"#REF!"}},{"$f":"'Data Abstraction Tool - LONG'!#REF!","v":{"$error":"#REF!"}},{"$f":"'Data Abstraction Tool - LONG'!#REF!","v":{"$error":"#REF!"}},{"$f":"'Data Abstraction Tool - LONG'!#REF!","v":{"$error":"#REF!"}},{"$f":"'Data Abstraction Tool - LONG'!#REF!","v":{"$error":"#REF!"}},{"$f":"'Data Abstraction Tool - LONG'!E134","v":0},{"$f":"'Data Abstraction Tool - LONG'!#REF!","v":{"$error":"#REF!"}},{"$f":"'Data Abstraction Tool - LONG'!#REF!","v":{"$error":"#REF!"}},{"$f":"'Data Abstraction Tool - LONG'!#REF!","v":{"$error":"#REF!"}}]
[{"$f":"'Data Abstraction Tool - LONG'!#REF!","v":{"$error":"#REF!"}},{"$f":"'Data Abstraction Tool - LONG'!#REF!","v":{"$error":"#REF!"}},{"$f":"'Data Abstraction Tool - LONG'!I135","v":0},{"$f":"'Data Abstraction Tool - LONG'!#REF!","v":{"$error":"#REF!"}},{"$f":"'Data Abstraction Tool - LONG'!#REF!","v":{"$error":"#REF!"}},{"$f":"'Data Abstraction Tool - LONG'!#REF!","v":{"$error":"#REF!"}},{"$f":"'Data Abstraction Tool - LONG'!#REF!","v":{"$error":"#REF!"}},{"$f":"'Data Abstraction Tool - LONG'!#REF!","v":{"$error":"#REF!"}},{"$f":"'Data Abstraction Tool - LONG'!#REF!","v":{"$error":"#REF!"}},{"$f":"'Data Abstraction Tool - LONG'!E135","v":0},{"$f":"'Data Abstraction Tool - LONG'!#REF!","v":{"$error":"#REF!"}},{"$f":"'Data Abstraction Tool - LONG'!#REF!","v":{"$error":"#REF!"}},{"$f":"'Data Abstraction Tool - LONG'!#REF!","v":{"$error":"#REF!"}}]
[{"$f":"'Data Abstraction Tool - LONG'!#REF!","v":{"$error":"#REF!"}},{"$f":"'Data Abstraction Tool - LONG'!#REF!","v":{"$error":"#REF!"}},{"$f":"'Data Abstraction Tool - LONG'!I136","v":0},{"$f":"'Data Abstraction Tool - LONG'!#REF!","v":{"$error":"#REF!"}},{"$f":"'Data Abstraction Tool - LONG'!#REF!","v":{"$error":"#REF!"}},{"$f":"'Data Abstraction Tool - LONG'!#REF!","v":{"$error":"#REF!"}},{"$f":"'Data Abstraction Tool - LONG'!#REF!","v":{"$error":"#REF!"}},{"$f":"'Data Abstraction Tool - LONG'!#REF!","v":{"$error":"#REF!"}},{"$f":"'Data Abstraction Tool - LONG'!#REF!","v":{"$error":"#REF!"}},{"$f":"'Data Abstraction Tool - LONG'!E136","v":0},{"$f":"'Data Abstraction Tool - LONG'!#REF!","v":{"$error":"#REF!"}},{"$f":"'Data Abstraction Tool - LONG'!#REF!","v":{"$error":"#REF!"}},{"$f":"'Data Abstraction Tool - LONG'!#REF!","v":{"$error":"#REF!"}}]
[{"$f":"'Data Abstraction Tool - LONG'!#REF!","v":{"$error":"#REF!"}},{"$f":"'Data Abstraction Tool - LONG'!#REF!","v":{"$error":"#REF!"}},{"$f":"'Data Abstraction Tool - LONG'!I137","v":0},{"$f":"'Data Abstraction Tool - LONG'!#REF!","v":{"$error":"#REF!"}},{"$f":"'Data Abstraction Tool - LONG'!#REF!","v":{"$error":"#REF!"}},{"$f":"'Data Abstraction Tool - LONG'!#REF!","v":{"$error":"#REF!"}},{"$f":"'Data Abstraction Tool - LONG'!#REF!","v":{"$error":"#REF!"}},{"$f":"'Data Abstraction Tool - LONG'!#REF!","v":{"$error":"#REF!"}},{"$f":"'Data Abstraction Tool - LONG'!#REF!","v":{"$error":"#REF!"}},{"$f":"'Data Abstraction Tool - LONG'!E137","v":0},{"$f":"'Data Abstraction Tool - LONG'!#REF!","v":{"$error":"#REF!"}},{"$f":"'Data Abstraction Tool - LONG'!#REF!","v":{"$error":"#REF!"}},{"$f":"'Data Abstraction Tool - LONG'!#REF!","v":{"$error":"#REF!"}}]
[{"$f":"'Data Abstraction Tool - LONG'!#REF!","v":{"$error":"#REF!"}},{"$f":"'Data Abstraction Tool - LONG'!#REF!","v":{"$error":"#REF!"}},{"$f":"'Data Abstraction Tool - LONG'!I138","v":0},{"$f":"'Data Abstraction Tool - LONG'!#REF!","v":{"$error":"#REF!"}},{"$f":"'Data Abstraction Tool - LONG'!#REF!","v":{"$error":"#REF!"}},{"$f":"'Data Abstraction Tool - LONG'!#REF!","v":{"$error":"#REF!"}},{"$f":"'Data Abstraction Tool - LONG'!#REF!","v":{"$error":"#REF!"}},{"$f":"'Data Abstraction Tool - LONG'!#REF!","v":{"$error":"#REF!"}},{"$f":"'Data Abstraction Tool - LONG'!#REF!","v":{"$error":"#REF!"}},{"$f":"'Data Abstraction Tool - LONG'!E138","v":0},{"$f":"'Data Abstraction Tool - LONG'!#REF!","v":{"$error":"#REF!"}},{"$f":"'Data Abstraction Tool - LONG'!#REF!","v":{"$error":"#REF!"}},{"$f":"'Data Abstraction Tool - LONG'!#REF!","v":{"$error":"#REF!"}}]
[{"$f":"'Data Abstraction Tool - LONG'!#REF!","v":{"$error":"#REF!"}},{"$f":"'Data Abstraction Tool - LONG'!#REF!","v":{"$error":"#REF!"}},{"$f":"'Data Abstraction Tool - LONG'!I139","v":0},{"$f":"'Data Abstraction Tool - LONG'!#REF!","v":{"$error":"#REF!"}},{"$f":"'Data Abstraction Tool - LONG'!#REF!","v":{"$error":"#REF!"}},{"$f":"'Data Abstraction Tool - LONG'!#REF!","v":{"$error":"#REF!"}},{"$f":"'Data Abstraction Tool - LONG'!#REF!","v":{"$error":"#REF!"}},{"$f":"'Data Abstraction Tool - LONG'!#REF!","v":{"$error":"#REF!"}},{"$f":"'Data Abstraction Tool - LONG'!#REF!","v":{"$error":"#REF!"}},{"$f":"'Data Abstraction Tool - LONG'!E139","v":0},{"$f":"'Data Abstraction Tool - LONG'!#REF!","v":{"$error":"#REF!"}},{"$f":"'Data Abstraction Tool - LONG'!#REF!","v":{"$error":"#REF!"}},{"$f":"'Data Abstraction Tool - LONG'!#REF!","v":{"$error":"#REF!"}}]
[{"$f":"'Data Abstraction Tool - LONG'!#REF!","v":{"$error":"#REF!"}},{"$f":"'Data Abstraction Tool - LONG'!#REF!","v":{"$error":"#REF!"}},{"$f":"'Data Abstraction Tool - LONG'!I140","v":0},{"$f":"'Data Abstraction Tool - LONG'!#REF!","v":{"$error":"#REF!"}},{"$f":"'Data Abstraction Tool - LONG'!#REF!","v":{"$error":"#REF!"}},{"$f":"'Data Abstraction Tool - LONG'!#REF!","v":{"$error":"#REF!"}},{"$f":"'Data Abstraction Tool - LONG'!#REF!","v":{"$error":"#REF!"}},{"$f":"'Data Abstraction Tool - LONG'!#REF!","v":{"$error":"#REF!"}},{"$f":"'Data Abstraction Tool - LONG'!#REF!","v":{"$error":"#REF!"}},{"$f":"'Data Abstraction Tool - LONG'!E140","v":0},{"$f":"'Data Abstraction Tool - LONG'!#REF!","v":{"$error":"#REF!"}},{"$f":"'Data Abstraction Tool - LONG'!#REF!","v":{"$error":"#REF!"}},{"$f":"'Data Abstraction Tool - LONG'!#REF!","v":{"$error":"#REF!"}}]
[{"$f":"'Data Abstraction Tool - LONG'!#REF!","v":{"$error":"#REF!"}},{"$f":"'Data Abstraction Tool - LONG'!#REF!","v":{"$error":"#REF!"}},{"$f":"'Data Abstraction Tool - LONG'!I141","v":0},{"$f":"'Data Abstraction Tool - LONG'!#REF!","v":{"$error":"#REF!"}},{"$f":"'Data Abstraction Tool - LONG'!#REF!","v":{"$error":"#REF!"}},{"$f":"'Data Abstraction Tool - LONG'!#REF!","v":{"$error":"#REF!"}},{"$f":"'Data Abstraction Tool - LONG'!#REF!","v":{"$error":"#REF!"}},{"$f":"'Data Abstraction Tool - LONG'!#REF!","v":{"$error":"#REF!"}},{"$f":"'Data Abstraction Tool - LONG'!#REF!","v":{"$error":"#REF!"}},{"$f":"'Data Abstraction Tool - LONG'!E141","v":0},{"$f":"'Data Abstraction Tool - LONG'!#REF!","v":{"$error":"#REF!"}},{"$f":"'Data Abstraction Tool - LONG'!#REF!","v":{"$error":"#REF!"}},{"$f":"'Data Abstraction Tool - LONG'!#REF!","v":{"$error":"#REF!"}}]
[{"$f":"'Data Abstraction Tool - LONG'!#REF!","v":{"$error":"#REF!"}},{"$f":"'Data Abstraction Tool - LONG'!#REF!","v":{"$error":"#REF!"}},{"$f":"'Data Abstraction Tool - LONG'!I142","v":0},{"$f":"'Data Abstraction Tool - LONG'!#REF!","v":{"$error":"#REF!"}},{"$f":"'Data Abstraction Tool - LONG'!#REF!","v":{"$error":"#REF!"}},{"$f":"'Data Abstraction Tool - LONG'!#REF!","v":{"$error":"#REF!"}},{"$f":"'Data Abstraction Tool - LONG'!#REF!","v":{"$error":"#REF!"}},{"$f":"'Data Abstraction Tool - LONG'!#REF!","v":{"$error":"#REF!"}},{"$f":"'Data Abstraction Tool - LONG'!#REF!","v":{"$error":"#REF!"}},{"$f":"'Data Abstraction Tool - LONG'!E142","v":0},{"$f":"'Data Abstraction Tool - LONG'!#REF!","v":{"$error":"#REF!"}},{"$f":"'Data Abstraction Tool - LONG'!#REF!","v":{"$error":"#REF!"}},{"$f":"'Data Abstraction Tool - LONG'!#REF!","v":{"$error":"#REF!"}}]
[{"$f":"'Data Abstraction Tool - LONG'!#REF!","v":{"$error":"#REF!"}},{"$f":"'Data Abstraction Tool - LONG'!#REF!","v":{"$error":"#REF!"}},{"$f":"'Data Abstraction Tool - LONG'!I143","v":0},{"$f":"'Data Abstraction Tool - LONG'!#REF!","v":{"$error":"#REF!"}},{"$f":"'Data Abstraction Tool - LONG'!#REF!","v":{"$error":"#REF!"}},{"$f":"'Data Abstraction Tool - LONG'!#REF!","v":{"$error":"#REF!"}},{"$f":"'Data Abstraction Tool - LONG'!#REF!","v":{"$error":"#REF!"}},{"$f":"'Data Abstraction Tool - LONG'!#REF!","v":{"$error":"#REF!"}},{"$f":"'Data Abstraction Tool - LONG'!#REF!","v":{"$error":"#REF!"}},{"$f":"'Data Abstraction Tool - LONG'!E143","v":0},{"$f":"'Data Abstraction Tool - LONG'!#REF!","v":{"$error":"#REF!"}},{"$f":"'Data Abstraction Tool - LONG'!#REF!","v":{"$error":"#REF!"}},{"$f":"'Data Abstraction Tool - LONG'!#REF!","v":{"$error":"#REF!"}}]
[{"$f":"'Data Abstraction Tool - LONG'!#REF!","v":{"$error":"#REF!"}},{"$f":"'Data Abstraction Tool - LONG'!#REF!","v":{"$error":"#REF!"}},{"$f":"'Data Abstraction Tool - LONG'!I144","v":0},{"$f":"'Data Abstraction Tool - LONG'!#REF!","v":{"$error":"#REF!"}},{"$f":"'Data Abstraction Tool - LONG'!#REF!","v":{"$error":"#REF!"}},{"$f":"'Data Abstraction Tool - LONG'!#REF!","v":{"$error":"#REF!"}},{"$f":"'Data Abstraction Tool - LONG'!#REF!","v":{"$error":"#REF!"}},{"$f":"'Data Abstraction Tool - LONG'!#REF!","v":{"$error":"#REF!"}},{"$f":"'Data Abstraction Tool - LONG'!#REF!","v":{"$error":"#REF!"}},{"$f":"'Data Abstraction Tool - LONG'!E144","v":0},{"$f":"'Data Abstraction Tool - LONG'!#REF!","v":{"$error":"#REF!"}},{"$f":"'Data Abstraction Tool - LONG'!#REF!","v":{"$error":"#REF!"}},{"$f":"'Data Abstraction Tool - LONG'!#REF!","v":{"$error":"#REF!"}}]
[{"$f":"'Data Abstraction Tool - LONG'!#REF!","v":{"$error":"#REF!"}},{"$f":"'Data Abstraction Tool - LONG'!#REF!","v":{"$error":"#REF!"}},{"$f":"'Data Abstraction Tool - LONG'!I145","v":0},{"$f":"'Data Abstraction Tool - LONG'!#REF!","v":{"$error":"#REF!"}},{"$f":"'Data Abstraction Tool - LONG'!#REF!","v":{"$error":"#REF!"}},{"$f":"'Data Abstraction Tool - LONG'!#REF!","v":{"$error":"#REF!"}},{"$f":"'Data Abstraction Tool - LONG'!#REF!","v":{"$error":"#REF!"}},{"$f":"'Data Abstraction Tool - LONG'!#REF!","v":{"$error":"#REF!"}},{"$f":"'Data Abstraction Tool - LONG'!#REF!","v":{"$error":"#REF!"}},{"$f":"'Data Abstraction Tool - LONG'!E145","v":0},{"$f":"'Data Abstraction Tool - LONG'!#REF!","v":{"$error":"#REF!"}},{"$f":"'Data Abstraction Tool - LONG'!#REF!","v":{"$error":"#REF!"}},{"$f":"'Data Abstraction Tool - LONG'!#REF!","v":{"$error":"#REF!"}}]
[{"$f":"'Data Abstraction Tool - LONG'!#REF!","v":{"$error":"#REF!"}},{"$f":"'Data Abstraction Tool - LONG'!#REF!","v":{"$error":"#REF!"}},{"$f":"'Data Abstraction Tool - LONG'!I146","v":0},{"$f":"'Data Abstraction Tool - LONG'!#REF!","v":{"$error":"#REF!"}},{"$f":"'Data Abstraction Tool - LONG'!#REF!","v":{"$error":"#REF!"}},{"$f":"'Data Abstraction Tool - LONG'!#REF!","v":{"$error":"#REF!"}},{"$f":"'Data Abstraction Tool - LONG'!#REF!","v":{"$error":"#REF!"}},{"$f":"'Data Abstraction Tool - LONG'!#REF!","v":{"$error":"#REF!"}},{"$f":"'Data Abstraction Tool - LONG'!#REF!","v":{"$error":"#REF!"}},{"$f":"'Data Abstraction Tool - LONG'!E146","v":0},{"$f":"'Data Abstraction Tool - LONG'!#REF!","v":{"$error":"#REF!"}},{"$f":"'Data Abstraction Tool - LONG'!#REF!","v":{"$error":"#REF!"}},{"$f":"'Data Abstraction Tool - LONG'!#REF!","v":{"$error":"#REF!"}}]
[{"$f":"'Data Abstraction Tool - LONG'!#REF!","v":{"$error":"#REF!"}},{"$f":"'Data Abstraction Tool - LONG'!#REF!","v":{"$error":"#REF!"}},{"$f":"'Data Abstraction Tool - LONG'!I147","v":0},{"$f":"'Data Abstraction Tool - LONG'!#REF!","v":{"$error":"#REF!"}},{"$f":"'Data Abstraction Tool - LONG'!#REF!","v":{"$error":"#REF!"}},{"$f":"'Data Abstraction Tool - LONG'!#REF!","v":{"$error":"#REF!"}},{"$f":"'Data Abstraction Tool - LONG'!#REF!","v":{"$error":"#REF!"}},{"$f":"'Data Abstraction Tool - LONG'!#REF!","v":{"$error":"#REF!"}},{"$f":"'Data Abstraction Tool - LONG'!#REF!","v":{"$error":"#REF!"}},{"$f":"'Data Abstraction Tool - LONG'!E147","v":0},{"$f":"'Data Abstraction Tool - LONG'!#REF!","v":{"$error":"#REF!"}},{"$f":"'Data Abstraction Tool - LONG'!#REF!","v":{"$error":"#REF!"}},{"$f":"'Data Abstraction Tool - LONG'!#REF!","v":{"$error":"#REF!"}}]
[{"$f":"'Data Abstraction Tool - LONG'!#REF!","v":{"$error":"#REF!"}},{"$f":"'Data Abstraction Tool - LONG'!#REF!","v":{"$error":"#REF!"}},{"$f":"'Data Abstraction Tool - LONG'!I148","v":0},{"$f":"'Data Abstraction Tool - LONG'!#REF!","v":{"$error":"#REF!"}},{"$f":"'Data Abstraction Tool - LONG'!#REF!","v":{"$error":"#REF!"}},{"$f":"'Data Abstraction Tool - LONG'!#REF!","v":{"$error":"#REF!"}},{"$f":"'Data Abstraction Tool - LONG'!#REF!","v":{"$error":"#REF!"}},{"$f":"'Data Abstraction Tool - LONG'!#REF!","v":{"$error":"#REF!"}},{"$f":"'Data Abstraction Tool - LONG'!#REF!","v":{"$error":"#REF!"}},{"$f":"'Data Abstraction Tool - LONG'!E148","v":0},{"$f":"'Data Abstraction Tool - LONG'!#REF!","v":{"$error":"#REF!"}},{"$f":"'Data Abstraction Tool - LONG'!#REF!","v":{"$error":"#REF!"}},{"$f":"'Data Abstraction Tool - LONG'!#REF!","v":{"$error":"#REF!"}}]
[{"$f":"'Data Abstraction Tool - LONG'!#REF!","v":{"$error":"#REF!"}},{"$f":"'Data Abstraction Tool - LONG'!#REF!","v":{"$error":"#REF!"}},{"$f":"'Data Abstraction Tool - LONG'!I149","v":0},{"$f":"'Data Abstraction Tool - LONG'!#REF!","v":{"$error":"#REF!"}},{"$f":"'Data Abstraction Tool - LONG'!#REF!","v":{"$error":"#REF!"}},{"$f":"'Data Abstraction Tool - LONG'!#REF!","v":{"$error":"#REF!"}},{"$f":"'Data Abstraction Tool - LONG'!#REF!","v":{"$error":"#REF!"}},{"$f":"'Data Abstraction Tool - LONG'!#REF!","v":{"$error":"#REF!"}},{"$f":"'Data Abstraction Tool - LONG'!#REF!","v":{"$error":"#REF!"}},{"$f":"'Data Abstraction Tool - LONG'!E149","v":0},{"$f":"'Data Abstraction Tool - LONG'!#REF!","v":{"$error":"#REF!"}},{"$f":"'Data Abstraction Tool - LONG'!#REF!","v":{"$error":"#REF!"}},{"$f":"'Data Abstraction Tool - LONG'!#REF!","v":{"$error":"#REF!"}}]
[{"$f":"'Data Abstraction Tool - LONG'!#REF!","v":{"$error":"#REF!"}},{"$f":"'Data Abstraction Tool - LONG'!#REF!","v":{"$error":"#REF!"}},{"$f":"'Data Abstraction Tool - LONG'!I150","v":0},{"$f":"'Data Abstraction Tool - LONG'!#REF!","v":{"$error":"#REF!"}},{"$f":"'Data Abstraction Tool - LONG'!#REF!","v":{"$error":"#REF!"}},{"$f":"'Data Abstraction Tool - LONG'!#REF!","v":{"$error":"#REF!"}},{"$f":"'Data Abstraction Tool - LONG'!#REF!","v":{"$error":"#REF!"}},{"$f":"'Data Abstraction Tool - LONG'!#REF!","v":{"$error":"#REF!"}},{"$f":"'Data Abstraction Tool - LONG'!#REF!","v":{"$error":"#REF!"}},{"$f":"'Data Abstraction Tool - LONG'!E150","v":0},{"$f":"'Data Abstraction Tool - LONG'!#REF!","v":{"$error":"#REF!"}},{"$f":"'Data Abstraction Tool - LONG'!#REF!","v":{"$error":"#REF!"}},{"$f":"'Data Abstraction Tool - LONG'!#REF!","v":{"$error":"#REF!"}}]
[{"$f":"'Data Abstraction Tool - LONG'!#REF!","v":{"$error":"#REF!"}},{"$f":"'Data Abstraction Tool - LONG'!#REF!","v":{"$error":"#REF!"}},{"$f":"'Data Abstraction Tool - LONG'!I151","v":0},{"$f":"'Data Abstraction Tool - LONG'!#REF!","v":{"$error":"#REF!"}},{"$f":"'Data Abstraction Tool - LONG'!#REF!","v":{"$error":"#REF!"}},{"$f":"'Data Abstraction Tool - LONG'!#REF!","v":{"$error":"#REF!"}},{"$f":"'Data Abstraction Tool - LONG'!#REF!","v":{"$error":"#REF!"}},{"$f":"'Data Abstraction Tool - LONG'!#REF!","v":{"$error":"#REF!"}},{"$f":"'Data Abstraction Tool - LONG'!#REF!","v":{"$error":"#REF!"}},{"$f":"'Data Abstraction Tool - LONG'!E151","v":0},{"$f":"'Data Abstraction Tool - LONG'!#REF!","v":{"$error":"#REF!"}},{"$f":"'Data Abstraction Tool - LONG'!#REF!","v":{"$error":"#REF!"}},{"$f":"'Data Abstraction Tool - LONG'!#REF!","v":{"$error":"#REF!"}}]
[{"$f":"'Data Abstraction Tool - LONG'!#REF!","v":{"$error":"#REF!"}},{"$f":"'Data Abstraction Tool - LONG'!#REF!","v":{"$error":"#REF!"}},{"$f":"'Data Abstraction Tool - LONG'!I152","v":0},{"$f":"'Data Abstraction Tool - LONG'!#REF!","v":{"$error":"#REF!"}},{"$f":"'Data Abstraction Tool - LONG'!#REF!","v":{"$error":"#REF!"}},{"$f":"'Data Abstraction Tool - LONG'!#REF!","v":{"$error":"#REF!"}},{"$f":"'Data Abstraction Tool - LONG'!#REF!","v":{"$error":"#REF!"}},{"$f":"'Data Abstraction Tool - LONG'!#REF!","v":{"$error":"#REF!"}},{"$f":"'Data Abstraction Tool - LONG'!#REF!","v":{"$error":"#REF!"}},{"$f":"'Data Abstraction Tool - LONG'!E152","v":0},{"$f":"'Data Abstraction Tool - LONG'!#REF!","v":{"$error":"#REF!"}},{"$f":"'Data Abstraction Tool - LONG'!#REF!","v":{"$error":"#REF!"}},{"$f":"'Data Abstraction Tool - LONG'!#REF!","v":{"$error":"#REF!"}}]
[{"$f":"'Data Abstraction Tool - LONG'!#REF!","v":{"$error":"#REF!"}},{"$f":"'Data Abstraction Tool - LONG'!#REF!","v":{"$error":"#REF!"}},{"$f":"'Data Abstraction Tool - LONG'!I153","v":0},{"$f":"'Data Abstraction Tool - LONG'!#REF!","v":{"$error":"#REF!"}},{"$f":"'Data Abstraction Tool - LONG'!#REF!","v":{"$error":"#REF!"}},{"$f":"'Data Abstraction Tool - LONG'!#REF!","v":{"$error":"#REF!"}},{"$f":"'Data Abstraction Tool - LONG'!#REF!","v":{"$error":"#REF!"}},{"$f":"'Data Abstraction Tool - LONG'!#REF!","v":{"$error":"#REF!"}},{"$f":"'Data Abstraction Tool - LONG'!#REF!","v":{"$error":"#REF!"}},{"$f":"'Data Abstraction Tool - LONG'!E153","v":0},{"$f":"'Data Abstraction Tool - LONG'!#REF!","v":{"$error":"#REF!"}},{"$f":"'Data Abstraction Tool - LONG'!#REF!","v":{"$error":"#REF!"}},{"$f":"'Data Abstraction Tool - LONG'!#REF!","v":{"$error":"#REF!"}}]
[{"$f":"'Data Abstraction Tool - LONG'!#REF!","v":{"$error":"#REF!"}},{"$f":"'Data Abstraction Tool - LONG'!#REF!","v":{"$error":"#REF!"}},{"$f":"'Data Abstraction Tool - LONG'!I154","v":0},{"$f":"'Data Abstraction Tool - LONG'!#REF!","v":{"$error":"#REF!"}},{"$f":"'Data Abstraction Tool - LONG'!#REF!","v":{"$error":"#REF!"}},{"$f":"'Data Abstraction Tool - LONG'!#REF!","v":{"$error":"#REF!"}},{"$f":"'Data Abstraction Tool - LONG'!#REF!","v":{"$error":"#REF!"}},{"$f":"'Data Abstraction Tool - LONG'!#REF!","v":{"$error":"#REF!"}},{"$f":"'Data Abstraction Tool - LONG'!#REF!","v":{"$error":"#REF!"}},{"$f":"'Data Abstraction Tool - LONG'!E154","v":0},{"$f":"'Data Abstraction Tool - LONG'!#REF!","v":{"$error":"#REF!"}},{"$f":"'Data Abstraction Tool - LONG'!#REF!","v":{"$error":"#REF!"}},{"$f":"'Data Abstraction Tool - LONG'!#REF!","v":{"$error":"#REF!"}}]
[{"$f":"'Data Abstraction Tool - LONG'!#REF!","v":{"$error":"#REF!"}},{"$f":"'Data Abstraction Tool - LONG'!#REF!","v":{"$error":"#REF!"}},{"$f":"'Data Abstraction Tool - LONG'!I155","v":0},{"$f":"'Data Abstraction Tool - LONG'!#REF!","v":{"$error":"#REF!"}},{"$f":"'Data Abstraction Tool - LONG'!#REF!","v":{"$error":"#REF!"}},{"$f":"'Data Abstraction Tool - LONG'!#REF!","v":{"$error":"#REF!"}},{"$f":"'Data Abstraction Tool - LONG'!#REF!","v":{"$error":"#REF!"}},{"$f":"'Data Abstraction Tool - LONG'!#REF!","v":{"$error":"#REF!"}},{"$f":"'Data Abstraction Tool - LONG'!#REF!","v":{"$error":"#REF!"}},{"$f":"'Data Abstraction Tool - LONG'!E155","v":0},{"$f":"'Data Abstraction Tool - LONG'!#REF!","v":{"$error":"#REF!"}},{"$f":"'Data Abstraction Tool - LONG'!#REF!","v":{"$error":"#REF!"}},{"$f":"'Data Abstraction Tool - LONG'!#REF!","v":{"$error":"#REF!"}}]
[{"$f":"'Data Abstraction Tool - LONG'!#REF!","v":{"$error":"#REF!"}},{"$f":"'Data Abstraction Tool - LONG'!#REF!","v":{"$error":"#REF!"}},{"$f":"'Data Abstraction Tool - LONG'!I156","v":0},{"$f":"'Data Abstraction Tool - LONG'!#REF!","v":{"$error":"#REF!"}},{"$f":"'Data Abstraction Tool - LONG'!#REF!","v":{"$error":"#REF!"}},{"$f":"'Data Abstraction Tool - LONG'!#REF!","v":{"$error":"#REF!"}},{"$f":"'Data Abstraction Tool - LONG'!#REF!","v":{"$error":"#REF!"}},{"$f":"'Data Abstraction Tool - LONG'!#REF!","v":{"$error":"#REF!"}},{"$f":"'Data Abstraction Tool - LONG'!#REF!","v":{"$error":"#REF!"}},{"$f":"'Data Abstraction Tool - LONG'!E156","v":0},{"$f":"'Data Abstraction Tool - LONG'!#REF!","v":{"$error":"#REF!"}},{"$f":"'Data Abstraction Tool - LONG'!#REF!","v":{"$error":"#REF!"}},{"$f":"'Data Abstraction Tool - LONG'!#REF!","v":{"$error":"#REF!"}}]
[{"$f":"'Data Abstraction Tool - LONG'!#REF!","v":{"$error":"#REF!"}},{"$f":"'Data Abstraction Tool - LONG'!#REF!","v":{"$error":"#REF!"}},{"$f":"'Data Abstraction Tool - LONG'!I157","v":0},{"$f":"'Data Abstraction Tool - LONG'!#REF!","v":{"$error":"#REF!"}},{"$f":"'Data Abstraction Tool - LONG'!#REF!","v":{"$error":"#REF!"}},{"$f":"'Data Abstraction Tool - LONG'!#REF!","v":{"$error":"#REF!"}},{"$f":"'Data Abstraction Tool - LONG'!#REF!","v":{"$error":"#REF!"}},{"$f":"'Data Abstraction Tool - LONG'!#REF!","v":{"$error":"#REF!"}},{"$f":"'Data Abstraction Tool - LONG'!#REF!","v":{"$error":"#REF!"}},{"$f":"'Data Abstraction Tool - LONG'!E157","v":0},{"$f":"'Data Abstraction Tool - LONG'!#REF!","v":{"$error":"#REF!"}},{"$f":"'Data Abstraction Tool - LONG'!#REF!","v":{"$error":"#REF!"}},{"$f":"'Data Abstraction Tool - LONG'!#REF!","v":{"$error":"#REF!"}}]
[{"$f":"'Data Abstraction Tool - LONG'!#REF!","v":{"$error":"#REF!"}},{"$f":"'Data Abstraction Tool - LONG'!#REF!","v":{"$error":"#REF!"}},{"$f":"'Data Abstraction Tool - LONG'!I158","v":0},{"$f":"'Data Abstraction Tool - LONG'!#REF!","v":{"$error":"#REF!"}},{"$f":"'Data Abstraction Tool - LONG'!#REF!","v":{"$error":"#REF!"}},{"$f":"'Data Abstraction Tool - LONG'!#REF!","v":{"$error":"#REF!"}},{"$f":"'Data Abstraction Tool - LONG'!#REF!","v":{"$error":"#REF!"}},{"$f":"'Data Abstraction Tool - LONG'!#REF!","v":{"$error":"#REF!"}},{"$f":"'Data Abstraction Tool - LONG'!#REF!","v":{"$error":"#REF!"}},{"$f":"'Data Abstraction Tool - LONG'!E158","v":0},{"$f":"'Data Abstraction Tool - LONG'!#REF!","v":{"$error":"#REF!"}},{"$f":"'Data Abstraction Tool - LONG'!#REF!","v":{"$error":"#REF!"}},{"$f":"'Data Abstraction Tool - LONG'!#REF!","v":{"$error":"#REF!"}}]
[{"$f":"'Data Abstraction Tool - LONG'!#REF!","v":{"$error":"#REF!"}},{"$f":"'Data Abstraction Tool - LONG'!#REF!","v":{"$error":"#REF!"}},{"$f":"'Data Abstraction Tool - LONG'!I159","v":0},{"$f":"'Data Abstraction Tool - LONG'!#REF!","v":{"$error":"#REF!"}},{"$f":"'Data Abstraction Tool - LONG'!#REF!","v":{"$error":"#REF!"}},{"$f":"'Data Abstraction Tool - LONG'!#REF!","v":{"$error":"#REF!"}},{"$f":"'Data Abstraction Tool - LONG'!#REF!","v":{"$error":"#REF!"}},{"$f":"'Data Abstraction Tool - LONG'!#REF!","v":{"$error":"#REF!"}},{"$f":"'Data Abstraction Tool - LONG'!#REF!","v":{"$error":"#REF!"}},{"$f":"'Data Abstraction Tool - LONG'!E159","v":0},{"$f":"'Data Abstraction Tool - LONG'!#REF!","v":{"$error":"#REF!"}},{"$f":"'Data Abstraction Tool - LONG'!#REF!","v":{"$error":"#REF!"}},{"$f":"'Data Abstraction Tool - LONG'!#REF!","v":{"$error":"#REF!"}}]
[{"$f":"'Data Abstraction Tool - LONG'!#REF!","v":{"$error":"#REF!"}},{"$f":"'Data Abstraction Tool - LONG'!#REF!","v":{"$error":"#REF!"}},{"$f":"'Data Abstraction Tool - LONG'!I160","v":0},{"$f":"'Data Abstraction Tool - LONG'!#REF!","v":{"$error":"#REF!"}},{"$f":"'Data Abstraction Tool - LONG'!#REF!","v":{"$error":"#REF!"}},{"$f":"'Data Abstraction Tool - LONG'!#REF!","v":{"$error":"#REF!"}},{"$f":"'Data Abstraction Tool - LONG'!#REF!","v":{"$error":"#REF!"}},{"$f":"'Data Abstraction Tool - LONG'!#REF!","v":{"$error":"#REF!"}},{"$f":"'Data Abstraction Tool - LONG'!#REF!","v":{"$error":"#REF!"}},{"$f":"'Data Abstraction Tool - LONG'!E160","v":0},{"$f":"'Data Abstraction Tool - LONG'!#REF!","v":{"$error":"#REF!"}},{"$f":"'Data Abstraction Tool - LONG'!#REF!","v":{"$error":"#REF!"}},{"$f":"'Data Abstraction Tool - LONG'!#REF!","v":{"$error":"#REF!"}}]
[{"$f":"'Data Abstraction Tool - LONG'!#REF!","v":{"$error":"#REF!"}},{"$f":"'Data Abstraction Tool - LONG'!#REF!","v":{"$error":"#REF!"}},{"$f":"'Data Abstraction Tool - LONG'!I161","v":0},{"$f":"'Data Abstraction Tool - LONG'!#REF!","v":{"$error":"#REF!"}},{"$f":"'Data Abstraction Tool - LONG'!#REF!","v":{"$error":"#REF!"}},{"$f":"'Data Abstraction Tool - LONG'!#REF!","v":{"$error":"#REF!"}},{"$f":"'Data Abstraction Tool - LONG'!#REF!","v":{"$error":"#REF!"}},{"$f":"'Data Abstraction Tool - LONG'!#REF!","v":{"$error":"#REF!"}},{"$f":"'Data Abstraction Tool - LONG'!#REF!","v":{"$error":"#REF!"}},{"$f":"'Data Abstraction Tool - LONG'!E161","v":0},{"$f":"'Data Abstraction Tool - LONG'!#REF!","v":{"$error":"#REF!"}},{"$f":"'Data Abstraction Tool - LONG'!#REF!","v":{"$error":"#REF!"}},{"$f":"'Data Abstraction Tool - LONG'!#REF!","v":{"$error":"#REF!"}}]
[{"$f":"'Data Abstraction Tool - LONG'!#REF!","v":{"$error":"#REF!"}},{"$f":"'Data Abstraction Tool - LONG'!#REF!","v":{"$error":"#REF!"}},{"$f":"'Data Abstraction Tool - LONG'!I162","v":0},{"$f":"'Data Abstraction Tool - LONG'!#REF!","v":{"$error":"#REF!"}},{"$f":"'Data Abstraction Tool - LONG'!#REF!","v":{"$error":"#REF!"}},{"$f":"'Data Abstraction Tool - LONG'!#REF!","v":{"$error":"#REF!"}},{"$f":"'Data Abstraction Tool - LONG'!#REF!","v":{"$error":"#REF!"}},{"$f":"'Data Abstraction Tool - LONG'!#REF!","v":{"$error":"#REF!"}},{"$f":"'Data Abstraction Tool - LONG'!#REF!","v":{"$error":"#REF!"}},{"$f":"'Data Abstraction Tool - LONG'!E162","v":0},{"$f":"'Data Abstraction Tool - LONG'!#REF!","v":{"$error":"#REF!"}},{"$f":"'Data Abstraction Tool - LONG'!#REF!","v":{"$error":"#REF!"}},{"$f":"'Data Abstraction Tool - LONG'!#REF!","v":{"$error":"#REF!"}}]
[{"$f":"'Data Abstraction Tool - LONG'!#REF!","v":{"$error":"#REF!"}},{"$f":"'Data Abstraction Tool - LONG'!#REF!","v":{"$error":"#REF!"}},{"$f":"'Data Abstraction Tool - LONG'!I163","v":0},{"$f":"'Data Abstraction Tool - LONG'!#REF!","v":{"$error":"#REF!"}},{"$f":"'Data Abstraction Tool - LONG'!#REF!","v":{"$error":"#REF!"}},{"$f":"'Data Abstraction Tool - LONG'!#REF!","v":{"$error":"#REF!"}},{"$f":"'Data Abstraction Tool - LONG'!#REF!","v":{"$error":"#REF!"}},{"$f":"'Data Abstraction Tool - LONG'!#REF!","v":{"$error":"#REF!"}},{"$f":"'Data Abstraction Tool - LONG'!#REF!","v":{"$error":"#REF!"}},{"$f":"'Data Abstraction Tool - LONG'!E163","v":0},{"$f":"'Data Abstraction Tool - LONG'!#REF!","v":{"$error":"#REF!"}},{"$f":"'Data Abstraction Tool - LONG'!#REF!","v":{"$error":"#REF!"}},{"$f":"'Data Abstraction Tool - LONG'!#REF!","v":{"$error":"#REF!"}}]
[{"$f":"'Data Abstraction Tool - LONG'!#REF!","v":{"$error":"#REF!"}},{"$f":"'Data Abstraction Tool - LONG'!#REF!","v":{"$error":"#REF!"}},{"$f":"'Data Abstraction Tool - LONG'!I164","v":0},{"$f":"'Data Abstraction Tool - LONG'!#REF!","v":{"$error":"#REF!"}},{"$f":"'Data Abstraction Tool - LONG'!#REF!","v":{"$error":"#REF!"}},{"$f":"'Data Abstraction Tool - LONG'!#REF!","v":{"$error":"#REF!"}},{"$f":"'Data Abstraction Tool - LONG'!#REF!","v":{"$error":"#REF!"}},{"$f":"'Data Abstraction Tool - LONG'!#REF!","v":{"$error":"#REF!"}},{"$f":"'Data Abstraction Tool - LONG'!#REF!","v":{"$error":"#REF!"}},{"$f":"'Data Abstraction Tool - LONG'!E164","v":0},{"$f":"'Data Abstraction Tool - LONG'!#REF!","v":{"$error":"#REF!"}},{"$f":"'Data Abstraction Tool - LONG'!#REF!","v":{"$error":"#REF!"}},{"$f":"'Data Abstraction Tool - LONG'!#REF!","v":{"$error":"#REF!"}}]
[{"$f":"'Data Abstraction Tool - LONG'!#REF!","v":{"$error":"#REF!"}},{"$f":"'Data Abstraction Tool - LONG'!#REF!","v":{"$error":"#REF!"}},{"$f":"'Data Abstraction Tool - LONG'!I165","v":0},{"$f":"'Data Abstraction Tool - LONG'!#REF!","v":{"$error":"#REF!"}},{"$f":"'Data Abstraction Tool - LONG'!#REF!","v":{"$error":"#REF!"}},{"$f":"'Data Abstraction Tool - LONG'!#REF!","v":{"$error":"#REF!"}},{"$f":"'Data Abstraction Tool - LONG'!#REF!","v":{"$error":"#REF!"}},{"$f":"'Data Abstraction Tool - LONG'!#REF!","v":{"$error":"#REF!"}},{"$f":"'Data Abstraction Tool - LONG'!#REF!","v":{"$error":"#REF!"}},{"$f":"'Data Abstraction Tool - LONG'!E165","v":0},{"$f":"'Data Abstraction Tool - LONG'!#REF!","v":{"$error":"#REF!"}},{"$f":"'Data Abstraction Tool - LONG'!#REF!","v":{"$error":"#REF!"}},{"$f":"'Data Abstraction Tool - LONG'!#REF!","v":{"$error":"#REF!"}}]
[{"$f":"'Data Abstraction Tool - LONG'!#REF!","v":{"$error":"#REF!"}},{"$f":"'Data Abstraction Tool - LONG'!#REF!","v":{"$error":"#REF!"}},{"$f":"'Data Abstraction Tool - LONG'!I166","v":0},{"$f":"'Data Abstraction Tool - LONG'!#REF!","v":{"$error":"#REF!"}},{"$f":"'Data Abstraction Tool - LONG'!#REF!","v":{"$error":"#REF!"}},{"$f":"'Data Abstraction Tool - LONG'!#REF!","v":{"$error":"#REF!"}},{"$f":"'Data Abstraction Tool - LONG'!#REF!","v":{"$error":"#REF!"}},{"$f":"'Data Abstraction Tool - LONG'!#REF!","v":{"$error":"#REF!"}},{"$f":"'Data Abstraction Tool - LONG'!#REF!","v":{"$error":"#REF!"}},{"$f":"'Data Abstraction Tool - LONG'!E166","v":0},{"$f":"'Data Abstraction Tool - LONG'!#REF!","v":{"$error":"#REF!"}},{"$f":"'Data Abstraction Tool - LONG'!#REF!","v":{"$error":"#REF!"}},{"$f":"'Data Abstraction Tool - LONG'!#REF!","v":{"$error":"#REF!"}}]
[{"$f":"'Data Abstraction Tool - LONG'!#REF!","v":{"$error":"#REF!"}},{"$f":"'Data Abstraction Tool - LONG'!#REF!","v":{"$error":"#REF!"}},{"$f":"'Data Abstraction Tool - LONG'!I167","v":0},{"$f":"'Data Abstraction Tool - LONG'!#REF!","v":{"$error":"#REF!"}},{"$f":"'Data Abstraction Tool - LONG'!#REF!","v":{"$error":"#REF!"}},{"$f":"'Data Abstraction Tool - LONG'!#REF!","v":{"$error":"#REF!"}},{"$f":"'Data Abstraction Tool - LONG'!#REF!","v":{"$error":"#REF!"}},{"$f":"'Data Abstraction Tool - LONG'!#REF!","v":{"$error":"#REF!"}},{"$f":"'Data Abstraction Tool - LONG'!#REF!","v":{"$error":"#REF!"}},{"$f":"'Data Abstraction Tool - LONG'!E167","v":0},{"$f":"'Data Abstraction Tool - LONG'!#REF!","v":{"$error":"#REF!"}},{"$f":"'Data Abstraction Tool - LONG'!#REF!","v":{"$error":"#REF!"}},{"$f":"'Data Abstraction Tool - LONG'!#REF!","v":{"$error":"#REF!"}}]
[{"$f":"'Data Abstraction Tool - LONG'!#REF!","v":{"$error":"#REF!"}},{"$f":"'Data Abstraction Tool - LONG'!#REF!","v":{"$error":"#REF!"}},{"$f":"'Data Abstraction Tool - LONG'!I168","v":0},{"$f":"'Data Abstraction Tool - LONG'!#REF!","v":{"$error":"#REF!"}},{"$f":"'Data Abstraction Tool - LONG'!#REF!","v":{"$error":"#REF!"}},{"$f":"'Data Abstraction Tool - LONG'!#REF!","v":{"$error":"#REF!"}},{"$f":"'Data Abstraction Tool - LONG'!#REF!","v":{"$error":"#REF!"}},{"$f":"'Data Abstraction Tool - LONG'!#REF!","v":{"$error":"#REF!"}},{"$f":"'Data Abstraction Tool - LONG'!#REF!","v":{"$error":"#REF!"}},{"$f":"'Data Abstraction Tool - LONG'!E168","v":0},{"$f":"'Data Abstraction Tool - LONG'!#REF!","v":{"$error":"#REF!"}},{"$f":"'Data Abstraction Tool - LONG'!#REF!","v":{"$error":"#REF!"}},{"$f":"'Data Abstraction Tool - LONG'!#REF!","v":{"$error":"#REF!"}}]
[{"$f":"'Data Abstraction Tool - LONG'!#REF!","v":{"$error":"#REF!"}},{"$f":"'Data Abstraction Tool - LONG'!#REF!","v":{"$error":"#REF!"}},{"$f":"'Data Abstraction Tool - LONG'!I169","v":0},{"$f":"'Data Abstraction Tool - LONG'!#REF!","v":{"$error":"#REF!"}},{"$f":"'Data Abstraction Tool - LONG'!#REF!","v":{"$error":"#REF!"}},{"$f":"'Data Abstraction Tool - LONG'!#REF!","v":{"$error":"#REF!"}},{"$f":"'Data Abstraction Tool - LONG'!#REF!","v":{"$error":"#REF!"}},{"$f":"'Data Abstraction Tool - LONG'!#REF!","v":{"$error":"#REF!"}},{"$f":"'Data Abstraction Tool - LONG'!#REF!","v":{"$error":"#REF!"}},{"$f":"'Data Abstraction Tool - LONG'!E169","v":0},{"$f":"'Data Abstraction Tool - LONG'!#REF!","v":{"$error":"#REF!"}},{"$f":"'Data Abstraction Tool - LONG'!#REF!","v":{"$error":"#REF!"}},{"$f":"'Data Abstraction Tool - LONG'!#REF!","v":{"$error":"#REF!"}}]
[{"$f":"'Data Abstraction Tool - LONG'!#REF!","v":{"$error":"#REF!"}},{"$f":"'Data Abstraction Tool - LONG'!#REF!","v":{"$error":"#REF!"}},{"$f":"'Data Abstraction Tool - LONG'!I170","v":0},{"$f":"'Data Abstraction Tool - LONG'!#REF!","v":{"$error":"#REF!"}},{"$f":"'Data Abstraction Tool - LONG'!#REF!","v":{"$error":"#REF!"}},{"$f":"'Data Abstraction Tool - LONG'!#REF!","v":{"$error":"#REF!"}},{"$f":"'Data Abstraction Tool - LONG'!#REF!","v":{"$error":"#REF!"}},{"$f":"'Data Abstraction Tool - LONG'!#REF!","v":{"$error":"#REF!"}},{"$f":"'Data Abstraction Tool - LONG'!#REF!","v":{"$error":"#REF!"}},{"$f":"'Data Abstraction Tool - LONG'!E170","v":0},{"$f":"'Data Abstraction Tool - LONG'!#REF!","v":{"$error":"#REF!"}},{"$f":"'Data Abstraction Tool - LONG'!#REF!","v":{"$error":"#REF!"}},{"$f":"'Data Abstraction Tool - LONG'!#REF!","v":{"$error":"#REF!"}}]
[{"$f":"'Data Abstraction Tool - LONG'!#REF!","v":{"$error":"#REF!"}},{"$f":"'Data Abstraction Tool - LONG'!#REF!","v":{"$error":"#REF!"}},{"$f":"'Data Abstraction Tool - LONG'!I171","v":0},{"$f":"'Data Abstraction Tool - LONG'!#REF!","v":{"$error":"#REF!"}},{"$f":"'Data Abstraction Tool - LONG'!#REF!","v":{"$error":"#REF!"}},{"$f":"'Data Abstraction Tool - LONG'!#REF!","v":{"$error":"#REF!"}},{"$f":"'Data Abstraction Tool - LONG'!#REF!","v":{"$error":"#REF!"}},{"$f":"'Data Abstraction Tool - LONG'!#REF!","v":{"$error":"#REF!"}},{"$f":"'Data Abstraction Tool - LONG'!#REF!","v":{"$error":"#REF!"}},{"$f":"'Data Abstraction Tool - LONG'!E171","v":0},{"$f":"'Data Abstraction Tool - LONG'!#REF!","v":{"$error":"#REF!"}},{"$f":"'Data Abstraction Tool - LONG'!#REF!","v":{"$error":"#REF!"}},{"$f":"'Data Abstraction Tool - LONG'!#REF!","v":{"$error":"#REF!"}}]
[{"$f":"'Data Abstraction Tool - LONG'!#REF!","v":{"$error":"#REF!"}},{"$f":"'Data Abstraction Tool - LONG'!#REF!","v":{"$error":"#REF!"}},{"$f":"'Data Abstraction Tool - LONG'!I172","v":0},{"$f":"'Data Abstraction Tool - LONG'!#REF!","v":{"$error":"#REF!"}},{"$f":"'Data Abstraction Tool - LONG'!#REF!","v":{"$error":"#REF!"}},{"$f":"'Data Abstraction Tool - LONG'!#REF!","v":{"$error":"#REF!"}},{"$f":"'Data Abstraction Tool - LONG'!#REF!","v":{"$error":"#REF!"}},{"$f":"'Data Abstraction Tool - LONG'!#REF!","v":{"$error":"#REF!"}},{"$f":"'Data Abstraction Tool - LONG'!#REF!","v":{"$error":"#REF!"}},{"$f":"'Data Abstraction Tool - LONG'!E172","v":0},{"$f":"'Data Abstraction Tool - LONG'!#REF!","v":{"$error":"#REF!"}},{"$f":"'Data Abstraction Tool - LONG'!#REF!","v":{"$error":"#REF!"}},{"$f":"'Data Abstraction Tool - LONG'!#REF!","v":{"$error":"#REF!"}}]
[{"$f":"'Data Abstraction Tool - LONG'!#REF!","v":{"$error":"#REF!"}},{"$f":"'Data Abstraction Tool - LONG'!#REF!","v":{"$error":"#REF!"}},{"$f":"'Data Abstraction Tool - LONG'!I173","v":0},{"$f":"'Data Abstraction Tool - LONG'!#REF!","v":{"$error":"#REF!"}},{"$f":"'Data Abstraction Tool - LONG'!#REF!","v":{"$error":"#REF!"}},{"$f":"'Data Abstraction Tool - LONG'!#REF!","v":{"$error":"#REF!"}},{"$f":"'Data Abstraction Tool - LONG'!#REF!","v":{"$error":"#REF!"}},{"$f":"'Data Abstraction Tool - LONG'!#REF!","v":{"$error":"#REF!"}},{"$f":"'Data Abstraction Tool - LONG'!#REF!","v":{"$error":"#REF!"}},{"$f":"'Data Abstraction Tool - LONG'!E173","v":0},{"$f":"'Data Abstraction Tool - LONG'!#REF!","v":{"$error":"#REF!"}},{"$f":"'Data Abstraction Tool - LONG'!#REF!","v":{"$error":"#REF!"}},{"$f":"'Data Abstraction Tool - LONG'!#REF!","v":{"$error":"#REF!"}}]
[{"$f":"'Data Abstraction Tool - LONG'!#REF!","v":{"$error":"#REF!"}},{"$f":"'Data Abstraction Tool - LONG'!#REF!","v":{"$error":"#REF!"}},{"$f":"'Data Abstraction Tool - LONG'!I174","v":0},{"$f":"'Data Abstraction Tool - LONG'!#REF!","v":{"$error":"#REF!"}},{"$f":"'Data Abstraction Tool - LONG'!#REF!","v":{"$error":"#REF!"}},{"$f":"'Data Abstraction Tool - LONG'!#REF!","v":{"$error":"#REF!"}},{"$f":"'Data Abstraction Tool - LONG'!#REF!","v":{"$error":"#REF!"}},{"$f":"'Data Abstraction Tool - LONG'!#REF!","v":{"$error":"#REF!"}},{"$f":"'Data Abstraction Tool - LONG'!#REF!","v":{"$error":"#REF!"}},{"$f":"'Data Abstraction Tool - LONG'!E174","v":0},{"$f":"'Data Abstraction Tool - LONG'!#REF!","v":{"$error":"#REF!"}},{"$f":"'Data Abstraction Tool - LONG'!#REF!","v":{"$error":"#REF!"}},{"$f":"'Data Abstraction Tool - LONG'!#REF!","v":{"$error":"#REF!"}}]
[{"$f":"'Data Abstraction Tool - LONG'!#REF!","v":{"$error":"#REF!"}},{"$f":"'Data Abstraction Tool - LONG'!#REF!","v":{"$error":"#REF!"}},{"$f":"'Data Abstraction Tool - LONG'!I175","v":0},{"$f":"'Data Abstraction Tool - LONG'!#REF!","v":{"$error":"#REF!"}},{"$f":"'Data Abstraction Tool - LONG'!#REF!","v":{"$error":"#REF!"}},{"$f":"'Data Abstraction Tool - LONG'!#REF!","v":{"$error":"#REF!"}},{"$f":"'Data Abstraction Tool - LONG'!#REF!","v":{"$error":"#REF!"}},{"$f":"'Data Abstraction Tool - LONG'!#REF!","v":{"$error":"#REF!"}},{"$f":"'Data Abstraction Tool - LONG'!#REF!","v":{"$error":"#REF!"}},{"$f":"'Data Abstraction Tool - LONG'!E175","v":0},{"$f":"'Data Abstraction Tool - LONG'!#REF!","v":{"$error":"#REF!"}},{"$f":"'Data Abstraction Tool - LONG'!#REF!","v":{"$error":"#REF!"}},{"$f":"'Data Abstraction Tool - LONG'!#REF!","v":{"$error":"#REF!"}}]
[{"$f":"'Data Abstraction Tool - LONG'!#REF!","v":{"$error":"#REF!"}},{"$f":"'Data Abstraction Tool - LONG'!#REF!","v":{"$error":"#REF!"}},{"$f":"'Data Abstraction Tool - LONG'!I176","v":0},{"$f":"'Data Abstraction Tool - LONG'!#REF!","v":{"$error":"#REF!"}},{"$f":"'Data Abstraction Tool - LONG'!#REF!","v":{"$error":"#REF!"}},{"$f":"'Data Abstraction Tool - LONG'!#REF!","v":{"$error":"#REF!"}},{"$f":"'Data Abstraction Tool - LONG'!#REF!","v":{"$error":"#REF!"}},{"$f":"'Data Abstraction Tool - LONG'!#REF!","v":{"$error":"#REF!"}},{"$f":"'Data Abstraction Tool - LONG'!#REF!","v":{"$error":"#REF!"}},{"$f":"'Data Abstraction Tool - LONG'!E176","v":0},{"$f":"'Data Abstraction Tool - LONG'!#REF!","v":{"$error":"#REF!"}},{"$f":"'Data Abstraction Tool - LONG'!#REF!","v":{"$error":"#REF!"}},{"$f":"'Data Abstraction Tool - LONG'!#REF!","v":{"$error":"#REF!"}}]
[{"$f":"'Data Abstraction Tool - LONG'!#REF!","v":{"$error":"#REF!"}},{"$f":"'Data Abstraction Tool - LONG'!#REF!","v":{"$error":"#REF!"}},{"$f":"'Data Abstraction Tool - LONG'!I177","v":0},{"$f":"'Data Abstraction Tool - LONG'!#REF!","v":{"$error":"#REF!"}},{"$f":"'Data Abstraction Tool - LONG'!#REF!","v":{"$error":"#REF!"}},{"$f":"'Data Abstraction Tool - LONG'!#REF!","v":{"$error":"#REF!"}},{"$f":"'Data Abstraction Tool - LONG'!#REF!","v":{"$error":"#REF!"}},{"$f":"'Data Abstraction Tool - LONG'!#REF!","v":{"$error":"#REF!"}},{"$f":"'Data Abstraction Tool - LONG'!#REF!","v":{"$error":"#REF!"}},{"$f":"'Data Abstraction Tool - LONG'!E177","v":0},{"$f":"'Data Abstraction Tool - LONG'!#REF!","v":{"$error":"#REF!"}},{"$f":"'Data Abstraction Tool - LONG'!#REF!","v":{"$error":"#REF!"}},{"$f":"'Data Abstraction Tool - LONG'!#REF!","v":{"$error":"#REF!"}}]
[{"$f":"'Data Abstraction Tool - LONG'!#REF!","v":{"$error":"#REF!"}},{"$f":"'Data Abstraction Tool - LONG'!#REF!","v":{"$error":"#REF!"}},{"$f":"'Data Abstraction Tool - LONG'!I178","v":0},{"$f":"'Data Abstraction Tool - LONG'!#REF!","v":{"$error":"#REF!"}},{"$f":"'Data Abstraction Tool - LONG'!#REF!","v":{"$error":"#REF!"}},{"$f":"'Data Abstraction Tool - LONG'!#REF!","v":{"$error":"#REF!"}},{"$f":"'Data Abstraction Tool - LONG'!#REF!","v":{"$error":"#REF!"}},{"$f":"'Data Abstraction Tool - LONG'!#REF!","v":{"$error":"#REF!"}},{"$f":"'Data Abstraction Tool - LONG'!#REF!","v":{"$error":"#REF!"}},{"$f":"'Data Abstraction Tool - LONG'!E178","v":0},{"$f":"'Data Abstraction Tool - LONG'!#REF!","v":{"$error":"#REF!"}},{"$f":"'Data Abstraction Tool - LONG'!#REF!","v":{"$error":"#REF!"}},{"$f":"'Data Abstraction Tool - LONG'!#REF!","v":{"$error":"#REF!"}}]
[{"$f":"'Data Abstraction Tool - LONG'!#REF!","v":{"$error":"#REF!"}},{"$f":"'Data Abstraction Tool - LONG'!#REF!","v":{"$error":"#REF!"}},{"$f":"'Data Abstraction Tool - LONG'!I179","v":0},{"$f":"'Data Abstraction Tool - LONG'!#REF!","v":{"$error":"#REF!"}},{"$f":"'Data Abstraction Tool - LONG'!#REF!","v":{"$error":"#REF!"}},{"$f":"'Data Abstraction Tool - LONG'!#REF!","v":{"$error":"#REF!"}},{"$f":"'Data Abstraction Tool - LONG'!#REF!","v":{"$error":"#REF!"}},{"$f":"'Data Abstraction Tool - LONG'!#REF!","v":{"$error":"#REF!"}},{"$f":"'Data Abstraction Tool - LONG'!#REF!","v":{"$error":"#REF!"}},{"$f":"'Data Abstraction Tool - LONG'!E179","v":0},{"$f":"'Data Abstraction Tool - LONG'!#REF!","v":{"$error":"#REF!"}},{"$f":"'Data Abstraction Tool - LONG'!#REF!","v":{"$error":"#REF!"}},{"$f":"'Data Abstraction Tool - LONG'!#REF!","v":{"$error":"#REF!"}}]
[{"$f":"'Data Abstraction Tool - LONG'!#REF!","v":{"$error":"#REF!"}},{"$f":"'Data Abstraction Tool - LONG'!#REF!","v":{"$error":"#REF!"}},{"$f":"'Data Abstraction Tool - LONG'!I180","v":0},{"$f":"'Data Abstraction Tool - LONG'!#REF!","v":{"$error":"#REF!"}},{"$f":"'Data Abstraction Tool - LONG'!#REF!","v":{"$error":"#REF!"}},{"$f":"'Data Abstraction Tool - LONG'!#REF!","v":{"$error":"#REF!"}},{"$f":"'Data Abstraction Tool - LONG'!#REF!","v":{"$error":"#REF!"}},{"$f":"'Data Abstraction Tool - LONG'!#REF!","v":{"$error":"#REF!"}},{"$f":"'Data Abstraction Tool - LONG'!#REF!","v":{"$error":"#REF!"}},{"$f":"'Data Abstraction Tool - LONG'!E180","v":0},{"$f":"'Data Abstraction Tool - LONG'!#REF!","v":{"$error":"#REF!"}},{"$f":"'Data Abstraction Tool - LONG'!#REF!","v":{"$error":"#REF!"}},{"$f":"'Data Abstraction Tool - LONG'!#REF!","v":{"$error":"#REF!"}}]
[{"$f":"'Data Abstraction Tool - LONG'!#REF!","v":{"$error":"#REF!"}},{"$f":"'Data Abstraction Tool - LONG'!#REF!","v":{"$error":"#REF!"}},{"$f":"'Data Abstraction Tool - LONG'!I181","v":0},{"$f":"'Data Abstraction Tool - LONG'!#REF!","v":{"$error":"#REF!"}},{"$f":"'Data Abstraction Tool - LONG'!#REF!","v":{"$error":"#REF!"}},{"$f":"'Data Abstraction Tool - LONG'!#REF!","v":{"$error":"#REF!"}},{"$f":"'Data Abstraction Tool - LONG'!#REF!","v":{"$error":"#REF!"}},{"$f":"'Data Abstraction Tool - LONG'!#REF!","v":{"$error":"#REF!"}},{"$f":"'Data Abstraction Tool - LONG'!#REF!","v":{"$error":"#REF!"}},{"$f":"'Data Abstraction Tool - LONG'!E181","v":0},{"$f":"'Data Abstraction Tool - LONG'!#REF!","v":{"$error":"#REF!"}},{"$f":"'Data Abstraction Tool - LONG'!#REF!","v":{"$error":"#REF!"}},{"$f":"'Data Abstraction Tool - LONG'!#REF!","v":{"$error":"#REF!"}}]
[{"$f":"'Data Abstraction Tool - LONG'!#REF!","v":{"$error":"#REF!"}},{"$f":"'Data Abstraction Tool - LONG'!#REF!","v":{"$error":"#REF!"}},{"$f":"'Data Abstraction Tool - LONG'!I182","v":0},{"$f":"'Data Abstraction Tool - LONG'!#REF!","v":{"$error":"#REF!"}},{"$f":"'Data Abstraction Tool - LONG'!#REF!","v":{"$error":"#REF!"}},{"$f":"'Data Abstraction Tool - LONG'!#REF!","v":{"$error":"#REF!"}},{"$f":"'Data Abstraction Tool - LONG'!#REF!","v":{"$error":"#REF!"}},{"$f":"'Data Abstraction Tool - LONG'!#REF!","v":{"$error":"#REF!"}},{"$f":"'Data Abstraction Tool - LONG'!#REF!","v":{"$error":"#REF!"}},{"$f":"'Data Abstraction Tool - LONG'!E182","v":0},{"$f":"'Data Abstraction Tool - LONG'!#REF!","v":{"$error":"#REF!"}},{"$f":"'Data Abstraction Tool - LONG'!#REF!","v":{"$error":"#REF!"}},{"$f":"'Data Abstraction Tool - LONG'!#REF!","v":{"$error":"#REF!"}}]
[{"$f":"'Data Abstraction Tool - LONG'!#REF!","v":{"$error":"#REF!"}},{"$f":"'Data Abstraction Tool - LONG'!#REF!","v":{"$error":"#REF!"}},{"$f":"'Data Abstraction Tool - LONG'!I183","v":0},{"$f":"'Data Abstraction Tool - LONG'!#REF!","v":{"$error":"#REF!"}},{"$f":"'Data Abstraction Tool - LONG'!#REF!","v":{"$error":"#REF!"}},{"$f":"'Data Abstraction Tool - LONG'!#REF!","v":{"$error":"#REF!"}},{"$f":"'Data Abstraction Tool - LONG'!#REF!","v":{"$error":"#REF!"}},{"$f":"'Data Abstraction Tool - LONG'!#REF!","v":{"$error":"#REF!"}},{"$f":"'Data Abstraction Tool - LONG'!#REF!","v":{"$error":"#REF!"}},{"$f":"'Data Abstraction Tool - LONG'!E183","v":0},{"$f":"'Data Abstraction Tool - LONG'!#REF!","v":{"$error":"#REF!"}},{"$f":"'Data Abstraction Tool - LONG'!#REF!","v":{"$error":"#REF!"}},{"$f":"'Data Abstraction Tool - LONG'!#REF!","v":{"$error":"#REF!"}}]
[{"$f":"'Data Abstraction Tool - LONG'!#REF!","v":{"$error":"#REF!"}},{"$f":"'Data Abstraction Tool - LONG'!#REF!","v":{"$error":"#REF!"}},{"$f":"'Data Abstraction Tool - LONG'!I184","v":0},{"$f":"'Data Abstraction Tool - LONG'!#REF!","v":{"$error":"#REF!"}},{"$f":"'Data Abstraction Tool - LONG'!#REF!","v":{"$error":"#REF!"}},{"$f":"'Data Abstraction Tool - LONG'!#REF!","v":{"$error":"#REF!"}},{"$f":"'Data Abstraction Tool - LONG'!#REF!","v":{"$error":"#REF!"}},{"$f":"'Data Abstraction Tool - LONG'!#REF!","v":{"$error":"#REF!"}},{"$f":"'Data Abstraction Tool - LONG'!#REF!","v":{"$error":"#REF!"}},{"$f":"'Data Abstraction Tool - LONG'!E184","v":0},{"$f":"'Data Abstraction Tool - LONG'!#REF!","v":{"$error":"#REF!"}},{"$f":"'Data Abstraction Tool - LONG'!#REF!","v":{"$error":"#REF!"}},{"$f":"'Data Abstraction Tool - LONG'!#REF!","v":{"$error":"#REF!"}}]
[{"$f":"'Data Abstraction Tool - LONG'!#REF!","v":{"$error":"#REF!"}},{"$f":"'Data Abstraction Tool - LONG'!#REF!","v":{"$error":"#REF!"}},{"$f":"'Data Abstraction Tool - LONG'!I185","v":0},{"$f":"'Data Abstraction Tool - LONG'!#REF!","v":{"$error":"#REF!"}},{"$f":"'Data Abstraction Tool - LONG'!#REF!","v":{"$error":"#REF!"}},{"$f":"'Data Abstraction Tool - LONG'!#REF!","v":{"$error":"#REF!"}},{"$f":"'Data Abstraction Tool - LONG'!#REF!","v":{"$error":"#REF!"}},{"$f":"'Data Abstraction Tool - LONG'!#REF!","v":{"$error":"#REF!"}},{"$f":"'Data Abstraction Tool - LONG'!#REF!","v":{"$error":"#REF!"}},{"$f":"'Data Abstraction Tool - LONG'!E185","v":0},{"$f":"'Data Abstraction Tool - LONG'!#REF!","v":{"$error":"#REF!"}},{"$f":"'Data Abstraction Tool - LONG'!#REF!","v":{"$error":"#REF!"}},{"$f":"'Data Abstraction Tool - LONG'!#REF!","v":{"$error":"#REF!"}}]
[{"$f":"'Data Abstraction Tool - LONG'!#REF!","v":{"$error":"#REF!"}},{"$f":"'Data Abstraction Tool - LONG'!#REF!","v":{"$error":"#REF!"}},{"$f":"'Data Abstraction Tool - LONG'!I186","v":0},{"$f":"'Data Abstraction Tool - LONG'!#REF!","v":{"$error":"#REF!"}},{"$f":"'Data Abstraction Tool - LONG'!#REF!","v":{"$error":"#REF!"}},{"$f":"'Data Abstraction Tool - LONG'!#REF!","v":{"$error":"#REF!"}},{"$f":"'Data Abstraction Tool - LONG'!#REF!","v":{"$error":"#REF!"}},{"$f":"'Data Abstraction Tool - LONG'!#REF!","v":{"$error":"#REF!"}},{"$f":"'Data Abstraction Tool - LONG'!#REF!","v":{"$error":"#REF!"}},{"$f":"'Data Abstraction Tool - LONG'!E186","v":0},{"$f":"'Data Abstraction Tool - LONG'!#REF!","v":{"$error":"#REF!"}},{"$f":"'Data Abstraction Tool - LONG'!#REF!","v":{"$error":"#REF!"}},{"$f":"'Data Abstraction Tool - LONG'!#REF!","v":{"$error":"#REF!"}}]
[{"$f":"'Data Abstraction Tool - LONG'!#REF!","v":{"$error":"#REF!"}},{"$f":"'Data Abstraction Tool - LONG'!#REF!","v":{"$error":"#REF!"}},{"$f":"'Data Abstraction Tool - LONG'!I187","v":0},{"$f":"'Data Abstraction Tool - LONG'!#REF!","v":{"$error":"#REF!"}},{"$f":"'Data Abstraction Tool - LONG'!#REF!","v":{"$error":"#REF!"}},{"$f":"'Data Abstraction Tool - LONG'!#REF!","v":{"$error":"#REF!"}},{"$f":"'Data Abstraction Tool - LONG'!#REF!","v":{"$error":"#REF!"}},{"$f":"'Data Abstraction Tool - LONG'!#REF!","v":{"$error":"#REF!"}},{"$f":"'Data Abstraction Tool - LONG'!#REF!","v":{"$error":"#REF!"}},{"$f":"'Data Abstraction Tool - LONG'!E187","v":0},{"$f":"'Data Abstraction Tool - LONG'!#REF!","v":{"$error":"#REF!"}},{"$f":"'Data Abstraction Tool - LONG'!#REF!","v":{"$error":"#REF!"}},{"$f":"'Data Abstraction Tool - LONG'!#REF!","v":{"$error":"#REF!"}}]
[{"$f":"'Data Abstraction Tool - LONG'!#REF!","v":{"$error":"#REF!"}},{"$f":"'Data Abstraction Tool - LONG'!#REF!","v":{"$error":"#REF!"}},{"$f":"'Data Abstraction Tool - LONG'!I188","v":0},{"$f":"'Data Abstraction Tool - LONG'!#REF!","v":{"$error":"#REF!"}},{"$f":"'Data Abstraction Tool - LONG'!#REF!","v":{"$error":"#REF!"}},{"$f":"'Data Abstraction Tool - LONG'!#REF!","v":{"$error":"#REF!"}},{"$f":"'Data Abstraction Tool - LONG'!#REF!","v":{"$error":"#REF!"}},{"$f":"'Data Abstraction Tool - LONG'!#REF!","v":{"$error":"#REF!"}},{"$f":"'Data Abstraction Tool - LONG'!#REF!","v":{"$error":"#REF!"}},{"$f":"'Data Abstraction Tool - LONG'!E188","v":0},{"$f":"'Data Abstraction Tool - LONG'!#REF!","v":{"$error":"#REF!"}},{"$f":"'Data Abstraction Tool - LONG'!#REF!","v":{"$error":"#REF!"}},{"$f":"'Data Abstraction Tool - LONG'!#REF!","v":{"$error":"#REF!"}}]
[{"$f":"'Data Abstraction Tool - LONG'!#REF!","v":{"$error":"#REF!"}},{"$f":"'Data Abstraction Tool - LONG'!#REF!","v":{"$error":"#REF!"}},{"$f":"'Data Abstraction Tool - LONG'!I189","v":0},{"$f":"'Data Abstraction Tool - LONG'!#REF!","v":{"$error":"#REF!"}},{"$f":"'Data Abstraction Tool - LONG'!#REF!","v":{"$error":"#REF!"}},{"$f":"'Data Abstraction Tool - LONG'!#REF!","v":{"$error":"#REF!"}},{"$f":"'Data Abstraction Tool - LONG'!#REF!","v":{"$error":"#REF!"}},{"$f":"'Data Abstraction Tool - LONG'!#REF!","v":{"$error":"#REF!"}},{"$f":"'Data Abstraction Tool - LONG'!#REF!","v":{"$error":"#REF!"}},{"$f":"'Data Abstraction Tool - LONG'!E189","v":0},{"$f":"'Data Abstraction Tool - LONG'!#REF!","v":{"$error":"#REF!"}},{"$f":"'Data Abstraction Tool - LONG'!#REF!","v":{"$error":"#REF!"}},{"$f":"'Data Abstraction Tool - LONG'!#REF!","v":{"$error":"#REF!"}}]
[{"$f":"'Data Abstraction Tool - LONG'!#REF!","v":{"$error":"#REF!"}},{"$f":"'Data Abstraction Tool - LONG'!#REF!","v":{"$error":"#REF!"}},{"$f":"'Data Abstraction Tool - LONG'!I190","v":0},{"$f":"'Data Abstraction Tool - LONG'!#REF!","v":{"$error":"#REF!"}},{"$f":"'Data Abstraction Tool - LONG'!#REF!","v":{"$error":"#REF!"}},{"$f":"'Data Abstraction Tool - LONG'!#REF!","v":{"$error":"#REF!"}},{"$f":"'Data Abstraction Tool - LONG'!#REF!","v":{"$error":"#REF!"}},{"$f":"'Data Abstraction Tool - LONG'!#REF!","v":{"$error":"#REF!"}},{"$f":"'Data Abstraction Tool - LONG'!#REF!","v":{"$error":"#REF!"}},{"$f":"'Data Abstraction Tool - LONG'!E190","v":0},{"$f":"'Data Abstraction Tool - LONG'!#REF!","v":{"$error":"#REF!"}},{"$f":"'Data Abstraction Tool - LONG'!#REF!","v":{"$error":"#REF!"}},{"$f":"'Data Abstraction Tool - LONG'!#REF!","v":{"$error":"#REF!"}}]
[{"$f":"'Data Abstraction Tool - LONG'!#REF!","v":{"$error":"#REF!"}},{"$f":"'Data Abstraction Tool - LONG'!#REF!","v":{"$error":"#REF!"}},{"$f":"'Data Abstraction Tool - LONG'!I191","v":0},{"$f":"'Data Abstraction Tool - LONG'!#REF!","v":{"$error":"#REF!"}},{"$f":"'Data Abstraction Tool - LONG'!#REF!","v":{"$error":"#REF!"}},{"$f":"'Data Abstraction Tool - LONG'!#REF!","v":{"$error":"#REF!"}},{"$f":"'Data Abstraction Tool - LONG'!#REF!","v":{"$error":"#REF!"}},{"$f":"'Data Abstraction Tool - LONG'!#REF!","v":{"$error":"#REF!"}},{"$f":"'Data Abstraction Tool - LONG'!#REF!","v":{"$error":"#REF!"}},{"$f":"'Data Abstraction Tool - LONG'!E191","v":0},{"$f":"'Data Abstraction Tool - LONG'!#REF!","v":{"$error":"#REF!"}},{"$f":"'Data Abstraction Tool - LONG'!#REF!","v":{"$error":"#REF!"}},{"$f":"'Data Abstraction Tool - LONG'!#REF!","v":{"$error":"#REF!"}}]
[{"$f":"'Data Abstraction Tool - LONG'!#REF!","v":{"$error":"#REF!"}},{"$f":"'Data Abstraction Tool - LONG'!#REF!","v":{"$error":"#REF!"}},{"$f":"'Data Abstraction Tool - LONG'!I192","v":0},{"$f":"'Data Abstraction Tool - LONG'!#REF!","v":{"$error":"#REF!"}},{"$f":"'Data Abstraction Tool - LONG'!#REF!","v":{"$error":"#REF!"}},{"$f":"'Data Abstraction Tool - LONG'!#REF!","v":{"$error":"#REF!"}},{"$f":"'Data Abstraction Tool - LONG'!#REF!","v":{"$error":"#REF!"}},{"$f":"'Data Abstraction Tool - LONG'!#REF!","v":{"$error":"#REF!"}},{"$f":"'Data Abstraction Tool - LONG'!#REF!","v":{"$error":"#REF!"}},{"$f":"'Data Abstraction Tool - LONG'!E192","v":0},{"$f":"'Data Abstraction Tool - LONG'!#REF!","v":{"$error":"#REF!"}},{"$f":"'Data Abstraction Tool - LONG'!#REF!","v":{"$error":"#REF!"}},{"$f":"'Data Abstraction Tool - LONG'!#REF!","v":{"$error":"#REF!"}}]
[{"$f":"'Data Abstraction Tool - LONG'!#REF!","v":{"$error":"#REF!"}},{"$f":"'Data Abstraction Tool - LONG'!#REF!","v":{"$error":"#REF!"}},{"$f":"'Data Abstraction Tool - LONG'!I193","v":0},{"$f":"'Data Abstraction Tool - LONG'!#REF!","v":{"$error":"#REF!"}},{"$f":"'Data Abstraction Tool - LONG'!#REF!","v":{"$error":"#REF!"}},{"$f":"'Data Abstraction Tool - LONG'!#REF!","v":{"$error":"#REF!"}},{"$f":"'Data Abstraction Tool - LONG'!#REF!","v":{"$error":"#REF!"}},{"$f":"'Data Abstraction Tool - LONG'!#REF!","v":{"$error":"#REF!"}},{"$f":"'Data Abstraction Tool - LONG'!#REF!","v":{"$error":"#REF!"}},{"$f":"'Data Abstraction Tool - LONG'!E193","v":0},{"$f":"'Data Abstraction Tool - LONG'!#REF!","v":{"$error":"#REF!"}},{"$f":"'Data Abstraction Tool - LONG'!#REF!","v":{"$error":"#REF!"}},{"$f":"'Data Abstraction Tool - LONG'!#REF!","v":{"$error":"#REF!"}}]
[{"$f":"'Data Abstraction Tool - LONG'!#REF!","v":{"$error":"#REF!"}},{"$f":"'Data Abstraction Tool - LONG'!#REF!","v":{"$error":"#REF!"}},{"$f":"'Data Abstraction Tool - LONG'!I194","v":0},{"$f":"'Data Abstraction Tool - LONG'!#REF!","v":{"$error":"#REF!"}},{"$f":"'Data Abstraction Tool - LONG'!#REF!","v":{"$error":"#REF!"}},{"$f":"'Data Abstraction Tool - LONG'!#REF!","v":{"$error":"#REF!"}},{"$f":"'Data Abstraction Tool - LONG'!#REF!","v":{"$error":"#REF!"}},{"$f":"'Data Abstraction Tool - LONG'!#REF!","v":{"$error":"#REF!"}},{"$f":"'Data Abstraction Tool - LONG'!#REF!","v":{"$error":"#REF!"}},{"$f":"'Data Abstraction Tool - LONG'!E194","v":0},{"$f":"'Data Abstraction Tool - LONG'!#REF!","v":{"$error":"#REF!"}},{"$f":"'Data Abstraction Tool - LONG'!#REF!","v":{"$error":"#REF!"}},{"$f":"'Data Abstraction Tool - LONG'!#REF!","v":{"$error":"#REF!"}}]
[{"$f":"'Data Abstraction Tool - LONG'!#REF!","v":{"$error":"#REF!"}},{"$f":"'Data Abstraction Tool - LONG'!#REF!","v":{"$error":"#REF!"}},{"$f":"'Data Abstraction Tool - LONG'!I195","v":0},{"$f":"'Data Abstraction Tool - LONG'!#REF!","v":{"$error":"#REF!"}},{"$f":"'Data Abstraction Tool - LONG'!#REF!","v":{"$error":"#REF!"}},{"$f":"'Data Abstraction Tool - LONG'!#REF!","v":{"$error":"#REF!"}},{"$f":"'Data Abstraction Tool - LONG'!#REF!","v":{"$error":"#REF!"}},{"$f":"'Data Abstraction Tool - LONG'!#REF!","v":{"$error":"#REF!"}},{"$f":"'Data Abstraction Tool - LONG'!#REF!","v":{"$error":"#REF!"}},{"$f":"'Data Abstraction Tool - LONG'!E195","v":0},{"$f":"'Data Abstraction Tool - LONG'!#REF!","v":{"$error":"#REF!"}},{"$f":"'Data Abstraction Tool - LONG'!#REF!","v":{"$error":"#REF!"}},{"$f":"'Data Abstraction Tool - LONG'!#REF!","v":{"$error":"#REF!"}}]
[{"$f":"'Data Abstraction Tool - LONG'!#REF!","v":{"$error":"#REF!"}},{"$f":"'Data Abstraction Tool - LONG'!#REF!","v":{"$error":"#REF!"}},{"$f":"'Data Abstraction Tool - LONG'!I196","v":0},{"$f":"'Data Abstraction Tool - LONG'!#REF!","v":{"$error":"#REF!"}},{"$f":"'Data Abstraction Tool - LONG'!#REF!","v":{"$error":"#REF!"}},{"$f":"'Data Abstraction Tool - LONG'!#REF!","v":{"$error":"#REF!"}},{"$f":"'Data Abstraction Tool - LONG'!#REF!","v":{"$error":"#REF!"}},{"$f":"'Data Abstraction Tool - LONG'!#REF!","v":{"$error":"#REF!"}},{"$f":"'Data Abstraction Tool - LONG'!#REF!","v":{"$error":"#REF!"}},{"$f":"'Data Abstraction Tool - LONG'!E196","v":0},{"$f":"'Data Abstraction Tool - LONG'!#REF!","v":{"$error":"#REF!"}},{"$f":"'Data Abstraction Tool - LONG'!#REF!","v":{"$error":"#REF!"}},{"$f":"'Data Abstraction Tool - LONG'!#REF!","v":{"$error":"#REF!"}}]
[{"$f":"'Data Abstraction Tool - LONG'!#REF!","v":{"$error":"#REF!"}},{"$f":"'Data Abstraction Tool - LONG'!#REF!","v":{"$error":"#REF!"}},{"$f":"'Data Abstraction Tool - LONG'!I197","v":0},{"$f":"'Data Abstraction Tool - LONG'!#REF!","v":{"$error":"#REF!"}},{"$f":"'Data Abstraction Tool - LONG'!#REF!","v":{"$error":"#REF!"}},{"$f":"'Data Abstraction Tool - LONG'!#REF!","v":{"$error":"#REF!"}},{"$f":"'Data Abstraction Tool - LONG'!#REF!","v":{"$error":"#REF!"}},{"$f":"'Data Abstraction Tool - LONG'!#REF!","v":{"$error":"#REF!"}},{"$f":"'Data Abstraction Tool - LONG'!#REF!","v":{"$error":"#REF!"}},{"$f":"'Data Abstraction Tool - LONG'!E197","v":0},{"$f":"'Data Abstraction Tool - LONG'!#REF!","v":{"$error":"#REF!"}},{"$f":"'Data Abstraction Tool - LONG'!#REF!","v":{"$error":"#REF!"}},{"$f":"'Data Abstraction Tool - LONG'!#REF!","v":{"$error":"#REF!"}}]
[{"$f":"'Data Abstraction Tool - LONG'!#REF!","v":{"$error":"#REF!"}},{"$f":"'Data Abstraction Tool - LONG'!#REF!","v":{"$error":"#REF!"}},{"$f":"'Data Abstraction Tool - LONG'!I198","v":0},{"$f":"'Data Abstraction Tool - LONG'!#REF!","v":{"$error":"#REF!"}},{"$f":"'Data Abstraction Tool - LONG'!#REF!","v":{"$error":"#REF!"}},{"$f":"'Data Abstraction Tool - LONG'!#REF!","v":{"$error":"#REF!"}},{"$f":"'Data Abstraction Tool - LONG'!#REF!","v":{"$error":"#REF!"}},{"$f":"'Data Abstraction Tool - LONG'!#REF!","v":{"$error":"#REF!"}},{"$f":"'Data Abstraction Tool - LONG'!#REF!","v":{"$error":"#REF!"}},{"$f":"'Data Abstraction Tool - LONG'!E198","v":0},{"$f":"'Data Abstraction Tool - LONG'!#REF!","v":{"$error":"#REF!"}},{"$f":"'Data Abstraction Tool - LONG'!#REF!","v":{"$error":"#REF!"}},{"$f":"'Data Abstraction Tool - LONG'!#REF!","v":{"$error":"#REF!"}}]
[{"$f":"'Data Abstraction Tool - LONG'!#REF!","v":{"$error":"#REF!"}},{"$f":"'Data Abstraction Tool - LONG'!#REF!","v":{"$error":"#REF!"}},{"$f":"'Data Abstraction Tool - LONG'!I199","v":0},{"$f":"'Data Abstraction Tool - LONG'!#REF!","v":{"$error":"#REF!"}},{"$f":"'Data Abstraction Tool - LONG'!#REF!","v":{"$error":"#REF!"}},{"$f":"'Data Abstraction Tool - LONG'!#REF!","v":{"$error":"#REF!"}},{"$f":"'Data Abstraction Tool - LONG'!#REF!","v":{"$error":"#REF!"}},{"$f":"'Data Abstraction Tool - LONG'!#REF!","v":{"$error":"#REF!"}},{"$f":"'Data Abstraction Tool - LONG'!#REF!","v":{"$error":"#REF!"}},{"$f":"'Data Abstraction Tool - LONG'!E199","v":0},{"$f":"'Data Abstraction Tool - LONG'!#REF!","v":{"$error":"#REF!"}},{"$f":"'Data Abstraction Tool - LONG'!#REF!","v":{"$error":"#REF!"}},{"$f":"'Data Abstraction Tool - LONG'!#REF!","v":{"$error":"#REF!"}}]
[{"$f":"'Data Abstraction Tool - LONG'!#REF!","v":{"$error":"#REF!"}},{"$f":"'Data Abstraction Tool - LONG'!#REF!","v":{"$error":"#REF!"}},{"$f":"'Data Abstraction Tool - LONG'!I200","v":0},{"$f":"'Data Abstraction Tool - LONG'!#REF!","v":{"$error":"#REF!"}},{"$f":"'Data Abstraction Tool - LONG'!#REF!","v":{"$error":"#REF!"}},{"$f":"'Data Abstraction Tool - LONG'!#REF!","v":{"$error":"#REF!"}},{"$f":"'Data Abstraction Tool - LONG'!#REF!","v":{"$error":"#REF!"}},{"$f":"'Data Abstraction Tool - LONG'!#REF!","v":{"$error":"#REF!"}},{"$f":"'Data Abstraction Tool - LONG'!#REF!","v":{"$error":"#REF!"}},{"$f":"'Data Abstraction Tool - LONG'!E200","v":0},{"$f":"'Data Abstraction Tool - LONG'!#REF!","v":{"$error":"#REF!"}},{"$f":"'Data Abstraction Tool - LONG'!#REF!","v":{"$error":"#REF!"}},{"$f":"'Data Abstraction Tool - LONG'!#REF!","v":{"$error":"#REF!"}}]
[{"$f":"'Data Abstraction Tool - LONG'!#REF!","v":{"$error":"#REF!"}},{"$f":"'Data Abstraction Tool - LONG'!#REF!","v":{"$error":"#REF!"}},{"$f":"'Data Abstraction Tool - LONG'!I201","v":0},{"$f":"'Data Abstraction Tool - LONG'!#REF!","v":{"$error":"#REF!"}},{"$f":"'Data Abstraction Tool - LONG'!#REF!","v":{"$error":"#REF!"}},{"$f":"'Data Abstraction Tool - LONG'!#REF!","v":{"$error":"#REF!"}},{"$f":"'Data Abstraction Tool - LONG'!#REF!","v":{"$error":"#REF!"}},{"$f":"'Data Abstraction Tool - LONG'!#REF!","v":{"$error":"#REF!"}},{"$f":"'Data Abstraction Tool - LONG'!#REF!","v":{"$error":"#REF!"}},{"$f":"'Data Abstraction Tool - LONG'!E201","v":0},{"$f":"'Data Abstraction Tool - LONG'!#REF!","v":{"$error":"#REF!"}},{"$f":"'Data Abstraction Tool - LONG'!#REF!","v":{"$error":"#REF!"}},{"$f":"'Data Abstraction Tool - LONG'!#REF!","v":{"$error":"#REF!"}}]
[{"$f":"'Data Abstraction Tool - LONG'!#REF!","v":{"$error":"#REF!"}},{"$f":"'Data Abstraction Tool - LONG'!#REF!","v":{"$error":"#REF!"}},{"$f":"'Data Abstraction Tool - LONG'!I202","v":0},{"$f":"'Data Abstraction Tool - LONG'!#REF!","v":{"$error":"#REF!"}},{"$f":"'Data Abstraction Tool - LONG'!#REF!","v":{"$error":"#REF!"}},{"$f":"'Data Abstraction Tool - LONG'!#REF!","v":{"$error":"#REF!"}},{"$f":"'Data Abstraction Tool - LONG'!#REF!","v":{"$error":"#REF!"}},{"$f":"'Data Abstraction Tool - LONG'!#REF!","v":{"$error":"#REF!"}},{"$f":"'Data Abstraction Tool - LONG'!#REF!","v":{"$error":"#REF!"}},{"$f":"'Data Abstraction Tool - LONG'!E202","v":0},{"$f":"'Data Abstraction Tool - LONG'!#REF!","v":{"$error":"#REF!"}},{"$f":"'Data Abstraction Tool - LONG'!#REF!","v":{"$error":"#REF!"}},{"$f":"'Data Abstraction Tool - LONG'!#REF!","v":{"$error":"#REF!"}}]
[{"$f":"'Data Abstraction Tool - LONG'!#REF!","v":{"$error":"#REF!"}},{"$f":"'Data Abstraction Tool - LONG'!#REF!","v":{"$error":"#REF!"}},{"$f":"'Data Abstraction Tool - LONG'!I203","v":0},{"$f":"'Data Abstraction Tool - LONG'!#REF!","v":{"$error":"#REF!"}},{"$f":"'Data Abstraction Tool - LONG'!#REF!","v":{"$error":"#REF!"}},{"$f":"'Data Abstraction Tool - LONG'!#REF!","v":{"$error":"#REF!"}},{"$f":"'Data Abstraction Tool - LONG'!#REF!","v":{"$error":"#REF!"}},{"$f":"'Data Abstraction Tool - LONG'!#REF!","v":{"$error":"#REF!"}},{"$f":"'Data Abstraction Tool - LONG'!#REF!","v":{"$error":"#REF!"}},{"$f":"'Data Abstraction Tool - LONG'!E203","v":0},{"$f":"'Data Abstraction Tool - LONG'!#REF!","v":{"$error":"#REF!"}},{"$f":"'Data Abstraction Tool - LONG'!#REF!","v":{"$error":"#REF!"}},{"$f":"'Data Abstraction Tool - LONG'!#REF!","v":{"$error":"#REF!"}}]
[{"$f":"'Data Abstraction Tool - LONG'!#REF!","v":{"$error":"#REF!"}},{"$f":"'Data Abstraction Tool - LONG'!#REF!","v":{"$error":"#REF!"}},{"$f":"'Data Abstraction Tool - LONG'!I204","v":0},{"$f":"'Data Abstraction Tool - LONG'!#REF!","v":{"$error":"#REF!"}},{"$f":"'Data Abstraction Tool - LONG'!#REF!","v":{"$error":"#REF!"}},{"$f":"'Data Abstraction Tool - LONG'!#REF!","v":{"$error":"#REF!"}},{"$f":"'Data Abstraction Tool - LONG'!#REF!","v":{"$error":"#REF!"}},{"$f":"'Data Abstraction Tool - LONG'!#REF!","v":{"$error":"#REF!"}},{"$f":"'Data Abstraction Tool - LONG'!#REF!","v":{"$error":"#REF!"}},{"$f":"'Data Abstraction Tool - LONG'!E204","v":0},{"$f":"'Data Abstraction Tool - LONG'!#REF!","v":{"$error":"#REF!"}},{"$f":"'Data Abstraction Tool - LONG'!#REF!","v":{"$error":"#REF!"}},{"$f":"'Data Abstraction Tool - LONG'!#REF!","v":{"$error":"#REF!"}}]
[{"$f":"'Data Abstraction Tool - LONG'!#REF!","v":{"$error":"#REF!"}},{"$f":"'Data Abstraction Tool - LONG'!#REF!","v":{"$error":"#REF!"}},{"$f":"'Data Abstraction Tool - LONG'!I205","v":0},{"$f":"'Data Abstraction Tool - LONG'!#REF!","v":{"$error":"#REF!"}},{"$f":"'Data Abstraction Tool - LONG'!#REF!","v":{"$error":"#REF!"}},{"$f":"'Data Abstraction Tool - LONG'!#REF!","v":{"$error":"#REF!"}},{"$f":"'Data Abstraction Tool - LONG'!#REF!","v":{"$error":"#REF!"}},{"$f":"'Data Abstraction Tool - LONG'!#REF!","v":{"$error":"#REF!"}},{"$f":"'Data Abstraction Tool - LONG'!#REF!","v":{"$error":"#REF!"}},{"$f":"'Data Abstraction Tool - LONG'!E205","v":0},{"$f":"'Data Abstraction Tool - LONG'!#REF!","v":{"$error":"#REF!"}},{"$f":"'Data Abstraction Tool - LONG'!#REF!","v":{"$error":"#REF!"}},{"$f":"'Data Abstraction Tool - LONG'!#REF!","v":{"$error":"#REF!"}}]
[{"$f":"'Data Abstraction Tool - LONG'!#REF!","v":{"$error":"#REF!"}},{"$f":"'Data Abstraction Tool - LONG'!#REF!","v":{"$error":"#REF!"}},{"$f":"'Data Abstraction Tool - LONG'!I206","v":0},{"$f":"'Data Abstraction Tool - LONG'!#REF!","v":{"$error":"#REF!"}},{"$f":"'Data Abstraction Tool - LONG'!#REF!","v":{"$error":"#REF!"}},{"$f":"'Data Abstraction Tool - LONG'!#REF!","v":{"$error":"#REF!"}},{"$f":"'Data Abstraction Tool - LONG'!#REF!","v":{"$error":"#REF!"}},{"$f":"'Data Abstraction Tool - LONG'!#REF!","v":{"$error":"#REF!"}},{"$f":"'Data Abstraction Tool - LONG'!#REF!","v":{"$error":"#REF!"}},{"$f":"'Data Abstraction Tool - LONG'!E206","v":0},{"$f":"'Data Abstraction Tool - LONG'!#REF!","v":{"$error":"#REF!"}},{"$f":"'Data Abstraction Tool - LONG'!#REF!","v":{"$error":"#REF!"}},{"$f":"'Data Abstraction Tool - LONG'!#REF!","v":{"$error":"#REF!"}}]

{"sheet":"ValueSets","index":4,"n_rows":419,"n_cols":17,"rows_kept":419,"hidden":true,"merged":[[0,0,0,16]]}
[]
["CMS ID","NQF Number","Value Set Name","Value Set OID","QDM Category","Definition Version","Expansion Version","Purpose: Clinical Focus","Purpose: Data Element Scope","Purpose: Inclusion Criteria","Purpose: Exclusion Criteria","Code","Description","Code System","Code System OID","Code System Version","Expansion ID"]
["CMS50v6","","Consultant Report","2.16.840.1.113883.3.464.1003.121.12.1006","Communication","20170504","eCQM Update 2018 EP-EC and EH","Under Development","Under Development","Under Development","Under Development","371530004","Clinical consultation report (record artifact)","SNOMEDCT","2.16.840.1.113883.6.96","2017-03","20170929"]
["CMS50v6","","Consultant Report","2.16.840.1.113883.3.464.1003.121.12.1006","Communication","20170504","eCQM Update 2018 EP-EC and EH","Under Development","Under Development","Under Development","Under Development","371531000","Report of clinical encounter (record artifact)","SNOMEDCT","2.16.840.1.113883.6.96","2017-03","20170929"]
["CMS50v6","","Consultant Report","2.16.840.1.113883.3.464.1003.121.12.1006","Communication","20170504","eCQM Update 2018 EP-EC and EH","Under Development","Under Development","Under Development","Under Development","371545006","Confirmatory consultation report (record artifact)","SNOMEDCT","2.16.840.1.113883.6.96","2017-03","20170929"]
["CMS50v6","","Ethnicity","2.16.840.1.114222.4.11.837","Individual Characteristic","20121025","eCQM Update 2018 EP-EC and EH","","","","","2135-2","Hispanic or Latino","CDCREC","2.16.840.1.113883.6.238","1.1","20170929"]
["CMS50v6","","Ethnicity","2.16.840.1.114222.4.11.837","Individual Characteristic","20121025","eCQM Update 2018 EP-EC and EH","","","","","2186-5","Not Hispanic or Latino","CDCREC","2.16.840.1.113883.6.238","1.1","20170929"]
["CMS50v6","","Face-to-Face Interaction","2.16.840.1.113883.3.464.1003.101.12.1048","Encounter","20170504","eCQM Update 2018 EP-EC and EH","This value set indentifies patients who have had a face-to-face interaction with a member of their medical care team.","This value set was intended to map to the QDM data type of encounter.","Includes both initial and follow up visits. Includes home visits, inpatient and outpatient visits, and nursing facility visits.","Excludes visits that are not performed in-person, including telehealth services.","12843005","Subsequent hospital visit by physician (procedure)","SNOMEDCT","2.16.840.1.113883.6.96","2017-03","20170929"]
["CMS50v6","","Face-to-Face Interaction","2.16.840.1.113883.3.464.1003.101.12.1048","Encounter","20170504","eCQM Update 2018 EP-EC and EH","This value set indentifies patients who have had a face-to-face interaction with a member of their medical care team.","This value set was intended to map to the QDM data type of encounter.","Includes both initial and follow up visits. Includes home visits, inpatient and outpatient visits, and nursing facility visits.","Excludes visits that are not performed in-person, including telehealth services.","18170008","Subsequent nursing facility visit (procedure)","SNOMEDCT","2.16.840.1.113883.6.96","2017-03","20170929"]
["CMS50v6","","Face-to-Face Interaction","2.16.840.1.113883.3.464.1003.101.12.1048","Encounter","20170504","eCQM Update 2018 EP-EC and EH","This value set indentifies patients who have had a face-to-face interaction with a member of their medical care team.","This value set was intended to map to the QDM data type of encounter.","Includes both initial and follow up visits. Includes home visits, inpatient and outpatient visits, and nursing facility visits.","Excludes visits that are not performed in-person, including telehealth services.","185349003","Encounter for check up (procedure)","SNOMEDCT","2.16.840.1.113883.6.96","2017-03","20170929"]
["CMS50v6","","Face-to-Face Interaction","2.16.840.1.113883.3.464.1003.101.12.1048","Encounter","20170504","eCQM Update 2018 EP-EC and EH","This value set indentifies patients who have had a face-to-face interaction with a member of their medical care team.","This value set was intended to map to the QDM data type of encounter.","Includes both initial and follow up visits. Includes home visits, inpatient and outpatient visits, and nursing facility visits.","Excludes visits that are not performed in-person, including telehealth services.","185463005","Visit out of hours (procedure)","SNOMEDCT","2.16.840.1.113883.6.96","2017-03","20170929"]
["CMS50v6","","Face-to-Face Interaction","2.16.840.1.113883.3.464.1003.101.12.1048","Encounter","20170504","eCQM Update 2018 EP-EC and EH","This value set indentifies patients who have had a face-to-face interaction with a member of their medical care team.","This value set was intended to map to the QDM data type of encounter.","Includes both initial and follow up visits. Includes home visits, inpatient and outpatient visits, and nursing facility visits.","Excludes visits that are not performed in-person, including telehealth services.","185465003","Weekend visit (procedure)","SNOMEDCT","2.16.840.1.113883.6.96","2017-03","20170929"]
["CMS50v6","","Face-to-Face Interaction","2.16.840.1.113883.3.464.1003.101.12.1048","Encounter","20170504","eCQM Update 2018 EP-EC and EH","This value set indentifies patients who have had a face-to-face interaction with a member of their medical care team.","This value set was intended to map to the QDM data type of encounter.","Includes both initial and follow up visits. Includes home visits, inpatient and outpatient visits, and nursing facility visits.","Excludes visits that are not performed in-person, including telehealth services.","19681004","Nursing evaluation of patient and report (procedure)","SNOMEDCT","2.16.840.1.113883.6.96","2017-03","20170929"]
["CMS50v6","","Face-to-Face Interaction","2.16.840.1.113883.3.464.1003.101.12.1048","Encounter","20170504","eCQM Update 2018 EP-EC and EH","This value set indentifies patients who have had a face-to-face interaction with a member of their medical care team.","This value set was intended to map to the QDM data type of encounter.","Includes both initial and follow up visits. Includes home visits, inpatient and outpatient visits, and nursing facility visits.","Excludes visits that are not performed in-person, including telehealth services.","207195004","History and physical examination with evaluation and management of nursing facility patient (procedure)","SNOMEDCT","2.16.840.1.113883.6.96","2017-03","20170929"]
["CMS50v6","","Face-to-Face Interaction","2.16.840.1.113883.3.464.1003.101.12.1048","Encounter","20170504","eCQM Update 2018 EP-EC and EH","This value set indentifies patients who have had a face-to-face interaction with a member of their medical care team.","This value set was intended to map to the QDM data type of encounter.","Includes both initial and follow up visits. Includes home visits, inpatient and outpatient visits, and nursing facility visits.","Excludes visits that are not performed in-person, including telehealth services.","270427003","Patient-initiated encounter (procedure)","SNOMEDCT","2.16.840.1.113883.6.96","2017-03","20170929"]
["CMS50v6","","Face-to-Face Interaction","2.16.840.1.113883.3.464.1003.101.12.1048","Encounter","20170504","eCQM Update 2018 EP-EC and EH","This value set indentifies patients who have had a face-to-face interaction with a member of their medical care team.","This value set was intended to map to the QDM data type of encounter.","Includes both initial and follow up visits. Includes home visits, inpatient and outpatient visits, and nursing facility visits.","Excludes visits that are not performed in-person, including telehealth services.","270430005","Provider-initiated encounter (procedure)","SNOMEDCT","2.16.840.1.113883.6.96","2017-03","20170929"]
["CMS50v6","","Face-to-Face Interaction","2.16.840.1.113883.3.464.1003.101.12.1048","Encounter","20170504","eCQM Update 2018 EP-EC and EH","This value set indentifies patients who have had a face-to-face interaction with a member of their medical care team.","This value set was intended to map to the QDM data type of encounter.","Includes both initial and follow up visits. Includes home visits, inpatient and outpatient visits, and nursing facility visits.","Excludes visits that are not performed in-person, including telehealth services.","308335008","Patient encounter procedure (procedure)","SNOMEDCT","2.16.840.1.113883.6.96","2017-03","20170929"]
["CMS50v6","","Face-to-Face Interaction","2.16.840.1.113883.3.464.1003.101.12.1048","Encounter","20170504","eCQM Update 2018 EP-EC and EH","This value set indentifies patients who have had a face-to-face interaction with a member of their medical care team.","This value set was intended to map to the QDM data type of encounter.","Includes both initial and follow up visits. Includes home visits, inpatient and outpatient visits, and nursing facility visits.","Excludes visits that are not performed in-person, including telehealth services.","390906007","Follow-up encounter (procedure)","SNOMEDCT","2.16.840.1.113883.6.96","2017-03","20170929"]
["CMS50v6","","Face-to-Face Interaction","2.16.840.1.113883.3.464.1003.101.12.1048","Encounter","20170504","eCQM Update 2018 EP-EC and EH","This value set indentifies patients who have had a face-to-face interaction with a member of their medical care team.","This value set was intended to map to the QDM data type of encounter.","Includes both initial and follow up visits. Includes home visits, inpatient and outpatient visits, and nursing facility visits.","Excludes visits that are not performed in-person, including telehealth services.","406547006","Urgent follow-up (procedure)","SNOMEDCT","2.16.840.1.113883.6.96","2017-03","20170929"]
["CMS50v6","","Face-to-Face Interaction","2.16.840.1.113883.3.464.1003.101.12.1048","Encounter","20170504","eCQM Update 2018 EP-EC and EH","This value set indentifies patients who have had a face-to-face interaction with a member of their medical care team.","This value set was intended to map to the QDM data type of encounter.","Includes both initial and follow up visits. Includes home visits, inpatient and outpatient visits, and nursing facility visits.","Excludes visits that are not performed in-person, including telehealth services.","439708006","Home visit (procedure)","SNOMEDCT","2.16.840.1.113883.6.96","2017-03","20170929"]
["CMS50v6","","Face-to-Face Interaction","2.16.840.1.113883.3.464.1003.101.12.1048","Encounter","20170504","eCQM Update 2018 EP-EC and EH","This value set indentifies patients who have had a face-to-face interaction with a member of their medical care team.","This value set was intended to map to the QDM data type of encounter.","Includes both initial and follow up visits. Includes home visits, inpatient and outpatient visits, and nursing facility visits.","Excludes visits that are not performed in-person, including telehealth services.","87790002","Follow-up inpatient consultation visit (procedure)","SNOMEDCT","2.16.840.1.113883.6.96","2017-03","20170929"]
["CMS50v6","","Face-to-Face Interaction","2.16.840.1.113883.3.464.1003.101.12.1048","Encounter","20170504","eCQM Update 2018 EP-EC and EH","This value set indentifies patients who have had a face-to-face interaction with a member of their medical care team.","This value set was intended to map to the QDM data type of encounter.","Includes both initial and follow up visits. Includes home visits, inpatient and outpatient visits, and nursing facility visits.","Excludes visits that are not performed in-person, including telehealth services.","90526000","Initial evaluation and management of healthy individual (procedure)","SNOMEDCT","2.16.840.1.113883.6.96","2017-03","20170929"]
["CMS50v6","","ONC Administrative Sex","2.16.840.1.113762.1.4.1","Individual Characteristic","20150331","eCQM Update 2018 EP-EC and EH","Gender identity restricted to only Male and Female used in administrative situations requiring a restriction to these two categories.","Gender","Male and Female only.","Any gender identity that is not male or female.","F","Female","AdministrativeGender","2.16.840.1.113883.5.1","HL7V3.0_2016-07","20170929"]
["CMS50v6","","ONC Administrative Sex","2.16.840.1.113762.1.4.1","Individual Characteristic","20150331","eCQM Update 2018 EP-EC and EH","Gender identity restricted to only Male and Female used in administrative situations requiring a restriction to these two categories.","Gender","Male and Female only.","Any gender identity that is not male or female.","M","Male","AdministrativeGender","2.16.840.1.113883.5.1","HL7V3.0_2016-07","20170929"]
["CMS50v6","","Office Visit","2.16.840.1.113883.3.464.1003.101.12.1001","Encounter","20170504","eCQM Update 2018 EP-EC and EH","This value set identifies patients who have had an office or other outpatient visit.","This value set was intended to map to the QDM data type of encounter.","Includes comprehensive history, evaluation, and management of a patient in an office or outpatient facility. Patient can be presenting with problems that are minor to high severity.","Excludes non-office visits, including telehealth services.","99201","Office or other outpatient visit for the evaluation and management of a new patient, which requires these 3 key components: A problem focused history; A problem focused examination; Straightforward medical decision making. Counseling and/or coordination of care with other physicians, other qualified health care professionals, or agencies are provided consistent with the nature of the problem(s) and the patient's and/or family's needs. Usually, the presenting problem(s) are self limited or minor. Typically, 10 minutes are spent face-to-face with the patient and/or family.","CPT","2.16.840.1.113883.6.12","2017","20170929"]
["CMS50v6","","Office Visit","2.16.840.1.113883.3.464.1003.101.12.1001","Encounter","20170504","eCQM Update 2018 EP-EC and EH","This value set identifies patients who have had an office or other outpatient visit.","This value set was intended to map to the QDM data type of encounter.","Includes comprehensive history, evaluation, and management of a patient in an office or outpatient facility. Patient can be presenting with problems that are minor to high severity.","Excludes non-office visits, including telehealth services.","99202","Office or other outpatient visit for the evaluation and management of a new patient, which requires these 3 key components: An expanded problem focused history; An expanded problem focused examination; Straightforward medical decision making. Counseling and/or coordination of care with other physicians, other qualified health care professionals, or agencies are provided consistent with the nature of the problem(s) and the patient's and/or family's needs. Usually, the presenting problem(s) are of low to moderate severity. Typically, 20 minutes are spent face-to-face with the patient and/or family.","CPT","2.16.840.1.113883.6.12","2017","20170929"]
["CMS50v6","","Office Visit","2.16.840.1.113883.3.464.1003.101.12.1001","Encounter","20170504","eCQM Update 2018 EP-EC and EH","This value set identifies patients who have had an office or other outpatient visit.","This value set was intended to map to the QDM data type of encounter.","Includes comprehensive history, evaluation, and management of a patient in an office or outpatient facility. Patient can be presenting with problems that are minor to high severity.","Excludes non-office visits, including telehealth services.","99203","Office or other outpatient visit for the evaluation and management of a new patient, which requires these 3 key components: A detailed history; A detailed examination; Medical decision making of low complexity. Counseling and/or coordination of care with other physicians, other qualified health care professionals, or agencies are provided consistent with the nature of the problem(s) and the patient's and/or family's needs. Usually, the presenting problem(s) are of moderate severity. Typically, 30 minutes are spent face-to-face with the patient and/or family.","CPT","2.16.840.1.113883.6.12","2017","20170929"]
["CMS50v6","","Office Visit","2.16.840.1.113883.3.464.1003.101.12.1001","Encounter","20170504","eCQM Update 2018 EP-EC and EH","This value set identifies patients who have had an office or other outpatient visit.","This value set was intended to map to the QDM data type of encounter.","Includes comprehensive history, evaluation, and management of a patient in an office or outpatient facility. Patient can be presenting with problems that are minor to high severity.","Excludes non-office visits, including telehealth services.","99204","Office or other outpatient visit for the evaluation and management of a new patient, which requires these 3 key components: A comprehensive history; A comprehensive examination; Medical decision making of moderate complexity. Counseling and/or coordination of care with other physicians, other qualified health care professionals, or agencies are provided consistent with the nature of the problem(s) and the patient's and/or family's needs. Usually, the presenting problem(s) are of moderate to high severity. Typically, 45 minutes are spent face-to-face with the patient and/or family.","CPT","2.16.840.1.113883.6.12","2017","20170929"]
["CMS50v6","","Office Visit","2.16.840.1.113883.3.464.1003.101.12.1001","Encounter","20170504","eCQM Update 2018 EP-EC and EH","This value set identifies patients who have had an office or other outpatient visit.","This value set was intended to map to the QDM data type of encounter.","Includes comprehensive history, evaluation, and management of a patient in an office or outpatient facility. Patient can be presenting with problems that are minor to high severity.","Excludes non-office visits, including telehealth services.","99205","Office or other outpatient visit for the evaluation and management of a new patient, which requires these 3 key components: A comprehensive history; A comprehensive examination; Medical decision making of high complexity. Counseling and/or coordination of care with other physicians, other qualified health care professionals, or agencies are provided consistent with the nature of the problem(s) and the patient's and/or family's needs. Usually, the presenting problem(s) are of moderate to high severity. Typically, 60 minutes are spent face-to-face with the patient and/or family.","CPT","2.16.840.1.113883.6.12","2017","20170929"]
["CMS50v6","","Office Visit","2.16.840.1.113883.3.464.1003.101.12.1001","Encounter","20170504","eCQM Update 2018 EP-EC and EH","This value set identifies patients who have had an office or other outpatient visit.","This value set was intended to map to the QDM data type of encounter.","Includes comprehensive history, evaluation, and management of a patient in an office or outpatient facility. Patient can be presenting with problems that are minor to high severity.","Excludes non-office visits, including telehealth services.","99212","Office or other outpatient visit for the evaluation and management of an established patient, which requires at least 2 of these 3 key components: A problem focused history; A problem focused examination; Straightforward medical decision making. Counseling and/or coordination of care with other physicians, other qualified health care professionals, or agencies are provided consistent with the nature of the problem(s) and the patient's and/or family's needs. Usually, the presenting problem(s) are self limited or minor. Typically, 10 minutes are spent face-to-face with the patient and/or family.","CPT","2.16.840.1.113883.6.12","2017","20170929"]
["CMS50v6","","Office Visit","2.16.840.1.113883.3.464.1003.101.12.1001","Encounter","20170504","eCQM Update 2018 EP-EC and EH","This value set identifies patients who have had an office or other outpatient visit.","This value set was intended to map to the QDM data type of encounter.","Includes comprehensive history, evaluation, and management of a patient in an office or outpatient facility. Patient can be presenting with problems that are minor to high severity.","Excludes non-office visits, including telehealth services.","99213","Office or other outpatient visit for the evaluation and management of an established patient, which requires at least 2 of these 3 key components: An expanded problem focused history; An expanded problem focused examination; Medical decision making of low complexity. Counseling and coordination of care with other physicians, other qualified health care professionals, or agencies are provided consistent with the nature of the problem(s) and the patient's and/or family's needs. Usually, the presenting problem(s) are of low to moderate severity. Typically, 15 minutes are spent face-to-face with the patient and/or family.","CPT","2.16.840.1.113883.6.12","2017","20170929"]
["CMS50v6","","Office Visit","2.16.840.1.113883.3.464.1003.101.12.1001","Encounter","20170504","eCQM Update 2018 EP-EC and EH","This value set identifies patients who have had an office or other outpatient visit.","This value set was intended to map to the QDM data type of encounter.","Includes comprehensive history, evaluation, and management of a patient in an office or outpatient facility. Patient can be presenting with problems that are minor to high severity.","Excludes non-office visits, including telehealth services.","99214","Office or other outpatient visit for the evaluation and management of an established patient, which requires at least 2 of these 3 key components: A detailed history; A detailed examination; Medical decision making of moderate complexity. Counseling and/or coordination of care with other physicians, other qualified health care professionals, or agencies are provided consistent with the nature of the problem(s) and the patient's and/or family's needs. Usually, the presenting problem(s) are of moderate to high severity. Typically, 25 minutes are spent face-to-face with the patient and/or family.","CPT","2.16.840.1.113883.6.12","2017","20170929"]
["CMS50v6","","Office Visit","2.16.840.1.113883.3.464.1003.101.12.1001","Encounter","20170504","eCQM Update 2018 EP-EC and EH","This value set identifies patients who have had an office or other outpatient visit.","This value set was intended to map to the QDM data type of encounter.","Includes comprehensive history, evaluation, and management of a patient in an office or outpatient facility. Patient can be presenting with problems that are minor to high severity.","Excludes non-office visits, including telehealth services.","99215","Office or other outpatient visit for the evaluation and management of an established patient, which requires at least 2 of these 3 key components: A comprehensive history; A comprehensive examination; Medical decision making of high complexity. Counseling and/or coordination of care with other physicians, other qualified health care professionals, or agencies are provided consistent with the nature of the problem(s) and the patient's and/or family's needs. Usually, the presenting problem(s) are of moderate to high severity. Typically, 40 minutes are spent face-to-face with the patient and/or family.","CPT","2.16.840.1.113883.6.12","2017","20170929"]
["CMS50v6","","Ophthalmological Services","2.16.840.1.113883.3.526.3.1285","Encounter","20170504","eCQM Update 2018 EP-EC and EH","Under Development","Under Development","Under Development","Under Development","92002","Ophthalmological services: medical examination and evaluation with initiation of diagnostic and treatment program; intermediate, new patient","CPT","2.16.840.1.113883.6.12","2017","20170929"]
["CMS50v6","","Ophthalmological Services","2.16.840.1.113883.3.526.3.1285","Encounter","20170504","eCQM Update 2018 EP-EC and EH","Under Development","Under Development","Under Development","Under Development","92004","Ophthalmological services: medical examination and evaluation with initiation of diagnostic and treatment program; comprehensive, new patient, 1 or more visits","CPT","2.16.840.1.113883.6.12","2017","20170929"]
["CMS50v6","","Ophthalmological Services","2.16.840.1.113883.3.526.3.1285","Encounter","20170504","eCQM Update 2018 EP-EC and EH","Under Development","Under Development","Under Development","Under Development","92012","Ophthalmological services: medical examination and evaluation, with initiation or continuation of diagnostic and treatment program; intermediate, established patient","CPT","2.16.840.1.113883.6.12","2017","20170929"]
["CMS50v6","","Ophthalmological Services","2.16.840.1.113883.3.526.3.1285","Encounter","20170504","eCQM Update 2018 EP-EC and EH","Under Development","Under Development","Under Development","Under Development","92014","Ophthalmological services: medical examination and evaluation, with initiation or continuation of diagnostic and treatment program; comprehensive, established patient, 1 or more visits","CPT","2.16.840.1.113883.6.12","2017","20170929"]
["CMS50v6","","Payer","2.16.840.1.114222.4.11.3591","Individual Characteristic","20161108","eCQM Update 2018 EP-EC and EH","Categories of types of health care payor entities as defined by the US Public Health Data Consortium SOP code system","@code in CCDA r2.1 template Planned Coverage [act: identifier urn:oid:2.16.840.1.113883.10.20.22.4.129 (open)] DYNAMIC","All codes in the code system","none","1","MEDICARE","SOP","2.16.840.1.113883.3.221.5","6.0","20170929"]
["CMS50v6","","Payer","2.16.840.1.114222.4.11.3591","Individual Characteristic","20161108","eCQM Update 2018 EP-EC and EH","Categories of types of health care payor entities as defined by the US Public Health Data Consortium SOP code system","@code in CCDA r2.1 template Planned Coverage [act: identifier urn:oid:2.16.840.1.113883.10.20.22.4.129 (open)] DYNAMIC","All codes in the code system","none","11","Medicare (Managed Care)","SOP","2.16.840.1.113883.3.221.5","6.0","20170929"]
["CMS50v6","","Payer","2.16.840.1.114222.4.11.3591","Individual Characteristic","20161108","eCQM Update 2018 EP-EC and EH","Categories of types of health care payor entities as defined by the US Public Health Data Consortium SOP code system","@code in CCDA r2.1 template Planned Coverage [act: identifier urn:oid:2.16.840.1.113883.10.20.22.4.129 (open)] DYNAMIC","All codes in the code system","none","111","Medicare HMO","SOP","2.16.840.1.113883.3.221.5","6.0","20170929"]
["CMS50v6","","Payer","2.16.840.1.114222.4.11.3591","Individual Characteristic","20161108","eCQM Update 2018 EP-EC and EH","Categories of types of health care payor entities as defined by the US Public Health Data Consortium SOP code system","@code in CCDA r2.1 template Planned Coverage [act: identifier urn:oid:2.16.840.1.113883.10.20.22.4.129 (open)] DYNAMIC","All codes in the code system","none","112","Medicare PPO","SOP","2.16.840.1.113883.3.221.5","6.0","20170929"]
["CMS50v6","","Payer","2.16.840.1.114222.4.11.3591","Individual Characteristic","20161108","eCQM Update 2018 EP-EC and EH","Categories of types of health care payor entities as defined by the US Public Health Data Consortium SOP code system","@code in CCDA r2.1 template Planned Coverage [act: identifier urn:oid:2.16.840.1.113883.10.20.22.4.129 (open)] DYNAMIC","All codes in the code system","none","113","Medicare POS","SOP","2.16.840.1.113883.3.221.5","6.0","20170929"]
["CMS50v6","","Payer","2.16.840.1.114222.4.11.3591","Individual Characteristic","20161108","eCQM Update 2018 EP-EC and EH","Categories of types of health care payor entities as defined by the US Public Health Data Consortium SOP code system","@code in CCDA r2.1 template Planned Coverage [act: identifier urn:oid:2.16.840.1.113883.10.20.22.4.129 (open)] DYNAMIC","All codes in the code system","none","119","Medicare Managed Care Other","SOP","2.16.840.1.113883.3.221.5","6.0","20170929"]
["CMS50v6","","Payer","2.16.840.1.114222.4.11.3591","Individual Characteristic","20161108","eCQM Update 2018 EP-EC and EH","Categories of types of health care payor entities as defined by the US Public Health Data Consortium SOP code system","@code in CCDA r2.1 template Planned Coverage [act: identifier urn:oid:2.16.840.1.113883.10.20.22.4.129 (open)] DYNAMIC","All codes in the code system","none","12","Medicare (Non-managed Care)","SOP","2.16.840.1.113883.3.221.5","6.0","20170929"]
["CMS50v6","","Payer","2.16.840.1.114222.4.11.3591","Individual Characteristic","20161108","eCQM Update 2018 EP-EC and EH","Categories of types of health care payor entities as defined by the US Public Health Data Consortium SOP code system","@code in CCDA r2.1 template Planned Coverage [act: identifier urn:oid:2.16.840.1.113883.10.20.22.4.129 (open)] DYNAMIC","All codes in the code system","none","121","Medicare FFS","SOP","2.16.840.1.113883.3.221.5","6.0","20170929"]
["CMS50v6","","Payer","2.16.840.1.114222.4.11.3591","Individual Characteristic","20161108","eCQM Update 2018 EP-EC and EH","Categories of types of health care payor entities as defined by the US Public Health Data Consortium SOP code system","@code in CCDA r2.1 template Planned Coverage [act: identifier urn:oid:2.16.840.1.113883.10.20.22.4.129 (open)] DYNAMIC","All codes in the code system","none","122","Medicare Drug Benefit","SOP","2.16.840.1.113883.3.221.5","6.0","20170929"]
["CMS50v6","","Payer","2.16.840.1.114222.4.11.3591","Individual Characteristic","20161108","eCQM Update 2018 EP-EC and EH","Categories of types of health care payor entities as defined by the US Public Health Data Consortium SOP code system","@code in CCDA r2.1 template Planned Coverage [act: identifier urn:oid:2.16.840.1.113883.10.20.22.4.129 (open)] DYNAMIC","All codes in the code system","none","123","Medicare Medical Savings Account (MSA)","SOP","2.16.840.1.113883.3.221.5","6.0","20170929"]
["CMS50v6","","Payer","2.16.840.1.114222.4.11.3591","Individual Characteristic","20161108","eCQM Update 2018 EP-EC and EH","Categories of types of health care payor entities as defined by the US Public Health Data Consortium SOP code system","@code in CCDA r2.1 template Planned Coverage [act: identifier urn:oid:2.16.840.1.113883.10.20.22.4.129 (open)] DYNAMIC","All codes in the code system","none","129","Medicare Non-managed Care Other","SOP","2.16.840.1.113883.3.221.5","6.0","20170929"]
["CMS50v6","","Payer","2.16.840.1.114222.4.11.3591","Individual Characteristic","20161108","eCQM Update 2018 EP-EC and EH","Categories of types of health care payor entities as defined by the US Public Health Data Consortium SOP code system","@code in CCDA r2.1 template Planned Coverage [act: identifier urn:oid:2.16.840.1.113883.10.20.22.4.129 (open)] DYNAMIC","All codes in the code system","none","13","Medicare Hospice","SOP","2.16.840.1.113883.3.221.5","6.0","20170929"]
["CMS50v6","","Payer","2.16.840.1.114222.4.11.3591","Individual Characteristic","20161108","eCQM Update 2018 EP-EC and EH","Categories of types of health care payor entities as defined by the US Public Health Data Consortium SOP code system","@code in CCDA r2.1 template Planned Coverage [act: identifier urn:oid:2.16.840.1.113883.10.20.22.4.129 (open)] DYNAMIC","All codes in the code system","none","14","Dual Eligibility Medicare/Medicaid Organization","SOP","2.16.840.1.113883.3.221.5","6.0","20170929"]
["CMS50v6","","Payer","2.16.840.1.114222.4.11.3591","Individual Characteristic","20161108","eCQM Update 2018 EP-EC and EH","Categories of types of health care payor entities as defined by the US Public Health Data Consortium SOP code system","@code in CCDA r2.1 template Planned Coverage [act: identifier urn:oid:2.16.840.1.113883.10.20.22.4.129 (open)] DYNAMIC","All codes in the code system","none","19","Medicare Other","SOP","2.16.840.1.113883.3.221.5","6.0","20170929"]
["CMS50v6","","Payer","2.16.840.1.114222.4.11.3591","Individual Characteristic","20161108","eCQM Update 2018 EP-EC and EH","Categories of types of health care payor entities as defined by the US Public Health Data Consortium SOP code system","@code in CCDA r2.1 template Planned Coverage [act: identifier urn:oid:2.16.840.1.113883.10.20.22.4.129 (open)] DYNAMIC","All codes in the code system","none","191","Medicare Pharmacy Benefit Manager","SOP","2.16.840.1.113883.3.221.5","6.0","20170929"]
["CMS50v6","","Payer","2.16.840.1.114222.4.11.3591","Individual Characteristic","20161108","eCQM Update 2018 EP-EC and EH","Categories of types of health care payor entities as defined by the US Public Health Data Consortium SOP code system","@code in CCDA r2.1 template Planned Coverage [act: identifier urn:oid:2.16.840.1.113883.10.20.22.4.129 (open)] DYNAMIC","All codes in the code system","none","2","MEDICAID","SOP","2.16.840.1.113883.3.221.5","6.0","20170929"]
["CMS50v6","","Payer","2.16.840.1.114222.4.11.3591","Individual Characteristic","20161108","eCQM Update 2018 EP-EC and EH","Categories of types of health care payor entities as defined by the US Public Health Data Consortium SOP code system","@code in CCDA r2.1 template Planned Coverage [act: identifier urn:oid:2.16.840.1.113883.10.20.22.4.129 (open)] DYNAMIC","All codes in the code system","none","21","Medicaid (Managed Care)","SOP","2.16.840.1.113883.3.221.5","6.0","20170929"]
["CMS50v6","","Payer","2.16.840.1.114222.4.11.3591","Individual Characteristic","20161108","eCQM Update 2018 EP-EC and EH","Categories of types of health care payor entities as defined by the US Public Health Data Consortium SOP code system","@code in CCDA r2.1 template Planned Coverage [act: identifier urn:oid:2.16.840.1.113883.10.20.22.4.129 (open)] DYNAMIC","All codes in the code system","none","211","Medicaid HMO","SOP","2.16.840.1.113883.3.221.5","6.0","20170929"]
["CMS50v6","","Payer","2.16.840.1.114222.4.11.3591","Individual Characteristic","20161108","eCQM Update 2018 EP-EC and EH","Categories of types of health care payor entities as defined by the US Public Health Data Consortium SOP code system","@code in CCDA r2.1 template Planned Coverage [act: identifier urn:oid:2.16.840.1.113883.10.20.22.4.129 (open)] DYNAMIC","All codes in the code system","none","212","Medicaid PPO","SOP","2.16.840.1.113883.3.221.5","6.0","20170929"]
["CMS50v6","","Payer","2.16.840.1.114222.4.11.3591","Individual Characteristic","20161108","eCQM Update 2018 EP-EC and EH","Categories of types of health care payor entities as defined by the US Public Health Data Consortium SOP code system","@code in CCDA r2.1 template Planned Coverage [act: identifier urn:oid:2.16.840.1.113883.10.20.22.4.129 (open)] DYNAMIC","All codes in the code system","none","213","Medicaid PCCM (Primary Care Case Management)","SOP","2.16.840.1.113883.3.221.5","6.0","20170929"]
["CMS50v6","","Payer","2.16.840.1.114222.4.11.3591","Individual Characteristic","20161108","eCQM Update 2018 EP-EC and EH","Categories of types of health care payor entities as defined by the US Public Health Data Consortium SOP code system","@code in CCDA r2.1 template Planned Coverage [act: identifier urn:oid:2.16.840.1.113883.10.20.22.4.129 (open)] DYNAMIC","All codes in the code system","none","219","Medicaid Managed Care Other","SOP","2.16.840.1.113883.3.221.5","6.0","20170929"]
["CMS50v6","","Payer","2.16.840.1.114222.4.11.3591","Individual Characteristic","20161108","eCQM Update 2018 EP-EC and EH","Categories of types of health care payor entities as defined by the US Public Health Data Consortium SOP code system","@code in CCDA r2.1 template Planned Coverage [act: identifier urn:oid:2.16.840.1.113883.10.20.22.4.129 (open)] DYNAMIC","All codes in the code system","none","22","Medicaid (Non-managed Care Plan)","SOP","2.16.840.1.113883.3.221.5","6.0","20170929"]
["CMS50v6","","Payer","2.16.840.1.114222.4.11.3591","Individual Characteristic","20161108","eCQM Update 2018 EP-EC and EH","Categories of types of health care payor entities as defined by the US Public Health Data Consortium SOP code system","@code in CCDA r2.1 template Planned Coverage [act: identifier urn:oid:2.16.840.1.113883.10.20.22.4.129 (open)] DYNAMIC","All codes in the code system","none","23","Medicaid/SCHIP","SOP","2.16.840.1.113883.3.221.5","6.0","20170929"]
["CMS50v6","","Payer","2.16.840.1.114222.4.11.3591","Individual Characteristic","20161108","eCQM Update 2018 EP-EC and EH","Categories of types of health care payor entities as defined by the US Public Health Data Consortium SOP code system","@code in CCDA r2.1 template Planned Coverage [act: identifier urn:oid:2.16.840.1.113883.10.20.22.4.129 (open)] DYNAMIC","All codes in the code system","none","24","Medicaid Applicant","SOP","2.16.840.1.113883.3.221.5","6.0","20170929"]
["CMS50v6","","Payer","2.16.840.1.114222.4.11.3591","Individual Characteristic","20161108","eCQM Update 2018 EP-EC and EH","Categories of types of health care payor entities as defined by the US Public Health Data Consortium SOP code system","@code in CCDA r2.1 template Planned Coverage [act: identifier urn:oid:2.16.840.1.113883.10.20.22.4.129 (open)] DYNAMIC","All codes in the code system","none","25","Medicaid - Out of State","SOP","2.16.840.1.113883.3.221.5","6.0","20170929"]
["CMS50v6","","Payer","2.16.840.1.114222.4.11.3591","Individual Characteristic","20161108","eCQM Update 2018 EP-EC and EH","Categories of types of health care payor entities as defined by the US Public Health Data Consortium SOP code system","@code in CCDA r2.1 template Planned Coverage [act: identifier urn:oid:2.16.840.1.113883.10.20.22.4.129 (open)] DYNAMIC","All codes in the code system","none","26","Medicaid -- Long Term Care","SOP","2.16.840.1.113883.3.221.5","6.0","20170929"]
["CMS50v6","","Payer","2.16.840.1.114222.4.11.3591","Individual Characteristic","20161108","eCQM Update 2018 EP-EC and EH","Categories of types of health care payor entities as defined by the US Public Health Data Consortium SOP code system","@code in CCDA r2.1 template Planned Coverage [act: identifier urn:oid:2.16.840.1.113883.10.20.22.4.129 (open)] DYNAMIC","All codes in the code system","none","29","Medicaid Other","SOP","2.16.840.1.113883.3.221.5","6.0","20170929"]
["CMS50v6","","Payer","2.16.840.1.114222.4.11.3591","Individual Characteristic","20161108","eCQM Update 2018 EP-EC and EH","Categories of types of health care payor entities as defined by the US Public Health Data Consortium SOP code system","@code in CCDA r2.1 template Planned Coverage [act: identifier urn:oid:2.16.840.1.113883.10.20.22.4.129 (open)] DYNAMIC","All codes in the code system","none","291","Medicaid Pharmacy Benefit Manager","SOP","2.16.840.1.113883.3.221.5","6.0","20170929"]
["CMS50v6","","Payer","2.16.840.1.114222.4.11.3591","Individual Characteristic","20161108","eCQM Update 2018 EP-EC and EH","Categories of types of health care payor entities as defined by the US Public Health Data Consortium SOP code system","@code in CCDA r2.1 template Planned Coverage [act: identifier urn:oid:2.16.840.1.113883.10.20.22.4.129 (open)] DYNAMIC","All codes in the code system","none","3","OTHER GOVERNMENT (Federal/State/Local) (excluding Department of Corrections)","SOP","2.16.840.1.113883.3.221.5","6.0","20170929"]
["CMS50v6","","Payer","2.16.840.1.114222.4.11.3591","Individual Characteristic","20161108","eCQM Update 2018 EP-EC and EH","Categories of types of health care payor entities as defined by the US Public Health Data Consortium SOP code system","@code in CCDA r2.1 template Planned Coverage [act: identifier urn:oid:2.16.840.1.113883.10.20.22.4.129 (open)] DYNAMIC","All codes in the code system","none","31","Department of Defense","SOP","2.16.840.1.113883.3.221.5","6.0","20170929"]
["CMS50v6","","Payer","2.16.840.1.114222.4.11.3591","Individual Characteristic","20161108","eCQM Update 2018 EP-EC and EH","Categories of types of health care payor entities as defined by the US Public Health Data Consortium SOP code system","@code in CCDA r2.1 template Planned Coverage [act: identifier urn:oid:2.16.840.1.113883.10.20.22.4.129 (open)] DYNAMIC","All codes in the code system","none","311","TRICARE (CHAMPUS)","SOP","2.16.840.1.113883.3.221.5","6.0","20170929"]
["CMS50v6","","Payer","2.16.840.1.114222.4.11.3591","Individual Characteristic","20161108","eCQM Update 2018 EP-EC and EH","Categories of types of health care payor entities as defined by the US Public Health Data Consortium SOP code system","@code in CCDA r2.1 template Planned Coverage [act: identifier urn:oid:2.16.840.1.113883.10.20.22.4.129 (open)] DYNAMIC","All codes in the code system","none","3111","TRICARE Prime--HMO","SOP","2.16.840.1.113883.3.221.5","6.0","20170929"]
["CMS50v6","","Payer","2.16.840.1.114222.4.11.3591","Individual Characteristic","20161108","eCQM Update 2018 EP-EC and EH","Categories of types of health care payor entities as defined by the US Public Health Data Consortium SOP code system","@code in CCDA r2.1 template Planned Coverage [act: identifier urn:oid:2.16.840.1.113883.10.20.22.4.129 (open)] DYNAMIC","All codes in the code system","none","3112","TRICARE Extra--PPO","SOP","2.16.840.1.113883.3.221.5","6.0","20170929"]
["CMS50v6","","Payer","2.16.840.1.114222.4.11.3591","Individual Characteristic","20161108","eCQM Update 2018 EP-EC and EH","Categories of types of health care payor entities as defined by the US Public Health Data Consortium SOP code system","@code in CCDA r2.1 template Planned Coverage [act: identifier urn:oid:2.16.840.1.113883.10.20.22.4.129 (open)] DYNAMIC","All codes in the code system","none","3113","TRICARE Standard - Fee For Service","SOP","2.16.840.1.113883.3.221.5","6.0","20170929"]
["CMS50v6","","Payer","2.16.840.1.114222.4.11.3591","Individual Characteristic","20161108","eCQM Update 2018 EP-EC and EH","Categories of types of health care payor entities as defined by the US Public Health Data Consortium SOP code system","@code in CCDA r2.1 template Planned Coverage [act: identifier urn:oid:2.16.840.1.113883.10.20.22.4.129 (open)] DYNAMIC","All codes in the code system","none","3114","TRICARE For Life--Medicare Supplement","SOP","2.16.840.1.113883.3.221.5","6.0","20170929"]
["CMS50v6","","Payer","2.16.840.1.114222.4.11.3591","Individual Characteristic","20161108","eCQM Update 2018 EP-EC and EH","Categories of types of health care payor entities as defined by the US Public Health Data Consortium SOP code system","@code in CCDA r2.1 template Planned Coverage [act: identifier urn:oid:2.16.840.1.113883.10.20.22.4.129 (open)] DYNAMIC","All codes in the code system","none","3115","TRICARE Reserve Select","SOP","2.16.840.1.113883.3.221.5","6.0","20170929"]
["CMS50v6","","Payer","2.16.840.1.114222.4.11.3591","Individual Characteristic","20161108","eCQM Update 2018 EP-EC and EH","Categories of types of health care payor entities as defined by the US Public Health Data Consortium SOP code system","@code in CCDA r2.1 template Planned Coverage [act: identifier urn:oid:2.16.840.1.113883.10.20.22.4.129 (open)] DYNAMIC","All codes in the code system","none","3116","Uniformed Services Family Health Plan (USFHP) -- HMO","SOP","2.16.840.1.113883.3.221.5","6.0","20170929"]
["CMS50v6","","Payer","2.16.840.1.114222.4.11.3591","Individual Characteristic","20161108","eCQM Update 2018 EP-EC and EH","Categories of types of health care payor entities as defined by the US Public Health Data Consortium SOP code system","@code in CCDA r2.1 template Planned Coverage [act: identifier urn:oid:2.16.840.1.113883.10.20.22.4.129 (open)] DYNAMIC","All codes in the code system","none","3119","Department of Defense - (other)","SOP","2.16.840.1.113883.3.221.5","6.0","20170929"]
["CMS50v6","","Payer","2.16.840.1.114222.4.11.3591","Individual Characteristic","20161108","eCQM Update 2018 EP-EC and EH","Categories of types of health care payor entities as defined by the US Public Health Data Consortium SOP code system","@code in CCDA r2.1 template Planned Coverage [act: identifier urn:oid:2.16.840.1.113883.10.20.22.4.129 (open)] DYNAMIC","All codes in the code system","none","312","Military Treatment Facility","SOP","2.16.840.1.113883.3.221.5","6.0","20170929"]
["CMS50v6","","Payer","2.16.840.1.114222.4.11.3591","Individual Characteristic","20161108","eCQM Update 2018 EP-EC and EH","Categories of types of health care payor entities as defined by the US Public Health Data Consortium SOP code system","@code in CCDA r2.1 template Planned Coverage [act: identifier urn:oid:2.16.840.1.113883.10.20.22.4.129 (open)] DYNAMIC","All codes in the code system","none","3121","Enrolled Prime--HMO","SOP","2.16.840.1.113883.3.221.5","6.0","20170929"]
["CMS50v6","","Payer","2.16.840.1.114222.4.11.3591","Individual Characteristic","20161108","eCQM Update 2018 EP-EC and EH","Categories of types of health care payor entities as defined by the US Public Health Data Consortium SOP code system","@code in CCDA r2.1 template Planned Coverage [act: identifier urn:oid:2.16.840.1.113883.10.20.22.4.129 (open)] DYNAMIC","All codes in the code system","none","3122","Non-enrolled Space Available","SOP","2.16.840.1.113883.3.221.5","6.0","20170929"]
["CMS50v6","","Payer","2.16.840.1.114222.4.11.3591","Individual Characteristic","20161108","eCQM Update 2018 EP-EC and EH","Categories of types of health care payor entities as defined by the US Public Health Data Consortium SOP code system","@code in CCDA r2.1 template Planned Coverage [act: identifier urn:oid:2.16.840.1.113883.10.20.22.4.129 (open)] DYNAMIC","All codes in the code system","none","3123","TRICARE For Life (TFL)","SOP","2.16.840.1.113883.3.221.5","6.0","20170929"]
["CMS50v6","","Payer","2.16.840.1.114222.4.11.3591","Individual Characteristic","20161108","eCQM Update 2018 EP-EC and EH","Categories of types of health care payor entities as defined by the US Public Health Data Consortium SOP code system","@code in CCDA r2.1 template Planned Coverage [act: identifier urn:oid:2.16.840.1.113883.10.20.22.4.129 (open)] DYNAMIC","All codes in the code system","none","313","Dental --Stand Alone","SOP","2.16.840.1.113883.3.221.5","6.0","20170929"]
["CMS50v6","","Payer","2.16.840.1.114222.4.11.3591","Individual Characteristic","20161108","eCQM Update 2018 EP-EC and EH","Categories of types of health care payor entities as defined by the US Public Health Data Consortium SOP code system","@code in CCDA r2.1 template Planned Coverage [act: identifier urn:oid:2.16.840.1.113883.10.20.22.4.129 (open)] DYNAMIC","All codes in the code system","none","32","Department of Veterans Affairs","SOP","2.16.840.1.113883.3.221.5","6.0","20170929"]
["CMS50v6","","Payer","2.16.840.1.114222.4.11.3591","Individual Characteristic","20161108","eCQM Update 2018 EP-EC and EH","Categories of types of health care payor entities as defined by the US Public Health Data Consortium SOP code system","@code in CCDA r2.1 template Planned Coverage [act: identifier urn:oid:2.16.840.1.113883.10.20.22.4.129 (open)] DYNAMIC","All codes in the code system","none","321","Veteran care--Care provided to Veterans","SOP","2.16.840.1.113883.3.221.5","6.0","20170929"]
["CMS50v6","","Payer","2.16.840.1.114222.4.11.3591","Individual Characteristic","20161108","eCQM Update 2018 EP-EC and EH","Categories of types of health care payor entities as defined by the US Public Health Data Consortium SOP code system","@code in CCDA r2.1 template Planned Coverage [act: identifier urn:oid:2.16.840.1.113883.10.20.22.4.129 (open)] DYNAMIC","All codes in the code system","none","3211","Direct Care--Care provided in VA facilities","SOP","2.16.840.1.113883.3.221.5","6.0","20170929"]
["CMS50v6","","Payer","2.16.840.1.114222.4.11.3591","Individual Characteristic","20161108","eCQM Update 2018 EP-EC and EH","Categories of types of health care payor entities as defined by the US Public Health Data Consortium SOP code system","@code in CCDA r2.1 template Planned Coverage [act: identifier urn:oid:2.16.840.1.113883.10.20.22.4.129 (open)] DYNAMIC","All codes in the code system","none","3212","Indirect Care--Care provided outside VA facilities","SOP","2.16.840.1.113883.3.221.5","6.0","20170929"]
["CMS50v6","","Payer","2.16.840.1.114222.4.11.3591","Individual Characteristic","20161108","eCQM Update 2018 EP-EC and EH","Categories of types of health care payor entities as defined by the US Public Health Data Consortium SOP code system","@code in CCDA r2.1 template Planned Coverage [act: identifier urn:oid:2.16.840.1.113883.10.20.22.4.129 (open)] DYNAMIC","All codes in the code system","none","32121","Fee Basis","SOP","2.16.840.1.113883.3.221.5","6.0","20170929"]
["CMS50v6","","Payer","2.16.840.1.114222.4.11.3591","Individual Characteristic","20161108","eCQM Update 2018 EP-EC and EH","Categories of types of health care payor entities as defined by the US Public Health Data Consortium SOP code system","@code in CCDA r2.1 template Planned Coverage [act: identifier urn:oid:2.16.840.1.113883.10.20.22.4.129 (open)] DYNAMIC","All codes in the code system","none","32122","Foreign Fee/Foreign Medical Program(FMP)","SOP","2.16.840.1.113883.3.221.5","6.0","20170929"]
["CMS50v6","","Payer","2.16.840.1.114222.4.11.3591","Individual Characteristic","20161108","eCQM Update 2018 EP-EC and EH","Categories of types of health care payor entities as defined by the US Public Health Data Consortium SOP code system","@code in CCDA r2.1 template Planned Coverage [act: identifier urn:oid:2.16.840.1.113883.10.20.22.4.129 (open)] DYNAMIC","All codes in the code system","none","32123","Contract Nursing Home/Community Nursing Home","SOP","2.16.840.1.113883.3.221.5","6.0","20170929"]
["CMS50v6","","Payer","2.16.840.1.114222.4.11.3591","Individual Characteristic","20161108","eCQM Update 2018 EP-EC and EH","Categories of types of health care payor entities as defined by the US Public Health Data Consortium SOP code system","@code in CCDA r2.1 template Planned Coverage [act: identifier urn:oid:2.16.840.1.113883.10.20.22.4.129 (open)] DYNAMIC","All codes in the code system","none","32124","State Veterans Home","SOP","2.16.840.1.113883.3.221.5","6.0","20170929"]
["CMS50v6","","Payer","2.16.840.1.114222.4.11.3591","Individual Characteristic","20161108","eCQM Update 2018 EP-EC and EH","Categories of types of health care payor entities as defined by the US Public Health Data Consortium SOP code system","@code in CCDA r2.1 template Planned Coverage [act: identifier urn:oid:2.16.840.1.113883.10.20.22.4.129 (open)] DYNAMIC","All codes in the code system","none","32125","Sharing Agreements","SOP","2.16.840.1.113883.3.221.5","6.0","20170929"]
["CMS50v6","","Payer","2.16.840.1.114222.4.11.3591","Individual Characteristic","20161108","eCQM Update 2018 EP-EC and EH","Categories of types of health care payor entities as defined by the US Public Health Data Consortium SOP code system","@code in CCDA r2.1 template Planned Coverage [act: identifier urn:oid:2.16.840.1.113883.10.20.22.4.129 (open)] DYNAMIC","All codes in the code system","none","32126","Other Federal Agency","SOP","2.16.840.1.113883.3.221.5","6.0","20170929"]
["CMS50v6","","Payer","2.16.840.1.114222.4.11.3591","Individual Characteristic","20161108","eCQM Update 2018 EP-EC and EH","Categories of types of health care payor entities as defined by the US Public Health Data Consortium SOP code system","@code in CCDA r2.1 template Planned Coverage [act: identifier urn:oid:2.16.840.1.113883.10.20.22.4.129 (open)] DYNAMIC","All codes in the code system","none","322","Non-veteran care","SOP","2.16.840.1.113883.3.221.5","6.0","20170929"]
["CMS50v6","","Payer","2.16.840.1.114222.4.11.3591","Individual Characteristic","20161108","eCQM Update 2018 EP-EC and EH","Categories of types of health care payor entities as defined by the US Public Health Data Consortium SOP code system","@code in CCDA r2.1 template Planned Coverage [act: identifier urn:oid:2.16.840.1.113883.10.20.22.4.129 (open)] DYNAMIC","All codes in the code system","none","3221","Civilian Health and Medical Program for the VA (CHAMPVA)","SOP","2.16.840.1.113883.3.221.5","6.0","20170929"]
["CMS50v6","","Payer","2.16.840.1.114222.4.11.3591","Individual Characteristic","20161108","eCQM Update 2018 EP-EC and EH","Categories of types of health care payor entities as defined by the US Public Health Data Consortium SOP code system","@code in CCDA r2.1 template Planned Coverage [act: identifier urn:oid:2.16.840.1.113883.10.20.22.4.129 (open)] DYNAMIC","All codes in the code system","none","3222","Spina Bifida Health Care Program (SB)","SOP","2.16.840.1.113883.3.221.5","6.0","20170929"]
["CMS50v6","","Payer","2.16.840.1.114222.4.11.3591","Individual Characteristic","20161108","eCQM Update 2018 EP-EC and EH","Categories of types of health care payor entities as defined by the US Public Health Data Consortium SOP code system","@code in CCDA r2.1 template Planned Coverage [act: identifier urn:oid:2.16.840.1.113883.10.20.22.4.129 (open)] DYNAMIC","All codes in the code system","none","3223","Children of Women Vietnam Veterans (CWVV)","SOP","2.16.840.1.113883.3.221.5","6.0","20170929"]
["CMS50v6","","Payer","2.16.840.1.114222.4.11.3591","Individual Characteristic","20161108","eCQM Update 2018 EP-EC and EH","Categories of types of health care payor entities as defined by the US Public Health Data Consortium SOP code system","@code in CCDA r2.1 template Planned Coverage [act: identifier urn:oid:2.16.840.1.113883.10.20.22.4.129 (open)] DYNAMIC","All codes in the code system","none","3229","Other non-veteran care","SOP","2.16.840.1.113883.3.221.5","6.0","20170929"]
["CMS50v6","","Payer","2.16.840.1.114222.4.11.3591","Individual Characteristic","20161108","eCQM Update 2018 EP-EC and EH","Categories of types of health care payor entities as defined by the US Public Health Data Consortium SOP code system","@code in CCDA r2.1 template Planned Coverage [act: identifier urn:oid:2.16.840.1.113883.10.20.22.4.129 (open)] DYNAMIC","All codes in the code system","none","33","Indian Health Service or Tribe","SOP","2.16.840.1.113883.3.221.5","6.0","20170929"]
["CMS50v6","","Payer","2.16.840.1.114222.4.11.3591","Individual Characteristic","20161108","eCQM Update 2018 EP-EC and EH","Categories of types of health care payor entities as defined by the US Public Health Data Consortium SOP code system","@code in CCDA r2.1 template Planned Coverage [act: identifier urn:oid:2.16.840.1.113883.10.20.22.4.129 (open)] DYNAMIC","All codes in the code system","none","331","Indian Health Service -- Regular","SOP","2.16.840.1.113883.3.221.5","6.0","20170929"]
["CMS50v6","","Payer","2.16.840.1.114222.4.11.3591","Individual Characteristic","20161108","eCQM Update 2018 EP-EC and EH","Categories of types of health care payor entities as defined by the US Public Health Data Consortium SOP code system","@code in CCDA r2.1 template Planned Coverage [act: identifier urn:oid:2.16.840.1.113883.10.20.22.4.129 (open)] DYNAMIC","All codes in the code system","none","332","Indian Health Service -- Contract","SOP","2.16.840.1.113883.3.221.5","6.0","20170929"]
["CMS50v6","","Payer","2.16.840.1.114222.4.11.3591","Individual Characteristic","20161108","eCQM Update 2018 EP-EC and EH","Categories of types of health care payor entities as defined by the US Public Health Data Consortium SOP code system","@code in CCDA r2.1 template Planned Coverage [act: identifier urn:oid:2.16.840.1.113883.10.20.22.4.129 (open)] DYNAMIC","All codes in the code system","none","333","Indian Health Service - Managed Care","SOP","2.16.840.1.113883.3.221.5","6.0","20170929"]
["CMS50v6","","Payer","2.16.840.1.114222.4.11.3591","Individual Characteristic","20161108","eCQM Update 2018 EP-EC and EH","Categories of types of health care payor entities as defined by the US Public Health Data Consortium SOP code system","@code in CCDA r2.1 template Planned Coverage [act: identifier urn:oid:2.16.840.1.113883.10.20.22.4.129 (open)] DYNAMIC","All codes in the code system","none","334","Indian Tribe - Sponsored Coverage","SOP","2.16.840.1.113883.3.221.5","6.0","20170929"]
["CMS50v6","","Payer","2.16.840.1.114222.4.11.3591","Individual Characteristic","20161108","eCQM Update 2018 EP-EC and EH","Categories of types of health care payor entities as defined by the US Public Health Data Consortium SOP code system","@code in CCDA r2.1 template Planned Coverage [act: identifier urn:oid:2.16.840.1.113883.10.20.22.4.129 (open)] DYNAMIC","All codes in the code system","none","34","HRSA Program","SOP","2.16.840.1.113883.3.221.5","6.0","20170929"]
["CMS50v6","","Payer","2.16.840.1.114222.4.11.3591","Individual Characteristic","20161108","eCQM Update 2018 EP-EC and EH","Categories of types of health care payor entities as defined by the US Public Health Data Consortium SOP code system","@code in CCDA r2.1 template Planned Coverage [act: identifier urn:oid:2.16.840.1.113883.10.20.22.4.129 (open)] DYNAMIC","All codes in the code system","none","341","Title V (MCH Block Grant)","SOP","2.16.840.1.113883.3.221.5","6.0","20170929"]
["CMS50v6","","Payer","2.16.840.1.114222.4.11.3591","Individual Characteristic","20161108","eCQM Update 2018 EP-EC and EH","Categories of types of health care payor entities as defined by the US Public Health Data Consortium SOP code system","@code in CCDA r2.1 template Planned Coverage [act: identifier urn:oid:2.16.840.1.113883.10.20.22.4.129 (open)] DYNAMIC","All codes in the code system","none","342","Migrant Health Program","SOP","2.16.840.1.113883.3.221.5","6.0","20170929"]
["CMS50v6","","Payer","2.16.840.1.114222.4.11.3591","Individual Characteristic","20161108","eCQM Update 2018 EP-EC and EH","Categories of types of health care payor entities as defined by the US Public Health Data Consortium SOP code system","@code in CCDA r2.1 template Planned Coverage [act: identifier urn:oid:2.16.840.1.113883.10.20.22.4.129 (open)] DYNAMIC","All codes in the code system","none","343","Ryan White Act","SOP","2.16.840.1.113883.3.221.5","6.0","20170929"]
["CMS50v6","","Payer","2.16.840.1.114222.4.11.3591","Individual Characteristic","20161108","eCQM Update 2018 EP-EC and EH","Categories of types of health care payor entities as defined by the US Public Health Data Consortium SOP code system","@code in CCDA r2.1 template Planned Coverage [act: identifier urn:oid:2.16.840.1.113883.10.20.22.4.129 (open)] DYNAMIC","All codes in the code system","none","349","Other","SOP","2.16.840.1.113883.3.221.5","6.0","20170929"]
["CMS50v6","","Payer","2.16.840.1.114222.4.11.3591","Individual Characteristic","20161108","eCQM Update 2018 EP-EC and EH","Categories of types of health care payor entities as defined by the US Public Health Data Consortium SOP code system","@code in CCDA r2.1 template Planned Coverage [act: identifier urn:oid:2.16.840.1.113883.10.20.22.4.129 (open)] DYNAMIC","All codes in the code system","none","35","Black Lung","SOP","2.16.840.1.113883.3.221.5","6.0","20170929"]
["CMS50v6","","Payer","2.16.840.1.114222.4.11.3591","Individual Characteristic","20161108","eCQM Update 2018 EP-EC and EH","Categories of types of health care payor entities as defined by the US Public Health Data Consortium SOP code system","@code in CCDA r2.1 template Planned Coverage [act: identifier urn:oid:2.16.840.1.113883.10.20.22.4.129 (open)] DYNAMIC","All codes in the code system","none","36","State Government","SOP","2.16.840.1.113883.3.221.5","6.0","20170929"]
["CMS50v6","","Payer","2.16.840.1.114222.4.11.3591","Individual Characteristic","20161108","eCQM Update 2018 EP-EC and EH","Categories of types of health care payor entities as defined by the US Public Health Data Consortium SOP code system","@code in CCDA r2.1 template Planned Coverage [act: identifier urn:oid:2.16.840.1.113883.10.20.22.4.129 (open)] DYNAMIC","All codes in the code system","none","361","State SCHIP program (codes for individual states)","SOP","2.16.840.1.113883.3.221.5","6.0","20170929"]
["CMS50v6","","Payer","2.16.840.1.114222.4.11.3591","Individual Characteristic","20161108","eCQM Update 2018 EP-EC and EH","Categories of types of health care payor entities as defined by the US Public Health Data Consortium SOP code system","@code in CCDA r2.1 template Planned Coverage [act: identifier urn:oid:2.16.840.1.113883.10.20.22.4.129 (open)] DYNAMIC","All codes in the code system","none","362","Specific state programs (list/ local code)","SOP","2.16.840.1.113883.3.221.5","6.0","20170929"]
["CMS50v6","","Payer","2.16.840.1.114222.4.11.3591","Individual Characteristic","20161108","eCQM Update 2018 EP-EC and EH","Categories of types of health care payor entities as defined by the US Public Health Data Consortium SOP code system","@code in CCDA r2.1 template Planned Coverage [act: identifier urn:oid:2.16.840.1.113883.10.20.22.4.129 (open)] DYNAMIC","All codes in the code system","none","369","State, not otherwise specified (other state)","SOP","2.16.840.1.113883.3.221.5","6.0","20170929"]
["CMS50v6","","Payer","2.16.840.1.114222.4.11.3591","Individual Characteristic","20161108","eCQM Update 2018 EP-EC and EH","Categories of types of health care payor entities as defined by the US Public Health Data Consortium SOP code system","@code in CCDA r2.1 template Planned Coverage [act: identifier urn:oid:2.16.840.1.113883.10.20.22.4.129 (open)] DYNAMIC","All codes in the code system","none","37","Local Government","SOP","2.16.840.1.113883.3.221.5","6.0","20170929"]
["CMS50v6","","Payer","2.16.840.1.114222.4.11.3591","Individual Characteristic","20161108","eCQM Update 2018 EP-EC and EH","Categories of types of health care payor entities as defined by the US Public Health Data Consortium SOP code system","@code in CCDA r2.1 template Planned Coverage [act: identifier urn:oid:2.16.840.1.113883.10.20.22.4.129 (open)] DYNAMIC","All codes in the code system","none","371","Local - Managed care","SOP","2.16.840.1.113883.3.221.5","6.0","20170929"]
["CMS50v6","","Payer","2.16.840.1.114222.4.11.3591","Individual Characteristic","20161108","eCQM Update 2018 EP-EC and EH","Categories of types of health care payor entities as defined by the US Public Health Data Consortium SOP code system","@code in CCDA r2.1 template Planned Coverage [act: identifier urn:oid:2.16.840.1.113883.10.20.22.4.129 (open)] DYNAMIC","All codes in the code system","none","3711","HMO","SOP","2.16.840.1.113883.3.221.5","6.0","20170929"]
["CMS50v6","","Payer","2.16.840.1.114222.4.11.3591","Individual Characteristic","20161108","eCQM Update 2018 EP-EC and EH","Categories of types of health care payor entities as defined by the US Public Health Data Consortium SOP code system","@code in CCDA r2.1 template Planned Coverage [act: identifier urn:oid:2.16.840.1.113883.10.20.22.4.129 (open)] DYNAMIC","All codes in the code system","none","3712","PPO","SOP","2.16.840.1.113883.3.221.5","6.0","20170929"]
["CMS50v6","","Payer","2.16.840.1.114222.4.11.3591","Individual Characteristic","20161108","eCQM Update 2018 EP-EC and EH","Categories of types of health care payor entities as defined by the US Public Health Data Consortium SOP code system","@code in CCDA r2.1 template Planned Coverage [act: identifier urn:oid:2.16.840.1.113883.10.20.22.4.129 (open)] DYNAMIC","All codes in the code system","none","3713","POS","SOP","2.16.840.1.113883.3.221.5","6.0","20170929"]
["CMS50v6","","Payer","2.16.840.1.114222.4.11.3591","Individual Characteristic","20161108","eCQM Update 2018 EP-EC and EH","Categories of types of health care payor entities as defined by the US Public Health Data Consortium SOP code system","@code in CCDA r2.1 template Planned Coverage [act: identifier urn:oid:2.16.840.1.113883.10.20.22.4.129 (open)] DYNAMIC","All codes in the code system","none","372","FFS/Indemnity","SOP","2.16.840.1.113883.3.221.5","6.0","20170929"]
["CMS50v6","","Payer","2.16.840.1.114222.4.11.3591","Individual Characteristic","20161108","eCQM Update 2018 EP-EC and EH","Categories of types of health care payor entities as defined by the US Public Health Data Consortium SOP code system","@code in CCDA r2.1 template Planned Coverage [act: identifier urn:oid:2.16.840.1.113883.10.20.22.4.129 (open)] DYNAMIC","All codes in the code system","none","379","Local, not otherwise specified (other local, county)","SOP","2.16.840.1.113883.3.221.5","6.0","20170929"]
["CMS50v6","","Payer","2.16.840.1.114222.4.11.3591","Individual Characteristic","20161108","eCQM Update 2018 EP-EC and EH","Categories of types of health care payor entities as defined by the US Public Health Data Consortium SOP code system","@code in CCDA r2.1 template Planned Coverage [act: identifier urn:oid:2.16.840.1.113883.10.20.22.4.129 (open)] DYNAMIC","All codes in the code system","none","38","Other Government (Federal, State, Local not specified)","SOP","2.16.840.1.113883.3.221.5","6.0","20170929"]
["CMS50v6","","Payer","2.16.840.1.114222.4.11.3591","Individual Characteristic","20161108","eCQM Update 2018 EP-EC and EH","Categories of types of health care payor entities as defined by the US Public Health Data Consortium SOP code system","@code in CCDA r2.1 template Planned Coverage [act: identifier urn:oid:2.16.840.1.113883.10.20.22.4.129 (open)] DYNAMIC","All codes in the code system","none","381","Federal, State, Local not specified managed care","SOP","2.16.840.1.113883.3.221.5","6.0","20170929"]
["CMS50v6","","Payer","2.16.840.1.114222.4.11.3591","Individual Characteristic","20161108","eCQM Update 2018 EP-EC and EH","Categories of types of health care payor entities as defined by the US Public Health Data Consortium SOP code system","@code in CCDA r2.1 template Planned Coverage [act: identifier urn:oid:2.16.840.1.113883.10.20.22.4.129 (open)] DYNAMIC","All codes in the code system","none","3811","Federal, State, Local not specified - HMO","SOP","2.16.840.1.113883.3.221.5","6.0","20170929"]
["CMS50v6","","Payer","2.16.840.1.114222.4.11.3591","Individual Characteristic","20161108","eCQM Update 2018 EP-EC and EH","Categories of types of health care payor entities as defined by the US Public Health Data Consortium SOP code system","@code in CCDA r2.1 template Planned Coverage [act: identifier urn:oid:2.16.840.1.113883.10.20.22.4.129 (open)] DYNAMIC","All codes in the code system","none","3812","Federal, State, Local not specified - PPO","SOP","2.16.840.1.113883.3.221.5","6.0","20170929"]
["CMS50v6","","Payer","2.16.840.1.114222.4.11.3591","Individual Characteristic","20161108","eCQM Update 2018 EP-EC and EH","Categories of types of health care payor entities as defined by the US Public Health Data Consortium SOP code system","@code in CCDA r2.1 template Planned Coverage [act: identifier urn:oid:2.16.840.1.113883.10.20.22.4.129 (open)] DYNAMIC","All codes in the code system","none","3813","Federal, State, Local not specified - POS","SOP","2.16.840.1.113883.3.221.5","6.0","20170929"]
["CMS50v6","","Payer","2.16.840.1.114222.4.11.3591","Individual Characteristic","20161108","eCQM Update 2018 EP-EC and EH","Categories of types of health care payor entities as defined by the US Public Health Data Consortium SOP code system","@code in CCDA r2.1 template Planned Coverage [act: identifier urn:oid:2.16.840.1.113883.10.20.22.4.129 (open)] DYNAMIC","All codes in the code system","none","3819","Federal, State, Local not specified - not specified managed care","SOP","2.16.840.1.113883.3.221.5","6.0","20170929"]
["CMS50v6","","Payer","2.16.840.1.114222.4.11.3591","Individual Characteristic","20161108","eCQM Update 2018 EP-EC and EH","Categories of types of health care payor entities as defined by the US Public Health Data Consortium SOP code system","@code in CCDA r2.1 template Planned Coverage [act: identifier urn:oid:2.16.840.1.113883.10.20.22.4.129 (open)] DYNAMIC","All codes in the code system","none","382","Federal, State, Local not specified - FFS","SOP","2.16.840.1.113883.3.221.5","6.0","20170929"]
["CMS50v6","","Payer","2.16.840.1.114222.4.11.3591","Individual Characteristic","20161108","eCQM Update 2018 EP-EC and EH","Categories of types of health care payor entities as defined by the US Public Health Data Consortium SOP code system","@code in CCDA r2.1 template Planned Coverage [act: identifier urn:oid:2.16.840.1.113883.10.20.22.4.129 (open)] DYNAMIC","All codes in the code system","none","389","Federal, State, Local not specified - Other","SOP","2.16.840.1.113883.3.221.5","6.0","20170929"]
["CMS50v6","","Payer","2.16.840.1.114222.4.11.3591","Individual Characteristic","20161108","eCQM Update 2018 EP-EC and EH","Categories of types of health care payor entities as defined by the US Public Health Data Consortium SOP code system","@code in CCDA r2.1 template Planned Coverage [act: identifier urn:oid:2.16.840.1.113883.10.20.22.4.129 (open)] DYNAMIC","All codes in the code system","none","39","Other Federal","SOP","2.16.840.1.113883.3.221.5","6.0","20170929"]
["CMS50v6","","Payer","2.16.840.1.114222.4.11.3591","Individual Characteristic","20161108","eCQM Update 2018 EP-EC and EH","Categories of types of health care payor entities as defined by the US Public Health Data Consortium SOP code system","@code in CCDA r2.1 template Planned Coverage [act: identifier urn:oid:2.16.840.1.113883.10.20.22.4.129 (open)] DYNAMIC","All codes in the code system","none","4","DEPARTMENTS OF CORRECTIONS","SOP","2.16.840.1.113883.3.221.5","6.0","20170929"]
["CMS50v6","","Payer","2.16.840.1.114222.4.11.3591","Individual Characteristic","20161108","eCQM Update 2018 EP-EC and EH","Categories of types of health care payor entities as defined by the US Public Health Data Consortium SOP code system","@code in CCDA r2.1 template Planned Coverage [act: identifier urn:oid:2.16.840.1.113883.10.20.22.4.129 (open)] DYNAMIC","All codes in the code system","none","41","Corrections Federal","SOP","2.16.840.1.113883.3.221.5","6.0","20170929"]
["CMS50v6","","Payer","2.16.840.1.114222.4.11.3591","Individual Characteristic","20161108","eCQM Update 2018 EP-EC and EH","Categories of types of health care payor entities as defined by the US Public Health Data Consortium SOP code system","@code in CCDA r2.1 template Planned Coverage [act: identifier urn:oid:2.16.840.1.113883.10.20.22.4.129 (open)] DYNAMIC","All codes in the code system","none","42","Corrections State","SOP","2.16.840.1.113883.3.221.5","6.0","20170929"]
["CMS50v6","","Payer","2.16.840.1.114222.4.11.3591","Individual Characteristic","20161108","eCQM Update 2018 EP-EC and EH","Categories of types of health care payor entities as defined by the US Public Health Data Consortium SOP code system","@code in CCDA r2.1 template Planned Coverage [act: identifier urn:oid:2.16.840.1.113883.10.20.22.4.129 (open)] DYNAMIC","All codes in the code system","none","43","Corrections Local","SOP","2.16.840.1.113883.3.221.5","6.0","20170929"]
["CMS50v6","","Payer","2.16.840.1.114222.4.11.3591","Individual Characteristic","20161108","eCQM Update 2018 EP-EC and EH","Categories of types of health care payor entities as defined by the US Public Health Data Consortium SOP code system","@code in CCDA r2.1 template Planned Coverage [act: identifier urn:oid:2.16.840.1.113883.10.20.22.4.129 (open)] DYNAMIC","All codes in the code system","none","44","Corrections Unknown Level","SOP","2.16.840.1.113883.3.221.5","6.0","20170929"]
["CMS50v6","","Payer","2.16.840.1.114222.4.11.3591","Individual Characteristic","20161108","eCQM Update 2018 EP-EC and EH","Categories of types of health care payor entities as defined by the US Public Health Data Consortium SOP code system","@code in CCDA r2.1 template Planned Coverage [act: identifier urn:oid:2.16.840.1.113883.10.20.22.4.129 (open)] DYNAMIC","All codes in the code system","none","5","PRIVATE HEALTH INSURANCE","SOP","2.16.840.1.113883.3.221.5","6.0","20170929"]
["CMS50v6","","Payer","2.16.840.1.114222.4.11.3591","Individual Characteristic","20161108","eCQM Update 2018 EP-EC and EH","Categories of types of health care payor entities as defined by the US Public Health Data Consortium SOP code system","@code in CCDA r2.1 template Planned Coverage [act: identifier urn:oid:2.16.840.1.113883.10.20.22.4.129 (open)] DYNAMIC","All codes in the code system","none","51","Managed Care (Private)","SOP","2.16.840.1.113883.3.221.5","6.0","20170929"]
["CMS50v6","","Payer","2.16.840.1.114222.4.11.3591","Individual Characteristic","20161108","eCQM Update 2018 EP-EC and EH","Categories of types of health care payor entities as defined by the US Public Health Data Consortium SOP code system","@code in CCDA r2.1 template Planned Coverage [act: identifier urn:oid:2.16.840.1.113883.10.20.22.4.129 (open)] DYNAMIC","All codes in the code system","none","511","Commercial Managed Care - HMO","SOP","2.16.840.1.113883.3.221.5","6.0","20170929"]
["CMS50v6","","Payer","2.16.840.1.114222.4.11.3591","Individual Characteristic","20161108","eCQM Update 2018 EP-EC and EH","Categories of types of health care payor entities as defined by the US Public Health Data Consortium SOP code system","@code in CCDA r2.1 template Planned Coverage [act: identifier urn:oid:2.16.840.1.113883.10.20.22.4.129 (open)] DYNAMIC","All codes in the code system","none","512","Commercial Managed Care - PPO","SOP","2.16.840.1.113883.3.221.5","6.0","20170929"]
["CMS50v6","","Payer","2.16.840.1.114222.4.11.3591","Individual Characteristic","20161108","eCQM Update 2018 EP-EC and EH","Categories of types of health care payor entities as defined by the US Public Health Data Consortium SOP code system","@code in CCDA r2.1 template Planned Coverage [act: identifier urn:oid:2.16.840.1.113883.10.20.22.4.129 (open)] DYNAMIC","All codes in the code system","none","513","Commercial Managed Care - POS","SOP","2.16.840.1.113883.3.221.5","6.0","20170929"]
["CMS50v6","","Payer","2.16.840.1.114222.4.11.3591","Individual Characteristic","20161108","eCQM Update 2018 EP-EC and EH","Categories of types of health care payor entities as defined by the US Public Health Data Consortium SOP code system","@code in CCDA r2.1 template Planned Coverage [act: identifier urn:oid:2.16.840.1.113883.10.20.22.4.129 (open)] DYNAMIC","All codes in the code system","none","514","Exclusive Provider Organization","SOP","2.16.840.1.113883.3.221.5","6.0","20170929"]
["CMS50v6","","Payer","2.16.840.1.114222.4.11.3591","Individual Characteristic","20161108","eCQM Update 2018 EP-EC and EH","Categories of types of health care payor entities as defined by the US Public Health Data Consortium SOP code system","@code in CCDA r2.1 template Planned Coverage [act: identifier urn:oid:2.16.840.1.113883.10.20.22.4.129 (open)] DYNAMIC","All codes in the code system","none","515","Gatekeeper PPO (GPPO)","SOP","2.16.840.1.113883.3.221.5","6.0","20170929"]
["CMS50v6","","Payer","2.16.840.1.114222.4.11.3591","Individual Characteristic","20161108","eCQM Update 2018 EP-EC and EH","Categories of types of health care payor entities as defined by the US Public Health Data Consortium SOP code system","@code in CCDA r2.1 template Planned Coverage [act: identifier urn:oid:2.16.840.1.113883.10.20.22.4.129 (open)] DYNAMIC","All codes in the code system","none","516","Commercial Managed Care - Pharmacy Benefit Manager","SOP","2.16.840.1.113883.3.221.5","6.0","20170929"]
["CMS50v6","","Payer","2.16.840.1.114222.4.11.3591","Individual Characteristic","20161108","eCQM Update 2018 EP-EC and EH","Categories of types of health care payor entities as defined by the US Public Health Data Consortium SOP code system","@code in CCDA r2.1 template Planned Coverage [act: identifier urn:oid:2.16.840.1.113883.10.20.22.4.129 (open)] DYNAMIC","All codes in the code system","none","519","Managed Care, Other (non HMO)","SOP","2.16.840.1.113883.3.221.5","6.0","20170929"]
["CMS50v6","","Payer","2.16.840.1.114222.4.11.3591","Individual Characteristic","20161108","eCQM Update 2018 EP-EC and EH","Categories of types of health care payor entities as defined by the US Public Health Data Consortium SOP code system","@code in CCDA r2.1 template Planned Coverage [act: identifier urn:oid:2.16.840.1.113883.10.20.22.4.129 (open)] DYNAMIC","All codes in the code system","none","52","Private Health Insurance - Indemnity","SOP","2.16.840.1.113883.3.221.5","6.0","20170929"]
["CMS50v6","","Payer","2.16.840.1.114222.4.11.3591","Individual Characteristic","20161108","eCQM Update 2018 EP-EC and EH","Categories of types of health care payor entities as defined by the US Public Health Data Consortium SOP code system","@code in CCDA r2.1 template Planned Coverage [act: identifier urn:oid:2.16.840.1.113883.10.20.22.4.129 (open)] DYNAMIC","All codes in the code system","none","521","Commercial Indemnity","SOP","2.16.840.1.113883.3.221.5","6.0","20170929"]
["CMS50v6","","Payer","2.16.840.1.114222.4.11.3591","Individual Characteristic","20161108","eCQM Update 2018 EP-EC and EH","Categories of types of health care payor entities as defined by the US Public Health Data Consortium SOP code system","@code in CCDA r2.1 template Planned Coverage [act: identifier urn:oid:2.16.840.1.113883.10.20.22.4.129 (open)] DYNAMIC","All codes in the code system","none","522","Self-insured (ERISA) Administrative Services Only (ASO) plan","SOP","2.16.840.1.113883.3.221.5","6.0","20170929"]
["CMS50v6","","Payer","2.16.840.1.114222.4.11.3591","Individual Characteristic","20161108","eCQM Update 2018 EP-EC and EH","Categories of types of health care payor entities as defined by the US Public Health Data Consortium SOP code system","@code in CCDA r2.1 template Planned Coverage [act: identifier urn:oid:2.16.840.1.113883.10.20.22.4.129 (open)] DYNAMIC","All codes in the code system","none","523","Medicare supplemental policy (as second payer)","SOP","2.16.840.1.113883.3.221.5","6.0","20170929"]
["CMS50v6","","Payer","2.16.840.1.114222.4.11.3591","Individual Characteristic","20161108","eCQM Update 2018 EP-EC and EH","Categories of types of health care payor entities as defined by the US Public Health Data Consortium SOP code system","@code in CCDA r2.1 template Planned Coverage [act: identifier urn:oid:2.16.840.1.113883.10.20.22.4.129 (open)] DYNAMIC","All codes in the code system","none","529","Private health insurance--other commercial Indemnity","SOP","2.16.840.1.113883.3.221.5","6.0","20170929"]
["CMS50v6","","Payer","2.16.840.1.114222.4.11.3591","Individual Characteristic","20161108","eCQM Update 2018 EP-EC and EH","Categories of types of health care payor entities as defined by the US Public Health Data Consortium SOP code system","@code in CCDA r2.1 template Planned Coverage [act: identifier urn:oid:2.16.840.1.113883.10.20.22.4.129 (open)] DYNAMIC","All codes in the code system","none","53","Managed Care (private) or private health insurance (indemnity), not otherwise specified","SOP","2.16.840.1.113883.3.221.5","6.0","20170929"]
["CMS50v6","","Payer","2.16.840.1.114222.4.11.3591","Individual Characteristic","20161108","eCQM Update 2018 EP-EC and EH","Categories of types of health care payor entities as defined by the US Public Health Data Consortium SOP code system","@code in CCDA r2.1 template Planned Coverage [act: identifier urn:oid:2.16.840.1.113883.10.20.22.4.129 (open)] DYNAMIC","All codes in the code system","none","54","Organized Delivery System","SOP","2.16.840.1.113883.3.221.5","6.0","20170929"]
["CMS50v6","","Payer","2.16.840.1.114222.4.11.3591","Individual Characteristic","20161108","eCQM Update 2018 EP-EC and EH","Categories of types of health care payor entities as defined by the US Public Health Data Consortium SOP code system","@code in CCDA r2.1 template Planned Coverage [act: identifier urn:oid:2.16.840.1.113883.10.20.22.4.129 (open)] DYNAMIC","All codes in the code system","none","55","Small Employer Purchasing Group","SOP","2.16.840.1.113883.3.221.5","6.0","20170929"]
["CMS50v6","","Payer","2.16.840.1.114222.4.11.3591","Individual Characteristic","20161108","eCQM Update 2018 EP-EC and EH","Categories of types of health care payor entities as defined by the US Public Health Data Consortium SOP code system","@code in CCDA r2.1 template Planned Coverage [act: identifier urn:oid:2.16.840.1.113883.10.20.22.4.129 (open)] DYNAMIC","All codes in the code system","none","56","Specialized Stand Alone Plan","SOP","2.16.840.1.113883.3.221.5","6.0","20170929"]
["CMS50v6","","Payer","2.16.840.1.114222.4.11.3591","Individual Characteristic","20161108","eCQM Update 2018 EP-EC and EH","Categories of types of health care payor entities as defined by the US Public Health Data Consortium SOP code system","@code in CCDA r2.1 template Planned Coverage [act: identifier urn:oid:2.16.840.1.113883.10.20.22.4.129 (open)] DYNAMIC","All codes in the code system","none","561","Dental","SOP","2.16.840.1.113883.3.221.5","6.0","20170929"]
["CMS50v6","","Payer","2.16.840.1.114222.4.11.3591","Individual Characteristic","20161108","eCQM Update 2018 EP-EC and EH","Categories of types of health care payor entities as defined by the US Public Health Data Consortium SOP code system","@code in CCDA r2.1 template Planned Coverage [act: identifier urn:oid:2.16.840.1.113883.10.20.22.4.129 (open)] DYNAMIC","All codes in the code system","none","562","Vision","SOP","2.16.840.1.113883.3.221.5","6.0","20170929"]
["CMS50v6","","Payer","2.16.840.1.114222.4.11.3591","Individual Characteristic","20161108","eCQM Update 2018 EP-EC and EH","Categories of types of health care payor entities as defined by the US Public Health Data Consortium SOP code system","@code in CCDA r2.1 template Planned Coverage [act: identifier urn:oid:2.16.840.1.113883.10.20.22.4.129 (open)] DYNAMIC","All codes in the code system","none","59","Other Private Insurance","SOP","2.16.840.1.113883.3.221.5","6.0","20170929"]
["CMS50v6","","Payer","2.16.840.1.114222.4.11.3591","Individual Characteristic","20161108","eCQM Update 2018 EP-EC and EH","Categories of types of health care payor entities as defined by the US Public Health Data Consortium SOP code system","@code in CCDA r2.1 template Planned Coverage [act: identifier urn:oid:2.16.840.1.113883.10.20.22.4.129 (open)] DYNAMIC","All codes in the code system","none","6","BLUE CROSS/BLUE SHIELD","SOP","2.16.840.1.113883.3.221.5","6.0","20170929"]
["CMS50v6","","Payer","2.16.840.1.114222.4.11.3591","Individual Characteristic","20161108","eCQM Update 2018 EP-EC and EH","Categories of types of health care payor entities as defined by the US Public Health Data Consortium SOP code system","@code in CCDA r2.1 template Planned Coverage [act: identifier urn:oid:2.16.840.1.113883.10.20.22.4.129 (open)] DYNAMIC","All codes in the code system","none","61","BC Managed Care","SOP","2.16.840.1.113883.3.221.5","6.0","20170929"]
["CMS50v6","","Payer","2.16.840.1.114222.4.11.3591","Individual Characteristic","20161108","eCQM Update 2018 EP-EC and EH","Categories of types of health care payor entities as defined by the US Public Health Data Consortium SOP code system","@code in CCDA r2.1 template Planned Coverage [act: identifier urn:oid:2.16.840.1.113883.10.20.22.4.129 (open)] DYNAMIC","All codes in the code system","none","611","BC Managed Care -- HMO","SOP","2.16.840.1.113883.3.221.5","6.0","20170929"]
["CMS50v6","","Payer","2.16.840.1.114222.4.11.3591","Individual Characteristic","20161108","eCQM Update 2018 EP-EC and EH","Categories of types of health care payor entities as defined by the US Public Health Data Consortium SOP code system","@code in CCDA r2.1 template Planned Coverage [act: identifier urn:oid:2.16.840.1.113883.10.20.22.4.129 (open)] DYNAMIC","All codes in the code system","none","612","BC Managed Care -- PPO","SOP","2.16.840.1.113883.3.221.5","6.0","20170929"]
["CMS50v6","","Payer","2.16.840.1.114222.4.11.3591","Individual Characteristic","20161108","eCQM Update 2018 EP-EC and EH","Categories of types of health care payor entities as defined by the US Public Health Data Consortium SOP code system","@code in CCDA r2.1 template Planned Coverage [act: identifier urn:oid:2.16.840.1.113883.10.20.22.4.129 (open)] DYNAMIC","All codes in the code system","none","613","BC Managed Care -- POS","SOP","2.16.840.1.113883.3.221.5","6.0","20170929"]
["CMS50v6","","Payer","2.16.840.1.114222.4.11.3591","Individual Characteristic","20161108","eCQM Update 2018 EP-EC and EH","Categories of types of health care payor entities as defined by the US Public Health Data Consortium SOP code system","@code in CCDA r2.1 template Planned Coverage [act: identifier urn:oid:2.16.840.1.113883.10.20.22.4.129 (open)] DYNAMIC","All codes in the code system","none","619","BC Managed Care -- Other","SOP","2.16.840.1.113883.3.221.5","6.0","20170929"]
["CMS50v6","","Payer","2.16.840.1.114222.4.11.3591","Individual Characteristic","20161108","eCQM Update 2018 EP-EC and EH","Categories of types of health care payor entities as defined by the US Public Health Data Consortium SOP code system","@code in CCDA r2.1 template Planned Coverage [act: identifier urn:oid:2.16.840.1.113883.10.20.22.4.129 (open)] DYNAMIC","All codes in the code system","none","62","BC Indemnity","SOP","2.16.840.1.113883.3.221.5","6.0","20170929"]
["CMS50v6","","Payer","2.16.840.1.114222.4.11.3591","Individual Characteristic","20161108","eCQM Update 2018 EP-EC and EH","Categories of types of health care payor entities as defined by the US Public Health Data Consortium SOP code system","@code in CCDA r2.1 template Planned Coverage [act: identifier urn:oid:2.16.840.1.113883.10.20.22.4.129 (open)] DYNAMIC","All codes in the code system","none","63","BC (Indemnity or Managed Care) - Out of State","SOP","2.16.840.1.113883.3.221.5","6.0","20170929"]
["CMS50v6","","Payer","2.16.840.1.114222.4.11.3591","Individual Characteristic","20161108","eCQM Update 2018 EP-EC and EH","Categories of types of health care payor entities as defined by the US Public Health Data Consortium SOP code system","@code in CCDA r2.1 template Planned Coverage [act: identifier urn:oid:2.16.840.1.113883.10.20.22.4.129 (open)] DYNAMIC","All codes in the code system","none","64","BC (Indemnity or Managed Care) - Unspecified","SOP","2.16.840.1.113883.3.221.5","6.0","20170929"]
["CMS50v6","","Payer","2.16.840.1.114222.4.11.3591","Individual Characteristic","20161108","eCQM Update 2018 EP-EC and EH","Categories of types of health care payor entities as defined by the US Public Health Data Consortium SOP code system","@code in CCDA r2.1 template Planned Coverage [act: identifier urn:oid:2.16.840.1.113883.10.20.22.4.129 (open)] DYNAMIC","All codes in the code system","none","69","BC (Indemnity or Managed Care) - Other","SOP","2.16.840.1.113883.3.221.5","6.0","20170929"]
["CMS50v6","","Payer","2.16.840.1.114222.4.11.3591","Individual Characteristic","20161108","eCQM Update 2018 EP-EC and EH","Categories of types of health care payor entities as defined by the US Public Health Data Consortium SOP code system","@code in CCDA r2.1 template Planned Coverage [act: identifier urn:oid:2.16.840.1.113883.10.20.22.4.129 (open)] DYNAMIC","All codes in the code system","none","7","MANAGED CARE, UNSPECIFIED (to be used only if one can't distinguish public from private)","SOP","2.16.840.1.113883.3.221.5","6.0","20170929"]
["CMS50v6","","Payer","2.16.840.1.114222.4.11.3591","Individual Characteristic","20161108","eCQM Update 2018 EP-EC and EH","Categories of types of health care payor entities as defined by the US Public Health Data Consortium SOP code system","@code in CCDA r2.1 template Planned Coverage [act: identifier urn:oid:2.16.840.1.113883.10.20.22.4.129 (open)] DYNAMIC","All codes in the code system","none","71","HMO","SOP","2.16.840.1.113883.3.221.5","6.0","20170929"]
["CMS50v6","","Payer","2.16.840.1.114222.4.11.3591","Individual Characteristic","20161108","eCQM Update 2018 EP-EC and EH","Categories of types of health care payor entities as defined by the US Public Health Data Consortium SOP code system","@code in CCDA r2.1 template Planned Coverage [act: identifier urn:oid:2.16.840.1.113883.10.20.22.4.129 (open)] DYNAMIC","All codes in the code system","none","72","PPO","SOP","2.16.840.1.113883.3.221.5","6.0","20170929"]
["CMS50v6","","Payer","2.16.840.1.114222.4.11.3591","Individual Characteristic","20161108","eCQM Update 2018 EP-EC and EH","Categories of types of health care payor entities as defined by the US Public Health Data Consortium SOP code system","@code in CCDA r2.1 template Planned Coverage [act: identifier urn:oid:2.16.840.1.113883.10.20.22.4.129 (open)] DYNAMIC","All codes in the code system","none","73","POS","SOP","2.16.840.1.113883.3.221.5","6.0","20170929"]
["CMS50v6","","Payer","2.16.840.1.114222.4.11.3591","Individual Characteristic","20161108","eCQM Update 2018 EP-EC and EH","Categories of types of health care payor entities as defined by the US Public Health Data Consortium SOP code system","@code in CCDA r2.1 template Planned Coverage [act: identifier urn:oid:2.16.840.1.113883.10.20.22.4.129 (open)] DYNAMIC","All codes in the code system","none","79","Other Managed Care","SOP","2.16.840.1.113883.3.221.5","6.0","20170929"]
["CMS50v6","","Payer","2.16.840.1.114222.4.11.3591","Individual Characteristic","20161108","eCQM Update 2018 EP-EC and EH","Categories of types of health care payor entities as defined by the US Public Health Data Consortium SOP code system","@code in CCDA r2.1 template Planned Coverage [act: identifier urn:oid:2.16.840.1.113883.10.20.22.4.129 (open)] DYNAMIC","All codes in the code system","none","8","NO PAYMENT from an Organization/Agency/Program/Private Payer Listed","SOP","2.16.840.1.113883.3.221.5","6.0","20170929"]
["CMS50v6","","Payer","2.16.840.1.114222.4.11.3591","Individual Characteristic","20161108","eCQM Update 2018 EP-EC and EH","Categories of types of health care payor entities as defined by the US Public Health Data Consortium SOP code system","@code in CCDA r2.1 template Planned Coverage [act: identifier urn:oid:2.16.840.1.113883.10.20.22.4.129 (open)] DYNAMIC","All codes in the code system","none","81","Self-pay","SOP","2.16.840.1.113883.3.221.5","6.0","20170929"]
["CMS50v6","","Payer","2.16.840.1.114222.4.11.3591","Individual Characteristic","20161108","eCQM Update 2018 EP-EC and EH","Categories of types of health care payor entities as defined by the US Public Health Data Consortium SOP code system","@code in CCDA r2.1 template Planned Coverage [act: identifier urn:oid:2.16.840.1.113883.10.20.22.4.129 (open)] DYNAMIC","All codes in the code system","none","82","No Charge","SOP","2.16.840.1.113883.3.221.5","6.0","20170929"]
["CMS50v6","","Payer","2.16.840.1.114222.4.11.3591","Individual Characteristic","20161108","eCQM Update 2018 EP-EC and EH","Categories of types of health care payor entities as defined by the US Public Health Data Consortium SOP code system","@code in CCDA r2.1 template Planned Coverage [act: identifier urn:oid:2.16.840.1.113883.10.20.22.4.129 (open)] DYNAMIC","All codes in the code system","none","821","Charity","SOP","2.16.840.1.113883.3.221.5","6.0","20170929"]
["CMS50v6","","Payer","2.16.840.1.114222.4.11.3591","Individual Characteristic","20161108","eCQM Update 2018 EP-EC and EH","Categories of types of health care payor entities as defined by the US Public Health Data Consortium SOP code system","@code in CCDA r2.1 template Planned Coverage [act: identifier urn:oid:2.16.840.1.113883.10.20.22.4.129 (open)] DYNAMIC","All codes in the code system","none","822","Professional Courtesy","SOP","2.16.840.1.113883.3.221.5","6.0","20170929"]
["CMS50v6","","Payer","2.16.840.1.114222.4.11.3591","Individual Characteristic","20161108","eCQM Update 2018 EP-EC and EH","Categories of types of health care payor entities as defined by the US Public Health Data Consortium SOP code system","@code in CCDA r2.1 template Planned Coverage [act: identifier urn:oid:2.16.840.1.113883.10.20.22.4.129 (open)] DYNAMIC","All codes in the code system","none","823","Research/Clinical Trial","SOP","2.16.840.1.113883.3.221.5","6.0","20170929"]
["CMS50v6","","Payer","2.16.840.1.114222.4.11.3591","Individual Characteristic","20161108","eCQM Update 2018 EP-EC and EH","Categories of types of health care payor entities as defined by the US Public Health Data Consortium SOP code system","@code in CCDA r2.1 template Planned Coverage [act: identifier urn:oid:2.16.840.1.113883.10.20.22.4.129 (open)] DYNAMIC","All codes in the code system","none","83","Refusal to Pay/Bad Debt","SOP","2.16.840.1.113883.3.221.5","6.0","20170929"]
["CMS50v6","","Payer","2.16.840.1.114222.4.11.3591","Individual Characteristic","20161108","eCQM Update 2018 EP-EC and EH","Categories of types of health care payor entities as defined by the US Public Health Data Consortium SOP code system","@code in CCDA r2.1 template Planned Coverage [act: identifier urn:oid:2.16.840.1.113883.10.20.22.4.129 (open)] DYNAMIC","All codes in the code system","none","84","Hill Burton Free Care","SOP","2.16.840.1.113883.3.221.5","6.0","20170929"]
["CMS50v6","","Payer","2.16.840.1.114222.4.11.3591","Individual Characteristic","20161108","eCQM Update 2018 EP-EC and EH","Categories of types of health care payor entities as defined by the US Public Health Data Consortium SOP code system","@code in CCDA r2.1 template Planned Coverage [act: identifier urn:oid:2.16.840.1.113883.10.20.22.4.129 (open)] DYNAMIC","All codes in the code system","none","85","Research/Donor","SOP","2.16.840.1.113883.3.221.5","6.0","20170929"]
["CMS50v6","","Payer","2.16.840.1.114222.4.11.3591","Individual Characteristic","20161108","eCQM Update 2018 EP-EC and EH","Categories of types of health care payor entities as defined by the US Public Health Data Consortium SOP code system","@code in CCDA r2.1 template Planned Coverage [act: identifier urn:oid:2.16.840.1.113883.10.20.22.4.129 (open)] DYNAMIC","All codes in the code system","none","89","No Payment, Other","SOP","2.16.840.1.113883.3.221.5","6.0","20170929"]
["CMS50v6","","Payer","2.16.840.1.114222.4.11.3591","Individual Characteristic","20161108","eCQM Update 2018 EP-EC and EH","Categories of types of health care payor entities as defined by the US Public Health Data Consortium SOP code system","@code in CCDA r2.1 template Planned Coverage [act: identifier urn:oid:2.16.840.1.113883.10.20.22.4.129 (open)] DYNAMIC","All codes in the code system","none","9","MISCELLANEOUS/OTHER","SOP","2.16.840.1.113883.3.221.5","6.0","20170929"]
["CMS50v6","","Payer","2.16.840.1.114222.4.11.3591","Individual Characteristic","20161108","eCQM Update 2018 EP-EC and EH","Categories of types of health care payor entities as defined by the US Public Health Data Consortium SOP code system","@code in CCDA r2.1 template Planned Coverage [act: identifier urn:oid:2.16.840.1.113883.10.20.22.4.129 (open)] DYNAMIC","All codes in the code system","none","91","Foreign National","SOP","2.16.840.1.113883.3.221.5","6.0","20170929"]
["CMS50v6","","Payer","2.16.840.1.114222.4.11.3591","Individual Characteristic","20161108","eCQM Update 2018 EP-EC and EH","Categories of types of health care payor entities as defined by the US Public Health Data Consortium SOP code system","@code in CCDA r2.1 template Planned Coverage [act: identifier urn:oid:2.16.840.1.113883.10.20.22.4.129 (open)] DYNAMIC","All codes in the code system","none","92","Other (Non-government)","SOP","2.16.840.1.113883.3.221.5","6.0","20170929"]
["CMS50v6","","Payer","2.16.840.1.114222.4.11.3591","Individual Characteristic","20161108","eCQM Update 2018 EP-EC and EH","Categories of types of health care payor entities as defined by the US Public Health Data Consortium SOP code system","@code in CCDA r2.1 template Planned Coverage [act: identifier urn:oid:2.16.840.1.113883.10.20.22.4.129 (open)] DYNAMIC","All codes in the code system","none","93","Disability Insurance","SOP","2.16.840.1.113883.3.221.5","6.0","20170929"]
["CMS50v6","","Payer","2.16.840.1.114222.4.11.3591","Individual Characteristic","20161108","eCQM Update 2018 EP-EC and EH","Categories of types of health care payor entities as defined by the US Public Health Data Consortium SOP code system","@code in CCDA r2.1 template Planned Coverage [act: identifier urn:oid:2.16.840.1.113883.10.20.22.4.129 (open)] DYNAMIC","All codes in the code system","none","94","Long-term Care Insurance","SOP","2.16.840.1.113883.3.221.5","6.0","20170929"]
["CMS50v6","","Payer","2.16.840.1.114222.4.11.3591","Individual Characteristic","20161108","eCQM Update 2018 EP-EC and EH","Categories of types of health care payor entities as defined by the US Public Health Data Consortium SOP code system","@code in CCDA r2.1 template Planned Coverage [act: identifier urn:oid:2.16.840.1.113883.10.20.22.4.129 (open)] DYNAMIC","All codes in the code system","none","95","Worker's Compensation","SOP","2.16.840.1.113883.3.221.5","6.0","20170929"]
["CMS50v6","","Payer","2.16.840.1.114222.4.11.3591","Individual Characteristic","20161108","eCQM Update 2018 EP-EC and EH","Categories of types of health care payor entities as defined by the US Public Health Data Consortium SOP code system","@code in CCDA r2.1 template Planned Coverage [act: identifier urn:oid:2.16.840.1.113883.10.20.22.4.129 (open)] DYNAMIC","All codes in the code system","none","951","Worker's Comp HMO","SOP","2.16.840.1.113883.3.221.5","6.0","20170929"]
["CMS50v6","","Payer","2.16.840.1.114222.4.11.3591","Individual Characteristic","20161108","eCQM Update 2018 EP-EC and EH","Categories of types of health care payor entities as defined by the US Public Health Data Consortium SOP code system","@code in CCDA r2.1 template Planned Coverage [act: identifier urn:oid:2.16.840.1.113883.10.20.22.4.129 (open)] DYNAMIC","All codes in the code system","none","953","Worker's Comp Fee-for-Service","SOP","2.16.840.1.113883.3.221.5","6.0","20170929"]
["CMS50v6","","Payer","2.16.840.1.114222.4.11.3591","Individual Characteristic","20161108","eCQM Update 2018 EP-EC and EH","Categories of types of health care payor entities as defined by the US Public Health Data Consortium SOP code system","@code in CCDA r2.1 template Planned Coverage [act: identifier urn:oid:2.16.840.1.113883.10.20.22.4.129 (open)] DYNAMIC","All codes in the code system","none","954","Worker's Comp Other Managed Care","SOP","2.16.840.1.113883.3.221.5","6.0","20170929"]
["CMS50v6","","Payer","2.16.840.1.114222.4.11.3591","Individual Characteristic","20161108","eCQM Update 2018 EP-EC and EH","Categories of types of health care payor entities as defined by the US Public Health Data Consortium SOP code system","@code in CCDA r2.1 template Planned Coverage [act: identifier urn:oid:2.16.840.1.113883.10.20.22.4.129 (open)] DYNAMIC","All codes in the code system","none","959","Worker's Comp, Other unspecified","SOP","2.16.840.1.113883.3.221.5","6.0","20170929"]
["CMS50v6","","Payer","2.16.840.1.114222.4.11.3591","Individual Characteristic","20161108","eCQM Update 2018 EP-EC and EH","Categories of types of health care payor entities as defined by the US Public Health Data Consortium SOP code system","@code in CCDA r2.1 template Planned Coverage [act: identifier urn:oid:2.16.840.1.113883.10.20.22.4.129 (open)] DYNAMIC","All codes in the code system","none","96","Auto Insurance (includes no fault)","SOP","2.16.840.1.113883.3.221.5","6.0","20170929"]
["CMS50v6","","Payer","2.16.840.1.114222.4.11.3591","Individual Characteristic","20161108","eCQM Update 2018 EP-EC and EH","Categories of types of health care payor entities as defined by the US Public Health Data Consortium SOP code system","@code in CCDA r2.1 template Planned Coverage [act: identifier urn:oid:2.16.840.1.113883.10.20.22.4.129 (open)] DYNAMIC","All codes in the code system","none","97","Legal Liability / Liability Insurance","SOP","2.16.840.1.113883.3.221.5","6.0","20170929"]
["CMS50v6","","Payer","2.16.840.1.114222.4.11.3591","Individual Characteristic","20161108","eCQM Update 2018 EP-EC and EH","Categories of types of health care payor entities as defined by the US Public Health Data Consortium SOP code system","@code in CCDA r2.1 template Planned Coverage [act: identifier urn:oid:2.16.840.1.113883.10.20.22.4.129 (open)] DYNAMIC","All codes in the code system","none","98","Other specified but not otherwise classifiable (includes Hospice - Unspecified plan)","SOP","2.16.840.1.113883.3.221.5","6.0","20170929"]
["CMS50v6","","Payer","2.16.840.1.114222.4.11.3591","Individual Characteristic","20161108","eCQM Update 2018 EP-EC and EH","Categories of types of health care payor entities as defined by the US Public Health Data Consortium SOP code system","@code in CCDA r2.1 template Planned Coverage [act: identifier urn:oid:2.16.840.1.113883.10.20.22.4.129 (open)] DYNAMIC","All codes in the code system","none","99","No Typology Code available for payment source","SOP","2.16.840.1.113883.3.221.5","6.0","20170929"]
["CMS50v6","","Payer","2.16.840.1.114222.4.11.3591","Individual Characteristic","20161108","eCQM Update 2018 EP-EC and EH","Categories of types of health care payor entities as defined by the US Public Health Data Consortium SOP code system","@code in CCDA r2.1 template Planned Coverage [act: identifier urn:oid:2.16.840.1.113883.10.20.22.4.129 (open)] DYNAMIC","All codes in the code system","none","9999","Unavailable / No Payer Specified / Blank","SOP","2.16.840.1.113883.3.221.5","6.0","20170929"]
["CMS50v6","","Preventive Care Services - Established Office Visit, 18 and Up","2.16.840.1.113883.3.464.1003.101.12.1025","Encounter","20170504","eCQM Update 2018 EP-EC and EH","This value set identifies patients over the age of 18 who have had an established preventive care office visit.","This value set was intended to map to the QDM data type of encounter.","Includes comprehensive preventive medicine reevaluation and management of an individual over the age of 18.","Excludes non-office visits, including telehealth services.","99395","Periodic comprehensive preventive medicine reevaluation and management of an individual including an age and gender appropriate history, examination, counseling/anticipatory guidance/risk factor reduction interventions, and the ordering of laboratory/diagnostic procedures, established patient; 18-39 years","CPT","2.16.840.1.113883.6.12","2017","20170929"]
["CMS50v6","","Preventive Care Services - Established Office Visit, 18 and Up","2.16.840.1.113883.3.464.1003.101.12.1025","Encounter","20170504","eCQM Update 2018 EP-EC and EH","This value set identifies patients over the age of 18 who have had an established preventive care office visit.","This value set was intended to map to the QDM data type of encounter.","Includes comprehensive preventive medicine reevaluation and management of an individual over the age of 18.","Excludes non-office visits, including telehealth services.","99396","Periodic comprehensive preventive medicine reevaluation and management of an individual including an age and gender appropriate history, examination, counseling/anticipatory guidance/risk factor reduction interventions, and the ordering of laboratory/diagnostic procedures, established patient; 40-64 years","CPT","2.16.840.1.113883.6.12","2017","20170929"]
["CMS50v6","","Preventive Care Services - Established Office Visit, 18 and Up","2.16.840.1.113883.3.464.1003.101.12.1025","Encounter","20170504","eCQM Update 2018 EP-EC and EH","This value set identifies patients over the age of 18 who have had an established preventive care office visit.","This value set was intended to map to the QDM data type of encounter.","Includes comprehensive preventive medicine reevaluation and management of an individual over the age of 18.","Excludes non-office visits, including telehealth services.","99397","Periodic comprehensive preventive medicine reevaluation and management of an individual including an age and gender appropriate history, examination, counseling/anticipatory guidance/risk factor reduction interventions, and the ordering of laboratory/diagnostic procedures, established patient; 65 years and older","CPT","2.16.840.1.113883.6.12","2017","20170929"]
["CMS50v6","","Preventive Care Services, Initial Office Visit, 0 to 17","2.16.840.1.113883.3.464.1003.101.12.1022","Encounter","20170504","eCQM Update 2018 EP-EC and EH","Initial comprehensive preventive medical evaluation, including regular preventive care or care of small problem or preexisting condition that requires no extra work, for a patient that has no prior outpatient professional services from the physician practice in the last 3 years.","This value set was intended to map to the QDM data type of encounter.","Include only codes that indicate initial comprehensive preventive medical evaluation, including regular preventive care or care of small problem or preexisting condition that requires no extra work, for a patient that has no prior outpatient professional services from the physician practice in the last 3 years.","Exclude codes that are not for comprehensive preventive medical evaluations and codes that are for patients who have been seen in the last 3 years.","99381","Initial comprehensive preventive medicine evaluation and management of an individual including an age and gender appropriate history, examination, counseling/anticipatory guidance/risk factor reduction interventions, and the ordering of laboratory/diagnostic procedures, new patient; infant (age younger than 1 year)","CPT","2.16.840.1.113883.6.12","2017","20170929"]
["CMS50v6","","Preventive Care Services, Initial Office Visit, 0 to 17","2.16.840.1.113883.3.464.1003.101.12.1022","Encounter","20170504","eCQM Update 2018 EP-EC and EH","Initial comprehensive preventive medical evaluation, including regular preventive care or care of small problem or preexisting condition that requires no extra work, for a patient that has no prior outpatient professional services from the physician practice in the last 3 years.","This value set was intended to map to the QDM data type of encounter.","Include only codes that indicate initial comprehensive preventive medical evaluation, including regular preventive care or care of small problem or preexisting condition that requires no extra work, for a patient that has no prior outpatient professional services from the physician practice in the last 3 years.","Exclude codes that are not for comprehensive preventive medical evaluations and codes that are for patients who have been seen in the last 3 years.","99382","Initial comprehensive preventive medicine evaluation and management of an individual including an age and gender appropriate history, examination, counseling/anticipatory guidance/risk factor reduction interventions, and the ordering of laboratory/diagnostic procedures, new patient; early childhood (age 1 through 4 years)","CPT","2.16.840.1.113883.6.12","2017","20170929"]
["CMS50v6","","Preventive Care Services, Initial Office Visit, 0 to 17","2.16.840.1.113883.3.464.1003.101.12.1022","Encounter","20170504","eCQM Update 2018 EP-EC and EH","Initial comprehensive preventive medical evaluation, including regular preventive care or care of small problem or preexisting condition that requires no extra work, for a patient that has no prior outpatient professional services from the physician practice in the last 3 years.","This value set was intended to map to the QDM data type of encounter.","Include only codes that indicate initial comprehensive preventive medical evaluation, including regular preventive care or care of small problem or preexisting condition that requires no extra work, for a patient that has no prior outpatient professional services from the physician practice in the last 3 years.","Exclude codes that are not for comprehensive preventive medical evaluations and codes that are for patients who have been seen in the last 3 years.","99383","Initial comprehensive preventive medicine evaluation and management of an individual including an age and gender appropriate history, examination, counseling/anticipatory guidance/risk factor reduction interventions, and the ordering of laboratory/diagnostic procedures, new patient; late childhood (age 5 through 11 years)","CPT","2.16.840.1.113883.6.12","2017","20170929"]
["CMS50v6","","Preventive Care Services, Initial Office Visit, 0 to 17","2.16.840.1.113883.3.464.1003.101.12.1022","Encounter","20170504","eCQM Update 2018 EP-EC and EH","Initial comprehensive preventive medical evaluation, including regular preventive care or care of small problem or preexisting condition that requires no extra work, for a patient that has no prior outpatient professional services from the physician practice in the last 3 years.","This value set was intended to map to the QDM data type of encounter.","Include only codes that indicate initial comprehensive preventive medical evaluation, including regular preventive care or care of small problem or preexisting condition that requires no extra work, for a patient that has no prior outpatient professional services from the physician practice in the last 3 years.","Exclude codes that are not for comprehensive preventive medical evaluations and codes that are for patients who have been seen in the last 3 years.","99384","Initial comprehensive preventive medicine evaluation and management of an individual including an age and gender appropriate history, examination, counseling/anticipatory guidance/risk factor reduction interventions, and the ordering of laboratory/diagnostic procedures, new patient; adolescent (age 12 through 17 years)","CPT","2.16.840.1.113883.6.12","2017","20170929"]
["CMS50v6","","Preventive Care Services-Initial Office Visit, 18 and Up","2.16.840.1.113883.3.464.1003.101.12.1023","Encounter","20170504","eCQM Update 2018 EP-EC and EH","This value set identifies patients over the age of 18 who have had an initial preventive care office visit.","This value set was intended to map to the QDM data type of encounter.","Includes comprehensive preventive medicine reevaluation and management of an individual over the age of 18.","Excludes non-office visits, including telehealth services.","99385","Initial comprehensive preventive medicine evaluation and management of an individual including an age and gender appropriate history, examination, counseling/anticipatory guidance/risk factor reduction interventions, and the ordering of laboratory/diagnostic procedures, new patient; 18-39 years","CPT","2.16.840.1.113883.6.12","2017","20170929"]
["CMS50v6","","Preventive Care Services-Initial Office Visit, 18 and Up","2.16.840.1.113883.3.464.1003.101.12.1023","Encounter","20170504","eCQM Update 2018 EP-EC and EH","This value set identifies patients over the age of 18 who have had an initial preventive care office visit.","This value set was intended to map to the QDM data type of encounter.","Includes comprehensive preventive medicine reevaluation and management of an individual over the age of 18.","Excludes non-office visits, including telehealth services.","99386","Initial comprehensive preventive medicine evaluation and management of an individual including an age and gender appropriate history, examination, counseling/anticipatory guidance/risk factor reduction interventions, and the ordering of laboratory/diagnostic procedures, new patient; 40-64 years","CPT","2.16.840.1.113883.6.12","2017","20170929"]
["CMS50v6","","Preventive Care Services-Initial Office Visit, 18 and Up","2.16.840.1.113883.3.464.1003.101.12.1023","Encounter","20170504","eCQM Update 2018 EP-EC and EH","This value set identifies patients over the age of 18 who have had an initial preventive care office visit.","This value set was intended to map to the QDM data type of encounter.","Includes comprehensive preventive medicine reevaluation and management of an individual over the age of 18.","Excludes non-office visits, including telehealth services.","99387","Initial comprehensive preventive medicine evaluation and management of an individual including an age and gender appropriate history, examination, counseling/anticipatory guidance/risk factor reduction interventions, and the ordering of laboratory/diagnostic procedures, new patient; 65 years and older","CPT","2.16.840.1.113883.6.12","2017","20170929"]
["CMS50v6","","Preventive Care, Established Office Visit, 0 to 17","2.16.840.1.113883.3.464.1003.101.12.1024","Encounter","20170504","eCQM Update 2018 EP-EC and EH","Initial comprehensive preventive medical evaluation, including regular preventive care or care of small problem or preexisting condition that requires no extra work, for a patient that received prior outpatient professional services from the physician practice in the last 3 years.","This value set was intended to map to the QDM data type of encounter.","Include only codes that indicate initial comprehensive preventive medical evaluation, including regular preventive care or care of small problem or preexisting condition that requires no extra work, for a patient that received prior outpatient professional services from the physician practice in the last 3 years.","Exclude codes that are not for comprehensive preventive medical evaluations and codes that are for patients who have not been seen in the last 3 years.","99391","Periodic comprehensive preventive medicine reevaluation and management of an individual including an age and gender appropriate history, examination, counseling/anticipatory guidance/risk factor reduction interventions, and the ordering of laboratory/diagnostic procedures, established patient; infant (age younger than 1 year)","CPT","2.16.840.1.113883.6.12","2017","20170929"]
["CMS50v6","","Preventive Care, Established Office Visit, 0 to 17","2.16.840.1.113883.3.464.1003.101.12.1024","Encounter","20170504","eCQM Update 2018 EP-EC and EH","Initial comprehensive preventive medical evaluation, including regular preventive care or care of small problem or preexisting condition that requires no extra work, for a patient that received prior outpatient professional services from the physician practice in the last 3 years.","This value set was intended to map to the QDM data type of encounter.","Include only codes that indicate initial comprehensive preventive medical evaluation, including regular preventive care or care of small problem or preexisting condition that requires no extra work, for a patient that received prior outpatient professional services from the physician practice in the last 3 years.","Exclude codes that are not for comprehensive preventive medical evaluations and codes that are for patients who have not been seen in the last 3 years.","99392","Periodic comprehensive preventive medicine reevaluation and management of an individual including an age and gender appropriate history, examination, counseling/anticipatory guidance/risk factor reduction interventions, and the ordering of laboratory/diagnostic procedures, established patient; early childhood (age 1 through 4 years)","CPT","2.16.840.1.113883.6.12","2017","20170929"]
["CMS50v6","","Preventive Care, Established Office Visit, 0 to 17","2.16.840.1.113883.3.464.1003.101.12.1024","Encounter","20170504","eCQM Update 2018 EP-EC and EH","Initial comprehensive preventive medical evaluation, including regular preventive care or care of small problem or preexisting condition that requires no extra work, for a patient that received prior outpatient professional services from the physician practice in the last 3 years.","This value set was intended to map to the QDM data type of encounter.","Include only codes that indicate initial comprehensive preventive medical evaluation, including regular preventive care or care of small problem or preexisting condition that requires no extra work, for a patient that received prior outpatient professional services from the physician practice in the last 3 years.","Exclude codes that are not for comprehensive preventive medical evaluations and codes that are for patients who have not been seen in the last 3 years.","99393","Periodic comprehensive preventive medicine reevaluation and management of an individual including an age and gender appropriate history, examination, counseling/anticipatory guidance/risk factor reduction interventions, and the ordering of laboratory/diagnostic procedures, established patient; late childhood (age 5 through 11 years)","CPT","2.16.840.1.113883.6.12","2017","20170929"]
["CMS50v6","","Preventive Care, Established Office Visit, 0 to 17","2.16.840.1.113883.3.464.1003.101.12.1024","Encounter","20170504","eCQM Update 2018 EP-EC and EH","Initial comprehensive preventive medical evaluation, including regular preventive care or care of small problem or preexisting condition that requires no extra work, for a patient that received prior outpatient professional services from the physician practice in the last 3 years.","This value set was intended to map to the QDM data type of encounter.","Include only codes that indicate initial comprehensive preventive medical evaluation, including regular preventive care or care of small problem or preexisting condition that requires no extra work, for a patient that received prior outpatient professional services from the physician practice in the last 3 years.","Exclude codes that are not for comprehensive preventive medical evaluations and codes that are for patients who have not been seen in the last 3 years.","99394","Periodic comprehensive preventive medicine reevaluation and management of an individual including an age and gender appropriate history, examination, counseling/anticipatory guidance/risk factor reduction interventions, and the ordering of laboratory/diagnostic procedures, established patient; adolescent (age 12 through 17 years)","CPT","2.16.840.1.113883.6.12","2017","20170929"]
["CMS50v6","","Race","2.16.840.1.114222.4.11.836","Individual Characteristic","20121025","eCQM Update 2018 EP-EC and EH","","","","","1002-5","American Indian or Alaska Native","CDCREC","2.16.840.1.113883.6.238","1.1","20170929"]
["CMS50v6","","Race","2.16.840.1.114222.4.11.836","Individual Characteristic","20121025","eCQM Update 2018 EP-EC and EH","","","","","2028-9","Asian","CDCREC","2.16.840.1.113883.6.238","1.1","20170929"]
["CMS50v6","","Race","2.16.840.1.114222.4.11.836","Individual Characteristic","20121025","eCQM Update 2018 EP-EC and EH","","","","","2054-5","Black or African American","CDCREC","2.16.840.1.113883.6.238","1.1","20170929"]
["CMS50v6","","Race","2.16.840.1.114222.4.11.836","Individual Characteristic","20121025","eCQM Update 2018 EP-EC and EH","","","","","2076-8","Native Hawaiian or Other Pacific Islander","CDCREC","2.16.840.1.113883.6.238","1.1","20170929"]
["CMS50v6","","Race","2.16.840.1.114222.4.11.836","Individual Characteristic","20121025","eCQM Update 2018 EP-EC and EH","","","","","2106-3","White","CDCREC","2.16.840.1.113883.6.238","1.1","20170929"]
["CMS50v6","","Race","2.16.840.1.114222.4.11.836","Individual Characteristic","20121025","eCQM Update 2018 EP-EC and EH","","","","","2131-1","Other Race","CDCREC","2.16.840.1.113883.6.238","1.1","20170929"]
["CMS50v6","","Referral","2.16.840.1.113883.3.464.1003.101.12.1046","Intervention","20170504","eCQM Update 2018 EP-EC and EH","Under Development","Under Development","Under Development","Under Development","103696004","Patient referral to specialist (procedure)","SNOMEDCT","2.16.840.1.113883.6.96","2017-03","20170929"]
["CMS50v6","","Referral","2.16.840.1.113883.3.464.1003.101.12.1046","Intervention","20170504","eCQM Update 2018 EP-EC and EH","Under Development","Under Development","Under Development","Under Development","103697008","Patient referral for dental care (procedure)","SNOMEDCT","2.16.840.1.113883.6.96","2017-03","20170929"]
["CMS50v6","","Referral","2.16.840.1.113883.3.464.1003.101.12.1046","Intervention","20170504","eCQM Update 2018 EP-EC and EH","Under Development","Under Development","Under Development","Under Development","103699006","Patient referral to dietitian (procedure)","SNOMEDCT","2.16.840.1.113883.6.96","2017-03","20170929"]
["CMS50v6","","Referral","2.16.840.1.113883.3.464.1003.101.12.1046","Intervention","20170504","eCQM Update 2018 EP-EC and EH","Under Development","Under Development","Under Development","Under Development","103704003","Patient referral to sex therapist (procedure)","SNOMEDCT","2.16.840.1.113883.6.96","2017-03","20170929"]
["CMS50v6","","Referral","2.16.840.1.113883.3.464.1003.101.12.1046","Intervention","20170504","eCQM Update 2018 EP-EC and EH","Under Development","Under Development","Under Development","Under Development","183515008","Referral to physician (procedure)","SNOMEDCT","2.16.840.1.113883.6.96","2017-03","20170929"]
["CMS50v6","","Referral","2.16.840.1.113883.3.464.1003.101.12.1046","Intervention","20170504","eCQM Update 2018 EP-EC and EH","Under Development","Under Development","Under Development","Under Development","183517000","Referral to pediatrician (procedure)","SNOMEDCT","2.16.840.1.113883.6.96","2017-03","20170929"]
["CMS50v6","","Referral","2.16.840.1.113883.3.464.1003.101.12.1046","Intervention","20170504","eCQM Update 2018 EP-EC and EH","Under Development","Under Development","Under Development","Under Development","183528001","Referral to psychiatrist for the elderly mentally ill (procedure)","SNOMEDCT","2.16.840.1.113883.6.96","2017-03","20170929"]
["CMS50v6","","Referral","2.16.840.1.113883.3.464.1003.101.12.1046","Intervention","20170504","eCQM Update 2018 EP-EC and EH","Under Development","Under Development","Under Development","Under Development","183529009","Referral to oncologist (procedure)","SNOMEDCT","2.16.840.1.113883.6.96","2017-03","20170929"]
["CMS50v6","","Referral","2.16.840.1.113883.3.464.1003.101.12.1046","Intervention","20170504","eCQM Update 2018 EP-EC and EH","Under Development","Under Development","Under Development","Under Development","183530004","Referral to diabetologist (procedure)","SNOMEDCT","2.16.840.1.113883.6.96","2017-03","20170929"]
["CMS50v6","","Referral","2.16.840.1.113883.3.464.1003.101.12.1046","Intervention","20170504","eCQM Update 2018 EP-EC and EH","Under Development","Under Development","Under Development","Under Development","183541002","Referral to surgeon (procedure)","SNOMEDCT","2.16.840.1.113883.6.96","2017-03","20170929"]
["CMS50v6","","Referral","2.16.840.1.113883.3.464.1003.101.12.1046","Intervention","20170504","eCQM Update 2018 EP-EC and EH","Under Development","Under Development","Under Development","Under Development","183555005","Burns referral (procedure)","SNOMEDCT","2.16.840.1.113883.6.96","2017-03","20170929"]
["CMS50v6","","Referral","2.16.840.1.113883.3.464.1003.101.12.1046","Intervention","20170504","eCQM Update 2018 EP-EC and EH","Under Development","Under Development","Under Development","Under Development","183557002","Referral to cardiothoracic surgeon (procedure)","SNOMEDCT","2.16.840.1.113883.6.96","2017-03","20170929"]
["CMS50v6","","Referral","2.16.840.1.113883.3.464.1003.101.12.1046","Intervention","20170504","eCQM Update 2018 EP-EC and EH","Under Development","Under Development","Under Development","Under Development","183561008","Referral to general practitioner (procedure)","SNOMEDCT","2.16.840.1.113883.6.96","2017-03","20170929"]
["CMS50v6","","Referral","2.16.840.1.113883.3.464.1003.101.12.1046","Intervention","20170504","eCQM Update 2018 EP-EC and EH","Under Development","Under Development","Under Development","Under Development","183567007","Referral to hematologist (procedure)","SNOMEDCT","2.16.840.1.113883.6.96","2017-03","20170929"]
["CMS50v6","","Referral","2.16.840.1.113883.3.464.1003.101.12.1046","Intervention","20170504","eCQM Update 2018 EP-EC and EH","Under Development","Under Development","Under Development","Under Development","183569005","Refer to terminal care consult (procedure)","SNOMEDCT","2.16.840.1.113883.6.96","2017-03","20170929"]
["CMS50v6","","Referral","2.16.840.1.113883.3.464.1003.101.12.1046","Intervention","20170504","eCQM Update 2018 EP-EC and EH","Under Development","Under Development","Under Development","Under Development","183591003","Refer to partner (procedure)","SNOMEDCT","2.16.840.1.113883.6.96","2017-03","20170929"]
["CMS50v6","","Referral","2.16.840.1.113883.3.464.1003.101.12.1046","Intervention","20170504","eCQM Update 2018 EP-EC and EH","Under Development","Under Development","Under Development","Under Development","183878008","Private referral to general surgeon (procedure)","SNOMEDCT","2.16.840.1.113883.6.96","2017-03","20170929"]
["CMS50v6","","Referral","2.16.840.1.113883.3.464.1003.101.12.1046","Intervention","20170504","eCQM Update 2018 EP-EC and EH","Under Development","Under Development","Under Development","Under Development","183879000","Private referral to ophthalmologist (procedure)","SNOMEDCT","2.16.840.1.113883.6.96","2017-03","20170929"]
["CMS50v6","","Referral","2.16.840.1.113883.3.464.1003.101.12.1046","Intervention","20170504","eCQM Update 2018 EP-EC and EH","Under Development","Under Development","Under Development","Under Development","183880002","Private referral to ear, nose and throat surgeon (procedure)","SNOMEDCT","2.16.840.1.113883.6.96","2017-03","20170929"]
["CMS50v6","","Referral","2.16.840.1.113883.3.464.1003.101.12.1046","Intervention","20170504","eCQM Update 2018 EP-EC and EH","Under Development","Under Development","Under Development","Under Development","183881003","Private referral to orthopedic surgeon (procedure)","SNOMEDCT","2.16.840.1.113883.6.96","2017-03","20170929"]
["CMS50v6","","Referral","2.16.840.1.113883.3.464.1003.101.12.1046","Intervention","20170504","eCQM Update 2018 EP-EC and EH","Under Development","Under Development","Under Development","Under Development","183882005","Private referral to neurosurgeon (procedure)","SNOMEDCT","2.16.840.1.113883.6.96","2017-03","20170929"]
["CMS50v6","","Referral","2.16.840.1.113883.3.464.1003.101.12.1046","Intervention","20170504","eCQM Update 2018 EP-EC and EH","Under Development","Under Development","Under Development","Under Development","183884006","Private referral to pediatric surgeon (procedure)","SNOMEDCT","2.16.840.1.113883.6.96","2017-03","20170929"]
["CMS50v6","","Referral","2.16.840.1.113883.3.464.1003.101.12.1046","Intervention","20170504","eCQM Update 2018 EP-EC and EH","Under Development","Under Development","Under Development","Under Development","183885007","Private referral to obstetrician (procedure)","SNOMEDCT","2.16.840.1.113883.6.96","2017-03","20170929"]
["CMS50v6","","Referral","2.16.840.1.113883.3.464.1003.101.12.1046","Intervention","20170504","eCQM Update 2018 EP-EC and EH","Under Development","Under Development","Under Development","Under Development","183886008","Private referral to gynecologist (procedure)","SNOMEDCT","2.16.840.1.113883.6.96","2017-03","20170929"]
["CMS50v6","","Referral","2.16.840.1.113883.3.464.1003.101.12.1046","Intervention","20170504","eCQM Update 2018 EP-EC and EH","Under Development","Under Development","Under Development","Under Development","183887004","Private referral to plastic surgeon (procedure)","SNOMEDCT","2.16.840.1.113883.6.96","2017-03","20170929"]
["CMS50v6","","Referral","2.16.840.1.113883.3.464.1003.101.12.1046","Intervention","20170504","eCQM Update 2018 EP-EC and EH","Under Development","Under Development","Under Development","Under Development","183888009","Private referral to oral surgeon (procedure)","SNOMEDCT","2.16.840.1.113883.6.96","2017-03","20170929"]
["CMS50v6","","Referral","2.16.840.1.113883.3.464.1003.101.12.1046","Intervention","20170504","eCQM Update 2018 EP-EC and EH","Under Development","Under Development","Under Development","Under Development","183889001","Private referral to urologist (procedure)","SNOMEDCT","2.16.840.1.113883.6.96","2017-03","20170929"]
["CMS50v6","","Referral","2.16.840.1.113883.3.464.1003.101.12.1046","Intervention","20170504","eCQM Update 2018 EP-EC and EH","Under Development","Under Development","Under Development","Under Development","183890005","Private referral to thoracic surgeon (procedure)","SNOMEDCT","2.16.840.1.113883.6.96","2017-03","20170929"]
["CMS50v6","","Referral","2.16.840.1.113883.3.464.1003.101.12.1046","Intervention","20170504","eCQM Update 2018 EP-EC and EH","Under Development","Under Development","Under Development","Under Development","183891009","Private referral to vascular surgeon (procedure)","SNOMEDCT","2.16.840.1.113883.6.96","2017-03","20170929"]
["CMS50v6","","Referral","2.16.840.1.113883.3.464.1003.101.12.1046","Intervention","20170504","eCQM Update 2018 EP-EC and EH","Under Development","Under Development","Under Development","Under Development","183892002","Private referral to maxillofacial surgeon (procedure)","SNOMEDCT","2.16.840.1.113883.6.96","2017-03","20170929"]
["CMS50v6","","Referral","2.16.840.1.113883.3.464.1003.101.12.1046","Intervention","20170504","eCQM Update 2018 EP-EC and EH","Under Development","Under Development","Under Development","Under Development","183893007","Private referral cardiothoracic surgeon (procedure)","SNOMEDCT","2.16.840.1.113883.6.96","2017-03","20170929"]
["CMS50v6","","Referral","2.16.840.1.113883.3.464.1003.101.12.1046","Intervention","20170504","eCQM Update 2018 EP-EC and EH","Under Development","Under Development","Under Development","Under Development","183894001","Private referral to physician (procedure)","SNOMEDCT","2.16.840.1.113883.6.96","2017-03","20170929"]
["CMS50v6","","Referral","2.16.840.1.113883.3.464.1003.101.12.1046","Intervention","20170504","eCQM Update 2018 EP-EC and EH","Under Development","Under Development","Under Development","Under Development","183895000","Private referral to general physician (procedure)","SNOMEDCT","2.16.840.1.113883.6.96","2017-03","20170929"]
["CMS50v6","","Referral","2.16.840.1.113883.3.464.1003.101.12.1046","Intervention","20170504","eCQM Update 2018 EP-EC and EH","Under Development","Under Development","Under Development","Under Development","183896004","Private referral to pediatrician (procedure)","SNOMEDCT","2.16.840.1.113883.6.96","2017-03","20170929"]
["CMS50v6","","Referral","2.16.840.1.113883.3.464.1003.101.12.1046","Intervention","20170504","eCQM Update 2018 EP-EC and EH","Under Development","Under Development","Under Development","Under Development","183897008","Private referral to dermatologist (procedure)","SNOMEDCT","2.16.840.1.113883.6.96","2017-03","20170929"]
["CMS50v6","","Referral","2.16.840.1.113883.3.464.1003.101.12.1046","Intervention","20170504","eCQM Update 2018 EP-EC and EH","Under Development","Under Development","Under Development","Under Development","183899006","Private referral to cardiologist (procedure)","SNOMEDCT","2.16.840.1.113883.6.96","2017-03","20170929"]
["CMS50v6","","Referral","2.16.840.1.113883.3.464.1003.101.12.1046","Intervention","20170504","eCQM Update 2018 EP-EC and EH","Under Development","Under Development","Under Development","Under Development","183900001","Private referral to immunologist (procedure)","SNOMEDCT","2.16.840.1.113883.6.96","2017-03","20170929"]
["CMS50v6","","Referral","2.16.840.1.113883.3.464.1003.101.12.1046","Intervention","20170504","eCQM Update 2018 EP-EC and EH","Under Development","Under Development","Under Development","Under Development","183901002","Private referral to neurologist (procedure)","SNOMEDCT","2.16.840.1.113883.6.96","2017-03","20170929"]
["CMS50v6","","Referral","2.16.840.1.113883.3.464.1003.101.12.1046","Intervention","20170504","eCQM Update 2018 EP-EC and EH","Under Development","Under Development","Under Development","Under Development","183902009","Private referral to geriatrician (procedure)","SNOMEDCT","2.16.840.1.113883.6.96","2017-03","20170929"]
["CMS50v6","","Referral","2.16.840.1.113883.3.464.1003.101.12.1046","Intervention","20170504","eCQM Update 2018 EP-EC and EH","Under Development","Under Development","Under Development","Under Development","183903004","Private referral to gastroenterologist (procedure)","SNOMEDCT","2.16.840.1.113883.6.96","2017-03","20170929"]
["CMS50v6","","Referral","2.16.840.1.113883.3.464.1003.101.12.1046","Intervention","20170504","eCQM Update 2018 EP-EC and EH","Under Development","Under Development","Under Development","Under Development","183904005","Private referral to psychiatrist (procedure)","SNOMEDCT","2.16.840.1.113883.6.96","2017-03","20170929"]
["CMS50v6","","Referral","2.16.840.1.113883.3.464.1003.101.12.1046","Intervention","20170504","eCQM Update 2018 EP-EC and EH","Under Development","Under Development","Under Development","Under Development","183905006","Private referral to venereologist (procedure)","SNOMEDCT","2.16.840.1.113883.6.96","2017-03","20170929"]
["CMS50v6","","Referral","2.16.840.1.113883.3.464.1003.101.12.1046","Intervention","20170504","eCQM Update 2018 EP-EC and EH","Under Development","Under Development","Under Development","Under Development","183906007","Private referral to rheumatologist (procedure)","SNOMEDCT","2.16.840.1.113883.6.96","2017-03","20170929"]
["CMS50v6","","Referral","2.16.840.1.113883.3.464.1003.101.12.1046","Intervention","20170504","eCQM Update 2018 EP-EC and EH","Under Development","Under Development","Under Development","Under Development","183907003","Private referral to chest physician (procedure)","SNOMEDCT","2.16.840.1.113883.6.96","2017-03","20170929"]
["CMS50v6","","Referral","2.16.840.1.113883.3.464.1003.101.12.1046","Intervention","20170504","eCQM Update 2018 EP-EC and EH","Under Development","Under Development","Under Development","Under Development","183908008","Private referral to psychogeriatrician (procedure)","SNOMEDCT","2.16.840.1.113883.6.96","2017-03","20170929"]
["CMS50v6","","Referral","2.16.840.1.113883.3.464.1003.101.12.1046","Intervention","20170504","eCQM Update 2018 EP-EC and EH","Under Development","Under Development","Under Development","Under Development","183909000","Private referral to oncologist (procedure)","SNOMEDCT","2.16.840.1.113883.6.96","2017-03","20170929"]
["CMS50v6","","Referral","2.16.840.1.113883.3.464.1003.101.12.1046","Intervention","20170504","eCQM Update 2018 EP-EC and EH","Under Development","Under Development","Under Development","Under Development","183910005","Private referral to diabetologist (procedure)","SNOMEDCT","2.16.840.1.113883.6.96","2017-03","20170929"]
["CMS50v6","","Referral","2.16.840.1.113883.3.464.1003.101.12.1046","Intervention","20170504","eCQM Update 2018 EP-EC and EH","Under Development","Under Development","Under Development","Under Development","183911009","Private referral to radiotherapist (procedure)","SNOMEDCT","2.16.840.1.113883.6.96","2017-03","20170929"]
["CMS50v6","","Referral","2.16.840.1.113883.3.464.1003.101.12.1046","Intervention","20170504","eCQM Update 2018 EP-EC and EH","Under Development","Under Development","Under Development","Under Development","183913007","Private referral to geneticist (procedure)","SNOMEDCT","2.16.840.1.113883.6.96","2017-03","20170929"]
["CMS50v6","","Referral","2.16.840.1.113883.3.464.1003.101.12.1046","Intervention","20170504","eCQM Update 2018 EP-EC and EH","Under Development","Under Development","Under Development","Under Development","183914001","Private referral to anesthetist (procedure)","SNOMEDCT","2.16.840.1.113883.6.96","2017-03","20170929"]
["CMS50v6","","Referral","2.16.840.1.113883.3.464.1003.101.12.1046","Intervention","20170504","eCQM Update 2018 EP-EC and EH","Under Development","Under Development","Under Development","Under Development","183915000","Private referral to endocrinologist (procedure)","SNOMEDCT","2.16.840.1.113883.6.96","2017-03","20170929"]
["CMS50v6","","Referral","2.16.840.1.113883.3.464.1003.101.12.1046","Intervention","20170504","eCQM Update 2018 EP-EC and EH","Under Development","Under Development","Under Development","Under Development","183916004","Private referral to nephrologist (procedure)","SNOMEDCT","2.16.840.1.113883.6.96","2017-03","20170929"]
["CMS50v6","","Referral","2.16.840.1.113883.3.464.1003.101.12.1046","Intervention","20170504","eCQM Update 2018 EP-EC and EH","Under Development","Under Development","Under Development","Under Development","266747000","Referral to private doctor (procedure)","SNOMEDCT","2.16.840.1.113883.6.96","2017-03","20170929"]
["CMS50v6","","Referral","2.16.840.1.113883.3.464.1003.101.12.1046","Intervention","20170504","eCQM Update 2018 EP-EC and EH","Under Development","Under Development","Under Development","Under Development","274410002","Dental referral - child (procedure)","SNOMEDCT","2.16.840.1.113883.6.96","2017-03","20170929"]
["CMS50v6","","Referral","2.16.840.1.113883.3.464.1003.101.12.1046","Intervention","20170504","eCQM Update 2018 EP-EC and EH","Under Development","Under Development","Under Development","Under Development","306241009","Referral to audiological physician (procedure)","SNOMEDCT","2.16.840.1.113883.6.96","2017-03","20170929"]
["CMS50v6","","Referral","2.16.840.1.113883.3.464.1003.101.12.1046","Intervention","20170504","eCQM Update 2018 EP-EC and EH","Under Development","Under Development","Under Development","Under Development","306242002","Referral to audiological scientist (procedure)","SNOMEDCT","2.16.840.1.113883.6.96","2017-03","20170929"]
["CMS50v6","","Referral","2.16.840.1.113883.3.464.1003.101.12.1046","Intervention","20170504","eCQM Update 2018 EP-EC and EH","Under Development","Under Development","Under Development","Under Development","306243007","Referral to community doctor in audiology (procedure)","SNOMEDCT","2.16.840.1.113883.6.96","2017-03","20170929"]
["CMS50v6","","Referral","2.16.840.1.113883.3.464.1003.101.12.1046","Intervention","20170504","eCQM Update 2018 EP-EC and EH","Under Development","Under Development","Under Development","Under Development","306245000","Referral to hearing therapist (procedure)","SNOMEDCT","2.16.840.1.113883.6.96","2017-03","20170929"]
["CMS50v6","","Referral","2.16.840.1.113883.3.464.1003.101.12.1046","Intervention","20170504","eCQM Update 2018 EP-EC and EH","Under Development","Under Development","Under Development","Under Development","306247008","Referral to pediatric audiologist (procedure)","SNOMEDCT","2.16.840.1.113883.6.96","2017-03","20170929"]
["CMS50v6","","Referral","2.16.840.1.113883.3.464.1003.101.12.1046","Intervention","20170504","eCQM Update 2018 EP-EC and EH","Under Development","Under Development","Under Development","Under Development","306250006","Referral to genetic counselor (procedure)","SNOMEDCT","2.16.840.1.113883.6.96","2017-03","20170929"]
["CMS50v6","","Referral","2.16.840.1.113883.3.464.1003.101.12.1046","Intervention","20170504","eCQM Update 2018 EP-EC and EH","Under Development","Under Development","Under Development","Under Development","306252003","Referral to mental health counselor (procedure)","SNOMEDCT","2.16.840.1.113883.6.96","2017-03","20170929"]
["CMS50v6","","Referral","2.16.840.1.113883.3.464.1003.101.12.1046","Intervention","20170504","eCQM Update 2018 EP-EC and EH","Under Development","Under Development","Under Development","Under Development","306253008","Referral to doctor (procedure)","SNOMEDCT","2.16.840.1.113883.6.96","2017-03","20170929"]
["CMS50v6","","Referral","2.16.840.1.113883.3.464.1003.101.12.1046","Intervention","20170504","eCQM Update 2018 EP-EC and EH","Under Development","Under Development","Under Development","Under Development","306254002","Referral to Accident and Emergency doctor (procedure)","SNOMEDCT","2.16.840.1.113883.6.96","2017-03","20170929"]
["CMS50v6","","Referral","2.16.840.1.113883.3.464.1003.101.12.1046","Intervention","20170504","eCQM Update 2018 EP-EC and EH","Under Development","Under Development","Under Development","Under Development","306255001","Referral to anesthetist (procedure)","SNOMEDCT","2.16.840.1.113883.6.96","2017-03","20170929"]
["CMS50v6","","Referral","2.16.840.1.113883.3.464.1003.101.12.1046","Intervention","20170504","eCQM Update 2018 EP-EC and EH","Under Development","Under Development","Under Development","Under Development","306256000","Referral to radiotherapist (procedure)","SNOMEDCT","2.16.840.1.113883.6.96","2017-03","20170929"]
["CMS50v6","","Referral","2.16.840.1.113883.3.464.1003.101.12.1046","Intervention","20170504","eCQM Update 2018 EP-EC and EH","Under Development","Under Development","Under Development","Under Development","306257009","Referral to family planning doctor (procedure)","SNOMEDCT","2.16.840.1.113883.6.96","2017-03","20170929"]
["CMS50v6","","Referral","2.16.840.1.113883.3.464.1003.101.12.1046","Intervention","20170504","eCQM Update 2018 EP-EC and EH","Under Development","Under Development","Under Development","Under Development","306258004","Referral to intensive care specialist (procedure)","SNOMEDCT","2.16.840.1.113883.6.96","2017-03","20170929"]
["CMS50v6","","Referral","2.16.840.1.113883.3.464.1003.101.12.1046","Intervention","20170504","eCQM Update 2018 EP-EC and EH","Under Development","Under Development","Under Development","Under Development","306259007","Referral to adult intensive care specialist (procedure)","SNOMEDCT","2.16.840.1.113883.6.96","2017-03","20170929"]
["CMS50v6","","Referral","2.16.840.1.113883.3.464.1003.101.12.1046","Intervention","20170504","eCQM Update 2018 EP-EC and EH","Under Development","Under Development","Under Development","Under Development","306260002","Referral to pediatric intensive care specialist (procedure)","SNOMEDCT","2.16.840.1.113883.6.96","2017-03","20170929"]
["CMS50v6","","Referral","2.16.840.1.113883.3.464.1003.101.12.1046","Intervention","20170504","eCQM Update 2018 EP-EC and EH","Under Development","Under Development","Under Development","Under Development","306261003","Referral to community pediatrician (procedure)","SNOMEDCT","2.16.840.1.113883.6.96","2017-03","20170929"]
["CMS50v6","","Referral","2.16.840.1.113883.3.464.1003.101.12.1046","Intervention","20170504","eCQM Update 2018 EP-EC and EH","Under Development","Under Development","Under Development","Under Development","306262005","Referral to neonatologist (procedure)","SNOMEDCT","2.16.840.1.113883.6.96","2017-03","20170929"]
["CMS50v6","","Referral","2.16.840.1.113883.3.464.1003.101.12.1046","Intervention","20170504","eCQM Update 2018 EP-EC and EH","Under Development","Under Development","Under Development","Under Development","306263000","Referral to pediatric neurologist (procedure)","SNOMEDCT","2.16.840.1.113883.6.96","2017-03","20170929"]
["CMS50v6","","Referral","2.16.840.1.113883.3.464.1003.101.12.1046","Intervention","20170504","eCQM Update 2018 EP-EC and EH","Under Development","Under Development","Under Development","Under Development","306264006","Referral to pediatric oncologist (procedure)","SNOMEDCT","2.16.840.1.113883.6.96","2017-03","20170929"]
["CMS50v6","","Referral","2.16.840.1.113883.3.464.1003.101.12.1046","Intervention","20170504","eCQM Update 2018 EP-EC and EH","Under Development","Under Development","Under Development","Under Development","306265007","Referral to pain management specialist (procedure)","SNOMEDCT","2.16.840.1.113883.6.96","2017-03","20170929"]
["CMS50v6","","Referral","2.16.840.1.113883.3.464.1003.101.12.1046","Intervention","20170504","eCQM Update 2018 EP-EC and EH","Under Development","Under Development","Under Development","Under Development","306266008","Referral to pathologist (procedure)","SNOMEDCT","2.16.840.1.113883.6.96","2017-03","20170929"]
["CMS50v6","","Referral","2.16.840.1.113883.3.464.1003.101.12.1046","Intervention","20170504","eCQM Update 2018 EP-EC and EH","Under Development","Under Development","Under Development","Under Development","306267004","Referral to blood transfusion doctor (procedure)","SNOMEDCT","2.16.840.1.113883.6.96","2017-03","20170929"]
["CMS50v6","","Referral","2.16.840.1.113883.3.464.1003.101.12.1046","Intervention","20170504","eCQM Update 2018 EP-EC and EH","Under Development","Under Development","Under Development","Under Development","306268009","Referral to chemical pathologist (procedure)","SNOMEDCT","2.16.840.1.113883.6.96","2017-03","20170929"]
["CMS50v6","","Referral","2.16.840.1.113883.3.464.1003.101.12.1046","Intervention","20170504","eCQM Update 2018 EP-EC and EH","Under Development","Under Development","Under Development","Under Development","306269001","Referral to general pathologist (procedure)","SNOMEDCT","2.16.840.1.113883.6.96","2017-03","20170929"]
["CMS50v6","","Referral","2.16.840.1.113883.3.464.1003.101.12.1046","Intervention","20170504","eCQM Update 2018 EP-EC and EH","Under Development","Under Development","Under Development","Under Development","306270000","Referral to medical microbiologist (procedure)","SNOMEDCT","2.16.840.1.113883.6.96","2017-03","20170929"]
["CMS50v6","","Referral","2.16.840.1.113883.3.464.1003.101.12.1046","Intervention","20170504","eCQM Update 2018 EP-EC and EH","Under Development","Under Development","Under Development","Under Development","306271001","Referral to neuropathologist (procedure)","SNOMEDCT","2.16.840.1.113883.6.96","2017-03","20170929"]
["CMS50v6","","Referral","2.16.840.1.113883.3.464.1003.101.12.1046","Intervention","20170504","eCQM Update 2018 EP-EC and EH","Under Development","Under Development","Under Development","Under Development","306272008","Referral to clinical allergist (procedure)","SNOMEDCT","2.16.840.1.113883.6.96","2017-03","20170929"]
["CMS50v6","","Referral","2.16.840.1.113883.3.464.1003.101.12.1046","Intervention","20170504","eCQM Update 2018 EP-EC and EH","Under Development","Under Development","Under Development","Under Development","306273003","Referral to chest physician (procedure)","SNOMEDCT","2.16.840.1.113883.6.96","2017-03","20170929"]
["CMS50v6","","Referral","2.16.840.1.113883.3.464.1003.101.12.1046","Intervention","20170504","eCQM Update 2018 EP-EC and EH","Under Development","Under Development","Under Development","Under Development","306274009","Referral to thoracic physician (procedure)","SNOMEDCT","2.16.840.1.113883.6.96","2017-03","20170929"]
["CMS50v6","","Referral","2.16.840.1.113883.3.464.1003.101.12.1046","Intervention","20170504","eCQM Update 2018 EP-EC and EH","Under Development","Under Development","Under Development","Under Development","306275005","Referral to respiratory physician (procedure)","SNOMEDCT","2.16.840.1.113883.6.96","2017-03","20170929"]
["CMS50v6","","Referral","2.16.840.1.113883.3.464.1003.101.12.1046","Intervention","20170504","eCQM Update 2018 EP-EC and EH","Under Development","Under Development","Under Development","Under Development","306276006","Referral to clinical neurophysiologist (procedure)","SNOMEDCT","2.16.840.1.113883.6.96","2017-03","20170929"]
["CMS50v6","","Referral","2.16.840.1.113883.3.464.1003.101.12.1046","Intervention","20170504","eCQM Update 2018 EP-EC and EH","Under Development","Under Development","Under Development","Under Development","306277002","Referral to clinical physiologist (procedure)","SNOMEDCT","2.16.840.1.113883.6.96","2017-03","20170929"]
["CMS50v6","","Referral","2.16.840.1.113883.3.464.1003.101.12.1046","Intervention","20170504","eCQM Update 2018 EP-EC and EH","Under Development","Under Development","Under Development","Under Development","306278007","Referral to endocrinologist (procedure)","SNOMEDCT","2.16.840.1.113883.6.96","2017-03","20170929"]
["CMS50v6","","Referral","2.16.840.1.113883.3.464.1003.101.12.1046","Intervention","20170504","eCQM Update 2018 EP-EC and EH","Under Development","Under Development","Under Development","Under Development","306279004","Referral to clinical geneticist (procedure)","SNOMEDCT","2.16.840.1.113883.6.96","2017-03","20170929"]
["CMS50v6","","Referral","2.16.840.1.113883.3.464.1003.101.12.1046","Intervention","20170504","eCQM Update 2018 EP-EC and EH","Under Development","Under Development","Under Development","Under Development","306280001","Referral to clinical cytogeneticist (procedure)","SNOMEDCT","2.16.840.1.113883.6.96","2017-03","20170929"]
["CMS50v6","","Referral","2.16.840.1.113883.3.464.1003.101.12.1046","Intervention","20170504","eCQM Update 2018 EP-EC and EH","Under Development","Under Development","Under Development","Under Development","306281002","Referral to clinical molecular geneticist (procedure)","SNOMEDCT","2.16.840.1.113883.6.96","2017-03","20170929"]
["CMS50v6","","Referral","2.16.840.1.113883.3.464.1003.101.12.1046","Intervention","20170504","eCQM Update 2018 EP-EC and EH","Under Development","Under Development","Under Development","Under Development","306282009","Referral to genitourinary physician (procedure)","SNOMEDCT","2.16.840.1.113883.6.96","2017-03","20170929"]
["CMS50v6","","Referral","2.16.840.1.113883.3.464.1003.101.12.1046","Intervention","20170504","eCQM Update 2018 EP-EC and EH","Under Development","Under Development","Under Development","Under Development","306284005","Referral to infectious diseases physician (procedure)","SNOMEDCT","2.16.840.1.113883.6.96","2017-03","20170929"]
["CMS50v6","","Referral","2.16.840.1.113883.3.464.1003.101.12.1046","Intervention","20170504","eCQM Update 2018 EP-EC and EH","Under Development","Under Development","Under Development","Under Development","306285006","Referral to medical ophthalmologist (procedure)","SNOMEDCT","2.16.840.1.113883.6.96","2017-03","20170929"]
["CMS50v6","","Referral","2.16.840.1.113883.3.464.1003.101.12.1046","Intervention","20170504","eCQM Update 2018 EP-EC and EH","Under Development","Under Development","Under Development","Under Development","306286007","Referral to nephrologist (procedure)","SNOMEDCT","2.16.840.1.113883.6.96","2017-03","20170929"]
["CMS50v6","","Referral","2.16.840.1.113883.3.464.1003.101.12.1046","Intervention","20170504","eCQM Update 2018 EP-EC and EH","Under Development","Under Development","Under Development","Under Development","306287003","Referral to nuclear medicine physician (procedure)","SNOMEDCT","2.16.840.1.113883.6.96","2017-03","20170929"]
["CMS50v6","","Referral","2.16.840.1.113883.3.464.1003.101.12.1046","Intervention","20170504","eCQM Update 2018 EP-EC and EH","Under Development","Under Development","Under Development","Under Development","306288008","Referral to palliative care physician (procedure)","SNOMEDCT","2.16.840.1.113883.6.96","2017-03","20170929"]
["CMS50v6","","Referral","2.16.840.1.113883.3.464.1003.101.12.1046","Intervention","20170504","eCQM Update 2018 EP-EC and EH","Under Development","Under Development","Under Development","Under Development","306289000","Referral to rehabilitation physician (procedure)","SNOMEDCT","2.16.840.1.113883.6.96","2017-03","20170929"]
["CMS50v6","","Referral","2.16.840.1.113883.3.464.1003.101.12.1046","Intervention","20170504","eCQM Update 2018 EP-EC and EH","Under Development","Under Development","Under Development","Under Development","306290009","Referral to rheumatologist (procedure)","SNOMEDCT","2.16.840.1.113883.6.96","2017-03","20170929"]
["CMS50v6","","Referral","2.16.840.1.113883.3.464.1003.101.12.1046","Intervention","20170504","eCQM Update 2018 EP-EC and EH","Under Development","Under Development","Under Development","Under Development","306291008","Referral to child and adolescent psychiatrist (procedure)","SNOMEDCT","2.16.840.1.113883.6.96","2017-03","20170929"]
["CMS50v6","","Referral","2.16.840.1.113883.3.464.1003.101.12.1046","Intervention","20170504","eCQM Update 2018 EP-EC and EH","Under Development","Under Development","Under Development","Under Development","306293006","Referral to liaison psychiatrist (procedure)","SNOMEDCT","2.16.840.1.113883.6.96","2017-03","20170929"]
["CMS50v6","","Referral","2.16.840.1.113883.3.464.1003.101.12.1046","Intervention","20170504","eCQM Update 2018 EP-EC and EH","Under Development","Under Development","Under Development","Under Development","306294000","Referral to psychiatrist for mental handicap (procedure)","SNOMEDCT","2.16.840.1.113883.6.96","2017-03","20170929"]
["CMS50v6","","Referral","2.16.840.1.113883.3.464.1003.101.12.1046","Intervention","20170504","eCQM Update 2018 EP-EC and EH","Under Development","Under Development","Under Development","Under Development","306295004","Referral to rehabilitation psychiatrist (procedure)","SNOMEDCT","2.16.840.1.113883.6.96","2017-03","20170929"]
["CMS50v6","","Referral","2.16.840.1.113883.3.464.1003.101.12.1046","Intervention","20170504","eCQM Update 2018 EP-EC and EH","Under Development","Under Development","Under Development","Under Development","306296003","Referral to public health physician (procedure)","SNOMEDCT","2.16.840.1.113883.6.96","2017-03","20170929"]
["CMS50v6","","Referral","2.16.840.1.113883.3.464.1003.101.12.1046","Intervention","20170504","eCQM Update 2018 EP-EC and EH","Under Development","Under Development","Under Development","Under Development","306297007","Referral to obstetrician and gynecologist (procedure)","SNOMEDCT","2.16.840.1.113883.6.96","2017-03","20170929"]
["CMS50v6","","Referral","2.16.840.1.113883.3.464.1003.101.12.1046","Intervention","20170504","eCQM Update 2018 EP-EC and EH","Under Development","Under Development","Under Development","Under Development","306298002","Referral to occupational health physician (procedure)","SNOMEDCT","2.16.840.1.113883.6.96","2017-03","20170929"]
["CMS50v6","","Referral","2.16.840.1.113883.3.464.1003.101.12.1046","Intervention","20170504","eCQM Update 2018 EP-EC and EH","Under Development","Under Development","Under Development","Under Development","306299005","Referral to radiologist (procedure)","SNOMEDCT","2.16.840.1.113883.6.96","2017-03","20170929"]
["CMS50v6","","Referral","2.16.840.1.113883.3.464.1003.101.12.1046","Intervention","20170504","eCQM Update 2018 EP-EC and EH","Under Development","Under Development","Under Development","Under Development","306300002","Referral to breast surgeon (procedure)","SNOMEDCT","2.16.840.1.113883.6.96","2017-03","20170929"]
["CMS50v6","","Referral","2.16.840.1.113883.3.464.1003.101.12.1046","Intervention","20170504","eCQM Update 2018 EP-EC and EH","Under Development","Under Development","Under Development","Under Development","306301003","Referral to thoracic surgeon (procedure)","SNOMEDCT","2.16.840.1.113883.6.96","2017-03","20170929"]
["CMS50v6","","Referral","2.16.840.1.113883.3.464.1003.101.12.1046","Intervention","20170504","eCQM Update 2018 EP-EC and EH","Under Development","Under Development","Under Development","Under Development","306302005","Referral to cardiac surgeon (procedure)","SNOMEDCT","2.16.840.1.113883.6.96","2017-03","20170929"]
["CMS50v6","","Referral","2.16.840.1.113883.3.464.1003.101.12.1046","Intervention","20170504","eCQM Update 2018 EP-EC and EH","Under Development","Under Development","Under Development","Under Development","306303000","Referral to dental surgeon (procedure)","SNOMEDCT","2.16.840.1.113883.6.96","2017-03","20170929"]
["CMS50v6","","Referral","2.16.840.1.113883.3.464.1003.101.12.1046","Intervention","20170504","eCQM Update 2018 EP-EC and EH","Under Development","Under Development","Under Development","Under Development","306304006","Referral to orthodontist (procedure)","SNOMEDCT","2.16.840.1.113883.6.96","2017-03","20170929"]
["CMS50v6","","Referral","2.16.840.1.113883.3.464.1003.101.12.1046","Intervention","20170504","eCQM Update 2018 EP-EC and EH","Under Development","Under Development","Under Development","Under Development","306305007","Referral to pediatric dentist (procedure)","SNOMEDCT","2.16.840.1.113883.6.96","2017-03","20170929"]
["CMS50v6","","Referral","2.16.840.1.113883.3.464.1003.101.12.1046","Intervention","20170504","eCQM Update 2018 EP-EC and EH","Under Development","Under Development","Under Development","Under Development","306306008","Referral to restorative dentist (procedure)","SNOMEDCT","2.16.840.1.113883.6.96","2017-03","20170929"]
["CMS50v6","","Referral","2.16.840.1.113883.3.464.1003.101.12.1046","Intervention","20170504","eCQM Update 2018 EP-EC and EH","Under Development","Under Development","Under Development","Under Development","306307004","Referral to endocrine surgeon (procedure)","SNOMEDCT","2.16.840.1.113883.6.96","2017-03","20170929"]
["CMS50v6","","Referral","2.16.840.1.113883.3.464.1003.101.12.1046","Intervention","20170504","eCQM Update 2018 EP-EC and EH","Under Development","Under Development","Under Development","Under Development","306308009","Referral to gastrointestinal surgeon (procedure)","SNOMEDCT","2.16.840.1.113883.6.96","2017-03","20170929"]
["CMS50v6","","Referral","2.16.840.1.113883.3.464.1003.101.12.1046","Intervention","20170504","eCQM Update 2018 EP-EC and EH","Under Development","Under Development","Under Development","Under Development","306309001","Referral to general gastrointestinal surgeon (procedure)","SNOMEDCT","2.16.840.1.113883.6.96","2017-03","20170929"]
["CMS50v6","","Referral","2.16.840.1.113883.3.464.1003.101.12.1046","Intervention","20170504","eCQM Update 2018 EP-EC and EH","Under Development","Under Development","Under Development","Under Development","306310006","Referral to upper gastrointestinal surgeon (procedure)","SNOMEDCT","2.16.840.1.113883.6.96","2017-03","20170929"]
["CMS50v6","","Referral","2.16.840.1.113883.3.464.1003.101.12.1046","Intervention","20170504","eCQM Update 2018 EP-EC and EH","Under Development","Under Development","Under Development","Under Development","306311005","Referral to colorectal surgeon (procedure)","SNOMEDCT","2.16.840.1.113883.6.96","2017-03","20170929"]
["CMS50v6","","Referral","2.16.840.1.113883.3.464.1003.101.12.1046","Intervention","20170504","eCQM Update 2018 EP-EC and EH","Under Development","Under Development","Under Development","Under Development","306312003","Referral to hand surgeon (procedure)","SNOMEDCT","2.16.840.1.113883.6.96","2017-03","20170929"]
["CMS50v6","","Referral","2.16.840.1.113883.3.464.1003.101.12.1046","Intervention","20170504","eCQM Update 2018 EP-EC and EH","Under Development","Under Development","Under Development","Under Development","306313008","Referral to hepatobiliary surgeon (procedure)","SNOMEDCT","2.16.840.1.113883.6.96","2017-03","20170929"]
["CMS50v6","","Referral","2.16.840.1.113883.3.464.1003.101.12.1046","Intervention","20170504","eCQM Update 2018 EP-EC and EH","Under Development","Under Development","Under Development","Under Development","306314002","Referral to pancreatic surgeon (procedure)","SNOMEDCT","2.16.840.1.113883.6.96","2017-03","20170929"]
["CMS50v6","","Referral","2.16.840.1.113883.3.464.1003.101.12.1046","Intervention","20170504","eCQM Update 2018 EP-EC and EH","Under Development","Under Development","Under Development","Under Development","306315001","Referral to plastic surgeon (procedure)","SNOMEDCT","2.16.840.1.113883.6.96","2017-03","20170929"]
["CMS50v6","","Referral","2.16.840.1.113883.3.464.1003.101.12.1046","Intervention","20170504","eCQM Update 2018 EP-EC and EH","Under Development","Under Development","Under Development","Under Development","306316000","Referral to transplant surgeon (procedure)","SNOMEDCT","2.16.840.1.113883.6.96","2017-03","20170929"]
["CMS50v6","","Referral","2.16.840.1.113883.3.464.1003.101.12.1046","Intervention","20170504","eCQM Update 2018 EP-EC and EH","Under Development","Under Development","Under Development","Under Development","306317009","Referral to trauma surgeon (procedure)","SNOMEDCT","2.16.840.1.113883.6.96","2017-03","20170929"]
["CMS50v6","","Referral","2.16.840.1.113883.3.464.1003.101.12.1046","Intervention","20170504","eCQM Update 2018 EP-EC and EH","Under Development","Under Development","Under Development","Under Development","306318004","Referral to urologist (procedure)","SNOMEDCT","2.16.840.1.113883.6.96","2017-03","20170929"]
["CMS50v6","","Referral","2.16.840.1.113883.3.464.1003.101.12.1046","Intervention","20170504","eCQM Update 2018 EP-EC and EH","Under Development","Under Development","Under Development","Under Development","306320001","Referral to clinical nurse specialist (procedure)","SNOMEDCT","2.16.840.1.113883.6.96","2017-03","20170929"]
["CMS50v6","","Referral","2.16.840.1.113883.3.464.1003.101.12.1046","Intervention","20170504","eCQM Update 2018 EP-EC and EH","Under Development","Under Development","Under Development","Under Development","306338003","Referral to nurse practitioner (procedure)","SNOMEDCT","2.16.840.1.113883.6.96","2017-03","20170929"]
["CMS50v6","","Referral","2.16.840.1.113883.3.464.1003.101.12.1046","Intervention","20170504","eCQM Update 2018 EP-EC and EH","Under Development","Under Development","Under Development","Under Development","306341007","Referral to community-based midwife (procedure)","SNOMEDCT","2.16.840.1.113883.6.96","2017-03","20170929"]
["CMS50v6","","Referral","2.16.840.1.113883.3.464.1003.101.12.1046","Intervention","20170504","eCQM Update 2018 EP-EC and EH","Under Development","Under Development","Under Development","Under Development","306342000","Referral to hospital-based midwife (procedure)","SNOMEDCT","2.16.840.1.113883.6.96","2017-03","20170929"]
["CMS50v6","","Referral","2.16.840.1.113883.3.464.1003.101.12.1046","Intervention","20170504","eCQM Update 2018 EP-EC and EH","Under Development","Under Development","Under Development","Under Development","306343005","Referral to psychotherapist (procedure)","SNOMEDCT","2.16.840.1.113883.6.96","2017-03","20170929"]
["CMS50v6","","Referral","2.16.840.1.113883.3.464.1003.101.12.1046","Intervention","20170504","eCQM Update 2018 EP-EC and EH","Under Development","Under Development","Under Development","Under Development","306351008","Referral to community-based podiatrist (procedure)","SNOMEDCT","2.16.840.1.113883.6.96","2017-03","20170929"]
["CMS50v6","","Referral","2.16.840.1.113883.3.464.1003.101.12.1046","Intervention","20170504","eCQM Update 2018 EP-EC and EH","Under Development","Under Development","Under Development","Under Development","306352001","Referral to hospital-based podiatrist (procedure)","SNOMEDCT","2.16.840.1.113883.6.96","2017-03","20170929"]
["CMS50v6","","Referral","2.16.840.1.113883.3.464.1003.101.12.1046","Intervention","20170504","eCQM Update 2018 EP-EC and EH","Under Development","Under Development","Under Development","Under Development","306353006","Referral to community-based dietitian (procedure)","SNOMEDCT","2.16.840.1.113883.6.96","2017-03","20170929"]
["CMS50v6","","Referral","2.16.840.1.113883.3.464.1003.101.12.1046","Intervention","20170504","eCQM Update 2018 EP-EC and EH","Under Development","Under Development","Under Development","Under Development","306354000","Referral to hospital-based dietitian (procedure)","SNOMEDCT","2.16.840.1.113883.6.96","2017-03","20170929"]
["CMS50v6","","Referral","2.16.840.1.113883.3.464.1003.101.12.1046","Intervention","20170504","eCQM Update 2018 EP-EC and EH","Under Development","Under Development","Under Development","Under Development","306355004","Referral to community-based occupational therapist (procedure)","SNOMEDCT","2.16.840.1.113883.6.96","2017-03","20170929"]
["CMS50v6","","Referral","2.16.840.1.113883.3.464.1003.101.12.1046","Intervention","20170504","eCQM Update 2018 EP-EC and EH","Under Development","Under Development","Under Development","Under Development","306356003","Referral to social services department occupational therapist (procedure)","SNOMEDCT","2.16.840.1.113883.6.96","2017-03","20170929"]
["CMS50v6","","Referral","2.16.840.1.113883.3.464.1003.101.12.1046","Intervention","20170504","eCQM Update 2018 EP-EC and EH","Under Development","Under Development","Under Development","Under Development","306357007","Referral to hospital-based occupational therapist (procedure)","SNOMEDCT","2.16.840.1.113883.6.96","2017-03","20170929"]
["CMS50v6","","Referral","2.16.840.1.113883.3.464.1003.101.12.1046","Intervention","20170504","eCQM Update 2018 EP-EC and EH","Under Development","Under Development","Under Development","Under Development","306358002","Referral to community-based physiotherapist (procedure)","SNOMEDCT","2.16.840.1.113883.6.96","2017-03","20170929"]
["CMS50v6","","Referral","2.16.840.1.113883.3.464.1003.101.12.1046","Intervention","20170504","eCQM Update 2018 EP-EC and EH","Under Development","Under Development","Under Development","Under Development","306359005","Referral to hospital-based physiotherapist (procedure)","SNOMEDCT","2.16.840.1.113883.6.96","2017-03","20170929"]
["CMS50v6","","Referral","2.16.840.1.113883.3.464.1003.101.12.1046","Intervention","20170504","eCQM Update 2018 EP-EC and EH","Under Development","Under Development","Under Development","Under Development","306360000","Referral to community-based speech and language therapist (procedure)","SNOMEDCT","2.16.840.1.113883.6.96","2017-03","20170929"]
["CMS50v6","","Referral","2.16.840.1.113883.3.464.1003.101.12.1046","Intervention","20170504","eCQM Update 2018 EP-EC and EH","Under Development","Under Development","Under Development","Under Development","306361001","Referral to hospital-based speech and language therapist (procedure)","SNOMEDCT","2.16.840.1.113883.6.96","2017-03","20170929"]
["CMS50v6","","Referral","2.16.840.1.113883.3.464.1003.101.12.1046","Intervention","20170504","eCQM Update 2018 EP-EC and EH","Under Development","Under Development","Under Development","Under Development","306736002","Referral to general dental surgeon (procedure)","SNOMEDCT","2.16.840.1.113883.6.96","2017-03","20170929"]
["CMS50v6","","Referral","2.16.840.1.113883.3.464.1003.101.12.1046","Intervention","20170504","eCQM Update 2018 EP-EC and EH","Under Development","Under Development","Under Development","Under Development","307063001","Referral to clinical hematologist (procedure)","SNOMEDCT","2.16.840.1.113883.6.96","2017-03","20170929"]
["CMS50v6","","Referral","2.16.840.1.113883.3.464.1003.101.12.1046","Intervention","20170504","eCQM Update 2018 EP-EC and EH","Under Development","Under Development","Under Development","Under Development","307777008","Referral to vascular surgeon (procedure)","SNOMEDCT","2.16.840.1.113883.6.96","2017-03","20170929"]
["CMS50v6","","Referral","2.16.840.1.113883.3.464.1003.101.12.1046","Intervention","20170504","eCQM Update 2018 EP-EC and EH","Under Development","Under Development","Under Development","Under Development","308439003","Referral to midwife (procedure)","SNOMEDCT","2.16.840.1.113883.6.96","2017-03","20170929"]
["CMS50v6","","Referral","2.16.840.1.113883.3.464.1003.101.12.1046","Intervention","20170504","eCQM Update 2018 EP-EC and EH","Under Development","Under Development","Under Development","Under Development","308447003","Referral to physiotherapist (procedure)","SNOMEDCT","2.16.840.1.113883.6.96","2017-03","20170929"]
["CMS50v6","","Referral","2.16.840.1.113883.3.464.1003.101.12.1046","Intervention","20170504","eCQM Update 2018 EP-EC and EH","Under Development","Under Development","Under Development","Under Development","308449000","Referral to chiropractor (procedure)","SNOMEDCT","2.16.840.1.113883.6.96","2017-03","20170929"]
["CMS50v6","","Referral","2.16.840.1.113883.3.464.1003.101.12.1046","Intervention","20170504","eCQM Update 2018 EP-EC and EH","Under Development","Under Development","Under Development","Under Development","308450000","Referral to osteopath (procedure)","SNOMEDCT","2.16.840.1.113883.6.96","2017-03","20170929"]
["CMS50v6","","Referral","2.16.840.1.113883.3.464.1003.101.12.1046","Intervention","20170504","eCQM Update 2018 EP-EC and EH","Under Development","Under Development","Under Development","Under Development","308451001","Referral to podiatrist (procedure)","SNOMEDCT","2.16.840.1.113883.6.96","2017-03","20170929"]
["CMS50v6","","Referral","2.16.840.1.113883.3.464.1003.101.12.1046","Intervention","20170504","eCQM Update 2018 EP-EC and EH","Under Development","Under Development","Under Development","Under Development","308452008","Referral to speech and language therapist (procedure)","SNOMEDCT","2.16.840.1.113883.6.96","2017-03","20170929"]
["CMS50v6","","Referral","2.16.840.1.113883.3.464.1003.101.12.1046","Intervention","20170504","eCQM Update 2018 EP-EC and EH","Under Development","Under Development","Under Development","Under Development","308453003","Referral to occupational therapist (procedure)","SNOMEDCT","2.16.840.1.113883.6.96","2017-03","20170929"]
["CMS50v6","","Referral","2.16.840.1.113883.3.464.1003.101.12.1046","Intervention","20170504","eCQM Update 2018 EP-EC and EH","Under Development","Under Development","Under Development","Under Development","308454009","Referral to orthoptist (procedure)","SNOMEDCT","2.16.840.1.113883.6.96","2017-03","20170929"]
["CMS50v6","","Referral","2.16.840.1.113883.3.464.1003.101.12.1046","Intervention","20170504","eCQM Update 2018 EP-EC and EH","Under Development","Under Development","Under Development","Under Development","308455005","Referral to orthotist (procedure)","SNOMEDCT","2.16.840.1.113883.6.96","2017-03","20170929"]
["CMS50v6","","Referral","2.16.840.1.113883.3.464.1003.101.12.1046","Intervention","20170504","eCQM Update 2018 EP-EC and EH","Under Development","Under Development","Under Development","Under Development","308456006","Referral to audiologist (procedure)","SNOMEDCT","2.16.840.1.113883.6.96","2017-03","20170929"]
["CMS50v6","","Referral","2.16.840.1.113883.3.464.1003.101.12.1046","Intervention","20170504","eCQM Update 2018 EP-EC and EH","Under Development","Under Development","Under Development","Under Development","308459004","Referral to psychologist (procedure)","SNOMEDCT","2.16.840.1.113883.6.96","2017-03","20170929"]
["CMS50v6","","Referral","2.16.840.1.113883.3.464.1003.101.12.1046","Intervention","20170504","eCQM Update 2018 EP-EC and EH","Under Development","Under Development","Under Development","Under Development","308465004","Referral to optometrist (procedure)","SNOMEDCT","2.16.840.1.113883.6.96","2017-03","20170929"]
["CMS50v6","","Referral","2.16.840.1.113883.3.464.1003.101.12.1046","Intervention","20170504","eCQM Update 2018 EP-EC and EH","Under Development","Under Development","Under Development","Under Development","308469005","Referral to geneticist (procedure)","SNOMEDCT","2.16.840.1.113883.6.96","2017-03","20170929"]
["CMS50v6","","Referral","2.16.840.1.113883.3.464.1003.101.12.1046","Intervention","20170504","eCQM Update 2018 EP-EC and EH","Under Development","Under Development","Under Development","Under Development","308470006","Referral to general physician (procedure)","SNOMEDCT","2.16.840.1.113883.6.96","2017-03","20170929"]
["CMS50v6","","Referral","2.16.840.1.113883.3.464.1003.101.12.1046","Intervention","20170504","eCQM Update 2018 EP-EC and EH","Under Development","Under Development","Under Development","Under Development","308471005","Referral to cardiologist (procedure)","SNOMEDCT","2.16.840.1.113883.6.96","2017-03","20170929"]
["CMS50v6","","Referral","2.16.840.1.113883.3.464.1003.101.12.1046","Intervention","20170504","eCQM Update 2018 EP-EC and EH","Under Development","Under Development","Under Development","Under Development","308472003","Referral to dermatologist (procedure)","SNOMEDCT","2.16.840.1.113883.6.96","2017-03","20170929"]
["CMS50v6","","Referral","2.16.840.1.113883.3.464.1003.101.12.1046","Intervention","20170504","eCQM Update 2018 EP-EC and EH","Under Development","Under Development","Under Development","Under Development","308473008","Referral to clinical immunologist (procedure)","SNOMEDCT","2.16.840.1.113883.6.96","2017-03","20170929"]
["CMS50v6","","Referral","2.16.840.1.113883.3.464.1003.101.12.1046","Intervention","20170504","eCQM Update 2018 EP-EC and EH","Under Development","Under Development","Under Development","Under Development","308474002","Referral to neurologist (procedure)","SNOMEDCT","2.16.840.1.113883.6.96","2017-03","20170929"]
["CMS50v6","","Referral","2.16.840.1.113883.3.464.1003.101.12.1046","Intervention","20170504","eCQM Update 2018 EP-EC and EH","Under Development","Under Development","Under Development","Under Development","308475001","Referral to care of the elderly physician (procedure)","SNOMEDCT","2.16.840.1.113883.6.96","2017-03","20170929"]
["CMS50v6","","Referral","2.16.840.1.113883.3.464.1003.101.12.1046","Intervention","20170504","eCQM Update 2018 EP-EC and EH","Under Development","Under Development","Under Development","Under Development","308476000","Referral to gastroenterologist (procedure)","SNOMEDCT","2.16.840.1.113883.6.96","2017-03","20170929"]
["CMS50v6","","Referral","2.16.840.1.113883.3.464.1003.101.12.1046","Intervention","20170504","eCQM Update 2018 EP-EC and EH","Under Development","Under Development","Under Development","Under Development","308477009","Referral to psychiatrist (procedure)","SNOMEDCT","2.16.840.1.113883.6.96","2017-03","20170929"]
["CMS50v6","","Referral","2.16.840.1.113883.3.464.1003.101.12.1046","Intervention","20170504","eCQM Update 2018 EP-EC and EH","Under Development","Under Development","Under Development","Under Development","308478004","Referral to general surgeon (procedure)","SNOMEDCT","2.16.840.1.113883.6.96","2017-03","20170929"]
["CMS50v6","","Referral","2.16.840.1.113883.3.464.1003.101.12.1046","Intervention","20170504","eCQM Update 2018 EP-EC and EH","Under Development","Under Development","Under Development","Under Development","308479007","Referral to ophthalmologist (procedure)","SNOMEDCT","2.16.840.1.113883.6.96","2017-03","20170929"]
["CMS50v6","","Referral","2.16.840.1.113883.3.464.1003.101.12.1046","Intervention","20170504","eCQM Update 2018 EP-EC and EH","Under Development","Under Development","Under Development","Under Development","308480005","Referral to ear, nose and throat surgeon (procedure)","SNOMEDCT","2.16.840.1.113883.6.96","2017-03","20170929"]
["CMS50v6","","Referral","2.16.840.1.113883.3.464.1003.101.12.1046","Intervention","20170504","eCQM Update 2018 EP-EC and EH","Under Development","Under Development","Under Development","Under Development","308481009","Referral to orthopedic surgeon (procedure)","SNOMEDCT","2.16.840.1.113883.6.96","2017-03","20170929"]
["CMS50v6","","Referral","2.16.840.1.113883.3.464.1003.101.12.1046","Intervention","20170504","eCQM Update 2018 EP-EC and EH","Under Development","Under Development","Under Development","Under Development","308482002","Referral to neurosurgeon (procedure)","SNOMEDCT","2.16.840.1.113883.6.96","2017-03","20170929"]
["CMS50v6","","Referral","2.16.840.1.113883.3.464.1003.101.12.1046","Intervention","20170504","eCQM Update 2018 EP-EC and EH","Under Development","Under Development","Under Development","Under Development","308483007","Referral to pediatric surgeon (procedure)","SNOMEDCT","2.16.840.1.113883.6.96","2017-03","20170929"]
["CMS50v6","","Referral","2.16.840.1.113883.3.464.1003.101.12.1046","Intervention","20170504","eCQM Update 2018 EP-EC and EH","Under Development","Under Development","Under Development","Under Development","308484001","Referral to obstetrician (procedure)","SNOMEDCT","2.16.840.1.113883.6.96","2017-03","20170929"]
["CMS50v6","","Referral","2.16.840.1.113883.3.464.1003.101.12.1046","Intervention","20170504","eCQM Update 2018 EP-EC and EH","Under Development","Under Development","Under Development","Under Development","308485000","Referral to gynecologist (procedure)","SNOMEDCT","2.16.840.1.113883.6.96","2017-03","20170929"]
["CMS50v6","","Referral","2.16.840.1.113883.3.464.1003.101.12.1046","Intervention","20170504","eCQM Update 2018 EP-EC and EH","Under Development","Under Development","Under Development","Under Development","309046007","Private referral to surgeon (procedure)","SNOMEDCT","2.16.840.1.113883.6.96","2017-03","20170929"]
["CMS50v6","","Referral","2.16.840.1.113883.3.464.1003.101.12.1046","Intervention","20170504","eCQM Update 2018 EP-EC and EH","Under Development","Under Development","Under Development","Under Development","309623006","Child referral to optician (procedure)","SNOMEDCT","2.16.840.1.113883.6.96","2017-03","20170929"]
["CMS50v6","","Referral","2.16.840.1.113883.3.464.1003.101.12.1046","Intervention","20170504","eCQM Update 2018 EP-EC and EH","Under Development","Under Development","Under Development","Under Development","309626003","Child referral - school psychologist (procedure)","SNOMEDCT","2.16.840.1.113883.6.96","2017-03","20170929"]
["CMS50v6","","Referral","2.16.840.1.113883.3.464.1003.101.12.1046","Intervention","20170504","eCQM Update 2018 EP-EC and EH","Under Development","Under Development","Under Development","Under Development","309627007","Child referral - clinical psychologist (procedure)","SNOMEDCT","2.16.840.1.113883.6.96","2017-03","20170929"]
["CMS50v6","","Referral","2.16.840.1.113883.3.464.1003.101.12.1046","Intervention","20170504","eCQM Update 2018 EP-EC and EH","Under Development","Under Development","Under Development","Under Development","309629005","Child referral - community dentist (procedure)","SNOMEDCT","2.16.840.1.113883.6.96","2017-03","20170929"]
["CMS50v6","","Referral","2.16.840.1.113883.3.464.1003.101.12.1046","Intervention","20170504","eCQM Update 2018 EP-EC and EH","Under Development","Under Development","Under Development","Under Development","310515004","Referral to medical oncologist (procedure)","SNOMEDCT","2.16.840.1.113883.6.96","2017-03","20170929"]
["CMS50v6","","Referral","2.16.840.1.113883.3.464.1003.101.12.1046","Intervention","20170504","eCQM Update 2018 EP-EC and EH","Under Development","Under Development","Under Development","Under Development","312487009","Referral to pediatric cardiologist (procedure)","SNOMEDCT","2.16.840.1.113883.6.96","2017-03","20170929"]
["CMS50v6","","Referral","2.16.840.1.113883.3.464.1003.101.12.1046","Intervention","20170504","eCQM Update 2018 EP-EC and EH","Under Development","Under Development","Under Development","Under Development","312488004","Referral to community child health doctor (procedure)","SNOMEDCT","2.16.840.1.113883.6.96","2017-03","20170929"]
["CMS50v6","","Referral","2.16.840.1.113883.3.464.1003.101.12.1046","Intervention","20170504","eCQM Update 2018 EP-EC and EH","Under Development","Under Development","Under Development","Under Development","401266006","Referral to drug abuse counselor (procedure)","SNOMEDCT","2.16.840.1.113883.6.96","2017-03","20170929"]
["CMS50v6","","Referral","2.16.840.1.113883.3.464.1003.101.12.1046","Intervention","20170504","eCQM Update 2018 EP-EC and EH","Under Development","Under Development","Under Development","Under Development","406158007","Referral to oral surgeon (procedure)","SNOMEDCT","2.16.840.1.113883.6.96","2017-03","20170929"]
["CMS50v6","","Referral","2.16.840.1.113883.3.464.1003.101.12.1046","Intervention","20170504","eCQM Update 2018 EP-EC and EH","Under Development","Under Development","Under Development","Under Development","406159004","Referral to maxillofacial surgeon (procedure)","SNOMEDCT","2.16.840.1.113883.6.96","2017-03","20170929"]
["CMS50v6","","Referral","2.16.840.1.113883.3.464.1003.101.12.1046","Intervention","20170504","eCQM Update 2018 EP-EC and EH","Under Development","Under Development","Under Development","Under Development","408285001","Referral to pediatric dietitian (procedure)","SNOMEDCT","2.16.840.1.113883.6.96","2017-03","20170929"]
["CMS50v6","","Referral","2.16.840.1.113883.3.464.1003.101.12.1046","Intervention","20170504","eCQM Update 2018 EP-EC and EH","Under Development","Under Development","Under Development","Under Development","415277000","Referral to pediatric endocrinologist (procedure)","SNOMEDCT","2.16.840.1.113883.6.96","2017-03","20170929"]
["CMS50v6","","Referral","2.16.840.1.113883.3.464.1003.101.12.1046","Intervention","20170504","eCQM Update 2018 EP-EC and EH","Under Development","Under Development","Under Development","Under Development","416116000","Referral to home registered dietitian (procedure)","SNOMEDCT","2.16.840.1.113883.6.96","2017-03","20170929"]
["CMS50v6","","Referral","2.16.840.1.113883.3.464.1003.101.12.1046","Intervention","20170504","eCQM Update 2018 EP-EC and EH","Under Development","Under Development","Under Development","Under Development","416999007","Private referral to physiotherapist (procedure)","SNOMEDCT","2.16.840.1.113883.6.96","2017-03","20170929"]
["CMS50v6","","Referral","2.16.840.1.113883.3.464.1003.101.12.1046","Intervention","20170504","eCQM Update 2018 EP-EC and EH","Under Development","Under Development","Under Development","Under Development","425971006","Referral to pediatric pulmonologist (procedure)","SNOMEDCT","2.16.840.1.113883.6.96","2017-03","20170929"]
["CMS50v6","","Referral","2.16.840.1.113883.3.464.1003.101.12.1046","Intervention","20170504","eCQM Update 2018 EP-EC and EH","Under Development","Under Development","Under Development","Under Development","428441000124100","Referral to nurse anesthetist (procedure)","SNOMEDCT","2.16.840.1.113883.6.96","2017-03","20170929"]
["CMS50v6","","Referral","2.16.840.1.113883.3.464.1003.101.12.1046","Intervention","20170504","eCQM Update 2018 EP-EC and EH","Under Development","Under Development","Under Development","Under Development","428451000124103","Referral to physician assistant (procedure)","SNOMEDCT","2.16.840.1.113883.6.96","2017-03","20170929"]
["CMS50v6","","Referral","2.16.840.1.113883.3.464.1003.101.12.1046","Intervention","20170504","eCQM Update 2018 EP-EC and EH","Under Development","Under Development","Under Development","Under Development","428461000124101","Referral to nutrition professional (procedure)","SNOMEDCT","2.16.840.1.113883.6.96","2017-03","20170929"]
["CMS50v6","","Referral","2.16.840.1.113883.3.464.1003.101.12.1046","Intervention","20170504","eCQM Update 2018 EP-EC and EH","Under Development","Under Development","Under Development","Under Development","428471000124108","Referral to clinical psychologist (procedure)","SNOMEDCT","2.16.840.1.113883.6.96","2017-03","20170929"]
["CMS50v6","","Referral","2.16.840.1.113883.3.464.1003.101.12.1046","Intervention","20170504","eCQM Update 2018 EP-EC and EH","Under Development","Under Development","Under Development","Under Development","428481000124106","Referral to clinical social worker (procedure)","SNOMEDCT","2.16.840.1.113883.6.96","2017-03","20170929"]
["CMS50v6","","Referral","2.16.840.1.113883.3.464.1003.101.12.1046","Intervention","20170504","eCQM Update 2018 EP-EC and EH","Under Development","Under Development","Under Development","Under Development","428491000124109","Referral to anesthesiologist assistant (procedure)","SNOMEDCT","2.16.840.1.113883.6.96","2017-03","20170929"]
["CMS50v6","","Referral","2.16.840.1.113883.3.464.1003.101.12.1046","Intervention","20170504","eCQM Update 2018 EP-EC and EH","Under Development","Under Development","Under Development","Under Development","428541000124104","Referral to nurse midwife (procedure)","SNOMEDCT","2.16.840.1.113883.6.96","2017-03","20170929"]
["CMS50v6","","Referral","2.16.840.1.113883.3.464.1003.101.12.1046","Intervention","20170504","eCQM Update 2018 EP-EC and EH","Under Development","Under Development","Under Development","Under Development","429365000","Referral to pediatric gastroenterologist (procedure)","SNOMEDCT","2.16.840.1.113883.6.96","2017-03","20170929"]
["CMS50v6","","Referral","2.16.840.1.113883.3.464.1003.101.12.1046","Intervention","20170504","eCQM Update 2018 EP-EC and EH","Under Development","Under Development","Under Development","Under Development","433151006","Referral to educational psychologist (procedure)","SNOMEDCT","2.16.840.1.113883.6.96","2017-03","20170929"]
["CMS50v6","","Referral","2.16.840.1.113883.3.464.1003.101.12.1046","Intervention","20170504","eCQM Update 2018 EP-EC and EH","Under Development","Under Development","Under Development","Under Development","448761000124106","Referral to endovascular specialist (procedure)","SNOMEDCT","2.16.840.1.113883.6.96","2017-03","20170929"]
["CMS50v6","","Referral","2.16.840.1.113883.3.464.1003.101.12.1046","Intervention","20170504","eCQM Update 2018 EP-EC and EH","Under Development","Under Development","Under Development","Under Development","448771000124104","Referral to prosthetist (procedure)","SNOMEDCT","2.16.840.1.113883.6.96","2017-03","20170929"]
["CMS50v6","","Referral","2.16.840.1.113883.3.464.1003.101.12.1046","Intervention","20170504","eCQM Update 2018 EP-EC and EH","Under Development","Under Development","Under Development","Under Development","54395008","Patient referral for medical consultation (procedure)","SNOMEDCT","2.16.840.1.113883.6.96","2017-03","20170929"]
["CMS50v6","","Referral","2.16.840.1.113883.3.464.1003.101.12.1046","Intervention","20170504","eCQM Update 2018 EP-EC and EH","Under Development","Under Development","Under Development","Under Development","698563003","Referral to bariatric surgeon (procedure)","SNOMEDCT","2.16.840.1.113883.6.96","2017-03","20170929"]
["CMS50v6","","Referral","2.16.840.1.113883.3.464.1003.101.12.1046","Intervention","20170504","eCQM Update 2018 EP-EC and EH","Under Development","Under Development","Under Development","Under Development","698599008","Private referral to breast surgeon (procedure)","SNOMEDCT","2.16.840.1.113883.6.96","2017-03","20170929"]
["CMS50v6","","Referral","2.16.840.1.113883.3.464.1003.101.12.1046","Intervention","20170504","eCQM Update 2018 EP-EC and EH","Under Development","Under Development","Under Development","Under Development","703974003","Private referral to colorectal surgeon (procedure)","SNOMEDCT","2.16.840.1.113883.6.96","2017-03","20170929"]
["CMS50v6","","Referral","2.16.840.1.113883.3.464.1003.101.12.1046","Intervention","20170504","eCQM Update 2018 EP-EC and EH","Under Development","Under Development","Under Development","Under Development","703975002","Private referral to podiatrist (procedure)","SNOMEDCT","2.16.840.1.113883.6.96","2017-03","20170929"]
["CMS50v6","","Referral","2.16.840.1.113883.3.464.1003.101.12.1046","Intervention","20170504","eCQM Update 2018 EP-EC and EH","Under Development","Under Development","Under Development","Under Development","703976001","Private referral to radiologist (procedure)","SNOMEDCT","2.16.840.1.113883.6.96","2017-03","20170929"]
["CMS50v6","","Referral","2.16.840.1.113883.3.464.1003.101.12.1046","Intervention","20170504","eCQM Update 2018 EP-EC and EH","Under Development","Under Development","Under Development","Under Development","716634006","Referral to neurological physiotherapist (procedure)","SNOMEDCT","2.16.840.1.113883.6.96","2017-03","20170929"]